Workbook

Sheet Index
B1: Massachusetts Department of Elementary and Secondary Education
B2: FY20 Charter School End of Year Financial Report Summary
B3: Last Updated: May 2021
B5: Data Context
B6: This data was collected via the FY2020 Charter School End of Year Financial Report (20CSEOYFR) as well as SIMS and EPIMS databases.
B8: Technical Tips
B9: Please be sure to enable macros before using this file. You will receive a Security Warning message at the top of this page that reads "Macros have been disabled". Please click "Enable Content".
B11: Instructions for Viewing Data
B12: Use the drop-down menu to select a charter school that was operating in FY20 or a statewide charter summary total then navigate to any of the first three tabs linked below. There is additional statewide summary data provided in tabs 4 and 5.
C15: =VLOOKUP(E15, CSORDER, 2, FALSE) ->  | D15: =VLOOKUP(E15, CSORDER, 3, FALSE) ->  | E15: 1
B18: 1. Statement of Net Position
B19: 2. Statement of Revenues, Expenses and Change in Net Position
B20: 3. Schedule of Functional Expenses
B22: In addition, statewide summary data is available for the following:
B23: 4. Expenditures Per Pupil
B24: 5. Average Teacher Salaries
B26: For researchers, the following raw data sets are available:
B27: BAL20_raw (Balance Sheet Data)
B28: INC20_raw (Income Statement Data)
B29: FE20_raw (Schedule of Functional Expenses Data)
B30: FTE_raw (Student FTE Enrollment Data)
B31: EPIMS19_raw (Teacher FTE Enrollment Data)

Sheet 1. Statement of Net Position
A1: NAME: | B1: =SCHOOLNAME ->  | F1: LEA | G1: =LEA -> 
A3: Statement of Net Position
A4: For the Year Ended June 30, 2020
F6: =B1 ->  | G6: Charter School Foundation (Component Unit) | H6: 2020 Total (Memorandum Only) | J6: Line | K6: Rec. Acct#
C7: ASSETS
C8: Current Assets
A9: 01 | C9: Cash and Cash Equivalents | D9: Assets that are cash or can be converted into cash immediately. | F9: =VLOOKUP($G$1&$A9, BAL, 6,FALSE) ->  | G9: =VLOOKUP($G$1&$A9, BAL, 7,FALSE) ->  | H9: =VLOOKUP($G$1&$A9, BAL, 8,FALSE) ->  | J9: =A9 -> 01 | K9: 10XX
A10: 02 | C10: Accounts Receivable net of doubtful accounts | D10: A school's claim for money, goods and services from customers and other entities. | J10: 02 | K10: 11XX
A11: 03 | C11: Grants Receivable - State | D11: Claims for goods and services provided under state awarded contracts. | J11: 03 | K11: 11XX
A12: 04 | C12: Grants Receivable - Federal | D12: Claims for goods and services provided under federal awarded contracts. | J12: 04 | K12: 11XX
A13: 05 | C13: Grants Receivable - Private | D13: Claims for goods and services provided from private awards received. | J13: 05 | K13: 11XX
A14: 06 | C14: Contributions Receivable | D14: Unconditional promises to give by private individuals or corporations. | J14: 06 | K14: 11XX
A15: 07 | C15: Due from related parties | D15: Amounts to be received from related parties. | J15: 07 | K15: 12XX
A16: 08 | C16: Prepaid Expenses / Inventory | D16: An expense paid but not incurred as of year end. Also include short-term inventories of supplies such as uniforms. | J16: 08 | K16: 13XX
A17: 09 | C17: Short-Term Investments | D17: Readily marketable security for which the intention of the school is the conversion to cash in the short term. | J17: 09 | K17: 14XX
A18: 10 | C18: Deposit (Security, Other) | D18: Security deposits for leases, or other deposits. | F18: =VLOOKUP($G$1&$A19, BAL, 6,FALSE) ->  | G18: =VLOOKUP($G$1&$A19, BAL, 7,FALSE) ->  | H18: =VLOOKUP($G$1&$A19, BAL, 8,FALSE) ->  | J18: =A19 -> 11 | K18: 15XX
A19: 11 | C19: Restricted Current Assets | D19: Current assets restricted by external sources for future purchases. | J19: 11 | K19: 15XX
A20: 12 | C20: TOTAL CURRENT ASSETS | D20: Calculates automatically. | J20: 12 | K20: NA
C21: Noncurrent Assets
C22: Capital Assets
A23: 13 | C23: - Land and Buildings | D23: Value of land and building inclusive of remodeling, reconditioning, or altering the building purchased to make it available for the purpose for which it was acquired, including construction in progress. | F23: =VLOOKUP($G$1&$A23, BAL, 6,FALSE) ->  | G23: =VLOOKUP($G$1&$A23, BAL, 7,FALSE) ->  | H23: =VLOOKUP($G$1&$A23, BAL, 8,FALSE) ->  | J23: =A23 -> 13 | K23: 15XX
A24: 14 | C24: - Building/Leasehold Improvement | D24: Value of improvements on leased property that revert back to the owners upon termination of the lease. | J24: 14 | K24: 15XX
A25: 15 | C25: - Furniture and Equipment | D25: Value of furniture and equipment that meet the school's capitalization policy. | J25: 15 | K25: 15XX
A26: 16 | C26: - Less Accumulated Depreciation | D26: The aggregate, at a given point in time, of the depreciation charges made during the useful life of the fixed asset. Enter as a negative number. | J26: 16 | K26: 16XX
A27: 17 | C27: Net Capital Assets | D27: Calculates automatically. | J27: 17 | K27: NA
A28: 19 | C28: Restricted Noncurrent Assets | D28: Noncurrent assets restricted by external sources for future purchases. | J28: 19 | K28: 10XX
A29: 19 | C29: Long-Term Investments | D29: Investments that do not meet the criteria of "Short-Term Investments" above. | J29: 19 | K29: 14XX
A30: 20 | C30: Building Acquisition / Financing Costs / Deferred Expenses | D30: Costs related to building acquisition, construction, and/or financing costs which are amortized. Also include long-term pre-paid leases or expenses which are amortized. | J30: 20 | K30: 14XX
A31: 21 | C31: Long-Term Grants / Contributions Receivable | D31: Please enter a brief description in the highlighted green cell, if applicable. | J31: 21 | K31: 14XX
A32: 22 | C32: TOTAL NONCURRENT ASSETS | D32: Calculates automatically. | J32: 22 | K32: NA
A33: 23 | C33: TOTAL ASSETS | D33: Calculates automatically. | J33: 23 | K33: NA
C35: LIABILITIES AND NET ASSETS
C36: Current Liabilities
A37: 24 | C37: Accounts Payable | D37: Obligations for goods or services purchased for which invoices have been received. | F37: =VLOOKUP($G$1&$A37, BAL, 6,FALSE) ->  | G37: =VLOOKUP($G$1&$A37, BAL, 7,FALSE) ->  | H37: =VLOOKUP($G$1&$A37, BAL, 8,FALSE) ->  | J37: =A37 -> 24 | K37: 20XX
A38: 25 | C38: Accrued Expenses / Accrued Payroll | D38: An unpaid expense incurred that has not been paid as of the end of the period, including accrued payroll. | J38: 25 | K38: 21XX
A39: 26 | C39: Deferred Revenue | D39: Cash received for services not performed (i.e., grant funds received that were not expended). | J39: 26 | K39: 22XX
A40: 27 | C40: Due to related parties | D40: Amounts due to related parties such as the school's component unit. | J40: 27 | K40: 23XX
A41: 28 | C41: Current Debt Payable | D41: Debt obligations due within one year of financial statement date. | J41: 28 | K41: 24XX
A42: 29 | C42: Current Lease Obligations Payable | D42: Lease obligations due within one year of financial statement date. | J42: 29 | K42: 24XX
A43: 30 | C43: TOTAL CURRENT LIABILITIES | D43: Calculates automatically. | J43: 30 | K43: NA
C44: Noncurrent Liabilities
A45: 31 | C45: Noncurrent Lease Obligations | D45: Lease obligations due after one year of financial statement date. | F45: =VLOOKUP($G$1&$A45, BAL, 6,FALSE) ->  | G45: =VLOOKUP($G$1&$A45, BAL, 7,FALSE) ->  | H45: =VLOOKUP($G$1&$A45, BAL, 8,FALSE) ->  | J45: =A45 -> 31 | K45: 26XX
A46: 32 | C46: Long-Term Debt | D46: Debt obligations due after one year of financial statement date. | F46: =VLOOKUP($G$1&$A46, BAL, 6,FALSE) ->  | G46: =VLOOKUP($G$1&$A46, BAL, 7,FALSE) ->  | H46: =VLOOKUP($G$1&$A46, BAL, 8,FALSE) ->  | J46: =A46 -> 32 | K46: 26XX
A47: 33 | C47: Deferred Revenue | D47: Cash received for services not performed (i.e., grant funds received that were not expended). | F47: =VLOOKUP($G$1&$A47, BAL, 6,FALSE) ->  | G47: =VLOOKUP($G$1&$A47, BAL, 7,FALSE) ->  | H47: =VLOOKUP($G$1&$A47, BAL, 8,FALSE) ->  | J47: =A47 -> 33 | K47: 2XXX
A48: 34 | C48: TOTAL NONCURRENT LIABILITIES | D48: Calculates automatically. | F48: =VLOOKUP($G$1&$A48, BAL, 6,FALSE) ->  | G48: =VLOOKUP($G$1&$A48, BAL, 7,FALSE) ->  | H48: =VLOOKUP($G$1&$A48, BAL, 8,FALSE) ->  | J48: =A48 -> 34 | K48: NA
A49: 35 | C49: TOTAL LIABILITIES | D49: Calculates automatically. | F49: =VLOOKUP($G$1&$A49, BAL, 6,FALSE) ->  | G49: =VLOOKUP($G$1&$A49, BAL, 7,FALSE) ->  | H49: =VLOOKUP($G$1&$A49, BAL, 8,FALSE) ->  | J49: =A49 -> 35 | K49: NA
C51: NET ASSETS
A52: 36 | C52: Investment in capital assets (net of related debt) | D52: Represents capital assets reduced by accumulated depreciation and any outstanding debt used to acquire, construct or improve those assets. | F52: =VLOOKUP($G$1&$A52, BAL, 6,FALSE) ->  | G52: =VLOOKUP($G$1&$A52, BAL, 7,FALSE) ->  | H52: =VLOOKUP($G$1&$A52, BAL, 8,FALSE) ->  | J52: =A52 -> 36 | K52: 3XXX
A53: 37 | C53: Temporarily Restricted | D53: Net assets that are temporarily restricted by a funder or the school's Board for a specific purpose. | J53: 37 | K53: 32XX
A54: 38 | C54: Permanently Restricted | D54: Net assets that are restricted by an outside agency or person, as contrasted with assets over which the entity has control and discretion. E.g., a donor scholarship fund. | J54: 38 | K54: 33XX
A55: 39 | C55: Unrestricted (non-capital) | D55: Net assets that do not meet the definitions of any of the above categories. | J55: 39 | K55: 30XX
A56: 40 | C56: TOTAL NET ASSETS | D56: Calculates automatically. | J56: 40 | K56: NA
A57: 41 | C57: TOTAL LIABILITIES AND NET ASSETS | D57: Calculates automatically. MUST RECONCILE WITH LINE 23 (TOTAL ASSETS) | J57: 41 | K57: NA

Sheet 2. Stmt Rev, Exp and Change
B1: NAME: | C1: =SCHOOLNAME ->  | F1: LEA | G1: =LEA ->  | M1: =3 -> 3
A3: Statement of Revenues, Expenses and Change in Net Position
A4: =YEAREND -> For the Year Ended June 30, 2020
D6: Restricted – The use of these funds are restricted to a particular purpose or project. Unrestricted – These use of these funds are unrestricted and came be used toward any purpose. | F6: =C1 ->  | G6: Charter School Foundation (Component Unit) | H6: 2020 Total (Memorandum Only) | J6: Line | K6: Rec. Acct#
C7: REVENUES
A8: 01 | C8: Tuition | D8: Total tuition paid to the charter school by either the Commonwealth or sending school district (Horace Mann), inclusive of local transportation and facilities reimbursement embedded in Commonwealth tuition payments. This should include any reimbursements received for local transportation reimbursement, if applicable. | F8: =VLOOKUP($G$1&$A8, INC, 6,FALSE) ->  | H8: =VLOOKUP($G$1&$A8, INC, 8,FALSE) ->  | J8: =A8 -> 01 | K8: 4000
A9: 02a | B9: ^ | C9: Grants - State - passed through ESE | D9: Grants awarded through the ESE. | G9: =VLOOKUP($G$1&$A9, INC, 7,FALSE) ->  | J9: 02a | K9: 41XX
A10: 02b | B10: ^ | C10: Grants - State - other non-ESE pass-through | D10: Grants awarded directly by the Commonwealth of MA. | J10: 02b | K10: 41XX
A11: 03 | B11: ^ | C11: Grants - Federal - Passed through ESE | D11: Grants from federal sources that pass through ESE such as Title I, IDEA, Charter School Start-Up Assistance, etc. | J11: 03 | K11: 41XX
A12: 04 | B12: ^ | C12: Grants - Federal - Direct or other pass-through | D12: Grants from federal sources awarded directly from federal agencies or passed-through other agencies. | J12: 04 | K12: 41XX
A13: 05a | B13: ^ | C13: Grants - Private (restricted) | D13: Grants awarded by private (non-governmental) foundations, corporations, or individuals that are restricted. | J13: 05a | K13: 41XX
A14: 05b | C14: Grants - Private (unrestricted) | D14: Grants awarded by private (non-governmental) foundations, corporations, or individuals that are unrestricted. | J14: 05b | K14: 41XX
A15: 06 | B15: ^ | C15: Nutrition Funding - State | D15: Funding for nutrition programs is split between the federal and state governments. | J15: 06 | K15: 42XX
A16: 07 | B16: ^ | C16: Nutrition Funding - Federal | D16: Funding for nutrition programs is split between the federal and state governments. | J16: 07 | K16: 42XX
A17: 08 | C17: Nutrition Funding - Fees | D17: Fees collected from students for nutrition programs. | J17: 08 | K17: 42XX
A18: 09 | C18: Other Program / Student Activity Fees | D18: Any fees that the school collects for transportation, uniforms, etc. | F18: =VLOOKUP($G$1&$A19, INC, 6,FALSE) ->  | G18: =VLOOKUP($G$1&$A19, INC, 7,FALSE) ->  | H18: =VLOOKUP($G$1&$A19, INC, 8,FALSE) ->  | J18: =A19 -> 10 | K18: 43XX
A19: 10 | C19: Regional Transportation Aid | D19: Reimbursements from the Commonwealth for regional transportation costs, if applicable. | J19: 10 | K19: 45XX
A20: 11 | C20: Medicaid Reimbursements | D20: Reimbursement from Medicaid | J20: 11 | K20: 45XX
A21: 12 | C21: Circuit Breaker Reimbursements | D21: Reimbursements from the Commonwealth for high-cost special education students, if applicable. | J21: 12 | K21: 45XX
A22: 13a | C22: Contributions, in-kind, host district | D22: Recorded monetary value of in-kind donations for services that would otherwise have been purchased, provided by the school's host district (e.g. transportation, food). | J22: 13a | K22: 44XX
A23: 13b | C23: Contributions, in-kind, other | D23: Recorded monetary value of in-kind donations for services that would otherwise have been purchased, provided by individuals/organizations other than the host district. | G23: =VLOOKUP($G$1&$A23, INC, 7,FALSE) ->  | J23: 13b | K23: 44XX
A24: 13c | C24: Contributions, on-behalf, pension | D24: In accordance with GASB 68, recorded retirement payments to former retired School’s employees. | J24: 13c | K24: 44XX
A25: 14 | C25: Contributions, from Component Unit (restricted) | D25: Restricted contributions made to the School by the Component Unit | J25: 14 | K25: 44XX
A26: 14b | C26: Contributions, from Component Unit (unrestricted) | D26: Unrestricted contributions made to the School by the Component Unit | J26: 14b | K26: 44XX
A27: 15 | C27: Contributions / Fundraising (restricted) | D27: Restricted donations from individuals, businesses, or corporations. | J27: 15 | K27: 44XX
A28: 15b | C28: Contributions / Fundraising (unrestricted) | D28: Unrestricted donations from individuals, businesses, or corporations. | J28: 15b | K28: 44XX
A29: 16 | C29: Interest / Investment Income (restricted) | D29: Restricted income generated from interest/investments. | J29: 16 | K29: 47XX
A30: 16a | C30: Interest / Investment Income (unrestricted) | D30: Unrestricted income generated from interest/investments. | J30: 16b | K30: 47XX
A31: 17 | C31: Rental Income | D31: Income generated from rental of space. | J31: =A31 -> 17 | K31: 46XX
A32: 19 | C32: Loan Forgiveness or Other Reimbursement | D32: Revenue recorded for loan forgiveness or other credit. | J32: =A32 -> 19 | K32: 4XXX
A33: 19 | C33: Miscellaneous Income | D33: Miscellaneous Income. | J33: =A33 -> 19 | K33: 4XXX
A34: 20 | C34: TOTAL REVENUES | D34: Calculates automatically. | J34: =A34 -> 20 | K34: NA
B35: ^ | C35: Non-"General Fund" revenue sources
C37: EXPENSES
A38: 21 | C38: Administration | D38: Charter School figures will be populated from the Sch_FuncExp sheet. | F38: =VLOOKUP($G$1&$A38, INC, 6,FALSE) ->  | H38: =VLOOKUP($G$1&$A38, INC, 8,FALSE) ->  | J38: =A38 -> 21 | K38: NA
A39: 22 | C39: Instructional Services | D39: Charter School figures will be populated from the Sch_FuncExp sheet. | J39: 22 | K39: NA
A40: 23 | C40: Pupil Services | D40: Charter School figures will be populated from the Sch_FuncExp sheet. | J40: 23 | K40: NA
A41: 24 | C41: Operation & Maintenance of Plant | D41: Charter School figures will be populated from the Sch_FuncExp sheet. | J41: 24 | K41: NA
A42: 25 | C42: Fixed Charges | D42: Charter School figures will be populated from the Sch_FuncExp sheet. | J42: 25 | K42: NA
A43: 26 | C43: Community Services | D43: Charter School figures will be populated from the Sch_FuncExp sheet. | J43: 26 | K43: NA
A44: 27 | C44: Non-Operating Financing Expenses | D44: Charter School figures will be populated from the Sch_FuncExp sheet. | J44: 27 | K44: NA
A45: 28 | C45: Component Unit Expenses | D45: Aggregate operating expenses for the Component Unit. | G45: =VLOOKUP($G$1&$A45, INC, 7,FALSE) ->  | J45: 28 | K45: NA
A46: 29 | C46: Contributions to School | D46: Contributions made by the Component Unit to the School | G46: =VLOOKUP($G$1&$A46, INC, 7,FALSE) ->  | J46: 29 | K46: NA
A47: 30 | C47: TOTAL EXPENSES | D47: Calculates automatically. | F47: =VLOOKUP($G$1&$A47, INC, 6,FALSE) ->  | G47: =VLOOKUP($G$1&$A47, INC, 7,FALSE) ->  | J47: 30 | K47: NA
A49: 31 | C49: TOTAL GAIN/(LOSS) | D49: Calculates automatically. | F49: =VLOOKUP($G$1&$A49, INC, 6,FALSE) ->  | G49: =VLOOKUP($G$1&$A49, INC, 7,FALSE) ->  | H49: =VLOOKUP($G$1&$A49, INC, 8,FALSE) ->  | J49: =A49 -> 31 | K49: NA
A50: 32 | C50: Gain/Loss on Sale of Asset or Lease Transaction | D50: Gain/Loss recorded on sale of school assets or lease transaction. | F50: =VLOOKUP($G$1&$A50, INC, 6,FALSE) ->  | G50: =VLOOKUP($G$1&$A50, INC, 7,FALSE) ->  | H50: =VLOOKUP($G$1&$A50, INC, 8,FALSE) ->  | J50: =A50 -> 32 | K50: 5XXX
A51: 33 | C51: Other Gain/Loss | D51: Other Gain or Loss that is a non-recurring, unusual occurrence such as a prior-period adjustment | F51: =VLOOKUP($G$1&$A51, INC, 6,FALSE) ->  | G51: =VLOOKUP($G$1&$A51, INC, 7,FALSE) ->  | H51: =VLOOKUP($G$1&$A51, INC, 8,FALSE) ->  | J51: =A51 -> 33 | K51: 5XXX
A52: 34 | C52: TOTAL CHANGES IN NET ASSETS: | D52: Calculates automatically. | F52: =VLOOKUP($G$1&$A52, INC, 6,FALSE) ->  | G52: =VLOOKUP($G$1&$A52, INC, 7,FALSE) ->  | H52: =VLOOKUP($G$1&$A52, INC, 8,FALSE) ->  | J52: =A52 -> 34 | K52: NA
A54: 35 | C54: NET ASSETS AT BEGINNING OF YEAR | D54: Please enter values from previous year's audit. | F54: =VLOOKUP($G$1&$A54, INC, 6,FALSE) ->  | G54: =VLOOKUP($G$1&$A54, INC, 7,FALSE) ->  | H54: =VLOOKUP($G$1&$A54, INC, 8,FALSE) ->  | J54: =A54 -> 35 | K54: NA
A55: 36 | C55: NET ASSETS AT END OF YEAR | D55: Calculates automatically. MUST RECONCILE WITH BALANCE SHEET LINE 40 (TOTAL NET ASSETS) | F55: =VLOOKUP($G$1&$A55, INC, 6,FALSE) ->  | G55: =VLOOKUP($G$1&$A55, INC, 7,FALSE) ->  | H55: =VLOOKUP($G$1&$A55, INC, 8,FALSE) ->  | J55: =A55 -> 36 | K55: NA
F56: 0 | G56: 0 | H56: 0

Sheet 3. Schedule of Func Exp
B1: NAME: | C1: =SCHOOLNAME ->  | H1: =LEA -> 
A3: Schedule of Functional Expenses
A4: =YEAREND -> For the Year Ended June 30, 2020
F5: "General" Fund
F6: 1 | G6: 2 | H6: 3 | I6: 4 | J6: 5 | K6: 6 | L6: 7
F7: General Education | G7: Special Education | H7: Undistributed | I7: State Grants & Nut. Reimb. | J7: Federal Grants & Nut. Reimb. | K7: Private Grants (Designated) | L7: TOTAL | Q7: Crosswalk to EOYR, if possible
A8: Line | C8: Functional Category | D8: For salaried personnel, please provide a full-time equivalency (FTE) total that corresponds to the salary expense reported. | F8: Expenses | G8: Expenses | H8: Expenses | I8: Expenses | J8: Expenses | K8: Expenses | L8: Expenses | S8: Defintions
A10: 100 | C10: Administration | D10: =C10&" - Calculates automatically." -> Administration - Calculates automatically. | H10: =VLOOKUP($H$1&$A10, FE, 8,FALSE) ->  | I10: =VLOOKUP($H$1&$A10, FE, 9,FALSE) ->  | J10: =VLOOKUP($H$1&$A10, FE, 10,FALSE) ->  | K10: =VLOOKUP($H$1&$A10, FE, 11,FALSE) ->  | L10: =VLOOKUP($H$1&$A10, FE, 12,FALSE) ->  | Q10: 1000 series | S10: 1 | T10: General Education | U10: Expenditures from "operating" revenues recognized on all lines except 2 - 5a and 6 - 7 of the Income Statement for General Education programs (defined as non-special education programs). These expenditures should include English Language Learner programs, required summer school, and extended programs.
A11: 110 | C11: Subtotal - Board of Trustees | D11: Calculates automatically | H11: =VLOOKUP($H$1&$A11, FE, 8,FALSE) ->  | Q11: 1100 | S11: 2 | T11: Special Education | U11: Expenditures from "operating" revenues recognized on all lines except 2 - 5a and 6 - 7 of the Income Statement for Special Education, defined as programs for instruction of students with special needs, provided for under MGL Ch. 71B and 603 CMR 28.00. Note that all special education expenditures by charter schools will be for "in-district" students, as the fiscal responsibility of any special needs student currently enrolled in or determined to require a private day or residential school shall remain with the school district where the student resides per MGL Chapter 71 Section 89(s).
A12: 111 | C12: Contracted Services | D12: Contracted professional services, including all related expenses covered by the contract. (Ex: board training consultant, facilitator for board retreat, board attorney) Do not include auditor see Non-Instructional Administration-Contracted Services. | Q12: 1100 | S12: 3 | T12: Undistributed | U12: Expenditures that cannot be assigned to either General Education and Special Education program areas from "operating" revenues recognized on all lines except 2 - 5a and 6 - 7 of the Income Statement.
A13: 112 | C13: Travel and other expenses | D13: Travel and other expenses for board members such as dues, subscriptions and memberships. (Ex: board member travels to charter school conference, dues for board-specific professional association). | Q13: 1100 | S13: 4 | T13: State Grants & Funding | U13: Expenditures from state revenue sources recognized in Line 2 and 6 of the Income Statement. Amounts here should reconcile with final expenditure reports for state grants filed with ESE.
A14: 120 | C14: Subtotal - School Leaders | D14: Calculates automatically | L14: =SUM(F14:K14) -> 
A15: 121 | C15: Salaries - Professional | D15: Salaries for non-instructional school-wide administrative personnel (Ex: executive director). Principals and Instructional Leaders should be noted in Instructional Services. If role is instructional and administrative, split accordingly. | L15: =SUM(F15:K15) -> 
A16: 122 | C16: Contracted Services | D16: Contracted professional services, including all related expenses covered by the contract. (Ex: interim school leader)
A17: 120a | C17: Subtotal - Non-Instructional Administration and Support Staff | D17: Calculates automatically | Q17: 1210, 1220 | S17: 5 | T17: Federal Grants & Funding | U17: Expenditures from federal revenue sources recognized in Line 3, 4, and 7 of the Income Statement. Amounts here should reconcile with final expenditure reports for state and federal grants filed with ESE.
A18: 121a | C18: Salaries - Professional and Support Staff | D18: Salaries for non-instructional school-wide administrative personnel, excluding development staff. (Ex: executive director, Business and Finance, Human Resources, Legal Services, Information Technology, Student Recruitment and Enrollment/Registrar, Enrollment Director, SIMS administrator, and respective Support Staff). Principals and Instructional Leaders should be noted in Instructional Services. If role is instructional and administrative, split accordingly. | Q18: 1210, 1220 | S18: 6 | T18: Private Grants (Restricted) | U18: Expenditures from restricted private grants for operating expenses listed in the Income Statement as line 5a. Note that all other private donations/contributions should be captured in the "general fund" columns.
A19: 122a | C19: Contracted Services - Professional and Support Staff | D19: Contracted professional services, including all related expenses covered by the contract, excluding development contracts. (Ex: interim school leader, auditor, attorney, licensing for district wide software - Microsoft, Anti virus). | Q19: 1210, 1220
A20: 123 | C20: Recruitment/Advertising | D20: Recruiting/advertising for students, staff, and board members. (Ex: brochures, newspaper advertising, web based staff recruitment such as School Spring, radio, advertising for bids).
A21: 124 | C21: Travel, Dues, and other expenses | D21: Travel and other expenses for all non-instructional administrative and support staff, dues such as charter school association dues, professional dues, subscriptions, memberships, professional development and conferences.
A22: 125 | C22: Supplies and Materials | D22: Materials and items of an expendable nature. Unit price of less than $5000. (Ex: office furniture, office supplies, non-instructional computers and software).
A23: 126 | C23: Depreciation - non instructional | D23: Annual depreciation expense for capitalized costs (ex: district wide information management, computers, furniture).
A24: 127 | C24: Legal Settlements | D24: Funds paid toward legal settlements only. | L24: =SUM(F24,G24,H24,I24,J24,K24) -> 
A25: 170 | C25: Subtotal - Development (Private) | D25: Calculates automatically | Q25: 1230
A26: 170a | C26: Salaries - Professional - Private | D26: Salaries apportioned to private development personnel (this could be % of a salary). (Ex: grant writer and fundraiser). | Q26: 1230
A27: 170b | C27: Contracted Services - Private | D27: Contracts apportioned to professional services for private development (including all related expenses covered by the contract). (Ex: contracted fundraiser, contracted grant writer). | Q27: 1230??
A28: 170c | C28: Fundraising - Private | D28: Expenses related to private fundraising. (Ex: invitations to fundraiser, fundraising software, space rental for fundraising event).
A29: 171 | C29: Subtotal - Development (Public) | D29: Calculates automatically
A30: 171a | C30: Salaries - Professional - Public | D30: Salaries apportioned to public development personnel (this could be a % of a salary). (Ex: grant writer and fundraiser).
A31: 171b | C31: Contracted Services - Public | D31: Contracts apportioned to professional services for public development (including all related expenses covered by the contract). (Ex: contracted grant writer).
A33: 200 | C33: Instructional Services | D33: Calculates automatically | F33: =VLOOKUP($H$1&$A33, FE, 6,FALSE) ->  | G33: =VLOOKUP($H$1&$A33, FE, 7,FALSE) ->  | H33: =VLOOKUP($H$1&$A33, FE, 8,FALSE) ->  | I33: =VLOOKUP($H$1&$A33, FE, 9,FALSE) ->  | J33: =VLOOKUP($H$1&$A33, FE, 10,FALSE) ->  | K33: =VLOOKUP($H$1&$A33, FE, 11,FALSE) ->  | L33: =VLOOKUP($H$1&$A33, FE, 12,FALSE) ->  | Q33: 2000 series
A34: 210 | C34: Instructional Subtotal - Instructional Leadership | D34: Calculates automatically | Q34: 2100s, 2200s, 2315
A35: 211 | C35: Salaries - Professional | D35: Salaries for instructional personnel in leadership roles. (Ex: principal/asst. principals (undistributed), curriculum directors (including SPED), department heads, technology/tnstructional coordinators, team leaders, network school administrators). | Q35: 2110, 2120, 2210, 2220, 2250, 2315
A36: 212 | C36: Salaries - Clerical | D36: Salaries for administrative support personnel who prepare, transcribe, systematize or preserve communications, records and transactions. (Ex: instructional school secretary and respective clerical support staff to the various instructional personnel in leadership roles). | Q36: 2110, 2120, 2210, 2220, 2250, 2315
A37: 213 | C37: Contracted Services | D37: Contracted professional services, including all related expenses covered by the contract. (Ex: contracted instructional consultant such as a reading specialist). | Q37: 2110, 2120, 2210, 2220, 2250, 2315
A38: 214 | C38: Supplies and Materials | D38: Materials and items of an expendable nature. Unit price of less than $5000. (Ex: white boards and computers for instructional leaders). | Q38: 2110, 2120, 2210, 2220, 2250, 2315
A39: 215 | C39: Travel and other expenses | D39: Travel and other expenses for all instructional leadership and their support staff, professional dues, subscriptions, memberships, teaching seminars and conferences . | Q39: 2110, 2120, 2210, 2220, 2250, 2315
A40: 220 | C40: Instructional Subtotal - Classroom and Specialist Teachers | D40: Calculates automatically | Q40: 2300
A41: 221 | C41: Salaries - Teachers, Classroom | D41: Salaries for teachers with primary responsibility for teaching designated curriculum to established "classes" of students in a group instruction setting. Also includes itinerant music, art, health, physical education teachers who travel from classroom-to-classroom. Teacher EPIMS codes: 2305 - Teacher, 2306 - Co Teacher, 2307 - Virtual Teacher, 2308 - Virtual Teacher – Co Teacher | Q41: 2305
A42: 222 | C42: Salaries - Teachers, Specialists | D42: Salaries for teachers/specialists who provide individualized instruction to students (1-on-1 or small groups) to supplement the services delivered by the students' classroom teachers, e.g. reading recovery, Title I reading specialists, special education, academic support, and language acquisitions services. NOT paraprofessionals. Teacher EPIMS codes: 2310 - Teacher - specialized content instruction | Q42: 2310
A43: 230 | C43: Instructional Subtotal - Other Teaching Services | D43: Calculates automatically | Q43: 2300
A44: 231 | C44: Salaries - Professional | D44: Salaries for Medical/Therapeutic service and other professionals. (Ex: OT, PT, Speech, Vision and other therapeutic services that are provided by licensed practitioners, librarians, media center directors, substitute teachers on payroll, extended-day teachers, MCAS administrator). | Q44: 2320, 2325, 2340
A45: 232 | C45: Salaries - Nonclerical Paraprofessionals | D45: Salaries for paraprofessionals hired to assist teachers/specialists with classroom instruction in the preparation or reproduction of instructional materials or classroom instruction. (Ex: American Sign Language Specialists, general teacher's assistant, after-school employees). | Q45: 2330
A46: 233 | C46: Salaries - Clerical | D46: Salaries for administrative support personnel who prepare, transcribe, systematize or preserve communications, records and transactions. (Ex: secretary, after-school employees). | Q46: 2320, 2325, 2340
A47: 234 | C47: Contracted Services | D47: Contracted professional services, including all related expenses covered by the contract, for other teaching services (Ex: non-payroll substitute teachers should be included here, contracted OT, PT, after-school contracted workers). | Q47: 2320, 2325, 2340
A48: 240 | C48: Instructional Subtotal - Professional Development | D48: Calculates automatically | H48: =VLOOKUP($H$1&$A48, FE, 8,FALSE) ->  | Q48: 2350s
A49: 241 | C49: Salaries - Professional | D49: Salaries for full-time or prorated salary of director/staff for professional development, including training for new teachers, new curriculum or instructional practices, master and mentor teachers, and coaches. | H49: =VLOOKUP($H$1&$A49, FE, 8,FALSE) ->  | Q49: 2351, 2353
A50: 242 | C50: Contracted Services | D50: Contracted professional services, including all related expenses covered by the contract, for professional development (Ex: non-payroll substitute teachers, speakers and trainers). | H50: =VLOOKUP($H$1&$A50, FE, 8,FALSE) ->  | Q50: 2351, 2353
A51: 243 | C51: Supplies and Materials | D51: Materials and items of an expendable nature. Unit price of less than $5000. (Ex: professional development handouts). | H51: =VLOOKUP($H$1&$A51, FE, 8,FALSE) ->  | Q51: 2351, 2353
A52: 244 | C52: Travel and other expenses | D52: Travel and other expenses for staff such as dues, subscriptions and memberships. (Ex: professional development seminar, tuition reimbursements for teacher higher education coursework). | H52: =VLOOKUP($H$1&$A52, FE, 8,FALSE) ->  | Q52: 2351, 2353
A53: 250 | C53: Instructional Subtotal - Guidance, Psychological & Testing | D53: Calculates automatically | Q53: 2700s, 2800s
A54: 251 | C54: Salaries - Professional | D54: Salaries for Guidance, Pyschological & Testing Professionals (Ex: director of guidance, school social workers, and counselors for guidance, school adjustment, higher education, career planning, and workplace learning placement; psychological evaluators and other licensed mental health professionals). | Q54: 2710, 2720, 2800
A55: 252 | C55: Salaries - Clerical | D55: Salaries for administrative support personnel who prepare, transcribe, systematize or preserve communications, records and transactions. (Ex: secretary). | Q55: 2710, 2720, 2800
A56: 253 | C56: Contracted Services | D56: Contracted professional services, including all related expenses covered by the contract, for guidance, psychological, and testing. (Ex: contracted guidance counselor). | Q56: 2710, 2720, 2800
A57: 254 | C57: Supplies and Materials | D57: Materials and items of an expendable nature. Unit price of less than $5000. (Ex: pyschological (not academic related) testing materials). | Q57: 2710, 2720, 2800
A58: 260 | C58: Instructional Subtotal - Materials, Equipment & Technology | D58: Calculates automatically | H58: =VLOOKUP($H$1&$A58, FE, 8,FALSE) ->  | Q58: 2451
A59: 261 | C59: Textbooks & Related Media/Materials | D59: Expenditures for all textbooks and related media/materials (Ex: hard copy and online text books). | Q59: 2410
A60: 262 | C60: Other Instructional Materials | D60: Books, furniture and other materials, excluding textbooks but including online materials, for use in school libraries or classroom libraries (Ex: trade books, subscription to online magazine, periodicals, reference materials, student desks etc.). | Q60: 2415
A61: 263 | C61: Instructional Equipment | D61: Non-capitalized expenditures for purchase of science laboratory, physical education, equipment, irrespective of unit cost. Also includes lease/purchase of copy equipment primarily used to produce instructional materials. Does not include classroom technology equipment. | Q61: 2420
A62: 264 | C62: General Supplies | D62: Papers, pens, pencils, crayons, chalk, paint, toner printer cartridges, calculators, etc. | Q62: 2430
A63: 265 | C63: Other Instructional Services | D63: Cost for field trips, including admissions and transportation costs. Also, distance learning services. | Q63: 2440
A64: 266 | C64: Classroom Instructional Technology | D64: Computers, servers, networks, scanners, digital cameras, etc. used in the classroom or in computer laboratories. | H64: =VLOOKUP($H$1&$A64, FE, 8,FALSE) ->  | Q64: 2451
A65: 267 | C65: Other Instructional Hardware | D65: Computers, servers, networks, scanners, digital cameras, etc. for school libraries and media centers. | H65: =VLOOKUP($H$1&$A65, FE, 8,FALSE) ->  | Q65: 2453
A66: 268a | C66: Classroom Instructional Software | D66: Software licenses used in the classroom or in computer laboratories. (Ex: Online textbook guide, student data communication software such as Edline, Powerschool, School Brains). | F66: =VLOOKUP($H$1&$A66, FE, 6,FALSE) ->  | G66: =VLOOKUP($H$1&$A66, FE, 7,FALSE) ->  | Q66: 2455
A67: 268b | C67: Other Instructional Software | D67: Software licenses used for school libraries and media centers. | F67: =VLOOKUP($H$1&$A67, FE, 6,FALSE) ->  | G67: =VLOOKUP($H$1&$A67, FE, 7,FALSE) ->  | Q67: NA
A68: 269 | C68: Depreciation for Furniture, Equipment & Technology | D68: Annual depreciation expense for capitalized Instructional Materials, Equipment, & Technology. | F68: =VLOOKUP($H$1&$A68, FE, 6,FALSE) ->  | G68: =VLOOKUP($H$1&$A68, FE, 7,FALSE) -> 
A70: 300 | C70: Subtotal - Pupil Services | D70: Calculates automatically | F70: =VLOOKUP($H$1&$A70, FE, 6,FALSE) ->  | G70: =VLOOKUP($H$1&$A70, FE, 7,FALSE) ->  | H70: =VLOOKUP($H$1&$A70, FE, 8,FALSE) ->  | I70: =VLOOKUP($H$1&$A70, FE, 9,FALSE) ->  | J70: =VLOOKUP($H$1&$A70, FE, 10,FALSE) ->  | K70: =VLOOKUP($H$1&$A70, FE, 11,FALSE) ->  | L70: =VLOOKUP($H$1&$A70, FE, 12,FALSE) ->  | Q70: 3000 series
A71: 310 | C71: Health Services | D71: Salaries for school physicians, school nurses, and clerical support staff. Expenses for school medical supplies, dues and subscriptions, and travel. | Q71: various salary 3000's
A72: 315 | C72: Health Services - Contracted | D72: Contracted services for school physicians, school nurses, clerical support staff and associated contracted expenses.
A73: 320 | C73: Athletic Services | D73: Salaries for coaches, trainers and assistants. Expenses for athletic supplies, uniforms, travel expenses and transportation to and from athletic events.
A74: 325 | C74: Athletic Services - Contracted | D74: Contracted services for coaches, trainers and assistants. Expenses for vendors providing athletic supplies, uniforms, and transportation to and from athletic events.
A75: 330 | C75: Food Services | D75: Salaries for cafeteria workers, food directors, and other food-related services for personell on payroll. Expenses for food, supplies, dues and subscriptions, and travel. | Q75: various salary 3000's
A76: 335 | C76: Food Services - Contracted | D76: Contracted services for cafeteria workers, food directors, and other food-related services for personell on payroll. Expenses for food, supplies, dues and subscriptions, and travel.
A77: 340 | C77: Student Transportation (to and from school) | D77: Salaries and related costs incurred by the school; Or, monetary fair market value of services provided by sending district. (Please note: More detail is required in the Schedule 7C worksheet for those seeking reimbursement). | Q77: 3300
A78: 345 | C78: Student Transportation (to and from school) | D78: Contracted professional services and related costs incurred by the school; Or, monetary fair market value of services provided by sending district. (Please note: More detail is required in the Schedule 7C worksheet for those seeking reimbursement).
A79: 350 | C79: Depreciation of Transportation Vehicles | D79: Annual depreciation expense for capitalized transportation vehicles. (Please note: More detail is required in the Schedule 7C worksheet for those seeking state or district reimbursement for transportation costs). | Q79: 3300
A80: 360 | C80: Other Student Activities | D80: Salaries and contracted services for other student activities such as musical directors, drama coaches and other extra-curricular personnel. Expenses for supplies and materials, travel expenses and transportation to and from related events. Includes expenses related to extended-day programs. | Q80: 3520/3600
A82: 400 | C82: Operation & Maintenance of Plant | D82: Calculates automatically | H82: =VLOOKUP($H$1&$A82, FE, 8,FALSE) ->  | I82: =VLOOKUP($H$1&$A82, FE, 9,FALSE) ->  | J82: =VLOOKUP($H$1&$A82, FE, 10,FALSE) ->  | K82: =VLOOKUP($H$1&$A82, FE, 11,FALSE) ->  | L82: =VLOOKUP($H$1&$A82, FE, 12,FALSE) ->  | Q82: 4000 series
A83: 410 | C83: Operation & Maintenance of Buildings and Grounds | D83: Salaries and contracted services for plant managers, custodians, maintenance, etc. Expenses for supplies, travel expenses and professional development. | Q83: various 4000's salaries
A84: 420 | C84: Utilities | D84: Cost of fuel, oil, electricity, gas, water, trash, waste disposal, telephone services, etc. | Q84: 4120 and 4130
A85: 430 | C85: Maintenance of Equipment | D85: Equipment parts and repair, materials, and tools, contracted services, including vehicles. | Q85: 4230
A86: 440 | C86: Networking and Telecommunications | D86: Costs for installing and maintaining school technology infrastructure, including wiring, file servers, etc. | Q86: 4400
A88: 500 | C88: Fixed Charges | D88: Calculates automatically | H88: =VLOOKUP($H$1&$A88, FE, 8,FALSE) ->  | I88: =VLOOKUP($H$1&$A88, FE, 9,FALSE) ->  | J88: =VLOOKUP($H$1&$A88, FE, 10,FALSE) ->  | K88: =VLOOKUP($H$1&$A88, FE, 11,FALSE) ->  | L88: =VLOOKUP($H$1&$A88, FE, 12,FALSE) ->  | Q88: 5000 series
A89: 510 | C89: Employee Retirement | D89: Payroll taxes including contributions to Medicaid, social security, pension plans, and other employee retirement systems, school's portion, for non-MTRS employees; and Federal grant MTRS surcharge. Include MTRS on-behalf pension recorded expense according to GASB 68. | Q89: 5100
A90: 520 | C90: Fringe Benefits | D90: Employee unemployment, health, and life insurance premiums or payments, and worker's compensation or other benefits, paid by the school for the benefit of the employee. | Q90: 5200, 5250
A91: 530 | C91: Insurance (non-employee) | D91: Insurance premiums for property, fire, liability, fidelity bonds; self-insurance costs. | Q91: 5260
A92: 550 | C92: Rental/Lease of Equipment | D92: Annual operating lease/rental costs of equipment. | Q92: 5300
A93: 560 | C93: Short-Term Interest | D93: Interest costs for short-term (less than one year) lines of credit that are needed to sustain cash flow for ongoing operations. | Q93: 5400, 5450
A95: 600 | C95: Community Services | D95: Calculates automatically | H95: =VLOOKUP($H$1&$A95, FE, 8,FALSE) ->  | I95: =VLOOKUP($H$1&$A95, FE, 9,FALSE) ->  | J95: =VLOOKUP($H$1&$A95, FE, 10,FALSE) ->  | K95: =VLOOKUP($H$1&$A95, FE, 11,FALSE) ->  | L95: =VLOOKUP($H$1&$A95, FE, 12,FALSE) ->  | Q95: 6000 series
A96: 610 | C96: Dissemination Activities | D96: Activities designed to disseminate the school's best practices to external groups, including presentations at or hosting of conferences, etc. | H96: =VLOOKUP($H$1&$A96, FE, 8,FALSE) ->  | I96: =VLOOKUP($H$1&$A96, FE, 9,FALSE) ->  | J96: =VLOOKUP($H$1&$A96, FE, 10,FALSE) ->  | K96: =VLOOKUP($H$1&$A96, FE, 11,FALSE) ->  | L96: =VLOOKUP($H$1&$A96, FE, 12,FALSE) ->  | Q96: 6200
A97: 620 | C97: Civic Activities | D97: Expenses associated with civic activities (Ex: fundraising activities for a charitable agency, community service). | H97: =VLOOKUP($H$1&$A97, FE, 8,FALSE) ->  | I97: =VLOOKUP($H$1&$A97, FE, 9,FALSE) ->  | J97: =VLOOKUP($H$1&$A97, FE, 10,FALSE) ->  | K97: =VLOOKUP($H$1&$A97, FE, 11,FALSE) ->  | L97: =VLOOKUP($H$1&$A97, FE, 12,FALSE) ->  | Q97: 6200
A99: 700 | C99: Non-Operating / Capital Facilities Costs | D99: Calculates automatically | H99: =VLOOKUP($H$1&$A99, FE, 8,FALSE) ->  | I99: =VLOOKUP($H$1&$A99, FE, 9,FALSE) ->  | J99: =VLOOKUP($H$1&$A99, FE, 10,FALSE) ->  | K99: =VLOOKUP($H$1&$A99, FE, 11,FALSE) ->  | L99: =VLOOKUP($H$1&$A99, FE, 12,FALSE) ->  | Q99: 7000 series
A100: 720 | C100: Long-Term Interest, facilities related | D100: Annual debt service costs for long-term financing (greater than one year) related to capital facilities costs. | H100: =VLOOKUP($H$1&$A100, FE, 8,FALSE) ->  | Q100: 8200
A101: 725 | C101: Long-Term Interest, non-facilities related | D101: Annual debt service costs for long-term financing (greater than one year) not related to capital facilities costs. | Q101: 8300
A102: 730 | C102: Other costs related to capital facilities acquisition | D102: Expenses (e.g.,architectural design, closing costs, site exploration, etc.) related to capital facilities acquisition or lease. | Q102: 8000
A103: 740 | C103: Rental/Lease of Buildings & Grounds | D103: Annual operating lease/rental costs of Building & Grounds. | Q103: 7000
A104: 750 | C104: Depreciation of Equipment, Building, & Grounds | D104: Annual depreciation expense for capitalized Equipment, Networking and Telecommunications, Building, & Grounds. | Q104: 5350*
A105: 760 | C105: Bad debt / loss on disposal of assets | D105: Write-off costs for bad debt or loss on disposal of assets. | Q105: NA
A107: 800 | C107: TOTALS | D107: Calculates automatically | F107: =VLOOKUP($H$1&$A107, FE, 6,FALSE) ->  | G107: =VLOOKUP($H$1&$A107, FE, 7,FALSE) ->  | H107: =VLOOKUP($H$1&$A107, FE, 8,FALSE) ->  | I107: =VLOOKUP($H$1&$A107, FE, 9,FALSE) ->  | J107: =VLOOKUP($H$1&$A107, FE, 10,FALSE) ->  | K107: =VLOOKUP($H$1&$A107, FE, 11,FALSE) ->  | L107: =VLOOKUP($H$1&$A107, FE, 12,FALSE) -> 
A109: 910 | C109: Reference: Capitalized Expenditures | D109: Reference line for cash expenditures that are not expensed in the fiscal year | H109: =VLOOKUP($H$1&$A109, FE, 8,FALSE) ->  | I109: =VLOOKUP($H$1&$A109, FE, 9,FALSE) ->  | J109: =VLOOKUP($H$1&$A109, FE, 10,FALSE) ->  | K109: =VLOOKUP($H$1&$A109, FE, 11,FALSE) ->  | L109: =VLOOKUP($H$1&$A109, FE, 12,FALSE) -> 
A110: 920 | C110: Reference: Deferrals/Carryovers | D110: Reference line for cash expenditures that are not expensed in the fiscal year | H110: =VLOOKUP($H$1&$A110, FE, 8,FALSE) ->  | I110: =VLOOKUP($H$1&$A110, FE, 9,FALSE) ->  | J110: =VLOOKUP($H$1&$A110, FE, 10,FALSE) ->  | K110: =VLOOKUP($H$1&$A110, FE, 11,FALSE) ->  | L110: =VLOOKUP($H$1&$A110, FE, 12,FALSE) -> 
A111: 900 | C111: Reference: Totals | H111: =VLOOKUP($H$1&$A111, FE, 8,FALSE) ->  | I111: =VLOOKUP($H$1&$A111, FE, 9,FALSE) ->  | J111: =VLOOKUP($H$1&$A111, FE, 10,FALSE) ->  | K111: =VLOOKUP($H$1&$A111, FE, 11,FALSE) ->  | L111: =VLOOKUP($H$1&$A111, FE, 12,FALSE) -> 

Sheet 4. EXPPP
A1: Massachusetts Department of Elementary and Secondary Education
A2: FY20 Charter School Expenditures Per Pupil, All Funds, Summary By Function
A3: =Index!B3 -> Last Updated: May 2021
B4: Return to Index | F4: ----------------------------- Operating Expenditures Per Pupil In The Charter School ------------------------------------------- | S4: --- Exp pp Facilities Costs2 ---
E5: fte pupils | G5: instruc- | H5: classroom & | I5: other | J5: profes- | K5: instructn'l | L5: guidance, | N5: operations | O5: insurance, | P5: total operating | Q5: total operating | S5: Rental/Lease of | T5: Capital
D6: location | E6: at the | F6: admini- | G6: tional | H6: specialist | I6: teaching | J6: sional dev- | K6: materials, | L6: counseling | M6: pupil | N6: and | O6: retirement | P6: expenditures | Q6: expenditures | S6: Building & | T6: Facilities
A7: LEA | B7: Charter School | C7: type | D7: in FY14 | E7: charter | F7: stration | G7: leadership | H7: teachers | I7: services | J7: elopment | K7: equip & tech | L7: & testing | M7: services | N7: maintenance | O7: & other 1 | P7: aggregate | Q7: per pupil | S7: Grounds | T7: Expenses3
F8: 100 | G8: 210 | H8: 220 | I8: 230 | J8: 240 | K8: 260 | L8: 250 | M8: 300 | N8: 400 | O8: 500 | S8: 540 | T8: 720
A9: 445 | B9: Abby Kelley Foster Charter Public School | C9: =VLOOKUP(A9, TYPE, 3, FALSE) -> C | D9: =VLOOKUP(A9, FACTS, 6, FALSE) -> Worcester | E9: =VLOOKUP(A9, FTE, 2, FALSE) -> 1421.44 | F9: =VLOOKUP($A9&100, FE, 12, FALSE)/$E9 -> 887.0952344 | G9: =VLOOKUP($A9&210, FE, 12, FALSE)/$E9 -> 1204.278703 | H9: =VLOOKUP($A9&220, FE, 12, FALSE)/$E9 -> 4837.76839 | I9: =VLOOKUP($A9&230, FE, 12, FALSE)/$E9 -> 759.044673 | J9: =VLOOKUP($A9&240, FE, 12, FALSE)/$E9 -> 63.38763507 | K9: =VLOOKUP($A9&260, FE, 12, FALSE)/$E9 -> 366.8543801 | L9: =VLOOKUP($A9&250, FE, 12, FALSE)/$E9 -> 394.8995174 | M9: =VLOOKUP($A9&300, FE, 12, FALSE)/$E9 -> 1509.318853 | N9: =VLOOKUP($A9&400, FE, 12, FALSE)/$E9 -> 1325.55512 | O9: =VLOOKUP($A9&500, FE, 12, FALSE)/$E9 -> 4184.178622 | P9: =VLOOKUP($A9&800,FE,12,FALSE)-VLOOKUP($A9&700,FE,12,FALSE)-VLOOKUP($A9&600,FE,12,FALSE) -> 22078347.83 | Q9: =SUM(F9:O9) -> 15532.38113 | S9: =VLOOKUP($A9&740, FE, 12, FALSE)/$E9 -> 0 | T9: =(VLOOKUP($A9&700, FE, 12, FALSE)-VLOOKUP($A9&740, FE, 12, FALSE)-VLOOKUP($A9&725, FE, 12, FALSE))/$E9 -> 1497.548838
A10: 412 | B10: Academy of the Pacific Rim Charter Public School | C10: C | D10: Boston | E10: =VLOOKUP(A10, FTE, 2, FALSE) -> 536.1 | F10: 2035.319549 | G10: 2054.374184 | H10: 6146.271255 | I10: 1233.80152 | J10: 105.8653236 | K10: 714.4355158 | L10: 666.9302369 | M10: 1696.693882 | N10: 767.5292856 | O10: 5166.68241 | P10: 11037174.88 | Q10: =SUM(F10:O10) -> 20587.90316 | S10: 0 | T10: 2333.894796
A11: 430 | B11: Advanced Math and Science Academy Charter School | C11: C | D11: Marlborough | E11: 964.81 | F11: 1615.120832 | G11: 1019.07674 | H11: 5428.595869 | I11: 350.3645174 | J11: 449.8275101 | K11: 641.6899182 | L11: 330.4933096 | M11: 1463.285652 | N11: 741.5730766 | O11: 4828.518755 | P11: 16274942.04 | Q11: 16868.54618 | S11: 1432.07958 | T11: 155.5419824
A12: 409 | B12: Alma del Mar Charter School | C12: C | D12: New Bedford | E12: 639.87 | F12: 1385.623642 | G12: 1108.750215 | H12: 5177.778299 | I12: 1244.221482 | J12: 339.2470346 | K12: 614.099739 | L12: 368.5608014 | M12: 2554.748621 | N12: 849.627268 | O12: 3028.948068 | P12: 10667660 | Q12: 16671.60517 | S12: 1102.11918 | T12: 1255.426884
A13: 3509 | B13: Argosy Collegiate Charter School | C13: C | D13: Fall River | E13: 508.07 | F13: 1875.473852 | G13: 1595.180703 | H13: 4830.665853 | I13: 485.0008857 | J13: 52.63172398 | K13: 980.6186943 | L13: 473.2260515 | M13: 1973.743775 | N13: 732.9993898 | O13: 3313.645757 | P13: 8288240.76 | Q13: 16313.18669 | S13: 1569.671502 | T13: 170.4302557
A14: 491 | B14: Atlantis Charter School | C14: C | D14: Fall River | E14: 1301.61 | F14: 1249.313542 | G14: 622.7618104 | H14: 3727.846283 | I14: 1270.309847 | J14: 37.71867149 | K14: 427.9169644 | L14: 776.4130577 | M14: 1576.141855 | N14: 735.5098685 | O14: 3951.92646 | P14: 18711761 | Q14: 14375.85836 | S14: 46.09675709 | T14: 2205.343382
A15: 3502 | B15: Baystate Academy Charter Public School | C15: C | D15: Springfield | E15: 473.71 | F15: 1292.161428 | G15: 1136.651116 | H15: 5720.411222 | I15: 842.2009246 | J15: 740.5649026 | K15: 508.1864432 | L15: 460.24572 | M15: 2386.517067 | N15: 571.3748918 | O15: 4230.495451 | P15: 8474107.79 | Q15: 17888.80917 | S15: 1559.511093 | T15: 360.4842625
A16: 420 | B16: Benjamin Banneker Charter Public School | C16: C | D16: Cambridge | E16: 335.76 | F16: 2985.50456 | G16: 2030.857368 | H16: 4611.047385 | I16: 2833.28163 | J16: 490.9062426 | K16: 686.8396652 | L16: 218.4038301 | M16: 3671.571807 | N16: 1022.362134 | O16: 5655.888402 | P16: 8127629.177 | Q16: 24206.66302 | S16: 1484.532434 | T16: 244.0929235
A17: 447 | B17: Benjamin Franklin Classical Charter Public School | C17: C | D17: Franklin | E17: 708.63 | F17: 1374.709496 | G17: 776.209023 | H17: 5231.744352 | I17: 1201.270056 | J17: 82.62280739 | K17: 252.4321578 | L17: 235.2708748 | M17: 847.1106078 | N17: 658.481944 | O17: 5336.456613 | P17: 11335463.69 | Q17: 15996.30793 | S17: 0 | T17: 1489.437464
A18: 3511 | B18: Bentley Academy Charter School | C18: HM | D18: Salem | E18: 323.4550265 | F18: 917.6111537 | G18: 756.3202751 | H18: 6388.646279 | I18: 1522.626202 | J18: 286.4229102 | K18: 180.6550995 | L18: 220.4819656 | M18: 546.2923298 | N18: 1166.330677 | O18: 2095.261921 | P18: 4554456.634 | Q18: 14080.64881 | S18: 0 | T18: 0
A19: 414 | B19: Berkshire Arts and Technology Charter Public School | C19: C | D19: Adams | E19: 364.37 | F19: 1980.763565 | G19: 1884.132887 | H19: 4984.102615 | I19: 731.0772841 | J19: 216.0179488 | K19: 460.8918407 | L19: 503.1932651 | M19: 1913.353405 | N19: 964.3463512 | O19: 4276.066526 | P19: 6527304.39 | Q19: 17913.94569 | S19: 0 | T19: 1402.529132
A20: 449 | B20: Boston Collegiate Charter School | C20: C | D20: Boston | E20: 700 | F20: 2417.401171 | G20: 1908.070029 | H20: 7400.255457 | I20: 513.2517286 | J20: 138.7647714 | K20: 546.6495 | L20: 1141.870371 | M20: 1435.049286 | N20: 1354.513457 | O20: 5251.443814 | P20: 15475088.71 | Q20: 22107.26959 | S20: 791.8688714 | T20: 419.5808
A21: 424 | B21: Boston Day and Evening Academy Charter School | C21: HM | D21: Boston | E21: 397.8831169 | F21: 1072.021335 | G21: 1722.664703 | H21: 7283.117506 | I21: 2321.348358 | J21: 120.0956712 | K21: 314.8398982 | L21: 277.5463329 | M21: 1119.787674 | N21: 1329.207668 | O21: 2801.230016 | P21: 7305873.755 | Q21: 18361.85916 | S21: 0 | T21: 0
A22: 411 | B22: Boston Green Academy Horace Mann Charter School | C22: HM | D22: Boston | E22: 487.9493671 | F22: 1210.025354 | G22: 1344.781531 | H22: 7111.014567 | I22: 1343.984176 | J22: 124.713657 | K22: 224.8010908 | L22: 530.0158628 | M22: 816.9722767 | N22: 1149.651824 | O22: 2503.027757 | P22: 7982357.888 | Q22: 16358.9881 | S22: 0 | T22: 0
A23: 416 | B23: Boston Preparatory Charter Public School | C23: C | D23: Boston | E23: 575.74 | F23: 2200.145951 | G23: 2475.349811 | H23: 5884.368708 | I23: 1000.328429 | J23: 284.5103519 | K23: 1132.177719 | L23: 1136.473756 | M23: 2852.426894 | N23: 1136.421544 | O23: 6183.730503 | P23: 13982383.45 | Q23: 24285.93367 | S23: 2677.029562 | T23: 210.8608052
A24: 481 | B24: Boston Renaissance Charter Public School | C24: C | D24: Boston | E24: 941.13 | F24: 2284.698182 | G24: 607.3347997 | H24: 6530.972342 | I24: 2436.667623 | J24: 523.8734288 | K24: 254.4164993 | L24: 540.6415692 | M24: 2331.464304 | N24: 1000.944609 | O24: 6387.237682 | P24: 21550231 | Q24: 22898.25104 | S24: 0 | T24: 1535.945087
A25: 417 | B25: Bridge Boston Charter School | C25: C | D25: Boston | E25: 335.49 | F25: 4355.074667 | G25: 1284.48836 | H25: 6986.846106 | I25: 2263.212018 | J25: 114.2806045 | K25: 1187.820799 | L25: 622.9008316 | M25: 1875.39718 | N25: 1063.280575 | O25: 5896.128052 | P25: 8605127 | Q25: 25649.42919 | S25: 476.0588989 | T25: 3307.767743
A26: 428 | B26: Brooke Charter School | C26: C | D26: Boston | E26: 1970.67 | F26: 953.5329964 | G26: 2309.77363 | H26: 6691.411185 | I26: 901.1683184 | J26: 48.07126003 | K26: 1082.655873 | L26: 367.9852639 | M26: 2090.528678 | N26: 1622.036698 | O26: 4513.226654 | P26: 40557158.26 | Q26: 20580.39056 | S26: 730.558475 | T26: 2763.095364
A27: 432 | B27: Cape Cod Lighthouse Charter School | C27: C | D27: Harwich | E27: 242.78 | F27: 1286.761677 | G27: 548.0764478 | H27: 7492.812423 | I27: 1887.873795 | J27: 139.4884257 | K27: 531.3040613 | L27: 427.7947113 | M27: 565.619079 | N27: 412.3857814 | O27: 6231.902957 | P27: 4740041.42 | Q27: 19524.01936 | S27: 0 | T27: 1033.999259
A28: 418 | B28: Christa McAuliffe Charter School | C28: C | D28: Framingham | E28: 396.27 | F28: 2063.164004 | G28: 1085.714286 | H28: 6800.434047 | I28: 590.6578848 | J28: 26.60812073 | K28: 384.8588084 | L28: 123.0272289 | M28: 2017.313953 | N28: 510.3616221 | O28: 5433.161733 | P28: 7543119 | Q28: 19035.30169 | S28: 999.3186464 | T28: 53.31213567
A29: 437 | B29: City on a Hill Charter Public School Circuit Street | C29: C | D29: Boston | E29: 216.34 | F29: 5441.4131 | G29: 2862.5202 | H29: 4304.308034 | I29: 677.3313303 | J29: 110.4884441 | K29: 335.6147268 | L29: 551.6691319 | M29: 1286.857077 | N29: 2700.47883 | O29: 8410.137977 | P29: 5772128.35 | Q29: 26680.81885 | S29: 2453.591569 | T29: 77.76185634
A30: 3504 | B30: City on a Hill Charter Public School Dudley Square | C30: C | D30: Boston | E30: 188.13 | F30: 2543.37102 | G30: 2519.432307 | H30: 5130.295966 | I30: 691.7144528 | J30: 156.8616914 | K30: 365.3419444 | L30: 506.2043268 | M30: 1355.302504 | N30: 2184.950035 | O30: 6900.427683 | P30: 4205439.57 | Q30: 22353.90193 | S30: 3582.366715 | T30: 25.7518737
A31: 3507 | B31: City On A Hill Charter Public School New Bedford | C31: C | D31: =VLOOKUP(A31, FACTS, 6, FALSE) -> New Bedford | E31: =VLOOKUP(A31, FTE, 2, FALSE) -> 102.62 | F31: 2111.554668 | G31: 4082.44007 | H31: 4114.772949 | I31: 1208.656305 | J31: 262.4938608 | K31: 841.7655428 | L31: 887.8606509 | M31: 2495.122393 | N31: 2234.398363 | O31: 9088.879458 | P31: 2804393.64 | Q31: =SUM(F31:O31) -> 27327.94426 | S31: 2823.552426 | T31: 539.4457221
A32: 438 | B32: Codman Academy Charter Public School | C32: C | D32: Boston | E32: 339.91 | F32: 1778.243447 | G32: 3558.179901 | H32: 7364.63505 | I32: 2169.551293 | J32: 457.1853432 | K32: 1221.715366 | L32: 650.7598188 | M32: 2193.272043 | N32: 910.0110323 | O32: 5927.831838 | P32: 8916310.12 | Q32: 26231.38513 | S32: 991.1974052 | T32: 0
A33: 3503 | B33: Collegiate Charter School of Lowell | C33: C | D33: Lowell | E33: 929.94 | F33: 1023.1443 | G33: 2257.495774 | H33: 2576.213068 | I33: 447.5145386 | J33: 34.33148375 | K33: 957.3559154 | L33: 123.9477171 | M33: 883.2335957 | N33: 587.2047659 | O33: 2140.564735 | P33: 10258173.62 | Q33: 11031.00589 | S33: 1138.306342 | T33: 3083.895961
A34: 436 | B34: Community Charter School of Cambridge | C34: C | D34: Cambridge | E34: 318.94 | F34: 2608.083025 | G34: 2117.094124 | H34: 8104.176334 | I34: 698.6298363 | J34: 707.4873017 | K34: 631.1845488 | L34: 806.9856399 | M34: 1236.433185 | N34: 1253.304697 | O34: 6349.761711 | P34: 7818221 | Q34: 24513.1404 | S34: 4849.55164 | T34: 388.7721829
A35: 426 | B35: Community Day Charter Public School - Gateway | C35: C | D35: Lawrence | E35: 400.22 | F35: 1388.333916 | G35: 1646.646844 | H35: 5476.288042 | I35: 491.0099445 | J35: 46.9441807 | K35: 577.4698916 | L35: 428.2569587 | M35: 1634.358603 | N35: 533.7189546 | O35: 3990.637649 | P35: 6489033 | Q35: 16213.66498 | S35: 517.8027085 | T35: 23.3021838
A36: 440 | B36: Community Day Charter Public School - Prospect | C36: C | D36: Lawrence | E36: 399.8 | F36: 1411.250625 | G36: 1510.295148 | H36: 5581.395698 | I36: 678.2491246 | J36: 36.58329165 | K36: 333.7918959 | L36: 739.8624312 | M36: 1532.091046 | N36: 660.9704852 | O36: 5040.90045 | P36: 7006651 | Q36: 17525.3902 | S36: 630.9854927 | T36: 17.97148574
A37: 431 | B37: Community Day Charter Public School - R. Kingman Webster | C37: C | D37: Lawrence | E37: 399.97 | F37: 1442.040653 | G37: 1532.014901 | H37: 4862.26967 | I37: 673.0154762 | J37: 23.95429657 | K37: 358.7969098 | L37: 385.6689252 | M37: 1735.255144 | N37: 453.2339925 | O37: 3688.996675 | P37: 6061644 | Q37: 15155.24664 | S37: 1339.222942 | T37: 25.67942596
A38: 439 | B38: Conservatory Lab Charter School | C38: C | D38: =VLOOKUP(A38, FACTS, 6, FALSE) -> Boston | E38: =VLOOKUP(A38, FTE, 2, FALSE) -> 452.81 | F38: =VLOOKUP($A38&100, FE, 12, FALSE)/$E38 -> 2387.982068 | G38: 256.779466 | H38: 6004.361057 | I38: 2028.928513 | J38: 57.68315629 | K38: 537.3582518 | L38: 158.8248934 | M38: 3225.352466 | N38: 751.1284203 | O38: 2813.022901 | P38: 8250841.73 | Q38: 18221.42119 | S38: 939.5717851 | T38: 60.32552285
A39: 407 | B39: Dudley Street Neighborhood Charter School | C39: HM | D39: Boston | E39: 265.5388889 | F39: 3344.241417 | G39: 719.5658263 | H39: 6635.227922 | I39: 1117.119648 | J39: 59.07838986 | K39: 447.2846915 | L39: 0 | M39: 2168.466669 | N39: 1146.205218 | O39: 3274.837458 | P39: 5021878.7 | Q39: 18912.02724 | S39: 0 | T39: 0
A40: 452 | B40: Edward M. Kennedy Academy for Health Careers: A HMCPS | C40: =VLOOKUP(A40, TYPE, 3, FALSE) -> HM | D40: Boston | E40: 377.8101266 | F40: 3672.686099 | G40: 795.1666164 | H40: 9326.833116 | I40: 862.502027 | J40: 1221.015445 | K40: 793.0147419 | L40: 2436.491071 | M40: 3274.56019 | N40: 7.543471706 | O40: 2930.914028 | P40: 9566427 | Q40: 25320.72681 | S40: 939.4401447 | T40: 0
A41: 410 | B41: Excel Academy Charter School | C41: C | D41: Boston/Chelsea | E41: 1355.16 | F41: 1489.045264 | G41: 2581.606308 | H41: 5501.070045 | I41: 665.8997731 | J41: 222.215089 | K41: 818.0948154 | L41: 866.6905651 | M41: 1330.134905 | N41: 745.7879512 | O41: 4352.614857 | P41: 25169602.93 | Q41: 18573.15957 | S41: 438.7917294 | T41: 1319.443461
A42: 413 | B42: Four Rivers Charter Public School | C42: C | D42: Greenfield | E42: 215.96 | F42: 1819.022041 | G42: 1523.740508 | H42: 6632.593999 | I42: 573.203371 | J42: 200.703834 | K42: 742.2994999 | L42: 690.646416 | M42: 550.1111317 | N42: 724.3332099 | O42: 5469.76755 | P42: 4087350 | Q42: =SUM(F42:O42) -> 18926.42156 | S42: 1715.558437 | T42: 59.67308761
A43: 446 | B43: Foxborough Regional Charter School | C43: C | D43: Foxborough | E43: 1642.7 | F43: 1174.081311 | G43: 696.2415475 | H43: 4564.887667 | I43: 587.6187557 | J43: 130.7612833 | K43: 336.8158702 | L43: 925.8267547 | M43: 1493.943812 | N43: 1040.193833 | O43: 3764.867943 | P43: 24172722.74 | Q43: 14715.23878 | S43: 0 | T43: 2301.438613
A44: 478 | B44: Francis W. Parker Charter Essential School | C44: C | D44: Devens | E44: 396.48 | F44: 1707.779197 | G44: 1817.471847 | H44: 6068.40456 | I44: 55.16041162 | J44: 323.4625303 | K44: 791.1442746 | L44: 522.7595087 | M44: 1028.589714 | N44: 1155.395556 | O44: 5052.388973 | P44: 7343823.23 | Q44: 18522.55657 | S44: 533.5107446 | T44: 78.60139225
A45: 496 | B45: Global Learning Charter Public School | C45: C | D45: New Bedford | E45: 502.42 | F45: 1608.192349 | G45: 1343.031726 | H45: 5083.173441 | I45: 667.5888699 | J45: 73.00863819 | K45: 487.3094224 | L45: 638.9693882 | M45: 1598.965009 | N45: 636.9909637 | O45: 4458.938737 | P45: 8338247 | Q45: 16596.16854 | S45: 487.2298077 | T45: 363.2339477
A46: 499 | B46: Hampden Charter School of Science East | C46: C | D46: Chicopee | E46: 525.06 | F46: 1343.805717 | G46: 1051.631375 | H46: 4355.174647 | I46: 390.4277606 | J46: 75.7684836 | K46: 707.4647659 | L46: 466.0732488 | M46: 1588.031901 | N46: 869.8910601 | O46: 4137.91959 | P46: 7868648.16 | Q46: 14986.18855 | S46: 690.9667467 | T46: 879.3585495
A47: 3516 | B47: Hampden Charter School of Science-West | C47: C | D47: Westfield | E47: =VLOOKUP(A47, FTE, 2, FALSE) -> 258.57 | F47: 1626.806938 | G47: 1130.21994 | H47: 4561.984646 | I47: 697.4201957 | J47: 19.72386588 | K47: 936.7203465 | L47: 457.5952353 | M47: 2253.40956 | N47: 1027.478362 | O47: 3817.646981 | P47: 4273905.1 | Q47: 16529.00607 | S47: 0 | T47: 1444.343427
A48: 419 | B48: Helen Y Davis Leadership Academy Charter Public School | C48: C | D48: Boston | E48: 201.53 | F48: 1951.917829 | G48: 1350.910534 | H48: 7608.043467 | I48: 584.0222299 | J48: 131.0623728 | K48: 409.8992706 | L48: 500.6847616 | M48: 1670.634645 | N48: 801.2603583 | O48: 5160.904084 | P48: 4064727 | Q48: 20169.33955 | S48: 1757.73334 | T48: 128.0404902
A49: 455 | B49: Hill View Montessori Charter Public School | C49: C | D49: Haverhill | E49: 312.5 | F49: 1713.483136 | G49: 260.736 | H49: 4219.367424 | I49: 2150.303552 | J49: 387.325696 | K49: 437.230624 | L49: 783.017184 | M49: 737.30272 | N49: 547.050304 | O49: 3396.405408 | P49: 4572569.39 | Q49: 14632.22205 | S49: 0 | T49: 488.2656
A50: 450 | B50: Hilltown Cooperative Charter Public School | C50: C | D50: East Hampton | E50: 217.86 | F50: 720.5160654 | G50: 1668.583815 | H50: 5964.145231 | I50: 1928.419352 | J50: 49.14275223 | K50: 459.1971909 | L50: 427.7328101 | M50: 703.3397595 | N50: 612.2573671 | O50: 5093.093638 | P50: 3840093.6 | Q50: 17626.42798 | S50: 0 | T50: 896.8704673
A51: 453 | B51: Holyoke Community Charter School | C51: C | D51: Holyoke | E51: 701.22 | F51: 812.8761302 | G51: 2981.731092 | H51: 3954.203945 | I51: 847.2787428 | J51: 79.10699923 | K51: 670.2795699 | L51: 230.8600183 | M51: 1868.664613 | N51: 1092.001084 | O51: 3432.658795 | P51: 11198245.68 | Q51: 15969.66099 | S51: 0 | T51: 835.5081144
A52: 435 | B52: Innovation Academy Charter School | C52: C | D52: Tyngsborough | E52: 794.9 | F52: 1269.890552 | G52: 952.1034092 | H52: 5368.88162 | I52: 999.8427475 | J52: 51.77255001 | K52: 195.3616807 | L52: 386.6964398 | M52: 1301.718455 | N52: 1045.039628 | O52: 4514.200528 | P52: 12786370 | Q52: 16085.50761 | S52: 0 | T52: 1084.995597
A53: 463 | B53: KIPP Academy Boston Charter School | C53: C | D53: Boston | E53: 595.21 | F53: 809.3546815 | G53: 1774.36367 | H53: 4841.116581 | I53: 1220.812822 | J53: 624.0335344 | K53: 854.9822752 | L53: 542.395121 | M53: 2204.815107 | N53: 1052.737689 | O53: 4012.519951 | P53: 10676360 | Q53: 17937.13143 | S53: 20.1609516 | T53: 3322.696191
A54: 429 | B54: KIPP Academy Lynn Charter School | C54: C | D54: Lynn | E54: 1594.98 | F54: 2735.898883 | G54: 1982.203539 | H54: 4414.542502 | I54: 733.6957203 | J54: 410.3242674 | K54: 926.0847158 | L54: 668.1550866 | M54: 1258.200103 | N54: 871.7488621 | O54: 4048.599355 | P54: 28788516.6 | Q54: 18049.45303 | S54: 14.42212442 | T54: 2072.285546
A55: 454 | B55: Lawrence Family Development Charter School | C55: C | D55: Lawrence | E55: 777.96 | F55: 1572.764667 | G55: 1061.623991 | H55: 5013.107358 | I55: 1175.650419 | J55: 37.05460435 | K55: 883.4490205 | L55: 261.0185614 | M55: 979.306134 | N55: 1006.882102 | O55: 2873.610468 | P55: 11563961 | Q55: 14864.46732 | S55: 1650.732685 | T55: 123.3405316
A56: 3514 | B56: Libertas Academy Charter School | C56: C | D56: Springfield | E56: 259.71 | F56: 2736.081784 | G56: 294.3475415 | H56: 5573.170536 | I56: 1856.23276 | J56: 470.3977898 | K56: 1367.530515 | L56: 828.5933156 | M56: 1978.154095 | N56: 375.823688 | O56: 3743.644758 | P56: 4992659.01 | Q56: 19223.97678 | S56: 1105.396519 | T56: 10.85826499
A57: 456 | B57: Lowell Community Charter Public School | C57: C | D57: Lowell | E57: 813.81 | F57: 1375.627935 | G57: 664.1783709 | H57: 5789.988744 | I57: 1149.419398 | J57: 57.86731547 | K57: 620.0905617 | L57: 306.9549403 | M57: 1320.399725 | N57: 1153.354665 | O57: 4531.771544 | P57: 13810073.47 | Q57: 16969.6532 | S57: 0 | T57: 759.2969121
A58: 458 | B58: Lowell Middlesex Academy Charter School | C58: C | D58: Lowell | E58: 97.11 | F58: 2796.489754 | G58: 2619.485326 | H58: 8307.966327 | I58: 0 | J58: 45.65956132 | K58: 229.6772732 | L58: 174.4036659 | M58: 918.1585831 | N58: 2256.101328 | O58: 4237.575327 | P58: 2096169.57 | Q58: 21585.51715 | S58: 0 | T58: 812.7278344
A59: 3517 | B59: Map Academy Charter School | C59: C | D59: Plymouth | E59: 162.5 | F59: 4016.287323 | G59: 1607.7608 | H59: 4990.402277 | I59: 1877.574215 | J59: 138.0928 | K59: 378.8534154 | L59: 21.076 | M59: 947.9366154 | N59: 694.9912615 | O59: 3205.882092 | P59: 2905314.23 | Q59: =SUM(F59:O59) -> 17878.8568 | S59: 1884.307692 | T59: 636.7384615
A60: 464 | B60: Marblehead Community Charter Public School | C60: C | D60: Marblehead | E60: 206.16 | F60: 1787.21202 | G60: 923.0164435 | H60: 6413.418219 | I60: 590.6249515 | J60: 54.05835274 | K60: 347.6367385 | L60: 279.1877183 | M60: 1030.181704 | N60: 786.9483896 | O60: 5602.386447 | P60: 3672672.57 | Q60: 17814.67098 | S60: 0 | T60: 1069.201348
A61: 466 | B61: Martha's Vineyard Public Charter School | C61: C | D61: West Tisbury | E61: 173.02 | F61: 1909.247486 | G61: 1068.125072 | H61: 9404.282742 | I61: 4307.120564 | J61: 88.50421917 | K61: 267.050052 | L61: 1072.430933 | M61: 2602.306092 | N61: 1754.866489 | O61: 9286.50445 | P61: 5495191 | Q61: 31760.4381 | S61: 1317.766732 | T61: 93.1510808
A62: 492 | B62: Martin Luther King, Jr. Charter School of Excellence | C62: C | D62: Springfield | E62: 363.61 | F62: 1397.650257 | G62: 787.0724953 | H62: 6937.374412 | I62: 984.4376667 | J62: 99.12769176 | K62: 192.1326146 | L62: 180.3535106 | M62: 1828.55125 | N62: 1002.440197 | O62: 5099.457221 | P62: 6729911.07 | Q62: 18508.59732 | S62: 963.9496163 | T62: 224.5377465
A63: 469 | B63: Match Charter Public School | C63: C | D63: =VLOOKUP(A63, FACTS, 6, FALSE) -> Boston | E63: =VLOOKUP(A63, FTE, 2, FALSE) -> 1216.25 | F63: 1532.117575 | G63: 3135.923535 | H63: 6537.483248 | I63: 1415.161357 | J63: 260.3815005 | K63: 641.7858171 | L63: 848.1405961 | M63: 1820.409455 | N63: 1130.178828 | O63: 5450.901542 | P63: 27697033 | Q63: =SUM(F63:O63) -> 22772.48345 | S63: 0 | T63: 2267.903803
A64: 470 | B64: Mystic Valley Regional Charter School | C64: C | D64: Malden | E64: 1588.34 | F64: 892.7156654 | G64: 1063.651359 | H64: 3834.263445 | I64: 1291.813466 | J64: 227.4922246 | K64: 661.0895652 | L64: 160.9554629 | M64: 1153.024541 | N64: 1479.346362 | O64: 2946.312502 | P64: 21777197 | Q64: 13710.66459 | S64: 199.3490059 | T64: 715.4551293
A65: 444 | B65: Neighborhood House Charter School | C65: C | D65: =VLOOKUP(A65, FACTS, 6, FALSE) -> Boston | E65: =VLOOKUP(A65, FTE, 2, FALSE) -> 709.07 | F65: =VLOOKUP($A65&100, FE, 12, FALSE)/$E65 -> 2816.403176 | G65: =VLOOKUP($A65&210, FE, 12, FALSE)/$E65 -> 1168.330348 | H65: =VLOOKUP($A65&220, FE, 12, FALSE)/$E65 -> 6499.551525 | I65: =VLOOKUP($A65&230, FE, 12, FALSE)/$E65 -> 1112.082023 | J65: =VLOOKUP($A65&240, FE, 12, FALSE)/$E65 -> 356.7757767 | K65: =VLOOKUP($A65&260, FE, 12, FALSE)/$E65 -> 246.8909981 | L65: =VLOOKUP($A65&250, FE, 12, FALSE)/$E65 -> 1508.632434 | M65: =VLOOKUP($A65&300, FE, 12, FALSE)/$E65 -> 1965.566164 | N65: =VLOOKUP($A65&400, FE, 12, FALSE)/$E65 -> 1730.85732 | O65: =VLOOKUP($A65&500, FE, 12, FALSE)/$E65 -> 4999.57268 | P65: =VLOOKUP($A65&800,FE,12,FALSE)-VLOOKUP($A65&700,FE,12,FALSE)-VLOOKUP($A65&600,FE,12,FALSE) -> 15886474 | Q65: 22404.66245 | S65: 981.2557293 | T65: 0
A66: 3513 | B66: New Heights Charter School of Brockton | C66: C | D66: Brockton | E66: 623.34 | F66: 1187.461097 | G66: 3017.27789 | H66: 3828.172426 | I66: 424.9719254 | J66: 251.0427696 | K66: 822.7644624 | L66: 492.216126 | M66: 1926.771906 | N66: 743.4594282 | O66: 3570.743094 | P66: 10138551 | Q66: =SUM(F66:O66) -> 16264.88112 | S66: 983.1440305 | T66: 610.2367889
A67: 3515 | B67: Old Sturbridge Academy | C67: C | D67: Sturbridge | E67: 239.75 | F67: 1712.702857 | G67: 1240.152617 | H67: 4052.603253 | I67: 1067.418561 | J67: 158.385902 | K67: 665.3931595 | L67: 241.604755 | M67: 1805.967258 | N67: 695.335391 | O67: 2478.879666 | P67: 3384896.81 | Q67: 14118.44342 | S67: =VLOOKUP($A67&740, FE, 12, FALSE)/$E67 -> 1351.207508 | T67: =(VLOOKUP($A67&700, FE, 12, FALSE)-VLOOKUP($A67&740, FE, 12, FALSE)-VLOOKUP($A67&725, FE, 12, FALSE))/$E67 -> 8.70193952
A68: 3501 | B68: Paulo Freire Social Justice Charter School | C68: C | D68: Holyoke | E68: 279.62 | F68: 2125.492254 | G68: 1716.900079 | H68: 4467.986196 | I68: 1185.700272 | J68: 95.98869895 | K68: 231.992311 | L68: 754.8878478 | M68: 2374.65682 | N68: 713.0917316 | O68: 4441.931657 | P68: 5063534.524 | Q68: 18108.62787 | S68: 1496.484694 | T68: 227.9262213
A69: 493 | B69: Phoenix Academy Charter Public High School, Chelsea | C69: C | D69: Chelsea | E69: 199.26 | F69: 12178.03874 | G69: 3000.416541 | H69: 4144.765633 | I69: 536.0283047 | J69: 0 | K69: 1066.099568 | L69: 16.0995684 | M69: 634.7435511 | N69: 974.3199839 | O69: 1970.385426 | P69: 4886034 | Q69: 24520.89732 | S69: 1597.259861 | T69: 310.6845328
A70: 3518 | B70: Phoenix Academy Charter Public High School, Lawrence | C70: C | D70: Lawrence | E70: 150.01 | F70: 4501.686554 | G70: 2962.729151 | H70: 5436.470902 | I70: 7.5194987 | J70: 0 | K70: 633.264449 | L70: 311.7258849 | M70: 327.7048197 | N70: 248.7300847 | O70: 3517.220185 | P70: 2692237.2 | Q70: 17947.05153 | S70: 2369.842011 | T70: 141.7305513
A71: 3508 | B71: Phoenix Academy Public Charter High School, Springfield | C71: C | D71: Springfield | E71: 183.28 | F71: 4743.037975 | G71: 1592.36687 | H71: 4199.994544 | I71: 9.717372326 | J71: 0 | K71: 670.8697076 | L71: 34.89742471 | M71: 911.6979485 | N71: 711.2996508 | O71: 3543.556307 | P71: 3008988 | Q71: 16417.4378 | S71: 2622.162811 | T71: 435.3666521
A72: 494 | B72: Pioneer Charter School of Science | C72: =VLOOKUP(A72, TYPE, 3, FALSE) -> C | D72: Everett | E72: 790.11 | F72: 1514.998696 | G72: 665.6618066 | H72: 4827.904494 | I72: 425.9873815 | J72: 52.61242106 | K72: 672.1457645 | L72: 332.4693397 | M72: 1158.293465 | N72: 976.4480515 | O72: 4163.142891 | P72: 11685461.67 | Q72: 14789.66431 | S72: 1922.230677 | T72: 0
A73: 3506 | B73: Pioneer Charter School of Science II | C73: C | D73: Saugus | E73: 357.45 | F73: 1758.298895 | G73: 1225.38341 | H73: 4976.621737 | I73: 494.3849489 | J73: 106.6445936 | K73: 556.4463841 | L73: 54.6230242 | M73: 1239.707707 | N73: 728.7537558 | O73: 4195.286725 | P73: 5481907.24 | Q73: 15336.15118 | S73: 2306.207861 | T73: 0
A74: 497 | B74: Pioneer Valley Chinese Immersion Charter School | C74: C | D74: Hadley | E74: 535.57 | F74: 2165.181788 | G74: 1070.970835 | H74: 7841.978808 | I74: 472.9114775 | J74: 0.5601508673 | K74: 424.9592584 | L74: 437.1350337 | M74: 831.0663965 | N74: 540.6175477 | O74: 5047.489385 | P74: 10086320.55 | Q74: 18832.87068 | S74: 1391.792856 | T74: 10.48669642
A75: 479 | B75: Pioneer Valley Performing Arts Charter Public School | C75: C | D75: South Hadley | E75: 396.93 | F75: 1772.917366 | G75: 1109.787116 | H75: 5500.263094 | I75: 1002.312423 | J75: 166.8353866 | K75: 330.4409594 | L75: 691.9214975 | M75: 951.5246769 | N75: 1048.437735 | O75: 5538.85272 | P75: 7189709.38 | Q75: 18113.29297 | S75: 757.6307157 | T75: 309.0533343
A76: 487 | B76: Prospect Hill Academy Charter School | C76: C | D76: Somerville (K-6); Cambridge (7-12) | E76: 1098.44 | F76: 2681.488292 | G76: 1897.766833 | H76: 6381.154182 | I76: 1616.052766 | J76: 141.0108882 | K76: 837.0561888 | L76: 497.7295073 | M76: 619.4193584 | N76: 821.1090273 | O76: 5839.351262 | P76: 23432074 | Q76: 21332.13831 | S76: 1661.912348 | T76: 1306.812388
A77: 483 | B77: Rising Tide Charter Public School | C77: C | D77: Plymouth | E77: 647.28 | F77: 1093.398591 | G77: 1107.007524 | H77: 5414.671224 | I77: 853.6610431 | J77: 35.84065628 | K77: 312.3771783 | L77: 500.9996138 | M77: 1684.036476 | N77: 984.4386664 | O77: 5114.82394 | P77: 11069300.28 | Q77: 17101.25491 | S77: 0 | T77: 1799.681745
A78: 482 | B78: River Valley Charter School | C78: C | D78: Newburyport | E78: 306.91 | F78: 1415.669089 | G78: 1092.554821 | H78: 5173.62419 | I78: 1745.873383 | J78: 111.4300609 | K78: 556.1369783 | L78: 305.5065003 | M78: 638.3891043 | N78: 696.3572383 | O78: 4072.9204 | P78: 4851775 | Q78: 15808.46176 | S78: 0 | T78: 1097.852791
A79: 484 | B79: Roxbury Preparatory Charter School | C79: C | D79: Boston | E79: 1536.84 | F79: 2323.804202 | G79: 2111.887718 | H79: 4850.900315 | I79: 2144.369199 | J79: 604.2905377 | K79: 529.5902046 | L79: 542.5691028 | M79: 666.175568 | N79: 1364.40837 | O79: 4404.660706 | P79: 30033935.33 | Q79: 19542.65592 | S79: 1500.068504 | T79: 1356.460445
A80: 441 | B80: Sabis International Charter School | C80: C | D80: =VLOOKUP(A80, FACTS, 6, FALSE) -> Springfield | E80: =VLOOKUP(A80, FTE, 2, FALSE) -> 1571.04 | F80: 1312.862231 | G80: 1132.637469 | H80: 3491.822283 | I80: 849.9046364 | J80: 125.6856923 | K80: 616.6686335 | L80: 699.167666 | M80: 1870.982648 | N80: 720.1565078 | O80: 3203.624243 | P80: 22031498.31 | Q80: =SUM(F80:O80) -> 14023.51201 | S80: 0 | T80: 1724.378832
A81: 485 | B81: Salem Academy Charter School | C81: C | D81: Salem | E81: 492.15 | F81: 2118.024383 | G81: 1298.068983 | H81: 6139.582282 | I81: 878.9586915 | J81: 104.3871787 | K81: 240.4277354 | L81: 839.9811643 | M81: 840.522483 | N81: 995.6962715 | O81: 4790.280951 | P81: 8979734.51 | Q81: 18245.93012 | S81: 2260.010464 | T81: -2.069763418e-13
A82: 486 | B82: Seven Hills Charter Public School | C82: C | D82: Worcester | E82: 667.13 | F82: 1266.429332 | G82: 952.4995128 | H82: 4793.316145 | I82: 1188.284143 | J82: 184.3523751 | K82: 641.2393387 | L82: 1094.509316 | M82: 1788.318619 | N82: 789.9359945 | O82: 3209.87064 | P82: 10613208 | Q82: 15908.75541 | S82: 1219.852203 | T82: 41.72350217
A83: 474 | B83: Sizer School, A North Central Charter Essential School | C83: C | D83: Fitchburg | E83: 358.85 | F83: =VLOOKUP($A83&100, FE, 12, FALSE)/$E83 -> 1617.720245 | G83: 1002.180298 | H83: 5951.491933 | I83: 684.4669918 | J83: 38.0794761 | K83: 213.5801588 | L83: 1235.436088 | M83: 1705.125958 | N83: 1095.309043 | O83: 4478.768789 | P83: 6467251.75 | Q83: 18022.15898 | S83: 0.002786679671 | T83: 35.90698063
A84: 488 | B84: South Shore Charter Public School | C84: C | D84: Norwell | E84: 1002.66 | F84: 920.6071051 | G84: 915.5456486 | H84: 6689.704386 | I84: 1093.232003 | J84: 44.8327449 | K84: 696.3805278 | L84: 554.2935791 | M84: 424.8229709 | N84: 717.524076 | O84: 5054.013325 | P84: 17156471.51 | Q84: =SUM(F84:O84) -> 17110.95637 | S84: 50.96144256 | T84: 1569.75944
A85: 3510 | B85: Springfield Preparatory Charter School | C85: C | D85: Springfield | E85: 324.55 | F85: 1347.640887 | G85: 854.0087506 | H85: 5066.398891 | I85: 930.0773379 | J85: 478.7532892 | K85: 686.69108 | L85: 662.8885842 | M85: 2671.844893 | N85: 575.6053613 | O85: 3304.213865 | P85: 5380429.8 | Q85: 16578.12294 | S85: 601.1708519 | T85: 179.2728393
A86: 489 | B86: Sturgis Charter Public School | C86: =VLOOKUP(A86, TYPE, 3, FALSE) -> C | D86: =VLOOKUP(A86, FACTS, 6, FALSE) -> Hyannis | E86: =VLOOKUP(A86, FTE, 2, FALSE) -> 841.61 | F86: 918.6903673 | G86: 995.61317 | H86: 7937.263103 | I86: 1035.962025 | J86: 105.8875251 | K86: 605.8542555 | L86: 1187.306472 | M86: 874.4822424 | N86: 679.3479165 | O86: 1579.974097 | P86: 13398752 | Q86: =SUM(F86:O86) -> 15920.38117 | S86: 1865.709771 | T86: 62.95196112
A87: 480 | B87: UP Academy Charter School of Boston | C87: HM | D87: Boston | E87: 408.1234568 | F87: 1603.109793 | G87: 2501.076261 | H87: 7409.422652 | I87: 613.6610769 | J87: 96.8601374 | K87: 723.3656076 | L87: 663.06206 | M87: 2307.403763 | N87: 1414.025966 | O87: 2611.396092 | P87: 8139362.577 | Q87: 19943.38341 | S87: 0 | T87: 19.60191179
A88: 3505 | B88: UP Academy Charter School of Dorchester | C88: =VLOOKUP(A88, TYPE, 3, FALSE) -> HM | D88: =VLOOKUP(A88, FACTS, 6, FALSE) -> Boston | E88: =VLOOKUP(A88, FTE, 2, FALSE) -> 697.8159509 | F88: 1294.798021 | G88: 1664.422984 | H88: 5927.29156 | I88: 1443.193867 | J88: 58.27897735 | K88: 556.7948533 | L88: 303.8415438 | M88: 1466.564183 | N88: 1368.789018 | O88: 2178.271675 | P88: 11348055.13 | Q88: =SUM(F88:O88) -> 16262.24668 | S88: 0 | T88: 74.39739348
A89: 498 | B89: Veritas Preparatory Charter School | C89: C | D89: Springfield | E89: 370.25 | F89: 2048.600432 | G89: 1841.154895 | H89: 6663.148332 | I89: 216.6850506 | J89: 313.2435381 | K89: 1005.950601 | L89: 1133.855233 | M89: 2267.847941 | N89: 921.2204456 | O89: 4604.473815 | P89: 7781240.75 | Q89: 21016.18028 | S89: 866.6489669 | T89: 150.8972316
A90: C | B90: Commonwealth Charter Statewide Totals | C90: C | E90: =SUMIF(C9:C89,"C",E9:E89) -> 44820.25 | F90: =VLOOKUP($A90&100, FE, 12, FALSE)/$E90 -> 1711.612896 | G90: =VLOOKUP($A90&210, FE, 12, FALSE)/$E90 -> 1503.254169 | H90: 5378.717616 | I90: 1031.369773 | J90: 191.6141794 | K90: 621.824465 | L90: 568.7531037 | M90: 1519.43451 | N90: 975.5399666 | O90: 4350.965045 | P90: =VLOOKUP($A90&800,FE,12,FALSE)-VLOOKUP($A90&700,FE,12,FALSE)-VLOOKUP($A90&600,FE,12,FALSE) -> 800179765.4 | Q90: =SUM(F90:O90) -> 17853.08572 | S90: 755.5702878 | T90: 1115.964053
A91: HM | B91: Horace Mann Charter Statewide Totals | C91: HM | E91: =SUMIF(C9:C89,"HM",E9:E89) -> 2958.575934 | F91: 1739.748421 | G91: 1439.862858 | H91: 7057.410593 | I91: 1335.763092 | J91: 256.3670635 | K91: 471.6925114 | L91: 623.115851 | M91: 1622.050112 | N91: 1117.621721 | O91: 2560.815247 | P91: =VLOOKUP($A91&800,FE,12,FALSE)-VLOOKUP($A91&700,FE,12,FALSE)-VLOOKUP($A91&600,FE,12,FALSE) -> 53918411.69 | Q91: =SUM(F91:O91) -> 18224.44747 | S91: 119.9665001 | T91: =(VLOOKUP($A91&700, FE, 12, FALSE)-VLOOKUP($A91&740, FE, 12, FALSE)-VLOOKUP($A91&725, FE, 12, FALSE))/$E91 -> 20.25152953
A92: ALL | B92: All Charter Schools Statewide Totals | C92: ALL | E92: =SUM(E90:E91) -> 47778.82593 | F92: 1713.355113 | G92: 1499.328831 | H92: 5482.666186 | I92: 1050.218515 | J92: 195.6238285 | K92: 612.5279456 | L92: 572.1193714 | M92: 1525.78871 | N92: 984.337999 | O92: 4240.114809 | P92: =VLOOKUP($A92&800,FE,12,FALSE)-VLOOKUP($A92&700,FE,12,FALSE)-VLOOKUP($A92&600,FE,12,FALSE) -> 854098177.3 | Q92: 17876.08131 | S92: 716.2122242 | T92: 1048.114987
F93: ----------------------------- Operating Expenditures Per Pupil In The Charter School -------------------------------------------
A94: Notes: | B94: 1. These figures do not include facilities lease costs -- see data presented at right.
B95: 2. The majority of charter schools lease their facilities. In many cases, Horace Mann charter schools are provided their facilities in kind by their host districts; some report a monetary figure for these in-kind revenues and expenditures, some do not.
B96: 3. Capital facilities costs include facilities-related long-term interest; depreciation of equipment, buildings, and grounds; bad debt or loss on disposal of assets; and other costs related to capital facilities acquisition.
B97: Charter schools that report significant costs in this category either own their buildings or have invested heavily in leasehold improvements.

Sheet 5. AVGTCHSAL
A1: Massachusetts Department of Elementary and Secondary Education
A2: FY20 Average Teacher Salaries
A3: =Index!B3 -> Last Updated: May 2021
A5: Return to Index
A6: Average teacher salaries are calculated from data submitted on the Charter School End of Year Financial Report. The calculation includes professional teachers paid from all funding sources, including tuition revenue, federal and state grants, and private grants/contributions. Beginning in FY08, the Educator Personnel Management Information System (EPIMS) was the source for the total number of theachers, which is shown in full-time equivalents (e.g., a teacher who worked half-time would count as .5 FTE's).
A8: LEA | B8: Charter School | C8: Type | D8: Location | E8: Total Salaries | F8: Total Teachers | G8: Average Salaries
A9: 445 | B9: Abby Kelley Foster Charter Public School | C9: =VLOOKUP(A9, TYPE, 3, FALSE) -> C | D9: =VLOOKUP(A9, FACTS, 6, FALSE) -> Worcester | E9: =VLOOKUP($A9&220, FE, 12, FALSE) -> 6876597.5 | F9: =VLOOKUP(A9, TEACHEREPIMS, 2, FALSE) -> 115.921 | G9: =E9/F9 -> 59321.41286
A10: 412 | B10: Academy of the Pacific Rim Charter Public School | C10: C | D10: Boston | E10: 3295016.02 | F10: =VLOOKUP(A10, TEACHEREPIMS, 2, FALSE) -> 48.099 | G10: =E10/F10 -> 68504.87578
A11: 430 | B11: Advanced Math and Science Academy Charter School | C11: C | D11: Marlborough | E11: 5237563.58 | F11: 78.959 | G11: 66332.699
A12: 409 | B12: Alma del Mar Charter School | C12: C | D12: New Bedford | E12: 3313105 | F12: 52 | G12: 63713.55769
A13: 3509 | B13: Argosy Collegiate Charter School | C13: C | D13: Fall River | E13: 2454316.4 | F13: 40.12 | G13: 61174.38684
A14: 491 | B14: Atlantis Charter School | C14: C | D14: Fall River | E14: 4852202 | F14: 103.72 | G14: 46781.7393
A15: 3502 | B15: Baystate Academy Charter Public School | C15: C | D15: Springfield | E15: 2709816 | F15: 50.928 | G15: 53208.76532
A16: 420 | B16: Benjamin Banneker Charter Public School | C16: C | D16: Cambridge | E16: 1548205.27 | F16: 19 | G16: 81484.48789
A17: 447 | B17: Benjamin Franklin Classical Charter Public School | C17: C | D17: Franklin | E17: 3707371 | F17: 54 | G17: 68655.01852
A18: 3511 | B18: Bentley Academy Charter School | C18: HM | D18: Salem | E18: 2066439.751 | F18: 29.088 | G18: 71040.97054
A19: 414 | B19: Berkshire Arts and Technology Charter Public School | C19: C | D19: Adams | E19: 1816057.47 | F19: 37.328 | G19: 48651.34671
A20: 449 | B20: Boston Collegiate Charter School | C20: C | D20: Boston | E20: 5180178.82 | F20: 69.365 | G20: 74680.00894
A21: 424 | B21: Boston Day and Evening Academy Charter School | C21: HM | D21: Boston | E21: 2897829.494 | F21: 21.253 | G21: 136349.1975
A22: 411 | B22: Boston Green Academy Horace Mann Charter School | C22: HM | D22: Boston | E22: 3469815.057 | F22: 41.78 | G22: 83049.66628
A23: 416 | B23: Boston Preparatory Charter Public School | C23: C | D23: Boston | E23: 3387866.44 | F23: 55.449 | G23: 61098.78339
A24: 481 | B24: Boston Renaissance Charter Public School | C24: C | D24: Boston | E24: 6146494 | F24: 82.3 | G24: 74684.00972
A25: 417 | B25: Bridge Boston Charter School | C25: C | D25: Boston | E25: 2344017 | F25: 31.8 | G25: 73711.22642
A26: 428 | B26: Brooke Charter School | C26: C | D26: Boston | E26: 13186563.28 | F26: =VLOOKUP(A26, TEACHEREPIMS, 4, FALSE) -> 166.701 | G26: 79103.08444
A27: 432 | B27: Cape Cod Lighthouse Charter School | C27: C | D27: Harwich | E27: 1819105 | F27: =VLOOKUP(A27, TEACHEREPIMS, 4, FALSE) -> 22.61 | G27: 80455.77178
A28: 418 | B28: Christa McAuliffe Charter School | C28: C | D28: Framingham | E28: 2694808 | F28: 36.947 | G28: 72937.12615
A29: 437 | B29: City on a Hill Charter Public School Circuit Street | C29: C | D29: Boston | E29: 931194 | F29: 35.905 | G29: 25934.93942 | H29: *
A30: 3504 | B30: City on a Hill Charter Public School Dudley Square | C30: C | D30: Boston | E30: 965162.58 | F30: 31.122 | G30: 31012.22865 | H30: *
A31: 3507 | B31: City On A Hill Charter Public School New Bedford | C31: C | D31: New Bedford | E31: 422258 | F31: 8.871 | G31: 47599.81964
A32: 438 | B32: Codman Academy Charter Public School | C32: C | D32: Boston | E32: 2503313.1 | F32: 45.75 | G32: 54717.22623
A33: 3503 | B33: Collegiate Charter School of Lowell | C33: C | D33: Lowell | E33: 2395723.58 | F33: 47.816 | G33: 50102.9693
A34: 436 | B34: Community Charter School of Cambridge | C34: C | D34: Cambridge | E34: 2584746 | F34: 34.415 | G34: 75105.21575
A35: 426 | B35: Community Day Charter Public School - Gateway | C35: C | D35: Lawrence | E35: 2191720 | F35: 44 | G35: 49811.81818
A36: 440 | B36: Community Day Charter Public School - Prospect | C36: C | D36: Lawrence | E36: 2231442 | F36: 38.799 | G36: 57512.87404
A37: 431 | B37: Community Day Charter Public School - R. Kingman Webster | C37: C | D37: Lawrence | E37: =VLOOKUP($A37&220, FE, 12, FALSE) -> 1944762 | F37: =VLOOKUP(A37, TEACHEREPIMS, 2, FALSE) -> 39.999 | G37: 48620.26551
A38: 439 | B38: Conservatory Lab Charter School | C38: C | D38: Boston | E38: 2718834.73 | F38: 27.2 | G38: 99957.15919
A39: 407 | B39: Dudley Street Neighborhood Charter School | C39: HM | D39: Boston | E39: 1761911.05 | F39: 20 | G39: 88095.5525
A40: 452 | B40: Edward M. Kennedy Academy for Health Careers: A HMCPS | C40: HM | D40: Boston | E40: 3523772 | F40: =VLOOKUP(A40, TEACHEREPIMS, 4, FALSE) -> 36.792 | G40: 95775.49467
A41: 410 | B41: Excel Academy Charter School | C41: C | D41: Boston/Chelsea | E41: 7454830.082 | F41: =VLOOKUP(A41, TEACHEREPIMS, 2, FALSE) -> 115.906 | G41: 64317.89624
A42: 413 | B42: Four Rivers Charter Public School | C42: C | D42: Greenfield | E42: 1432375 | F42: 20.266 | G42: 70678.72298
A43: 446 | B43: Foxborough Regional Charter School | C43: C | D43: Foxborough | E43: 7498740.97 | F43: 132.977 | G43: 56391.26293
A44: 478 | B44: Francis W. Parker Charter Essential School | C44: C | D44: Devens | E44: 2406001.04 | F44: 45.748 | G44: 52592.48579
A45: 496 | B45: Global Learning Charter Public School | C45: C | D45: New Bedford | E45: 2553888 | F45: 43.002 | G45: 59389.98186
A46: 499 | B46: Hampden Charter School of Science East | C46: C | D46: Chicopee | E46: 2286728 | F46: 42.981 | G46: 53203.22933
A47: 3516 | B47: Hampden Charter School of Science-West | C47: C | D47: Westfield | E47: 1179592.37 | F47: 25.7 | G47: 45898.5358
A48: 419 | B48: Helen Y Davis Leadership Academy Charter Public School | C48: C | D48: Boston | E48: 1533249 | F48: 21 | G48: 73011.85714
A49: 455 | B49: Hill View Montessori Charter Public School | C49: C | D49: Haverhill | E49: 1318552.32 | F49: 22 | G49: 59934.19636
A50: 450 | B50: Hilltown Cooperative Charter Public School | C50: C | D50: East Hampton | E50: 1299348.68 | F50: 20.45 | G50: 63537.83276
A51: 453 | B51: Holyoke Community Charter School | C51: C | D51: Holyoke | E51: 2772766.89 | F51: 43 | G51: 64482.95093
A52: 435 | B52: Innovation Academy Charter School | C52: C | D52: Tyngsborough | E52: 4267724 | F52: 70.613 | G52: 60438.21959
A53: 463 | B53: KIPP Academy Boston Charter School | C53: C | D53: Boston | E53: 2881481 | F53: 40.798 | G53: 70627.99647
A54: 429 | B54: KIPP Academy Lynn Charter School | C54: C | D54: Lynn | E54: 7041107 | F54: 105.055 | G54: 67023.05459
A55: 454 | B55: Lawrence Family Development Charter School | C55: C | D55: Lawrence | E55: 3899997 | F55: 61.176 | G55: 63750.44135
A56: 3514 | B56: Libertas Academy Charter School | C56: C | D56: Springfield | E56: 1447408.12 | F56: 21.796 | G56: 66407.05267
A57: 456 | B57: Lowell Community Charter Public School | C57: C | D57: Lowell | E57: 4711950.74 | F57: 65.46 | G57: 71982.13779
A58: 458 | B58: Lowell Middlesex Academy Charter School | C58: C | D58: Lowell | E58: 806786.61 | F58: 8.5 | G58: 94916.07176
A59: 3517 | B59: Map Academy Charter School | C59: C | D59: Plymouth | E59: 810940.37 | F59: 9.5 | G59: 85362.14421
A60: 464 | B60: Marblehead Community Charter Public School | C60: C | D60: Marblehead | E60: 1322190.3 | F60: 23 | G60: 57486.53478
A61: 466 | B61: Martha's Vineyard Public Charter School | C61: C | D61: West Tisbury | E61: 1627129 | F61: 18.64 | G61: 87292.32833
A62: 492 | B62: Martin Luther King, Jr. Charter School of Excellence | C62: C | D62: Springfield | E62: 2522498.71 | F62: 35.847 | G62: 70368.47463
A63: 469 | B63: Match Charter Public School | C63: C | D63: Boston | E63: 7951214 | F63: 114.711 | G63: 69315.18337
A64: 470 | B64: Mystic Valley Regional Charter School | C64: C | D64: Malden | E64: 6090114 | F64: 102.16 | G64: 59613.48865
A65: 444 | B65: Neighborhood House Charter School | C65: C | D65: Boston | E65: 4608637 | F65: 64.551 | G65: 71395.28435
A66: 3513 | B66: New Heights Charter School of Brockton | C66: C | D66: Brockton | E66: 2386253 | F66: =VLOOKUP(A66, TEACHEREPIMS, 4, FALSE) -> 41.792 | G66: 57098.32025
A67: 3515 | B67: Old Sturbridge Academy | C67: C | D67: Sturbridge | E67: =VLOOKUP($A67&220, FE, 12, FALSE) -> 971611.63 | F67: =VLOOKUP(A67, TEACHEREPIMS, 2, FALSE) -> 16.08 | G67: 60423.60883
A68: 3501 | B68: Paulo Freire Social Justice Charter School | C68: C | D68: Holyoke | E68: 1249338.3 | F68: 23.8 | G68: =E68/F68 -> 52493.20588
A69: 493 | B69: Phoenix Academy Charter Public High School, Chelsea | C69: C | D69: Chelsea | E69: 825886 | F69: 15.599 | G69: 52944.80415
A70: 3518 | B70: Phoenix Academy Charter Public High School, Lawrence | C70: C | D70: Lawrence | E70: 815525 | F70: 13.193 | G70: 61814.97764
A71: 3508 | B71: Phoenix Academy Public Charter High School, Springfield | C71: C | D71: Springfield | E71: 769775 | F71: 11.996 | G71: 64169.30644
A72: 494 | B72: Pioneer Charter School of Science | C72: =VLOOKUP(A72, TYPE, 3, FALSE) -> C | D72: =VLOOKUP(A72, FACTS, 6, FALSE) -> Everett | E72: 3814575.62 | F72: 73.16 | G72: 52140.1807
A73: 3506 | B73: Pioneer Charter School of Science II | C73: C | D73: Saugus | E73: 1778893.44 | F73: 35.7 | G73: 49828.9479
A74: 497 | B74: Pioneer Valley Chinese Immersion Charter School | C74: C | D74: Hadley | E74: 4199928.59 | F74: 73.124 | G74: 57435.70633
A75: 479 | B75: Pioneer Valley Performing Arts Charter Public School | C75: C | D75: South Hadley | E75: 2183219.43 | F75: 43.694 | G75: 49966.11503
A76: 487 | B76: Prospect Hill Academy Charter School | C76: C | D76: Somerville (K-6); Cambridge (7-12) | E76: 7009315 | F76: 99.346 | G76: 70554.57693
A77: 483 | B77: Rising Tide Charter Public School | C77: C | D77: Plymouth | E77: 3504808.39 | F77: 46.199 | G77: 75863.29553
A78: 482 | B78: River Valley Charter School | C78: C | D78: Newburyport | E78: 1587837 | F78: =VLOOKUP(A78, TEACHEREPIMS, 2, FALSE) -> 21.88 | G78: =E78/F78 -> 72570.2468
A79: 484 | B79: Roxbury Preparatory Charter School | C79: C | D79: Boston | E79: 7455057.64 | F79: 124.483 | G79: 59888.15854
A80: 441 | B80: Sabis International Charter School | C80: C | D80: Springfield | E80: 5485792.48 | F80: 85.611 | G80: 64078.12641
A81: 485 | B81: Salem Academy Charter School | C81: C | D81: Salem | E81: 3021595.42 | F81: 46.572 | G81: 64880.08718
A82: 486 | B82: Seven Hills Charter Public School | C82: C | D82: Worcester | E82: 3197765 | F82: 35.75 | G82: 89447.97203
A83: 474 | B83: Sizer School, A North Central Charter Essential School | C83: C | D83: Fitchburg | E83: 2135692.88 | F83: =VLOOKUP(A83, TEACHEREPIMS, 2, FALSE) -> 39.687 | G83: =E83/F83 -> 53813.41195
A84: 488 | B84: South Shore Charter Public School | C84: C | D84: Norwell | E84: 6707499 | F84: 93.153 | G84: 72005.18502
A85: 3510 | B85: Springfield Preparatory Charter School | C85: C | D85: Springfield | E85: 1644299.76 | F85: 26.1 | G85: 62999.9908
A86: 489 | B86: Sturgis Charter Public School | C86: C | D86: Hyannis | E86: 6680080 | F86: =VLOOKUP(A86, TEACHEREPIMS, 2, FALSE) -> 89.228 | G86: =E86/F86 -> 74865.28892
A87: 480 | B87: UP Academy Charter School of Boston | C87: HM | D87: Boston | E87: 3023959.185 | F87: 40.877 | G87: 73977.03318
A88: 3505 | B88: UP Academy Charter School of Dorchester | C88: HM | D88: Boston | E88: 4136158.596 | F88: =VLOOKUP(A88, TEACHEREPIMS, 2, FALSE) -> 50.86 | G88: =E88/F88 -> 81324.39237
A89: 498 | B89: Veritas Preparatory Charter School | C89: C | D89: Springfield | E89: 2467030.67 | F89: 34 | G89: 72559.72559
A90: C | B90: Commonwealth Charter Statewide Totals | C90: C | E90: =VLOOKUP($A90&220, FE, 12, FALSE) -> 241075468.2 | F90: =SUMIF($C9:$C89,"C",F9:F89) -> 3784.108 | G90: =E90/F90 -> 63707.34351
A91: HM | B91: Horace Mann Charter Statewide Totals | C91: HM | E91: 20879885.13 | F91: =SUMIF($C9:$C89,"HM",F9:F89) -> 240.65 | G91: =E91/F91 -> 86764.53411
A92: ALL | B92: All Charter Schools Statewide Totals | C92: ALL | E92: 261955353.4 | F92: =SUM(F90:F91) -> 4024.758 | G92: =E92/F92 -> 65085.98861
A94: *City on a Hill Charter Public Schools Dudley Street and Circuit Street reported an FTE for teachers that was higher than actual in FY20 on its EPIMS submission. Therefore, teacher salaries reflected in column G are lower than what teachers actually earned.

Sheet BAL20 (hidden)
B1: 1 | C1: 2 | D1: 3 | E1: 4 | F1: 5 | G1: 6 | H1: 7 | I1: 8
A2: FY | B2: vlookup | C2: cha_code | D2: cha_type | E2: balance_id | F2: Line_Desc | G2: balance_sch | H2: balance_found | I2: balance_total
A3: 2020 | B3: =C3&E3 -> 40701 | C3: 407 | D3: =VLOOKUP(C3, TYPE, 3, FALSE) -> HM | E3: 01 | F3: Cash and Cash Equivalents | G3: 27347 | H3: 0 | I3: 27347 | J3: =D3&E3 -> HM01
A4: 2020 | B4: =C4&E4 -> 40702 | C4: 407 | D4: HM | E4: 02 | F4: Accounts Receivable net of doubtful accounts | G4: 0 | H4: 0 | I4: 0 | J4: =D4&E4 -> HM02
A5: 2020 | B5: 40703 | C5: 407 | D5: HM | E5: 03 | F5: Grants Receivable - State | G5: 198810 | H5: 0 | I5: 198810 | J5: HM03
A6: 2020 | B6: 40704 | C6: 407 | D6: HM | E6: 04 | F6: Grants Receivable - Federal | G6: 0 | H6: 0 | I6: 0 | J6: HM04
A7: 2020 | B7: 40705 | C7: 407 | D7: HM | E7: 05 | F7: Grants Receivable - Private | G7: 0 | H7: 0 | I7: 0 | J7: HM05
A8: 2020 | B8: 40706 | C8: 407 | D8: HM | E8: 06 | F8: Contributions Receivable | G8: 0 | H8: 0 | I8: 0 | J8: HM06
A9: 2020 | B9: 40707 | C9: 407 | D9: HM | E9: 07 | F9: Due from related parties | G9: 33707 | H9: 0 | I9: 33707 | J9: HM07
A10: 2020 | B10: 40708 | C10: 407 | D10: HM | E10: 08 | F10: Prepaid Expenses / Inventory | G10: 4861 | H10: 0 | I10: 4861 | J10: HM08
A11: 2020 | B11: 40709 | C11: 407 | D11: HM | E11: 09 | F11: Short-Term Investments | G11: 0 | H11: 0 | I11: 0 | J11: HM09
A12: 2020 | B12: 40710 | C12: 407 | D12: HM | E12: 10 | F12: Deposit (Security, Other) | G12: 0 | H12: 0 | I12: 0 | J12: HM10
A13: 2020 | B13: 40711 | C13: 407 | D13: HM | E13: 11 | F13: Restricted Current Assets | G13: 0 | H13: 0 | I13: 0 | J13: HM11
A14: 2020 | B14: 40712 | C14: 407 | D14: HM | E14: 12 | F14: TOTAL CURRENT ASSETS | G14: 264725 | H14: 0 | I14: 264725 | J14: HM12
A15: 2020 | B15: 40713 | C15: 407 | D15: HM | E15: 13 | F15: - Land and Buildings | G15: 0 | H15: 0 | I15: 0 | J15: HM13
A16: 2020 | B16: 40714 | C16: 407 | D16: HM | E16: 14 | F16: - Building/Leasehold Improvement | G16: 0 | H16: 0 | I16: 0 | J16: HM14
A17: 2020 | B17: 40715 | C17: 407 | D17: HM | E17: 15 | F17: - Furniture and Equipment | G17: 0 | H17: 0 | I17: 0 | J17: HM15
A18: 2020 | B18: 40716 | C18: 407 | D18: HM | E18: 16 | F18: - Less Accumulated Depreciation | G18: 0 | H18: 0 | I18: 0 | J18: HM16
A19: 2020 | B19: 40717 | C19: 407 | D19: HM | E19: 17 | F19: Net Capital Assets | G19: 0 | H19: 0 | I19: 0 | J19: HM17
A20: 2020 | B20: 40718 | C20: 407 | D20: HM | E20: 18 | F20: Restricted Noncurrent Assets | G20: 0 | H20: 0 | I20: 0 | J20: HM18
A21: 2020 | B21: 40719 | C21: 407 | D21: HM | E21: 19 | F21: Long-Term Investments | G21: 0 | H21: 0 | I21: 0 | J21: HM19
A22: 2020 | B22: 40720 | C22: 407 | D22: HM | E22: 20 | F22: Building Acquisition / Financing Costs / Deferred Expenses | G22: 0 | H22: 0 | I22: 0 | J22: HM20
A23: 2020 | B23: 40721 | C23: 407 | D23: HM | E23: 21 | F23: Long-Term Grants / Contributions Receivable | G23: 0 | H23: 0 | I23: 0 | J23: HM21
A24: 2020 | B24: 40722 | C24: 407 | D24: HM | E24: 22 | F24: TOTAL NONCURRENT ASSETS | G24: 0 | H24: 0 | I24: 0 | J24: HM22
A25: 2020 | B25: 40723 | C25: 407 | D25: HM | E25: 23 | F25: TOTAL ASSETS | G25: 264725 | H25: 0 | I25: 264725 | J25: HM23
A26: 2020 | B26: 40724 | C26: 407 | D26: HM | E26: 24 | F26: Accounts Payable | G26: 0 | H26: 0 | I26: 0 | J26: HM24
A27: 2020 | B27: 40725 | C27: 407 | D27: HM | E27: 25 | F27: Accrued Expenses / Accrued Payroll | G27: 280 | H27: 0 | I27: 280 | J27: HM25
A28: 2020 | B28: 40726 | C28: 407 | D28: HM | E28: 26 | F28: Deferred Revenue | G28: 0 | H28: 0 | I28: 0 | J28: HM26
A29: 2020 | B29: 40727 | C29: 407 | D29: HM | E29: 27 | F29: Due to related parties | G29: 96415 | H29: 0 | I29: 96415 | J29: HM27
A30: 2020 | B30: 40728 | C30: 407 | D30: HM | E30: 28 | F30: Current Debt Payable | G30: 0 | H30: 0 | I30: 0 | J30: HM28
A31: 2020 | B31: 40729 | C31: 407 | D31: HM | E31: 29 | F31: Current Lease Obligations Payable | G31: 0 | H31: 0 | I31: 0 | J31: HM29
A32: 2020 | B32: 40730 | C32: 407 | D32: HM | E32: 30 | F32: TOTAL CURRENT LIABILITIES | G32: 96695 | H32: 0 | I32: 96695 | J32: HM30
A33: 2020 | B33: 40731 | C33: 407 | D33: HM | E33: 31 | F33: Noncurrent Lease Obligations | G33: 0 | H33: 0 | I33: 0 | J33: HM31
A34: 2020 | B34: 40732 | C34: 407 | D34: HM | E34: 32 | F34: Long-Term Debt | G34: 0 | H34: 0 | I34: 0 | J34: HM32
A35: 2020 | B35: 40733 | C35: 407 | D35: HM | E35: 33 | F35: Deferred Revenue | G35: 0 | H35: 0 | I35: 0 | J35: HM33
A36: 2020 | B36: 40734 | C36: 407 | D36: HM | E36: 34 | F36: TOTAL NONCURRENT LIABILITIES | G36: 0 | H36: 0 | I36: 0 | J36: HM34
A37: 2020 | B37: 40735 | C37: 407 | D37: HM | E37: 35 | F37: TOTAL LIABILITIES | G37: 96695 | H37: 0 | I37: 96695 | J37: HM35
A38: 2020 | B38: 40736 | C38: 407 | D38: HM | E38: 36 | F38: Investment in capital assets (net of related debt) | G38: 0 | H38: 0 | I38: 0 | J38: HM36
A39: 2020 | B39: 40737 | C39: 407 | D39: HM | E39: 37 | F39: Temporarily Restricted | G39: 0 | H39: 0 | I39: 0 | J39: HM37
A40: 2020 | B40: 40738 | C40: 407 | D40: HM | E40: 38 | F40: Permanently Restricted | G40: 0 | H40: 0 | I40: 0 | J40: HM38
A41: 2020 | B41: 40739 | C41: 407 | D41: HM | E41: 39 | F41: Unrestricted (non-capital) | G41: 168030 | H41: 0 | I41: 168030 | J41: HM39
A42: 2020 | B42: 40740 | C42: 407 | D42: HM | E42: 40 | F42: TOTAL NET ASSETS | G42: 168030 | H42: 0 | I42: 168030 | J42: HM40
A43: 2020 | B43: 40741 | C43: 407 | D43: HM | E43: 41 | F43: TOTAL LIABILITIES AND NET ASSETS | G43: 264725 | H43: 0 | I43: 264725 | J43: HM41
A44: 2020 | B44: 40901 | C44: 409 | D44: C | E44: 01 | F44: Cash and Cash Equivalents | G44: 2632034 | H44: 1656713 | I44: 4288747 | J44: C01
A45: 2020 | B45: 40902 | C45: 409 | D45: C | E45: 02 | F45: Accounts Receivable net of doubtful accounts | G45: 0 | H45: 0 | I45: 0 | J45: C02
A46: 2020 | B46: 40903 | C46: 409 | D46: C | E46: 03 | F46: Grants Receivable - State | G46: 0 | H46: 0 | I46: 0 | J46: C03
A47: 2020 | B47: 40904 | C47: 409 | D47: C | E47: 04 | F47: Grants Receivable - Federal | G47: 406296 | H47: 0 | I47: 406296 | J47: C04
A48: 2020 | B48: 40905 | C48: 409 | D48: C | E48: 05 | F48: Grants Receivable - Private | G48: 0 | H48: 0 | I48: 0 | J48: C05
A49: 2020 | B49: 40906 | C49: 409 | D49: C | E49: 06 | F49: Contributions Receivable | G49: 0 | H49: 411600 | I49: 411600 | J49: C06
A50: 2020 | B50: 40907 | C50: 409 | D50: C | E50: 07 | F50: Due from related parties | G50: -236918 | H50: 236918 | I50: 0 | J50: C07
A51: 2020 | B51: 40908 | C51: 409 | D51: C | E51: 08 | F51: Prepaid Expenses / Inventory | G51: 23370 | H51: 18479 | I51: 41849 | J51: C08
A52: 2020 | B52: 40909 | C52: 409 | D52: C | E52: 09 | F52: Short-Term Investments | G52: 0 | H52: 0 | I52: 0 | J52: C09
A53: 2020 | B53: 40910 | C53: 409 | D53: C | E53: 10 | F53: Deposit (Security, Other) | G53: 6000 | H53: 5000 | I53: 11000 | J53: C10
A54: 2020 | B54: 40911 | C54: 409 | D54: C | E54: 11 | F54: Restricted Current Assets | G54: 0 | H54: 0 | I54: 0 | J54: C11
A55: 2020 | B55: 40912 | C55: 409 | D55: C | E55: 12 | F55: TOTAL CURRENT ASSETS | G55: 2830782 | H55: 2328710 | I55: 5159492 | J55: C12
A56: 2020 | B56: 40913 | C56: 409 | D56: C | E56: 13 | F56: - Land and Buildings | G56: 0 | H56: 2968380 | I56: 2968380 | J56: C13
A57: 2020 | B57: 40914 | C57: 409 | D57: C | E57: 14 | F57: - Building/Leasehold Improvement | G57: 0 | H57: 13785817 | I57: 13785817 | J57: C14
A58: 2020 | B58: 40915 | C58: 409 | D58: C | E58: 15 | F58: - Furniture and Equipment | G58: 301316 | H58: 435475 | I58: 736791 | J58: C15
A59: 2020 | B59: 40916 | C59: 409 | D59: C | E59: 16 | F59: - Less Accumulated Depreciation | G59: -113568 | H59: -1673731 | I59: -1787299 | J59: C16
A60: 2020 | B60: 40917 | C60: 409 | D60: C | E60: 17 | F60: Net Capital Assets | G60: 187748 | H60: 15515941 | I60: 15703689 | J60: C17
A61: 2020 | B61: 40918 | C61: 409 | D61: C | E61: 18 | F61: Restricted Noncurrent Assets | G61: 0 | H61: 0 | I61: 0 | J61: C18
A62: 2020 | B62: 40919 | C62: 409 | D62: C | E62: 19 | F62: Long-Term Investments | G62: 0 | H62: 10042850 | I62: 10042850 | J62: C19
A63: 2020 | B63: 40920 | C63: 409 | D63: C | E63: 20 | F63: Building Acquisition / Financing Costs / Deferred Expenses | G63: 0 | H63: 0 | I63: 0 | J63: C20
A64: 2020 | B64: 40921 | C64: 409 | D64: C | E64: 21 | F64: Long-Term Grants / Contributions Receivable | G64: 0 | H64: 375000 | I64: 375000 | J64: C21
A65: 2020 | B65: 40922 | C65: 409 | D65: C | E65: 22 | F65: TOTAL NONCURRENT ASSETS | G65: 187748 | H65: 25933791 | I65: 26121539 | J65: C22
A66: 2020 | B66: 40923 | C66: 409 | D66: C | E66: 23 | F66: TOTAL ASSETS | G66: 3018530 | H66: 28262501 | I66: 31281031 | J66: C23
A67: 2020 | B67: 40924 | C67: 409 | D67: =VLOOKUP(C67, TYPE, 3, FALSE) -> C | E67: 24 | F67: Accounts Payable | G67: 166596 | H67: 278232 | I67: 444828 | J67: C24
A68: 2020 | B68: =C68&E68 -> 40925 | C68: 409 | D68: C | E68: 25 | F68: Accrued Expenses / Accrued Payroll | G68: 391412 | H68: 14097 | I68: 405509 | J68: =D68&E68 -> C25
A69: 2020 | B69: 40926 | C69: 409 | D69: C | E69: 26 | F69: Deferred Revenue | G69: 0 | H69: 0 | I69: 0 | J69: C26
A70: 2020 | B70: 40927 | C70: 409 | D70: C | E70: 27 | F70: Due to related parties | G70: 0 | H70: 0 | I70: 0 | J70: C27
A71: 2020 | B71: 40928 | C71: 409 | D71: C | E71: 28 | F71: Current Debt Payable | G71: 0 | H71: 204872 | I71: 204872 | J71: C28
A72: 2020 | B72: 40929 | C72: 409 | D72: C | E72: 29 | F72: Current Lease Obligations Payable | G72: 0 | H72: 0 | I72: 0 | J72: C29
A73: 2020 | B73: 40930 | C73: 409 | D73: C | E73: 30 | F73: TOTAL CURRENT LIABILITIES | G73: 558008 | H73: 497201 | I73: 1055209 | J73: C30
A74: 2020 | B74: 40931 | C74: 409 | D74: C | E74: 31 | F74: Noncurrent Lease Obligations | G74: 1704125 | H74: -1704125 | I74: 0 | J74: C31
A75: 2020 | B75: 40932 | C75: 409 | D75: C | E75: 32 | F75: Long-Term Debt | G75: 0 | H75: 23120065 | I75: 23120065 | J75: C32
A76: 2020 | B76: 40933 | C76: 409 | D76: C | E76: 33 | F76: Deferred Revenue | G76: 0 | H76: 0 | I76: 0 | J76: C33
A77: 2020 | B77: 40934 | C77: 409 | D77: C | E77: 34 | F77: TOTAL NONCURRENT LIABILITIES | G77: 1704125 | H77: 21415940 | I77: 23120065 | J77: C34
A78: 2020 | B78: 40935 | C78: 409 | D78: C | E78: 35 | F78: TOTAL LIABILITIES | G78: 2262133 | H78: 21913141 | I78: 24175274 | J78: C35
A79: 2020 | B79: 40936 | C79: 409 | D79: C | E79: 36 | F79: Investment in capital assets (net of related debt) | G79: 187748 | H79: 1351482 | I79: 1539230 | J79: C36
A80: 2020 | B80: 40937 | C80: 409 | D80: C | E80: 37 | F80: Temporarily Restricted | G80: 0 | H80: 2022025 | I80: 2022025 | J80: C37
A81: 2020 | B81: 40938 | C81: 409 | D81: C | E81: 38 | F81: Permanently Restricted | G81: 0 | H81: 0 | I81: 0 | J81: C38
A82: 2020 | B82: 40939 | C82: 409 | D82: C | E82: 39 | F82: Unrestricted (non-capital) | G82: 568649 | H82: 2975853 | I82: 3544502 | J82: C39
A83: 2020 | B83: 40940 | C83: 409 | D83: C | E83: 40 | F83: TOTAL NET ASSETS | G83: 756397 | H83: 6349360 | I83: 7105757 | J83: C40
A84: 2020 | B84: 40941 | C84: 409 | D84: C | E84: 41 | F84: TOTAL LIABILITIES AND NET ASSETS | G84: 3018530 | H84: 28262501 | I84: 31281031 | J84: C41
A85: 2020 | B85: 41001 | C85: 410 | D85: C | E85: 01 | F85: Cash and Cash Equivalents | G85: 3407683 | H85: 2996873 | I85: 6404556 | J85: C01
A86: 2020 | B86: 41002 | C86: 410 | D86: C | E86: 02 | F86: Accounts Receivable net of doubtful accounts | G86: 13841 | H86: 90433 | I86: 104274 | J86: C02
A87: 2020 | B87: 41003 | C87: 410 | D87: C | E87: 03 | F87: Grants Receivable - State | G87: 199166 | H87: 0 | I87: 199166 | J87: C03
A88: 2020 | B88: 41004 | C88: 410 | D88: C | E88: 04 | F88: Grants Receivable - Federal | G88: 83333 | H88: 0 | I88: 83333 | J88: C04
A89: 2020 | B89: 41005 | C89: 410 | D89: C | E89: 05 | F89: Grants Receivable - Private | G89: 0 | H89: 600000 | I89: 600000 | J89: C05
A90: 2020 | B90: 41006 | C90: 410 | D90: C | E90: 06 | F90: Contributions Receivable | G90: 0 | H90: 0 | I90: 0 | J90: C06
A91: 2020 | B91: 41007 | C91: 410 | D91: C | E91: 07 | F91: Due from related parties | G91: -1385514 | H91: 1385514 | I91: 0 | J91: C07
A92: 2020 | B92: 41008 | C92: 410 | D92: C | E92: 08 | F92: Prepaid Expenses / Inventory | G92: 93422 | H92: 0 | I92: 93422 | J92: C08
A93: 2020 | B93: 41009 | C93: 410 | D93: C | E93: 09 | F93: Short-Term Investments | G93: 0 | H93: 0 | I93: 0 | J93: C09
A94: 2020 | B94: 41010 | C94: 410 | D94: C | E94: 10 | F94: Deposit (Security, Other) | G94: 0 | H94: 10760 | I94: 10760 | J94: C10
A95: 2020 | B95: 41011 | C95: 410 | D95: C | E95: 11 | F95: Restricted Current Assets | G95: 0 | H95: 1977673 | I95: 1977673 | J95: C11
A96: 2020 | B96: 41012 | C96: 410 | D96: C | E96: 12 | F96: TOTAL CURRENT ASSETS | G96: 2411931 | H96: 7061253 | I96: 9473184 | J96: C12
A97: 2020 | B97: 41013 | C97: 410 | D97: C | E97: 13 | F97: - Land and Buildings | G97: 33318070 | H97: 6055763 | I97: 39373833 | J97: C13
A98: 2020 | B98: 41014 | C98: 410 | D98: C | E98: 14 | F98: - Building/Leasehold Improvement | G98: 1157976 | H98: 0 | I98: 1157976 | J98: C14
A99: 2020 | B99: 41015 | C99: 410 | D99: C | E99: 15 | F99: - Furniture and Equipment | G99: 1319009 | H99: 0 | I99: 1319009 | J99: C15
A100: 2020 | B100: 41016 | C100: 410 | D100: C | E100: 16 | F100: - Less Accumulated Depreciation | G100: -4663303 | H100: 0 | I100: -4663303 | J100: C16
A101: 2020 | B101: 41017 | C101: 410 | D101: C | E101: 17 | F101: Net Capital Assets | G101: 31131752 | H101: 6055763 | I101: 37187515 | J101: C17
A102: 2020 | B102: 41018 | C102: 410 | D102: C | E102: 18 | F102: Restricted Noncurrent Assets | G102: 110595 | H102: 2207572 | I102: 2318167 | J102: C18
A103: 2020 | B103: 41019 | C103: 410 | D103: C | E103: 19 | F103: Long-Term Investments | G103: 0 | H103: 0 | I103: 0 | J103: C19
A104: 2020 | B104: 41020 | C104: 410 | D104: C | E104: 20 | F104: Building Acquisition / Financing Costs / Deferred Expenses | G104: -30301239 | H104: 30301239 | I104: 0 | J104: C20
A105: 2020 | B105: 41021 | C105: 410 | D105: C | E105: 21 | F105: Long-Term Grants / Contributions Receivable | G105: 0 | H105: 149728 | I105: 149728 | J105: C21
A106: 2020 | B106: 41022 | C106: 410 | D106: C | E106: 22 | F106: TOTAL NONCURRENT ASSETS | G106: 941108 | H106: 38714302 | I106: 39655410 | J106: C22
A107: 2020 | B107: 41023 | C107: 410 | D107: C | E107: 23 | F107: TOTAL ASSETS | G107: 3353039 | H107: 45775555 | I107: 49128594 | J107: C23
A108: 2020 | B108: 41024 | C108: 410 | D108: C | E108: 24 | F108: Accounts Payable | G108: 282967 | H108: 1985344 | I108: 2268311 | J108: C24
A109: 2020 | B109: 41025 | C109: 410 | D109: C | E109: 25 | F109: Accrued Expenses / Accrued Payroll | G109: 1250607 | H109: 86000 | I109: 1336607 | J109: C25
A110: 2020 | B110: 41026 | C110: 410 | D110: C | E110: 26 | F110: Deferred Revenue | G110: 0 | H110: 0 | I110: 0 | J110: C26
A111: 2020 | B111: 41027 | C111: 410 | D111: C | E111: 27 | F111: Due to related parties | G111: 0 | H111: 0 | I111: 0 | J111: C27
A112: 2020 | B112: 41028 | C112: 410 | D112: C | E112: 28 | F112: Current Debt Payable | G112: 0 | H112: 1041847 | I112: 1041847 | J112: C28
A113: 2020 | B113: 41029 | C113: 410 | D113: C | E113: 29 | F113: Current Lease Obligations Payable | G113: 0 | H113: 0 | I113: 0 | J113: C29
A114: 2020 | B114: 41030 | C114: 410 | D114: C | E114: 30 | F114: TOTAL CURRENT LIABILITIES | G114: 1533574 | H114: 3113191 | I114: 4646765 | J114: C30
A115: 2020 | B115: 41031 | C115: 410 | D115: C | E115: 31 | F115: Noncurrent Lease Obligations | G115: 184175 | H115: 0 | I115: 184175 | J115: C31
A116: 2020 | B116: 41032 | C116: 410 | D116: C | E116: 32 | F116: Long-Term Debt | G116: 0 | H116: 25991044 | I116: 25991044 | J116: C32
A117: 2020 | B117: 41033 | C117: 410 | D117: C | E117: 33 | F117: Deferred Revenue | G117: 0 | H117: 70000 | I117: 70000 | J117: C33
A118: 2020 | B118: 41034 | C118: 410 | D118: C | E118: 34 | F118: TOTAL NONCURRENT LIABILITIES | G118: 184175 | H118: 26061044 | I118: 26245219 | J118: C34
A119: 2020 | B119: 41035 | C119: 410 | D119: C | E119: 35 | F119: TOTAL LIABILITIES | G119: 1717749 | H119: 29174235 | I119: 30891984 | J119: C35
A120: 2020 | B120: 41036 | C120: 410 | D120: C | E120: 36 | F120: Investment in capital assets (net of related debt) | G120: -199172 | H120: 12486368 | I120: 12287196 | J120: C36
A121: 2020 | B121: 41037 | C121: 410 | D121: C | E121: 37 | F121: Temporarily Restricted | G121: 2000 | H121: 3065033 | I121: 3067033 | J121: C37
A122: 2020 | B122: 41038 | C122: 410 | D122: C | E122: 38 | F122: Permanently Restricted | G122: 0 | H122: 0 | I122: 0 | J122: C38
A123: 2020 | B123: 41039 | C123: 410 | D123: C | E123: 39 | F123: Unrestricted (non-capital) | G123: 1832462 | H123: 1049919 | I123: 2882381 | J123: C39
A124: 2020 | B124: 41040 | C124: 410 | D124: C | E124: 40 | F124: TOTAL NET ASSETS | G124: 1635290 | H124: 16601320 | I124: 18236610 | J124: C40
A125: 2020 | B125: 41041 | C125: 410 | D125: C | E125: 41 | F125: TOTAL LIABILITIES AND NET ASSETS | G125: 3353039 | H125: 45775555 | I125: 49128594 | J125: C41
A126: 2020 | B126: 41101 | C126: 411 | D126: HM | E126: 01 | F126: Cash and Cash Equivalents | G126: 26212 | H126: 224374 | I126: 250586 | J126: HM01
A127: 2020 | B127: 41102 | C127: 411 | D127: HM | E127: 02 | F127: Accounts Receivable net of doubtful accounts | G127: 0 | H127: 0 | I127: 0 | J127: HM02
A128: 2020 | B128: 41103 | C128: 411 | D128: HM | E128: 03 | F128: Grants Receivable - State | G128: 0 | H128: 0 | I128: 0 | J128: HM03
A129: 2020 | B129: 41104 | C129: 411 | D129: HM | E129: 04 | F129: Grants Receivable - Federal | G129: 283793 | H129: 0 | I129: 283793 | J129: HM04
A130: 2020 | B130: 41105 | C130: 411 | D130: HM | E130: 05 | F130: Grants Receivable - Private | G130: 0 | H130: 0 | I130: 0 | J130: HM05
A131: 2020 | B131: 41106 | C131: 411 | D131: =VLOOKUP(C131, TYPE, 3, FALSE) -> HM | E131: 06 | F131: Contributions Receivable | G131: 0 | H131: 0 | I131: 0 | J131: HM06
A132: 2020 | B132: =C132&E132 -> 41107 | C132: 411 | D132: HM | E132: 07 | F132: Due from related parties | G132: -120817 | H132: 120817 | I132: 0 | J132: =D132&E132 -> HM07
A133: 2020 | B133: 41108 | C133: 411 | D133: HM | E133: 08 | F133: Prepaid Expenses / Inventory | G133: 30470 | H133: 0 | I133: 30470 | J133: HM08
A134: 2020 | B134: 41109 | C134: 411 | D134: HM | E134: 09 | F134: Short-Term Investments | G134: 0 | H134: 0 | I134: 0 | J134: HM09
A135: 2020 | B135: 41110 | C135: 411 | D135: HM | E135: 10 | F135: Deposit (Security, Other) | G135: 0 | H135: 0 | I135: 0 | J135: HM10
A136: 2020 | B136: 41111 | C136: 411 | D136: HM | E136: 11 | F136: Restricted Current Assets | G136: 0 | H136: 0 | I136: 0 | J136: HM11
A137: 2020 | B137: 41112 | C137: 411 | D137: HM | E137: 12 | F137: TOTAL CURRENT ASSETS | G137: 219658 | H137: 345191 | I137: 564849 | J137: HM12
A138: 2020 | B138: 41113 | C138: 411 | D138: HM | E138: 13 | F138: - Land and Buildings | G138: 0 | H138: 0 | I138: 0 | J138: HM13
A139: 2020 | B139: 41114 | C139: 411 | D139: HM | E139: 14 | F139: - Building/Leasehold Improvement | G139: 0 | H139: 0 | I139: 0 | J139: HM14
A140: 2020 | B140: 41115 | C140: 411 | D140: HM | E140: 15 | F140: - Furniture and Equipment | G140: 303845 | H140: 0 | I140: 303845 | J140: HM15
A141: 2020 | B141: 41116 | C141: 411 | D141: HM | E141: 16 | F141: - Less Accumulated Depreciation | G141: -151007 | H141: 0 | I141: -151007 | J141: HM16
A142: 2020 | B142: 41117 | C142: 411 | D142: HM | E142: 17 | F142: Net Capital Assets | G142: 152838 | H142: 0 | I142: 152838 | J142: HM17
A143: 2020 | B143: 41118 | C143: 411 | D143: HM | E143: 18 | F143: Restricted Noncurrent Assets | G143: 0 | H143: 0 | I143: 0 | J143: HM18
A144: 2020 | B144: 41119 | C144: 411 | D144: HM | E144: 19 | F144: Long-Term Investments | G144: 0 | H144: 0 | I144: 0 | J144: HM19
A145: 2020 | B145: 41120 | C145: 411 | D145: HM | E145: 20 | F145: Building Acquisition / Financing Costs / Deferred Expenses | G145: 0 | H145: 0 | I145: 0 | J145: HM20
A146: 2020 | B146: 41121 | C146: 411 | D146: HM | E146: 21 | F146: Long-Term Grants / Contributions Receivable | G146: 0 | H146: 0 | I146: 0 | J146: HM21
A147: 2020 | B147: 41122 | C147: 411 | D147: HM | E147: 22 | F147: TOTAL NONCURRENT ASSETS | G147: 152838 | H147: 0 | I147: 152838 | J147: HM22
A148: 2020 | B148: 41123 | C148: 411 | D148: HM | E148: 23 | F148: TOTAL ASSETS | G148: 372496 | H148: 345191 | I148: 717687 | J148: HM23
A149: 2020 | B149: 41124 | C149: 411 | D149: HM | E149: 24 | F149: Accounts Payable | G149: 20585 | H149: 0 | I149: 20585 | J149: HM24
A150: 2020 | B150: 41125 | C150: 411 | D150: HM | E150: 25 | F150: Accrued Expenses / Accrued Payroll | G150: 0 | H150: 0 | I150: 0 | J150: HM25
A151: 2020 | B151: 41126 | C151: 411 | D151: HM | E151: 26 | F151: Deferred Revenue | G151: 0 | H151: 0 | I151: 0 | J151: HM26
A152: 2020 | B152: 41127 | C152: 411 | D152: HM | E152: 27 | F152: Due to related parties | G152: 0 | H152: 0 | I152: 0 | J152: HM27
A153: 2020 | B153: 41128 | C153: 411 | D153: HM | E153: 28 | F153: Current Debt Payable | G153: 0 | H153: 0 | I153: 0 | J153: HM28
A154: 2020 | B154: 41129 | C154: 411 | D154: HM | E154: 29 | F154: Current Lease Obligations Payable | G154: 0 | H154: 0 | I154: 0 | J154: HM29
A155: 2020 | B155: 41130 | C155: 411 | D155: HM | E155: 30 | F155: TOTAL CURRENT LIABILITIES | G155: 20585 | H155: 0 | I155: 20585 | J155: HM30
A156: 2020 | B156: 41131 | C156: 411 | D156: HM | E156: 31 | F156: Noncurrent Lease Obligations | G156: 0 | H156: 0 | I156: 0 | J156: HM31
A157: 2020 | B157: 41132 | C157: 411 | D157: HM | E157: 32 | F157: Long-Term Debt | G157: 0 | H157: 0 | I157: 0 | J157: HM32
A158: 2020 | B158: 41133 | C158: 411 | D158: HM | E158: 33 | F158: Deferred Revenue | G158: 0 | H158: 0 | I158: 0 | J158: HM33
A159: 2020 | B159: 41134 | C159: 411 | D159: HM | E159: 34 | F159: TOTAL NONCURRENT LIABILITIES | G159: 0 | H159: 0 | I159: 0 | J159: HM34
A160: 2020 | B160: 41135 | C160: 411 | D160: HM | E160: 35 | F160: TOTAL LIABILITIES | G160: 20585 | H160: 0 | I160: 20585 | J160: HM35
A161: 2020 | B161: 41136 | C161: 411 | D161: HM | E161: 36 | F161: Investment in capital assets (net of related debt) | G161: 152838 | H161: 0 | I161: 152838 | J161: HM36
A162: 2020 | B162: 41137 | C162: 411 | D162: HM | E162: 37 | F162: Temporarily Restricted | G162: 0 | H162: 0 | I162: 0 | J162: HM37
A163: 2020 | B163: 41138 | C163: 411 | D163: HM | E163: 38 | F163: Permanently Restricted | G163: 0 | H163: 0 | I163: 0 | J163: HM38
A164: 2020 | B164: 41139 | C164: 411 | D164: HM | E164: 39 | F164: Unrestricted (non-capital) | G164: 199073 | H164: 345191 | I164: 544264 | J164: HM39
A165: 2020 | B165: 41140 | C165: 411 | D165: HM | E165: 40 | F165: TOTAL NET ASSETS | G165: 351911 | H165: 345191 | I165: 697102 | J165: HM40
A166: 2020 | B166: 41141 | C166: 411 | D166: HM | E166: 41 | F166: TOTAL LIABILITIES AND NET ASSETS | G166: 372496 | H166: 345191 | I166: 717687 | J166: HM41
A167: 2020 | B167: 41201 | C167: 412 | D167: C | E167: 01 | F167: Cash and Cash Equivalents | G167: 5007710 | H167: 411763 | I167: 5419473 | J167: C01
A168: 2020 | B168: 41202 | C168: 412 | D168: C | E168: 02 | F168: Accounts Receivable net of doubtful accounts | G168: 23781 | H168: 0 | I168: 23781 | J168: C02
A169: 2020 | B169: 41203 | C169: 412 | D169: C | E169: 03 | F169: Grants Receivable - State | G169: 0 | H169: 0 | I169: 0 | J169: C03
A170: 2020 | B170: 41204 | C170: 412 | D170: C | E170: 04 | F170: Grants Receivable - Federal | G170: 0 | H170: 0 | I170: 0 | J170: C04
A171: 2020 | B171: 41205 | C171: 412 | D171: C | E171: 05 | F171: Grants Receivable - Private | G171: 0 | H171: 0 | I171: 0 | J171: C05
A172: 2020 | B172: 41206 | C172: 412 | D172: C | E172: 06 | F172: Contributions Receivable | G172: 0 | H172: 0 | I172: 0 | J172: C06
A173: 2020 | B173: 41207 | C173: 412 | D173: C | E173: 07 | F173: Due from related parties | G173: 96921 | H173: -96921 | I173: 0 | J173: C07
A174: 2020 | B174: 41208 | C174: 412 | D174: C | E174: 08 | F174: Prepaid Expenses / Inventory | G174: 131140 | H174: 0 | I174: 131140 | J174: C08
A175: 2020 | B175: 41209 | C175: 412 | D175: C | E175: 09 | F175: Short-Term Investments | G175: 0 | H175: 0 | I175: 0 | J175: C09
A176: 2020 | B176: 41210 | C176: 412 | D176: C | E176: 10 | F176: Deposit (Security, Other) | G176: 0 | H176: 0 | I176: 0 | J176: C10
A177: 2020 | B177: 41211 | C177: 412 | D177: C | E177: 11 | F177: Restricted Current Assets | G177: 6669352 | H177: 0 | I177: 6669352 | J177: C11
A178: 2020 | B178: 41212 | C178: 412 | D178: C | E178: 12 | F178: TOTAL CURRENT ASSETS | G178: 11928904 | H178: 314842 | I178: 12243746 | J178: C12
A179: 2020 | B179: 41213 | C179: 412 | D179: C | E179: 13 | F179: - Land and Buildings | G179: 5000000 | H179: 0 | I179: 5000000 | J179: C13
A180: 2020 | B180: 41214 | C180: 412 | D180: C | E180: 14 | F180: - Building/Leasehold Improvement | G180: 12063469 | H180: 0 | I180: 12063469 | J180: C14
A181: 2020 | B181: 41215 | C181: 412 | D181: C | E181: 15 | F181: - Furniture and Equipment | G181: 1017123 | H181: 0 | I181: 1017123 | J181: C15
A182: 2020 | B182: 41216 | C182: 412 | D182: C | E182: 16 | F182: - Less Accumulated Depreciation | G182: -7276423 | H182: 0 | I182: -7276423 | J182: C16
A183: 2020 | B183: 41217 | C183: 412 | D183: C | E183: 17 | F183: Net Capital Assets | G183: 10804169 | H183: 0 | I183: 10804169 | J183: C17
A184: 2020 | B184: 41218 | C184: 412 | D184: C | E184: 18 | F184: Restricted Noncurrent Assets | G184: 0 | H184: 0 | I184: 0 | J184: C18
A185: 2020 | B185: 41219 | C185: 412 | D185: C | E185: 19 | F185: Long-Term Investments | G185: 0 | H185: 0 | I185: 0 | J185: C19
A186: 2020 | B186: 41220 | C186: 412 | D186: C | E186: 20 | F186: Building Acquisition / Financing Costs / Deferred Expenses | G186: 0 | H186: 0 | I186: 0 | J186: C20
A187: 2020 | B187: 41221 | C187: 412 | D187: C | E187: 21 | F187: Long-Term Grants / Contributions Receivable | G187: 0 | H187: 0 | I187: 0 | J187: C21
A188: 2020 | B188: 41222 | C188: 412 | D188: C | E188: 22 | F188: TOTAL NONCURRENT ASSETS | G188: 10804169 | H188: 0 | I188: 10804169 | J188: C22
A189: 2020 | B189: 41223 | C189: 412 | D189: C | E189: 23 | F189: TOTAL ASSETS | G189: 22733073 | H189: 314842 | I189: 23047915 | J189: C23
A190: 2020 | B190: 41224 | C190: 412 | D190: C | E190: 24 | F190: Accounts Payable | G190: 155419 | H190: 0 | I190: 155419 | J190: C24
A191: 2020 | B191: 41225 | C191: 412 | D191: C | E191: 25 | F191: Accrued Expenses / Accrued Payroll | G191: 538731 | H191: 0 | I191: 538731 | J191: C25
A192: 2020 | B192: 41226 | C192: 412 | D192: C | E192: 26 | F192: Deferred Revenue | G192: 0 | H192: 0 | I192: 0 | J192: C26
A193: 2020 | B193: 41227 | C193: 412 | D193: C | E193: 27 | F193: Due to related parties | G193: 0 | H193: 0 | I193: 0 | J193: C27
A194: 2020 | B194: 41228 | C194: 412 | D194: C | E194: 28 | F194: Current Debt Payable | G194: 5933909 | H194: 0 | I194: 5933909 | J194: C28
A195: 2020 | B195: 41229 | C195: 412 | D195: =VLOOKUP(C195, TYPE, 3, FALSE) -> C | E195: 29 | F195: Current Lease Obligations Payable | G195: 0 | H195: 0 | I195: 0 | J195: C29
A196: 2020 | B196: =C196&E196 -> 41230 | C196: 412 | D196: C | E196: 30 | F196: TOTAL CURRENT LIABILITIES | G196: 6628059 | H196: 0 | I196: 6628059 | J196: =D196&E196 -> C30
A197: 2020 | B197: 41231 | C197: 412 | D197: C | E197: 31 | F197: Noncurrent Lease Obligations | G197: 0 | H197: 0 | I197: 0 | J197: C31
A198: 2020 | B198: 41232 | C198: 412 | D198: C | E198: 32 | F198: Long-Term Debt | G198: 9677589 | H198: 0 | I198: 9677589 | J198: C32
A199: 2020 | B199: 41233 | C199: 412 | D199: C | E199: 33 | F199: Deferred Revenue | G199: 0 | H199: 0 | I199: 0 | J199: C33
A200: 2020 | B200: 41234 | C200: 412 | D200: C | E200: 34 | F200: TOTAL NONCURRENT LIABILITIES | G200: 9677589 | H200: 0 | I200: 9677589 | J200: C34
... 3246 more rows

Sheet INC20 (hidden)
B1: 1 | C1: 2 | D1: 3 | E1: 4 | F1: 5 | G1: 6 | H1: 7 | I1: 8
A2: FY | B2: vlookup | C2: cha_code | D2: cha_type | E2: income_id | F2: Line_Desc | G2: income_sch | H2: income_found | I2: income_total
A3: 2020 | B3: =C3&E3 -> 40701 | C3: 407 | D3: =VLOOKUP(C3, TYPE, 3, FALSE) -> HM | E3: 01 | F3: Tuition | G3: 3836675 | H3: 0 | I3: 3836675 | J3: =D3&E3 -> HM01
A4: 2020 | B4: =C4&E4 -> 40702a | C4: 407 | D4: HM | E4: 02a | F4: Grants - State - passed through ESE | G4: 198810 | H4: 0 | I4: 198810 | J4: =D4&E4 -> HM02a
A5: 2020 | B5: 40702b | C5: 407 | D5: HM | E5: 02b | F5: Grants - State - other non-ESE pass-through | G5: 0 | H5: 0 | I5: 0 | J5: HM02b
A6: 2020 | B6: 40703 | C6: 407 | D6: HM | E6: 03 | F6: Grants - Federal - Passed through ESE | G6: 277639 | H6: 0 | I6: 277639 | J6: HM03
A7: 2020 | B7: 40704 | C7: 407 | D7: HM | E7: 04 | F7: Grants - Federal - Direct or other pass-through | G7: 0 | H7: 0 | I7: 0 | J7: HM04
A8: 2020 | B8: 40705a | C8: 407 | D8: HM | E8: 05a | F8: Grants - Private (restricted) | G8: 0 | H8: 0 | I8: 0 | J8: HM05a
A9: 2020 | B9: 40705b | C9: 407 | D9: HM | E9: 05b | F9: Grants - Private (unrestricted) | G9: 0 | H9: 0 | I9: 0 | J9: HM05b
A10: 2020 | B10: 40706 | C10: 407 | D10: HM | E10: 06 | F10: Nutrition Funding - State | G10: 0 | H10: 0 | I10: 0 | J10: HM06
A11: 2020 | B11: 40707 | C11: 407 | D11: HM | E11: 07 | F11: Nutrition Funding - Federal | G11: 0 | H11: 0 | I11: 0 | J11: HM07
A12: 2020 | B12: 40708 | C12: 407 | D12: HM | E12: 08 | F12: Nutrition Funding - Fees | G12: 0 | H12: 0 | I12: 0 | J12: HM08
A13: 2020 | B13: 40709 | C13: 407 | D13: HM | E13: 09 | F13: Other Program / Student Activity Fees | G13: 0 | H13: 0 | I13: 0 | J13: HM09
A14: 2020 | B14: 40710 | C14: 407 | D14: HM | E14: 10 | F14: Regional Transportation Aid | G14: 0 | H14: 0 | I14: 0 | J14: HM10
A15: 2020 | B15: 40711 | C15: 407 | D15: HM | E15: 11 | F15: Medicaid Reimbursements | G15: 0 | H15: 0 | I15: 0 | J15: HM11
A16: 2020 | B16: 40712 | C16: 407 | D16: HM | E16: 12 | F16: Circuit Breaker Reimbursements | G16: 0 | H16: 0 | I16: 0 | J16: HM12
A17: 2020 | B17: 40713a | C17: 407 | D17: HM | E17: 13a | F17: Contributions, in-kind, host district | G17: 0 | H17: 0 | I17: 0 | J17: HM13a
A18: 2020 | B18: 40713b | C18: 407 | D18: HM | E18: 13b | F18: Contributions, in-kind, other | G18: 771282 | H18: 0 | I18: 771282 | J18: HM13b
A19: 2020 | B19: 40713c | C19: 407 | D19: HM | E19: 13c | F19: Contributions, on-behalf, pension | G19: 0 | H19: 0 | I19: 0 | J19: HM13c
A20: 2020 | B20: 40714 | C20: 407 | D20: HM | E20: 14 | F20: Contributions, from Component Unit (restricted) | G20: 0 | H20: 0 | I20: 0 | J20: HM14
A21: 2020 | B21: 40714b | C21: 407 | D21: HM | E21: 14b | F21: Contributions, from Component Unit (unrestricted) | G21: 0 | H21: 0 | I21: 0 | J21: HM14b
A22: 2020 | B22: 40715 | C22: 407 | D22: HM | E22: 15 | F22: Contributions / Fundraising (restricted) | G22: 0 | H22: 0 | I22: 0 | J22: HM15
A23: 2020 | B23: 40715b | C23: 407 | D23: HM | E23: 15b | F23: Contributions / Fundraising (unrestricted) | G23: 0 | H23: 0 | I23: 0 | J23: HM15b
A24: 2020 | B24: 40716 | C24: 407 | D24: HM | E24: 16 | F24: Interest / Investment Income (restricted) | G24: 0 | H24: 0 | I24: 0 | J24: HM16
A25: 2020 | B25: 40716a | C25: 407 | D25: HM | E25: 16a | F25: Interest / Investment Income (unrestricted) | G25: 0 | H25: 0 | I25: 0 | J25: HM16a
A26: 2020 | B26: 40717 | C26: 407 | D26: HM | E26: 17 | F26: Rental Income | G26: 0 | H26: 0 | I26: 0 | J26: HM17
A27: 2020 | B27: 40718 | C27: 407 | D27: HM | E27: 18 | F27: Loan Forgiveness or Other Reimbursement | G27: 0 | H27: 0 | I27: 0 | J27: HM18
A28: 2020 | B28: 40719 | C28: 407 | D28: HM | E28: 19 | F28: Miscellaneous Income | G28: 2570 | H28: 0 | I28: 2570 | J28: HM19
A29: 2020 | B29: 40720 | C29: 407 | D29: HM | E29: 20 | F29: TOTAL REVENUES | G29: 5086976 | H29: 0 | I29: 5086976 | J29: HM20
A30: 2020 | B30: 40721 | C30: 407 | D30: HM | E30: 21 | F30: Administration | G30: 888026.15 | H30: 0 | I30: 888026.15 | J30: HM21
A31: 2020 | B31: 40722 | C31: 407 | D31: HM | E31: 22 | F31: Instructional Services | G31: 2384081.56 | H31: 0 | I31: 2384081.56 | J31: HM22
A32: 2020 | B32: 40723 | C32: 407 | D32: HM | E32: 23 | F32: Pupil Services | G32: 575812.23 | H32: 0 | I32: 575812.23 | J32: HM23
A33: 2020 | B33: 40724 | C33: 407 | D33: HM | E33: 24 | F33: Operation & Maintenance of Plant | G33: 304362.06 | H33: 0 | I33: 304362.06 | J33: HM24
A34: 2020 | B34: 40725 | C34: 407 | D34: HM | E34: 25 | F34: Benefits and Other Fixed Charges | G34: 869596.7 | H34: 0 | I34: 869596.7 | J34: HM25
A35: 2020 | B35: 40726 | C35: 407 | D35: HM | E35: 26 | F35: Community Services | G35: 0 | H35: 0 | I35: 0 | J35: HM26
A36: 2020 | B36: 40727 | C36: 407 | D36: HM | E36: 27 | F36: Non-Operating Financing Expenses | G36: 0 | H36: 0 | I36: 0 | J36: HM27
A37: 2020 | B37: 40728 | C37: 407 | D37: HM | E37: 28 | F37: Component Unit Expenses | G37: 0 | H37: 0 | I37: 0 | J37: HM28
A38: 2020 | B38: 40729 | C38: 407 | D38: HM | E38: 29 | F38: Contributions to School | G38: 0 | H38: 0 | I38: 0 | J38: HM29
A39: 2020 | B39: 40730 | C39: 407 | D39: HM | E39: 30 | F39: TOTAL EXPENSES | G39: 5021878.7 | H39: 0 | I39: 5021878.7 | J39: HM30
A40: 2020 | B40: 40731 | C40: 407 | D40: HM | E40: 31 | F40: TOTAL GAIN/(LOSS) | G40: 65097.3 | H40: 0 | I40: 65097.3 | J40: HM31
A41: 2020 | B41: 40732 | C41: 407 | D41: HM | E41: 32 | F41: Gain/Loss on Sale of Asset or Lease Transaction | G41: 0 | H41: 0 | I41: 0 | J41: HM32
A42: 2020 | B42: 40733 | C42: 407 | D42: HM | E42: 33 | F42: Other Gain/Loss | G42: 0 | H42: 0 | I42: 0 | J42: HM33
A43: 2020 | B43: 40734 | C43: 407 | D43: HM | E43: 34 | F43: TOTAL CHANGES IN NET ASSETS: | G43: 65097.3 | H43: 0 | I43: 65097.3 | J43: HM34
A44: 2020 | B44: 40735 | C44: 407 | D44: HM | E44: 35 | F44: NET ASSETS AT BEGINNING OF YEAR | G44: 102933 | H44: 0 | I44: 102933 | J44: HM35
A45: 2020 | B45: 40736 | C45: 407 | D45: HM | E45: 36 | F45: NET ASSETS AT END OF YEAR | G45: 168030 | H45: 0 | I45: 168030 | J45: HM36
A46: 2020 | B46: 40901 | C46: 409 | D46: C | E46: 01 | F46: Tuition | G46: 8731067 | H46: 0 | I46: 8731067 | J46: C01
A47: 2020 | B47: 40902a | C47: 409 | D47: C | E47: 02a | F47: Grants - State - passed through ESE | G47: 0 | H47: 0 | I47: 0 | J47: C02a
A48: 2020 | B48: 40902b | C48: 409 | D48: C | E48: 02b | F48: Grants - State - other non-ESE pass-through | G48: 63000 | H48: 0 | I48: 63000 | J48: C02b
A49: 2020 | B49: 40903 | C49: 409 | D49: C | E49: 03 | F49: Grants - Federal - Passed through ESE | G49: 409148 | H49: 0 | I49: 409148 | J49: C03
A50: 2020 | B50: 40904 | C50: 409 | D50: C | E50: 04 | F50: Grants - Federal - Direct or other pass-through | G50: 0 | H50: 0 | I50: 0 | J50: C04
A51: 2020 | B51: 40905a | C51: 409 | D51: C | E51: 05a | F51: Grants - Private (restricted) | G51: 0 | H51: 0 | I51: 0 | J51: C05a
A52: 2020 | B52: 40905b | C52: 409 | D52: C | E52: 05b | F52: Grants - Private (unrestricted) | G52: 59 | H52: 0 | I52: 59 | J52: C05b
A53: 2020 | B53: 40906 | C53: 409 | D53: C | E53: 06 | F53: Nutrition Funding - State | G53: 4126 | H53: 0 | I53: 4126 | J53: C06
A54: 2020 | B54: 40907 | C54: 409 | D54: C | E54: 07 | F54: Nutrition Funding - Federal | G54: 426474 | H54: 0 | I54: 426474 | J54: C07
A55: 2020 | B55: 40908 | C55: 409 | D55: C | E55: 08 | F55: Nutrition Funding - Fees | G55: 0 | H55: 0 | I55: 0 | J55: C08
A56: 2020 | B56: 40909 | C56: 409 | D56: C | E56: 09 | F56: Other Program / Student Activity Fees | G56: 0 | H56: 0 | I56: 0 | J56: C09
A57: 2020 | B57: 40910 | C57: 409 | D57: C | E57: 10 | F57: Regional Transportation Aid | G57: 0 | H57: 0 | I57: 0 | J57: C10
A58: 2020 | B58: 40911 | C58: 409 | D58: C | E58: 11 | F58: Medicaid Reimbursements | G58: 11241 | H58: 0 | I58: 11241 | J58: C11
A59: 2020 | B59: 40912 | C59: 409 | D59: C | E59: 12 | F59: Circuit Breaker Reimbursements | G59: 0 | H59: 0 | I59: 0 | J59: C12
A60: 2020 | B60: 40913a | C60: 409 | D60: C | E60: 13a | F60: Contributions, in-kind, host district | G60: 892320 | H60: 0 | I60: 892320 | J60: C13a
A61: 2020 | B61: 40913b | C61: 409 | D61: C | E61: 13b | F61: Contributions, in-kind, other | G61: 0 | H61: 0 | I61: 0 | J61: C13b
A62: 2020 | B62: 40913c | C62: 409 | D62: C | E62: 13c | F62: Contributions, on-behalf, pension | G62: 1148971 | H62: 0 | I62: 1148971 | J62: C13c
A63: 2020 | B63: 40914 | C63: 409 | D63: C | E63: 14 | F63: Contributions, from Component Unit (restricted) | G63: 136458 | H63: 147507 | I63: 283965 | J63: C14
A64: 2020 | B64: 40914b | C64: 409 | D64: C | E64: 14b | F64: Contributions, from Component Unit (unrestricted) | G64: 231970 | H64: 235202 | I64: 467172 | J64: C14b
A65: 2020 | B65: 40915 | C65: 409 | D65: C | E65: 15 | F65: Contributions / Fundraising (restricted) | G65: 0 | H65: 2644860 | I65: 2644860 | J65: C15
A66: 2020 | B66: 40915b | C66: 409 | D66: C | E66: 15b | F66: Contributions / Fundraising (unrestricted) | G66: 0 | H66: 231970 | I66: 231970 | J66: C15b
A67: 2020 | B67: 40916 | C67: 409 | D67: =VLOOKUP(C67, TYPE, 3, FALSE) -> C | E67: 16 | F67: Interest / Investment Income (restricted) | G67: 0 | H67: 0 | I67: 0 | J67: C16
A68: 2020 | B68: =C68&E68 -> 40916a | C68: 409 | D68: C | E68: 16a | F68: Interest / Investment Income (unrestricted) | G68: 1304 | H68: 110566 | I68: 111870 | J68: =D68&E68 -> C16a
A69: 2020 | B69: 40917 | C69: 409 | D69: C | E69: 17 | F69: Rental Income | G69: 0 | H69: 658893 | I69: 658893 | J69: C17
A70: 2020 | B70: 40918 | C70: 409 | D70: C | E70: 18 | F70: Loan Forgiveness or Other Reimbursement | G70: 0 | H70: 0 | I70: 0 | J70: C18
A71: 2020 | B71: 40919 | C71: 409 | D71: C | E71: 19 | F71: Miscellaneous Income | G71: 24089 | H71: 0 | I71: 24089 | J71: C19
A72: 2020 | B72: 40920 | C72: 409 | D72: C | E72: 20 | F72: TOTAL REVENUES | G72: 12080227 | H72: 4028998 | I72: 16109225 | J72: C20
A73: 2020 | B73: 40921 | C73: 409 | D73: C | E73: 21 | F73: Administration | G73: 886619 | H73: 0 | I73: 886619 | J73: C21
A74: 2020 | B74: 40922 | C74: 409 | D74: C | E74: 22 | F74: Instructional Services | G74: 5664550 | H74: 0 | I74: 5664550 | J74: C22
A75: 2020 | B75: 40923 | C75: 409 | D75: C | E75: 23 | F75: Pupil Services | G75: 1634707 | H75: 0 | I75: 1634707 | J75: C23
A76: 2020 | B76: 40924 | C76: 409 | D76: C | E76: 24 | F76: Operation & Maintenance of Plant | G76: 543651 | H76: 0 | I76: 543651 | J76: C24
A77: 2020 | B77: 40925 | C77: 409 | D77: C | E77: 25 | F77: Benefits and Other Fixed Charges | G77: 1938133 | H77: 0 | I77: 1938133 | J77: C25
A78: 2020 | B78: 40926 | C78: 409 | D78: C | E78: 26 | F78: Community Services | G78: 1380 | H78: 0 | I78: 1380 | J78: C26
A79: 2020 | B79: 40927 | C79: 409 | D79: C | E79: 27 | F79: Non-Operating Financing Expenses | G79: 1508523 | H79: 0 | I79: 1508523 | J79: C27
A80: 2020 | B80: 40928 | C80: 409 | D80: C | E80: 28 | F80: Component Unit Expenses | G80: 0 | H80: 1052720 | I80: 1052720 | J80: C28
A81: 2020 | B81: 40929 | C81: 409 | D81: C | E81: 29 | F81: Contributions to School | G81: 0 | H81: 0 | I81: 0 | J81: C29
A82: 2020 | B82: 40930 | C82: 409 | D82: C | E82: 30 | F82: TOTAL EXPENSES | G82: 12177563 | H82: 1052720 | I82: 13230283 | J82: C30
A83: 2020 | B83: 40931 | C83: 409 | D83: C | E83: 31 | F83: TOTAL GAIN/(LOSS) | G83: -97336 | H83: 2976278 | I83: 2878942 | J83: C31
A84: 2020 | B84: 40932 | C84: 409 | D84: C | E84: 32 | F84: Gain/Loss on Sale of Asset or Lease Transaction | G84: 0 | H84: 0 | I84: 0 | J84: C32
A85: 2020 | B85: 40933 | C85: 409 | D85: C | E85: 33 | F85: Other Gain/Loss | G85: 0 | H85: -10000 | I85: -10000 | J85: C33
A86: 2020 | B86: 40934 | C86: 409 | D86: C | E86: 34 | F86: TOTAL CHANGES IN NET ASSETS: | G86: -97336 | H86: 2966278 | I86: 2868942 | J86: C34
A87: 2020 | B87: 40935 | C87: 409 | D87: C | E87: 35 | F87: NET ASSETS AT BEGINNING OF YEAR | G87: 853734 | H87: 3383081 | I87: 4236815 | J87: C35
A88: 2020 | B88: 40936 | C88: 409 | D88: C | E88: 36 | F88: NET ASSETS AT END OF YEAR | G88: 756398 | H88: 6349359 | I88: 7105757 | J88: C36
A89: 2020 | B89: 41001 | C89: 410 | D89: C | E89: 01 | F89: Tuition | G89: 22185674 | H89: 0 | I89: 22185674 | J89: C01
A90: 2020 | B90: 41002a | C90: 410 | D90: C | E90: 02a | F90: Grants - State - passed through ESE | G90: 0 | H90: 0 | I90: 0 | J90: C02a
A91: 2020 | B91: 41002b | C91: 410 | D91: C | E91: 02b | F91: Grants - State - other non-ESE pass-through | G91: 0 | H91: 0 | I91: 0 | J91: C02b
A92: 2020 | B92: 41003 | C92: 410 | D92: C | E92: 03 | F92: Grants - Federal - Passed through ESE | G92: 1153343 | H92: 0 | I92: 1153343 | J92: C03
A93: 2020 | B93: 41004 | C93: 410 | D93: C | E93: 04 | F93: Grants - Federal - Direct or other pass-through | G93: 0 | H93: 0 | I93: 0 | J93: C04
A94: 2020 | B94: 41005a | C94: 410 | D94: C | E94: 05a | F94: Grants - Private (restricted) | G94: 278670 | H94: 0 | I94: 278670 | J94: C05a
A95: 2020 | B95: 41005b | C95: 410 | D95: C | E95: 05b | F95: Grants - Private (unrestricted) | G95: 0 | H95: 0 | I95: 0 | J95: C05b
A96: 2020 | B96: 41006 | C96: 410 | D96: C | E96: 06 | F96: Nutrition Funding - State | G96: 13131 | H96: 0 | I96: 13131 | J96: C06
A97: 2020 | B97: 41007 | C97: 410 | D97: C | E97: 07 | F97: Nutrition Funding - Federal | G97: 437973 | H97: 0 | I97: 437973 | J97: C07
A98: 2020 | B98: 41008 | C98: 410 | D98: C | E98: 08 | F98: Nutrition Funding - Fees | G98: 6350 | H98: 0 | I98: 6350 | J98: C08
A99: 2020 | B99: 41009 | C99: 410 | D99: C | E99: 09 | F99: Other Program / Student Activity Fees | G99: 0 | H99: 0 | I99: 0 | J99: C09
A100: 2020 | B100: 41010 | C100: 410 | D100: C | E100: 10 | F100: Regional Transportation Aid | G100: 237519 | H100: 0 | I100: 237519 | J100: C10
A101: 2020 | B101: 41011 | C101: 410 | D101: C | E101: 11 | F101: Medicaid Reimbursements | G101: 28044 | H101: 0 | I101: 28044 | J101: C11
A102: 2020 | B102: 41012 | C102: 410 | D102: C | E102: 12 | F102: Circuit Breaker Reimbursements | G102: 0 | H102: 0 | I102: 0 | J102: C12
A103: 2020 | B103: 41013a | C103: 410 | D103: C | E103: 13a | F103: Contributions, in-kind, host district | G103: 306318 | H103: 0 | I103: 306318 | J103: C13a
A104: 2020 | B104: 41013b | C104: 410 | D104: C | E104: 13b | F104: Contributions, in-kind, other | G104: 0 | H104: 0 | I104: 0 | J104: C13b
A105: 2020 | B105: 41013c | C105: 410 | D105: C | E105: 13c | F105: Contributions, on-behalf, pension | G105: 4508081 | H105: 0 | I105: 4508081 | J105: C13c
A106: 2020 | B106: 41014 | C106: 410 | D106: C | E106: 14 | F106: Contributions, from Component Unit (restricted) | G106: 0 | H106: 0 | I106: 0 | J106: C14
A107: 2020 | B107: 41014b | C107: 410 | D107: C | E107: 14b | F107: Contributions, from Component Unit (unrestricted) | G107: 0 | H107: 0 | I107: 0 | J107: C14b
A108: 2020 | B108: 41015 | C108: 410 | D108: C | E108: 15 | F108: Contributions / Fundraising (restricted) | G108: 0 | H108: 389558 | I108: 389558 | J108: C15
A109: 2020 | B109: 41015b | C109: 410 | D109: C | E109: 15b | F109: Contributions / Fundraising (unrestricted) | G109: 1000 | H109: 788890 | I109: 789890 | J109: C15b
A110: 2020 | B110: 41016 | C110: 410 | D110: C | E110: 16 | F110: Interest / Investment Income (restricted) | G110: 0 | H110: 0 | I110: 0 | J110: C16
A111: 2020 | B111: 41016a | C111: 410 | D111: C | E111: 16a | F111: Interest / Investment Income (unrestricted) | G111: 0 | H111: 216772 | I111: 216772 | J111: C16a
A112: 2020 | B112: 41017 | C112: 410 | D112: C | E112: 17 | F112: Rental Income | G112: 248099 | H112: 671452 | I112: 919551 | J112: C17
A113: 2020 | B113: 41018 | C113: 410 | D113: C | E113: 18 | F113: Loan Forgiveness or Other Reimbursement | G113: 0 | H113: 0 | I113: 0 | J113: C18
A114: 2020 | B114: 41019 | C114: 410 | D114: C | E114: 19 | F114: Miscellaneous Income | G114: 403870 | H114: 0 | I114: 403870 | J114: C19
A115: 2020 | B115: 41020 | C115: 410 | D115: C | E115: 20 | F115: TOTAL REVENUES | G115: 29808072 | H115: 2066672 | I115: 31874744 | J115: C20
A116: 2020 | B116: 41021 | C116: 410 | D116: C | E116: 21 | F116: Administration | G116: 2017894.58 | H116: 0 | I116: 2017894.58 | J116: C21
A117: 2020 | B117: 41022 | C117: 410 | D117: C | E117: 22 | F117: Instructional Services | G117: 14440011.18 | H117: 0 | I117: 14440011.18 | J117: C22
A118: 2020 | B118: 41023 | C118: 410 | D118: C | E118: 23 | F118: Pupil Services | G118: 1802545.617 | H118: 0 | I118: 1802545.617 | J118: C23
A119: 2020 | B119: 41024 | C119: 410 | D119: C | E119: 24 | F119: Operation & Maintenance of Plant | G119: 1010662 | H119: 0 | I119: 1010662 | J119: C24
A120: 2020 | B120: 41025 | C120: 410 | D120: C | E120: 25 | F120: Benefits and Other Fixed Charges | G120: 5898489.55 | H120: 0 | I120: 5898489.55 | J120: C25
A121: 2020 | B121: 41026 | C121: 410 | D121: C | E121: 26 | F121: Community Services | G121: 31430 | H121: 0 | I121: 31430 | J121: C26
A122: 2020 | B122: 41027 | C122: 410 | D122: C | E122: 27 | F122: Non-Operating Financing Expenses | G122: 2382690 | H122: 0 | I122: 2382690 | J122: C27
A123: 2020 | B123: 41028 | C123: 410 | D123: C | E123: 28 | F123: Component Unit Expenses | G123: 0 | H123: 1613653 | I123: 1613653 | J123: C28
A124: 2020 | B124: 41029 | C124: 410 | D124: C | E124: 29 | F124: Contributions to School | G124: 0 | H124: 267170 | I124: 267170 | J124: C29
A125: 2020 | B125: 41030 | C125: 410 | D125: C | E125: 30 | F125: TOTAL EXPENSES | G125: 27583722.93 | H125: 1880823 | I125: 29464545.93 | J125: C30
A126: 2020 | B126: 41031 | C126: 410 | D126: C | E126: 31 | F126: TOTAL GAIN/(LOSS) | G126: 2224349.074 | H126: 185849 | I126: 2410198.074 | J126: C31
A127: 2020 | B127: 41032 | C127: 410 | D127: C | E127: 32 | F127: Gain/Loss on Sale of Asset or Lease Transaction | G127: 13049 | H127: -13049 | I127: 0 | J127: C32
A128: 2020 | B128: 41033 | C128: 410 | D128: C | E128: 33 | F128: Other Gain/Loss | G128: 0 | H128: 0 | I128: 0 | J128: C33
A129: 2020 | B129: 41034 | C129: 410 | D129: C | E129: 34 | F129: TOTAL CHANGES IN NET ASSETS: | G129: 2237398.074 | H129: 172800 | I129: 2410198.074 | J129: C34
A130: 2020 | B130: 41035 | C130: 410 | D130: C | E130: 35 | F130: NET ASSETS AT BEGINNING OF YEAR | G130: -602108 | H130: 16428520 | I130: 15826412 | J130: C35
A131: 2020 | B131: 41036 | C131: 410 | D131: =VLOOKUP(C131, TYPE, 3, FALSE) -> C | E131: 36 | F131: NET ASSETS AT END OF YEAR | G131: 1635290 | H131: 16601320 | I131: 18236610 | J131: C36
A132: 2020 | B132: =C132&E132 -> 41101 | C132: 411 | D132: HM | E132: 01 | F132: Tuition | G132: 5162809 | H132: 0 | I132: 5162809 | J132: =D132&E132 -> HM01
A133: 2020 | B133: 41102a | C133: 411 | D133: HM | E133: 02a | F133: Grants - State - passed through ESE | G133: 0 | H133: 0 | I133: 0 | J133: HM02a
A134: 2020 | B134: 41102b | C134: 411 | D134: HM | E134: 02b | F134: Grants - State - other non-ESE pass-through | G134: 0 | H134: 0 | I134: 0 | J134: HM02b
A135: 2020 | B135: 41103 | C135: 411 | D135: HM | E135: 03 | F135: Grants - Federal - Passed through ESE | G135: 532817 | H135: 0 | I135: 532817 | J135: HM03
A136: 2020 | B136: 41104 | C136: 411 | D136: HM | E136: 04 | F136: Grants - Federal - Direct or other pass-through | G136: 0 | H136: 0 | I136: 0 | J136: HM04
A137: 2020 | B137: 41105a | C137: 411 | D137: HM | E137: 05a | F137: Grants - Private (restricted) | G137: 0 | H137: 0 | I137: 0 | J137: HM05a
A138: 2020 | B138: 41105b | C138: 411 | D138: HM | E138: 05b | F138: Grants - Private (unrestricted) | G138: 10176 | H138: 71455 | I138: 81631 | J138: HM05b
A139: 2020 | B139: 41106 | C139: 411 | D139: HM | E139: 06 | F139: Nutrition Funding - State | G139: 0 | H139: 0 | I139: 0 | J139: HM06
A140: 2020 | B140: 41107 | C140: 411 | D140: HM | E140: 07 | F140: Nutrition Funding - Federal | G140: 0 | H140: 0 | I140: 0 | J140: HM07
A141: 2020 | B141: 41108 | C141: 411 | D141: HM | E141: 08 | F141: Nutrition Funding - Fees | G141: 0 | H141: 0 | I141: 0 | J141: HM08
A142: 2020 | B142: 41109 | C142: 411 | D142: HM | E142: 09 | F142: Other Program / Student Activity Fees | G142: 0 | H142: 0 | I142: 0 | J142: HM09
A143: 2020 | B143: 41110 | C143: 411 | D143: HM | E143: 10 | F143: Regional Transportation Aid | G143: 0 | H143: 0 | I143: 0 | J143: HM10
A144: 2020 | B144: 41111 | C144: 411 | D144: HM | E144: 11 | F144: Medicaid Reimbursements | G144: 0 | H144: 0 | I144: 0 | J144: HM11
A145: 2020 | B145: 41112 | C145: 411 | D145: HM | E145: 12 | F145: Circuit Breaker Reimbursements | G145: 0 | H145: 0 | I145: 0 | J145: HM12
A146: 2020 | B146: 41113a | C146: 411 | D146: HM | E146: 13a | F146: Contributions, in-kind, host district | G146: 2173342 | H146: 0 | I146: 2173342 | J146: HM13a
A147: 2020 | B147: 41113b | C147: 411 | D147: HM | E147: 13b | F147: Contributions, in-kind, other | G147: 0 | H147: 0 | I147: 0 | J147: HM13b
A148: 2020 | B148: 41113c | C148: 411 | D148: HM | E148: 13c | F148: Contributions, on-behalf, pension | G148: 0 | H148: 0 | I148: 0 | J148: HM13c
A149: 2020 | B149: 41114 | C149: 411 | D149: HM | E149: 14 | F149: Contributions, from Component Unit (restricted) | G149: 0 | H149: 0 | I149: 0 | J149: HM14
A150: 2020 | B150: 41114b | C150: 411 | D150: HM | E150: 14b | F150: Contributions, from Component Unit (unrestricted) | G150: 14183 | H150: -14183 | I150: 0 | J150: HM14b
A151: 2020 | B151: 41115 | C151: 411 | D151: HM | E151: 15 | F151: Contributions / Fundraising (restricted) | G151: 0 | H151: 0 | I151: 0 | J151: HM15
A152: 2020 | B152: 41115b | C152: 411 | D152: HM | E152: 15b | F152: Contributions / Fundraising (unrestricted) | G152: 1009 | H152: 17832 | I152: 18841 | J152: HM15b
A153: 2020 | B153: 41116 | C153: 411 | D153: HM | E153: 16 | F153: Interest / Investment Income (restricted) | G153: 0 | H153: 0 | I153: 0 | J153: HM16
A154: 2020 | B154: 41116a | C154: 411 | D154: HM | E154: 16a | F154: Interest / Investment Income (unrestricted) | G154: 0 | H154: 0 | I154: 0 | J154: HM16a
A155: 2020 | B155: 41117 | C155: 411 | D155: HM | E155: 17 | F155: Rental Income | G155: 0 | H155: 0 | I155: 0 | J155: HM17
A156: 2020 | B156: 41118 | C156: 411 | D156: HM | E156: 18 | F156: Loan Forgiveness or Other Reimbursement | G156: 0 | H156: 0 | I156: 0 | J156: HM18
A157: 2020 | B157: 41119 | C157: 411 | D157: HM | E157: 19 | F157: Miscellaneous Income | G157: 134905 | H157: 2431 | I157: 137336 | J157: HM19
A158: 2020 | B158: 41120 | C158: 411 | D158: HM | E158: 20 | F158: TOTAL REVENUES | G158: 8029241 | H158: 77535 | I158: 8106776 | J158: HM20
A159: 2020 | B159: 41121 | C159: 411 | D159: HM | E159: 21 | F159: Administration | G159: 590431.1057 | H159: 0 | I159: 590431.1057 | J159: HM21
A160: 2020 | B160: 41122 | C160: 411 | D160: HM | E160: 22 | F160: Instructional Services | G160: 5210962.987 | H160: 0 | I160: 5210962.987 | J160: HM22
A161: 2020 | B161: 41123 | C161: 411 | D161: HM | E161: 23 | F161: Pupil Services | G161: 398641.1053 | H161: 0 | I161: 398641.1053 | J161: HM23
A162: 2020 | B162: 41124 | C162: 411 | D162: HM | E162: 24 | F162: Operation & Maintenance of Plant | G162: 560971.88 | H162: 0 | I162: 560971.88 | J162: HM24
A163: 2020 | B163: 41125 | C163: 411 | D163: HM | E163: 25 | F163: Benefits and Other Fixed Charges | G163: 1221350.81 | H163: 0 | I163: 1221350.81 | J163: HM25
A164: 2020 | B164: 41126 | C164: 411 | D164: HM | E164: 26 | F164: Community Services | G164: 0 | H164: 0 | I164: 0 | J164: HM26
A165: 2020 | B165: 41127 | C165: 411 | D165: HM | E165: 27 | F165: Non-Operating Financing Expenses | G165: 0 | H165: 0 | I165: 0 | J165: HM27
A166: 2020 | B166: 41128 | C166: 411 | D166: HM | E166: 28 | F166: Component Unit Expenses | G166: 0 | H166: 233 | I166: 233 | J166: HM28
A167: 2020 | B167: 41129 | C167: 411 | D167: HM | E167: 29 | F167: Contributions to School | G167: 0 | H167: 0 | I167: 0 | J167: HM29
A168: 2020 | B168: 41130 | C168: 411 | D168: HM | E168: 30 | F168: TOTAL EXPENSES | G168: 7982357.888 | H168: 233 | I168: 7982590.888 | J168: HM30
A169: 2020 | B169: 41131 | C169: 411 | D169: HM | E169: 31 | F169: TOTAL GAIN/(LOSS) | G169: 46883.11179 | H169: 77302 | I169: 124185.1118 | J169: HM31
A170: 2020 | B170: 41132 | C170: 411 | D170: HM | E170: 32 | F170: Gain/Loss on Sale of Asset or Lease Transaction | G170: 0 | H170: 0 | I170: 0 | J170: HM32
A171: 2020 | B171: 41133 | C171: 411 | D171: HM | E171: 33 | F171: Other Gain/Loss | G171: 0 | H171: 0 | I171: 0 | J171: HM33
A172: 2020 | B172: 41134 | C172: 411 | D172: HM | E172: 34 | F172: TOTAL CHANGES IN NET ASSETS: | G172: 46883.11179 | H172: 77302 | I172: 124185.1118 | J172: HM34
A173: 2020 | B173: 41135 | C173: 411 | D173: HM | E173: 35 | F173: NET ASSETS AT BEGINNING OF YEAR | G173: 305028 | H173: 267889 | I173: 572917 | J173: HM35
A174: 2020 | B174: 41136 | C174: 411 | D174: HM | E174: 36 | F174: NET ASSETS AT END OF YEAR | G174: 351911 | H174: 345191 | I174: 697102 | J174: HM36
A175: 2020 | B175: 41201 | C175: 412 | D175: C | E175: 01 | F175: Tuition | G175: 9767984 | H175: 0 | I175: 9767984 | J175: C01
A176: 2020 | B176: 41202a | C176: 412 | D176: C | E176: 02a | F176: Grants - State - passed through ESE | G176: 2347 | H176: 0 | I176: 2347 | J176: C02a
A177: 2020 | B177: 41202b | C177: 412 | D177: C | E177: 02b | F177: Grants - State - other non-ESE pass-through | G177: 0 | H177: 0 | I177: 0 | J177: C02b
A178: 2020 | B178: 41203 | C178: 412 | D178: C | E178: 03 | F178: Grants - Federal - Passed through ESE | G178: 286981 | H178: 0 | I178: 286981 | J178: C03
A179: 2020 | B179: 41204 | C179: 412 | D179: C | E179: 04 | F179: Grants - Federal - Direct or other pass-through | G179: 0 | H179: 0 | I179: 0 | J179: C04
A180: 2020 | B180: 41205a | C180: 412 | D180: C | E180: 05a | F180: Grants - Private (restricted) | G180: 0 | H180: 123635 | I180: 123635 | J180: C05a
A181: 2020 | B181: 41205b | C181: 412 | D181: C | E181: 05b | F181: Grants - Private (unrestricted) | G181: 96921 | H181: 244074 | I181: 340995 | J181: C05b
A182: 2020 | B182: 41206 | C182: 412 | D182: C | E182: 06 | F182: Nutrition Funding - State | G182: 2629 | H182: 0 | I182: 2629 | J182: C06
A183: 2020 | B183: 41207 | C183: 412 | D183: C | E183: 07 | F183: Nutrition Funding - Federal | G183: 120546 | H183: 0 | I183: 120546 | J183: C07
A184: 2020 | B184: 41208 | C184: 412 | D184: C | E184: 08 | F184: Nutrition Funding - Fees | G184: 0 | H184: 0 | I184: 0 | J184: C08
A185: 2020 | B185: 41209 | C185: 412 | D185: C | E185: 09 | F185: Other Program / Student Activity Fees | G185: 22097 | H185: 0 | I185: 22097 | J185: C09
A186: 2020 | B186: 41210 | C186: 412 | D186: C | E186: 10 | F186: Regional Transportation Aid | G186: 6040 | H186: 0 | I186: 6040 | J186: C10
A187: 2020 | B187: 41211 | C187: 412 | D187: C | E187: 11 | F187: Medicaid Reimbursements | G187: 7318 | H187: 0 | I187: 7318 | J187: C11
A188: 2020 | B188: 41212 | C188: 412 | D188: C | E188: 12 | F188: Circuit Breaker Reimbursements | G188: 0 | H188: 0 | I188: 0 | J188: C12
A189: 2020 | B189: 41213a | C189: 412 | D189: C | E189: 13a | F189: Contributions, in-kind, host district | G189: 0 | H189: 0 | I189: 0 | J189: C13a
A190: 2020 | B190: 41213b | C190: 412 | D190: C | E190: 13b | F190: Contributions, in-kind, other | G190: 252054 | H190: 0 | I190: 252054 | J190: C13b
A191: 2020 | B191: 41213c | C191: 412 | D191: C | E191: 13c | F191: Contributions, on-behalf, pension | G191: 1821780 | H191: 0 | I191: 1821780 | J191: C13c
A192: 2020 | B192: 41214 | C192: 412 | D192: C | E192: 14 | F192: Contributions, from Component Unit (restricted) | G192: 0 | H192: 0 | I192: 0 | J192: C14
A193: 2020 | B193: 41214b | C193: 412 | D193: C | E193: 14b | F193: Contributions, from Component Unit (unrestricted) | G193: 0 | H193: 0 | I193: 0 | J193: C14b
A194: 2020 | B194: 41215 | C194: 412 | D194: C | E194: 15 | F194: Contributions / Fundraising (restricted) | G194: 0 | H194: 0 | I194: 0 | J194: C15
A195: 2020 | B195: 41215b | C195: 412 | D195: =VLOOKUP(C195, TYPE, 3, FALSE) -> C | E195: 15b | F195: Contributions / Fundraising (unrestricted) | G195: 0 | H195: 8553 | I195: 8553 | J195: C15b
A196: 2020 | B196: =C196&E196 -> 41216 | C196: 412 | D196: C | E196: 16 | F196: Interest / Investment Income (restricted) | G196: 0 | H196: 0 | I196: 0 | J196: =D196&E196 -> C16
A197: 2020 | B197: 41216a | C197: 412 | D197: C | E197: 16a | F197: Interest / Investment Income (unrestricted) | G197: 204446 | H197: 151 | I197: 204597 | J197: C16a
A198: 2020 | B198: 41217 | C198: 412 | D198: C | E198: 17 | F198: Rental Income | G198: 0 | H198: 0 | I198: 0 | J198: C17
A199: 2020 | B199: 41218 | C199: 412 | D199: C | E199: 18 | F199: Loan Forgiveness or Other Reimbursement | G199: 0 | H199: 0 | I199: 0 | J199: C18
A200: 2020 | B200: 41219 | C200: 412 | D200: C | E200: 19 | F200: Miscellaneous Income | G200: 21704 | H200: 0 | I200: 21704 | J200: C19
... 3414 more rows

Sheet FE20 (hidden)
B1: 1 | C1: 2 | D1: 3 | E1: 4 | F1: 5 | G1: 6 | H1: 7 | I1: 8 | J1: 9 | K1: 10 | L1: 11 | M1: 12
A2: FY | B2: vlookup | C2: cha_code | D2: cha_type | E2: FuncExp_id | F2: Line_Desc | G2: general | H2: sped | I2: undist | J2: state | K2: federal | L2: private | M2: total
A3: 2020 | B3: =C3&E3 -> 407100 | C3: 407 | D3: HM | E3: 100 | F3: Administration | G3: 0 | H3: 0 | I3: 873779.15 | J3: 0 | K3: 14247 | L3: 0 | M3: 888026.15 | N3: =D3&E3 -> HM100
A4: 2020 | B4: =C4&E4 -> 407110 | C4: 407 | D4: HM | E4: 110 | F4: Subtotal - Board of Trustees | G4: 0 | H4: 0 | I4: 571.39 | J4: 0 | K4: 0 | L4: 0 | M4: 571.39 | N4: =D4&E4 -> HM110
A5: 2020 | B5: 407111 | C5: 407 | D5: HM | E5: 111 | F5: Contracted Services | G5: 0 | H5: 0 | I5: 0 | J5: 0 | K5: 0 | L5: 0 | M5: 0 | N5: HM111
A6: 2020 | B6: 407112 | C6: 407 | D6: HM | E6: 112 | F6: Travel and other expenses | G6: 0 | H6: 0 | I6: 571.39 | J6: 0 | K6: 0 | L6: 0 | M6: 571.39 | N6: HM112
A7: 2020 | B7: 407120 | C7: 407 | D7: HM | E7: 120 | F7: Subtotal - School Leaders | G7: 0 | H7: 0 | I7: 0 | J7: 0 | K7: 0 | L7: 0 | M7: 0 | N7: HM120
A8: 2020 | B8: 407121 | C8: 407 | D8: HM | E8: 121 | F8: Salaries - Professional | G8: 0 | H8: 0 | I8: 0 | J8: 0 | K8: 0 | L8: 0 | M8: 0 | N8: HM121
A9: 2020 | B9: 407122 | C9: 407 | D9: HM | E9: 122 | F9: Contracted Services | G9: 0 | H9: 0 | I9: 0 | J9: 0 | K9: 0 | L9: 0 | M9: 0 | N9: HM122
A10: 2020 | B10: 407120a | C10: 407 | D10: HM | E10: 120a | F10: Subtotal - Non-Instructional Administration and Support Staff | G10: 0 | H10: 0 | I10: 873207.76 | J10: 0 | K10: 14247 | L10: 0 | M10: 887454.76 | N10: HM120a
A11: 2020 | B11: 407121a | C11: 407 | D11: HM | E11: 121a | F11: Salaries - Professional and Support Staff | G11: 0 | H11: 0 | I11: 135680.08 | J11: 0 | K11: 14247 | L11: 0 | M11: 149927.08 | N11: HM121a
A12: 2020 | B12: 407122a | C12: 407 | D12: HM | E12: 122a | F12: Contracted Services - Professional and Support Staff | G12: 0 | H12: 0 | I12: 708469.32 | J12: 0 | K12: 0 | L12: 0 | M12: 708469.32 | N12: HM122a
A13: 2020 | B13: 407123 | C13: 407 | D13: HM | E13: 123 | F13: Recruitment/Advertising | G13: 0 | H13: 0 | I13: 25531.41 | J13: 0 | K13: 0 | L13: 0 | M13: 25531.41 | N13: HM123
A14: 2020 | B14: 407124 | C14: 407 | D14: HM | E14: 124 | F14: Travel, Dues, and other expenses | G14: 0 | H14: 0 | I14: 2252.36 | J14: 0 | K14: 0 | L14: 0 | M14: 2252.36 | N14: HM124
A15: 2020 | B15: 407125 | C15: 407 | D15: HM | E15: 125 | F15: Supplies and Materials | G15: 0 | H15: 0 | I15: 1274.59 | J15: 0 | K15: 0 | L15: 0 | M15: 1274.59 | N15: HM125
A16: 2020 | B16: 407126 | C16: 407 | D16: HM | E16: 126 | F16: Depreciation - non instructional | G16: 0 | H16: 0 | I16: 0 | J16: 0 | K16: 0 | L16: 0 | M16: 0 | N16: HM126
A17: 2020 | B17: 407127 | C17: 407 | D17: HM | E17: 127 | F17: Legal Settlements | G17: 0 | H17: 0 | I17: 0 | J17: 0 | K17: 0 | L17: 0 | M17: 0 | N17: HM127
A18: 2020 | B18: 407170 | C18: 407 | D18: HM | E18: 170 | F18: Subtotal - Development (Private) | G18: 0 | H18: 0 | I18: 0 | J18: 0 | K18: 0 | L18: 0 | M18: 0 | N18: HM170
A19: 2020 | B19: 407170a | C19: 407 | D19: HM | E19: 170a | F19: Salaries - Professional - Private | G19: 0 | H19: 0 | I19: 0 | J19: 0 | K19: 0 | L19: 0 | M19: 0 | N19: HM170a
A20: 2020 | B20: 407170b | C20: 407 | D20: HM | E20: 170b | F20: Contracted Services - Private | G20: 0 | H20: 0 | I20: 0 | J20: 0 | K20: 0 | L20: 0 | M20: 0 | N20: HM170b
A21: 2020 | B21: 407170c | C21: 407 | D21: HM | E21: 170c | F21: Fundraising - Private | G21: 0 | H21: 0 | I21: 0 | J21: 0 | K21: 0 | L21: 0 | M21: 0 | N21: HM170c
A22: 2020 | B22: 407171 | C22: 407 | D22: HM | E22: 171 | F22: Subtotal - Development (Public) | G22: 0 | H22: 0 | I22: 0 | J22: 0 | K22: 0 | L22: 0 | M22: 0 | N22: HM171
A23: 2020 | B23: 407171a | C23: 407 | D23: HM | E23: 171a | F23: Salaries - Professional - Public | G23: 0 | H23: 0 | I23: 0 | J23: 0 | K23: 0 | L23: 0 | M23: 0 | N23: HM171a
A24: 2020 | B24: 407171b | C24: 407 | D24: HM | E24: 171b | F24: Contracted Services - Public | G24: 0 | H24: 0 | I24: 0 | J24: 0 | K24: 0 | L24: 0 | M24: 0 | N24: HM171b
A25: 2020 | B25: 407200 | C25: 407 | D25: HM | E25: 200 | F25: Instructional Services | G25: 1675730.68 | H25: 469334.73 | I25: 1639.31 | J25: 0 | K25: 237376.84 | L25: 0 | M25: 2384081.56 | N25: HM200
A26: 2020 | B26: 407210 | C26: 407 | D26: HM | E26: 210 | F26: Instructional Subtotal - Instructional Leadership | G26: 183259.63 | H26: 7813.08 | I26: 0 | J26: 0 | K26: 0 | L26: 0 | M26: 191072.71 | N26: HM210
A27: 2020 | B27: 407211 | C27: 407 | D27: HM | E27: 211 | F27: Salaries - Professional | G27: 135265 | H27: 0 | I27: 0 | J27: 0 | K27: 0 | L27: 0 | M27: 135265 | N27: HM211
A28: 2020 | B28: 407212 | C28: 407 | D28: HM | E28: 212 | F28: Salaries - Clerical | G28: 46274.63 | H28: 7533.08 | I28: 0 | J28: 0 | K28: 0 | L28: 0 | M28: 53807.71 | N28: HM212
A29: 2020 | B29: 407213 | C29: 407 | D29: HM | E29: 213 | F29: Contracted Services | G29: 1720 | H29: 280 | I29: 0 | J29: 0 | K29: 0 | L29: 0 | M29: 2000 | N29: HM213
A30: 2020 | B30: 407214 | C30: 407 | D30: HM | E30: 214 | F30: Supplies and Materials | G30: 0 | H30: 0 | I30: 0 | J30: 0 | K30: 0 | L30: 0 | M30: 0 | N30: HM214
A31: 2020 | B31: 407215 | C31: 407 | D31: HM | E31: 215 | F31: Travel and other expenses | G31: 0 | H31: 0 | I31: 0 | J31: 0 | K31: 0 | L31: 0 | M31: 0 | N31: HM215
A32: 2020 | B32: 407220 | C32: 407 | D32: HM | E32: 220 | F32: Instructional Subtotal - Classroom and Specialist Teachers | G32: 1192225.09 | H32: 415706.12 | I32: 0 | J32: 0 | K32: 153979.84 | L32: 0 | M32: 1761911.05 | N32: HM220
A33: 2020 | B33: 407221 | C33: 407 | D33: HM | E33: 221 | F33: Salaries - Teachers, Classroom | G33: 1048054.55 | H33: 170613.53 | I33: 0 | J33: 0 | K33: 0 | L33: 0 | M33: 1218668.08 | N33: HM221
A34: 2020 | B34: 407222 | C34: 407 | D34: HM | E34: 222 | F34: Salaries - Teachers, Specialists | G34: 144170.54 | H34: 245092.59 | I34: 0 | J34: 0 | K34: 153979.84 | L34: 0 | M34: 543242.97 | N34: HM222
A35: 2020 | B35: 407230 | C35: 407 | D35: HM | E35: 230 | F35: Instructional Subtotal - Other Teaching Services | G35: 183387.87 | H35: 29853.84 | I35: 0 | J35: 0 | K35: 83397 | L35: 0 | M35: 296638.71 | N35: HM230
A36: 2020 | B36: 407231 | C36: 407 | D36: HM | E36: 231 | F36: Salaries - Professional | G36: 0 | H36: 0 | I36: 0 | J36: 0 | K36: 0 | L36: 0 | M36: 0 | N36: HM231
A37: 2020 | B37: 407232 | C37: 407 | D37: HM | E37: 232 | F37: Salaries - Non-clerical Paraprofessionals | G37: 28033.03 | H37: 4563.52 | I37: 0 | J37: 0 | K37: 67257 | L37: 0 | M37: 99853.55 | N37: HM232
A38: 2020 | B38: 407233 | C38: 407 | D38: HM | E38: 233 | F38: Salaries - Clerical | G38: 138004.17 | H38: 22465.79 | I38: 0 | J38: 0 | K38: 0 | L38: 0 | M38: 160469.96 | N38: HM233
A39: 2020 | B39: 407234 | C39: 407 | D39: HM | E39: 234 | F39: Contracted Services | G39: 17350.67 | H39: 2824.53 | I39: 0 | J39: 0 | K39: 16140 | L39: 0 | M39: 36315.2 | N39: HM234
A40: 2020 | B40: 407240 | C40: 407 | D40: HM | E40: 240 | F40: Instructional Subtotal - Professional Development | G40: 15687.61 | H40: 0 | I40: 0 | J40: 0 | K40: 0 | L40: 0 | M40: 15687.61 | N40: HM240
A41: 2020 | B41: 407241 | C41: 407 | D41: HM | E41: 241 | F41: Salaries - Professional | G41: 0 | H41: 0 | I41: 0 | J41: 0 | K41: 0 | L41: 0 | M41: 0 | N41: HM241
A42: 2020 | B42: 407242 | C42: 407 | D42: HM | E42: 242 | F42: Contracted Services | G42: 13984.84 | H42: 0 | I42: 0 | J42: 0 | K42: 0 | L42: 0 | M42: 13984.84 | N42: HM242
A43: 2020 | B43: 407243 | C43: 407 | D43: HM | E43: 243 | F43: Supplies and Materials | G43: 0 | H43: 0 | I43: 0 | J43: 0 | K43: 0 | L43: 0 | M43: 0 | N43: HM243
A44: 2020 | B44: 407244 | C44: 407 | D44: HM | E44: 244 | F44: Travel and other expenses | G44: 1702.77 | H44: 0 | I44: 0 | J44: 0 | K44: 0 | L44: 0 | M44: 1702.77 | N44: HM244
A45: 2020 | B45: 407250 | C45: 407 | D45: HM | E45: 250 | F45: Instructional Subtotal - Guidance, Psychological & Testing | G45: 0 | H45: 0 | I45: 0 | J45: 0 | K45: 0 | L45: 0 | M45: 0 | N45: HM250
A46: 2020 | B46: 407251 | C46: 407 | D46: HM | E46: 251 | F46: Salaries - Professional | G46: 0 | H46: 0 | I46: 0 | J46: 0 | K46: 0 | L46: 0 | M46: 0 | N46: HM251
A47: 2020 | B47: 407252 | C47: 407 | D47: HM | E47: 252 | F47: Salaries - Clerical | G47: 0 | H47: 0 | I47: 0 | J47: 0 | K47: 0 | L47: 0 | M47: 0 | N47: HM252
A48: 2020 | B48: 407253 | C48: 407 | D48: HM | E48: 253 | F48: Contracted Services | G48: 0 | H48: 0 | I48: 0 | J48: 0 | K48: 0 | L48: 0 | M48: 0 | N48: HM253
A49: 2020 | B49: 407254 | C49: 407 | D49: HM | E49: 254 | F49: Supplies and Materials | G49: 0 | H49: 0 | I49: 0 | J49: 0 | K49: 0 | L49: 0 | M49: 0 | N49: HM254
A50: 2020 | B50: 407260 | C50: 407 | D50: HM | E50: 260 | F50: Instructional Subtotal - Materials, Equipment & Technology | G50: 101170.48 | H50: 15961.69 | I50: 1639.31 | J50: 0 | K50: 0 | L50: 0 | M50: 118771.48 | N50: HM260
A51: 2020 | B51: 407261 | C51: 407 | D51: HM | E51: 261 | F51: Textbooks & Related Media/Materials | G51: 77320.39 | H51: 12328.14 | I51: 0 | J51: 0 | K51: 0 | L51: 0 | M51: 89648.53 | N51: HM261
A52: 2020 | B52: 407262 | C52: 407 | D52: HM | E52: 262 | F52: Other Instructional Materials | G52: 0 | H52: 0 | I52: 1639.31 | J52: 0 | K52: 0 | L52: 0 | M52: 1639.31 | N52: HM262
A53: 2020 | B53: 407263 | C53: 407 | D53: HM | E53: 263 | F53: Instructional Equipment | G53: 1487.01 | H53: 143.18 | I53: 0 | J53: 0 | K53: 0 | L53: 0 | M53: 1630.19 | N53: HM263
A54: 2020 | B54: 407264 | C54: 407 | D54: HM | E54: 264 | F54: General Supplies | G54: 4871.69 | H54: 793.07 | I54: 0 | J54: 0 | K54: 0 | L54: 0 | M54: 5664.76 | N54: HM264
A55: 2020 | B55: 407265 | C55: 407 | D55: HM | E55: 265 | F55: Other Instructional Services | G55: 8520.71 | H55: 1387.09 | I55: 0 | J55: 0 | K55: 0 | L55: 0 | M55: 9907.8 | N55: HM265
A56: 2020 | B56: 407266 | C56: 407 | D56: HM | E56: 266 | F56: Classroom Instructional Technology Hardware | G56: 0 | H56: 0 | I56: 0 | J56: 0 | K56: 0 | L56: 0 | M56: 0 | N56: HM266
A57: 2020 | B57: 407267 | C57: 407 | D57: HM | E57: 267 | F57: Other Instructional Technology Hardware | G57: 0 | H57: 0 | I57: 0 | J57: 0 | K57: 0 | L57: 0 | M57: 0 | N57: HM267
A58: 2020 | B58: 407268a | C58: 407 | D58: HM | E58: 268a | F58: Classroom Instructional Software | G58: 8970.68 | H58: 1310.21 | I58: 0 | J58: 0 | K58: 0 | L58: 0 | M58: 10280.89 | N58: HM268a
A59: 2020 | B59: 407268b | C59: 407 | D59: HM | E59: 268b | F59: Other Instructional Software | G59: 0 | H59: 0 | I59: 0 | J59: 0 | K59: 0 | L59: 0 | M59: 0 | N59: HM268b
A60: 2020 | B60: 407269 | C60: 407 | D60: HM | E60: 269 | F60: Depreciation for Furniture, Equipment & Technology | G60: 0 | H60: 0 | I60: 0 | J60: 0 | K60: 0 | L60: 0 | M60: 0 | N60: HM269
A61: 2020 | B61: 407300 | C61: 407 | D61: HM | E61: 300 | F61: Pupil Services | G61: 379063.8 | H61: 466.2 | I61: 192111.07 | J61: 0 | K61: 4171.16 | L61: 0 | M61: 575812.23 | N61: HM300
A62: 2020 | B62: 407310 | C62: 407 | D62: HM | E62: 310 | F62: Health Services | G62: 0 | H62: 0 | I62: 76288.94 | J62: 0 | K62: 0 | L62: 0 | M62: 76288.94 | N62: HM310
A63: 2020 | B63: 407315 | C63: 407 | D63: HM | E63: 315 | F63: Health Services - Contracted | G63: 0 | H63: 0 | I63: 0 | J63: 0 | K63: 0 | L63: 0 | M63: 0 | N63: HM315
A64: 2020 | B64: 407320 | C64: 407 | D64: HM | E64: 320 | F64: Athletic Services (including Transportation) | G64: 0 | H64: 0 | I64: 81923.68 | J64: 0 | K64: 4171.16 | L64: 0 | M64: 86094.84 | N64: HM320
A65: 2020 | B65: 407325 | C65: 407 | D65: HM | E65: 325 | F65: Athletic Services (including Transportation) - Contracted | G65: 0 | H65: 0 | I65: 0 | J65: 0 | K65: 0 | L65: 0 | M65: 0 | N65: HM325
A66: 2020 | B66: 407330 | C66: 407 | D66: HM | E66: 330 | F66: Food Services | G66: 0 | H66: 0 | I66: 33898.45 | J66: 0 | K66: 0 | L66: 0 | M66: 33898.45 | N66: HM330
A67: 2020 | B67: 407335 | C67: 407 | D67: HM | E67: 335 | F67: Food Services - Contracted | G67: 0 | H67: 0 | I67: 0 | J67: 0 | K67: 0 | L67: 0 | M67: 0 | N67: HM335
A68: 2020 | B68: =C68&E68 -> 407340 | C68: 407 | D68: HM | E68: 340 | F68: Student Transportation (to and from school) | G68: 376200 | H68: 0 | I68: 0 | J68: 0 | K68: 0 | L68: 0 | M68: 376200 | N68: =D68&E68 -> HM340
A69: 2020 | B69: 407345 | C69: 407 | D69: HM | E69: 345 | F69: Student Transportation (to and from school) - Contracted | G69: 2863.8 | H69: 466.2 | I69: 0 | J69: 0 | K69: 0 | L69: 0 | M69: 3330 | N69: HM345
A70: 2020 | B70: 407350 | C70: 407 | D70: HM | E70: 350 | F70: Depreciation of Transportation Vehicles | G70: 0 | H70: 0 | I70: 0 | J70: 0 | K70: 0 | L70: 0 | M70: 0 | N70: HM350
A71: 2020 | B71: 407360 | C71: 407 | D71: HM | E71: 360 | F71: Other Student Activities | G71: 0 | H71: 0 | I71: 0 | J71: 0 | K71: 0 | L71: 0 | M71: 0 | N71: HM360
A72: 2020 | B72: 407400 | C72: 407 | D72: HM | E72: 400 | F72: Operation & Maintenance of Plant | G72: 0 | H72: 0 | I72: 304362.06 | J72: 0 | K72: 0 | L72: 0 | M72: 304362.06 | N72: HM400
A73: 2020 | B73: 407410 | C73: 407 | D73: HM | E73: 410 | F73: Operation & Maintenance of Buildings and Grounds | G73: 0 | H73: 0 | I73: 209540.67 | J73: 0 | K73: 0 | L73: 0 | M73: 209540.67 | N73: HM410
A74: 2020 | B74: 407420 | C74: 407 | D74: HM | E74: 420 | F74: Utilities | G74: 0 | H74: 0 | I74: 94821.39 | J74: 0 | K74: 0 | L74: 0 | M74: 94821.39 | N74: HM420
A75: 2020 | B75: 407430 | C75: 407 | D75: HM | E75: 430 | F75: Maintenance of Equipment | G75: 0 | H75: 0 | I75: 0 | J75: 0 | K75: 0 | L75: 0 | M75: 0 | N75: HM430
A76: 2020 | B76: 407440 | C76: 407 | D76: HM | E76: 440 | F76: Networking and Telecommunications | G76: 0 | H76: 0 | I76: 0 | J76: 0 | K76: 0 | L76: 0 | M76: 0 | N76: HM440
A77: 2020 | B77: 407500 | C77: 407 | D77: HM | E77: 500 | F77: Fixed Charges | G77: 0 | H77: 0 | I77: 847752.7 | J77: 0 | K77: 21844 | L77: 0 | M77: 869596.7 | N77: HM500
A78: 2020 | B78: 407510 | C78: 407 | D78: HM | E78: 510 | F78: Employee Retirement & Taxes | G78: 0 | H78: 0 | I78: 3550.52 | J78: 0 | K78: 0 | L78: 0 | M78: 3550.52 | N78: HM510
A79: 2020 | B79: 407520 | C79: 407 | D79: HM | E79: 520 | F79: Fringe Benefits | G79: 0 | H79: 0 | I79: 837081.88 | J79: 0 | K79: 21844 | L79: 0 | M79: 858925.88 | N79: HM520
A80: 2020 | B80: 407530 | C80: 407 | D80: HM | E80: 530 | F80: Insurance (non-employee) | G80: 0 | H80: 0 | I80: 7120.3 | J80: 0 | K80: 0 | L80: 0 | M80: 7120.3 | N80: HM530
A81: 2020 | B81: 407550 | C81: 407 | D81: HM | E81: 550 | F81: Rental/Lease of Equipment | G81: 0 | H81: 0 | I81: 0 | J81: 0 | K81: 0 | L81: 0 | M81: 0 | N81: HM550
A82: 2020 | B82: 407560 | C82: 407 | D82: HM | E82: 560 | F82: Short-Term Interest | G82: 0 | H82: 0 | I82: 0 | J82: 0 | K82: 0 | L82: 0 | M82: 0 | N82: HM560
A83: 2020 | B83: 407600 | C83: 407 | D83: HM | E83: 600 | F83: Community Services | G83: 0 | H83: 0 | I83: 0 | J83: 0 | K83: 0 | L83: 0 | M83: 0 | N83: HM600
A84: 2020 | B84: 407610 | C84: 407 | D84: HM | E84: 610 | F84: Dissemination Activities | G84: 0 | H84: 0 | I84: 0 | J84: 0 | K84: 0 | L84: 0 | M84: 0 | N84: HM610
A85: 2020 | B85: 407620 | C85: 407 | D85: HM | E85: 620 | F85: Civic Activities | G85: 0 | H85: 0 | I85: 0 | J85: 0 | K85: 0 | L85: 0 | M85: 0 | N85: HM620
A86: 2020 | B86: 407700 | C86: 407 | D86: HM | E86: 700 | F86: Non-Operating / Capital Facilities Costs | G86: 0 | H86: 0 | I86: 0 | J86: 0 | K86: 0 | L86: 0 | M86: 0 | N86: HM700
A87: 2020 | B87: 407720 | C87: 407 | D87: HM | E87: 720 | F87: Long-Term Interest, facilities related | G87: 0 | H87: 0 | I87: 0 | J87: 0 | K87: 0 | L87: 0 | M87: 0 | N87: HM720
A88: 2020 | B88: 407725 | C88: 407 | D88: HM | E88: 725 | F88: Long-Term Interest, non-facilities related | G88: 0 | H88: 0 | I88: 0 | J88: 0 | K88: 0 | L88: 0 | M88: 0 | N88: HM725
A89: 2020 | B89: 407730 | C89: 407 | D89: HM | E89: 730 | F89: Other costs related to capital facilities acquisition | G89: 0 | H89: 0 | I89: 0 | J89: 0 | K89: 0 | L89: 0 | M89: 0 | N89: HM730
A90: 2020 | B90: 407740 | C90: 407 | D90: HM | E90: 740 | F90: Rental/Lease of Buildings & Grounds | G90: 0 | H90: 0 | I90: 0 | J90: 0 | K90: 0 | L90: 0 | M90: 0 | N90: HM740
A91: 2020 | B91: 407750 | C91: 407 | D91: HM | E91: 750 | F91: Depreciation of Equipment, Building, & Grounds | G91: 0 | H91: 0 | I91: 0 | J91: 0 | K91: 0 | L91: 0 | M91: 0 | N91: HM750
A92: 2020 | B92: 407760 | C92: 407 | D92: HM | E92: 760 | F92: Bad debt / loss on disposal of assets | G92: 0 | H92: 0 | I92: 0 | J92: 0 | K92: 0 | L92: 0 | M92: 0 | N92: HM760
A93: 2020 | B93: 407800 | C93: 407 | D93: HM | E93: 800 | F93: TOTALS | G93: 2054794.48 | H93: 469800.93 | I93: 2219644.29 | J93: 0 | K93: 277639 | L93: 0 | M93: 5021878.7 | N93: HM800
A94: 2020 | B94: 407910 | C94: 407 | D94: HM | E94: 910 | F94: Reference: Capitalized Expenditures | G94: 0 | H94: 0 | I94: 0 | J94: 0 | K94: 0 | L94: 0 | M94: 0 | N94: HM910
A95: 2020 | B95: 407920 | C95: 407 | D95: HM | E95: 920 | F95: Reference: Deferrals/Carryovers | G95: 0 | H95: 0 | I95: 0 | J95: 0 | K95: 0 | L95: 0 | M95: 0 | N95: HM920
A96: 2020 | B96: 407900 | C96: 407 | D96: HM | E96: 900 | F96: Reference: Totals | G96: 0 | H96: 0 | I96: 2219644.29 | J96: 0 | K96: 277639 | L96: 0 | M96: 5021878.7 | N96: HM900
A97: 2020 | B97: 409100 | C97: 409 | D97: C | E97: 100 | F97: Administration | G97: 0 | H97: 0 | I97: 844057 | J97: 0 | K97: 42562 | L97: 0 | M97: 886619 | N97: C100
A98: 2020 | B98: 409110 | C98: 409 | D98: C | E98: 110 | F98: Subtotal - Board of Trustees | G98: 0 | H98: 0 | I98: 10995 | J98: 0 | K98: 0 | L98: 0 | M98: 10995 | N98: C110
A99: 2020 | B99: 409111 | C99: 409 | D99: C | E99: 111 | F99: Contracted Services | G99: 0 | H99: 0 | I99: 10995 | J99: 0 | K99: 0 | L99: 0 | M99: 10995 | N99: C111
A100: 2020 | B100: 409112 | C100: 409 | D100: C | E100: 112 | F100: Travel and other expenses | G100: 0 | H100: 0 | I100: 0 | J100: 0 | K100: 0 | L100: 0 | M100: 0 | N100: C112
A101: 2020 | B101: 409120 | C101: 409 | D101: C | E101: 120 | F101: Subtotal - School Leaders | G101: 0 | H101: 0 | I101: 219679 | J101: 0 | K101: 0 | L101: 0 | M101: 219679 | N101: C120
A102: 2020 | B102: 409121 | C102: 409 | D102: C | E102: 121 | F102: Salaries - Professional | G102: 0 | H102: 0 | I102: 205639 | J102: 0 | K102: 0 | L102: 0 | M102: 205639 | N102: C121
A103: 2020 | B103: 409122 | C103: 409 | D103: C | E103: 122 | F103: Contracted Services | G103: 0 | H103: 0 | I103: 14040 | J103: 0 | K103: 0 | L103: 0 | M103: 14040 | N103: C122
A104: 2020 | B104: 409120a | C104: 409 | D104: C | E104: 120a | F104: Subtotal - Non-Instructional Administration and Support Staff | G104: 0 | H104: 0 | I104: 498061 | J104: 0 | K104: 42562 | L104: 0 | M104: 540623 | N104: C120a
A105: 2020 | B105: 409121a | C105: 409 | D105: C | E105: 121a | F105: Salaries - Professional and Support Staff | G105: 0 | H105: 0 | I105: 172833 | J105: 0 | K105: 40000 | L105: 0 | M105: 212833 | N105: C121a
A106: 2020 | B106: 409122a | C106: 409 | D106: C | E106: 122a | F106: Contracted Services - Professional and Support Staff | G106: 0 | H106: 0 | I106: 263877 | J106: 0 | K106: 0 | L106: 0 | M106: 263877 | N106: C122a
A107: 2020 | B107: 409123 | C107: 409 | D107: C | E107: 123 | F107: Recruitment/Advertising | G107: 0 | H107: 0 | I107: 29414 | J107: 0 | K107: 2562 | L107: 0 | M107: 31976 | N107: C123
A108: 2020 | B108: 409124 | C108: 409 | D108: C | E108: 124 | F108: Travel, Dues, and other expenses | G108: 0 | H108: 0 | I108: 18362 | J108: 0 | K108: 0 | L108: 0 | M108: 18362 | N108: C124
A109: 2020 | B109: 409125 | C109: 409 | D109: C | E109: 125 | F109: Supplies and Materials | G109: 0 | H109: 0 | I109: 13575 | J109: 0 | K109: 0 | L109: 0 | M109: 13575 | N109: C125
A110: 2020 | B110: 409126 | C110: 409 | D110: C | E110: 126 | F110: Depreciation - non instructional | G110: 0 | H110: 0 | I110: 0 | J110: 0 | K110: 0 | L110: 0 | M110: 0 | N110: C126
A111: 2020 | B111: 409127 | C111: 409 | D111: C | E111: 127 | F111: Legal Settlements | G111: 0 | H111: 0 | I111: 0 | J111: 0 | K111: 0 | L111: 0 | M111: 0 | N111: C127
A112: 2020 | B112: 409170 | C112: 409 | D112: C | E112: 170 | F112: Subtotal - Development (Private) | G112: 0 | H112: 0 | I112: 29937 | J112: 0 | K112: 0 | L112: 0 | M112: 29937 | N112: C170
A113: 2020 | B113: 409170a | C113: 409 | D113: C | E113: 170a | F113: Salaries - Professional - Private | G113: 0 | H113: 0 | I113: 0 | J113: 0 | K113: 0 | L113: 0 | M113: 0 | N113: C170a
A114: 2020 | B114: 409170b | C114: 409 | D114: C | E114: 170b | F114: Contracted Services - Private | G114: 0 | H114: 0 | I114: 0 | J114: 0 | K114: 0 | L114: 0 | M114: 0 | N114: C170b
A115: 2020 | B115: 409170c | C115: 409 | D115: C | E115: 170c | F115: Fundraising - Private | G115: 0 | H115: 0 | I115: 29937 | J115: 0 | K115: 0 | L115: 0 | M115: 29937 | N115: C170c
A116: 2020 | B116: 409171 | C116: 409 | D116: C | E116: 171 | F116: Subtotal - Development (Public) | G116: 0 | H116: 0 | I116: 85385 | J116: 0 | K116: 0 | L116: 0 | M116: 85385 | N116: C171
A117: 2020 | B117: 409171a | C117: 409 | D117: C | E117: 171a | F117: Salaries - Professional - Public | G117: 0 | H117: 0 | I117: 69000 | J117: 0 | K117: 0 | L117: 0 | M117: 69000 | N117: C171a
A118: 2020 | B118: 409171b | C118: 409 | D118: C | E118: 171b | F118: Contracted Services - Public | G118: 0 | H118: 0 | I118: 16385 | J118: 0 | K118: 0 | L118: 0 | M118: 16385 | N118: C171b
A119: 2020 | B119: 409200 | C119: 409 | D119: C | E119: 200 | F119: Instructional Services | G119: 4123910 | H119: 1184698 | I119: 76498 | J119: 0 | K119: 279444 | L119: 0 | M119: 5664550 | N119: C200
A120: 2020 | B120: 409210 | C120: 409 | D120: C | E120: 210 | F120: Instructional Subtotal - Instructional Leadership | G120: 630679 | H120: 63777 | I120: 0 | J120: 0 | K120: 15000 | L120: 0 | M120: 709456 | N120: C210
A121: 2020 | B121: 409211 | C121: 409 | D121: C | E121: 211 | F121: Salaries - Professional | G121: 630679 | H121: 63777 | I121: 0 | J121: 0 | K121: 0 | L121: 0 | M121: 694456 | N121: C211
A122: 2020 | B122: 409212 | C122: 409 | D122: C | E122: 212 | F122: Salaries - Clerical | G122: 0 | H122: 0 | I122: 0 | J122: 0 | K122: 0 | L122: 0 | M122: 0 | N122: C212
A123: 2020 | B123: 409213 | C123: 409 | D123: C | E123: 213 | F123: Contracted Services | G123: 0 | H123: 0 | I123: 0 | J123: 0 | K123: 15000 | L123: 0 | M123: 15000 | N123: C213
A124: 2020 | B124: 409214 | C124: 409 | D124: C | E124: 214 | F124: Supplies and Materials | G124: 0 | H124: 0 | I124: 0 | J124: 0 | K124: 0 | L124: 0 | M124: 0 | N124: C214
A125: 2020 | B125: 409215 | C125: 409 | D125: C | E125: 215 | F125: Travel and other expenses | G125: 0 | H125: 0 | I125: 0 | J125: 0 | K125: 0 | L125: 0 | M125: 0 | N125: C215
A126: 2020 | B126: 409220 | C126: 409 | D126: C | E126: 220 | F126: Instructional Subtotal - Classroom and Specialist Teachers | G126: 2751952 | H126: 549614 | I126: 0 | J126: 0 | K126: 11539 | L126: 0 | M126: 3313105 | N126: C220
A127: 2020 | B127: 409221 | C127: 409 | D127: C | E127: 221 | F127: Salaries - Teachers, Classroom | G127: 2574809 | H127: 0 | I127: 0 | J127: 0 | K127: 1250 | L127: 0 | M127: 2576059 | N127: C221
A128: 2020 | B128: 409222 | C128: 409 | D128: C | E128: 222 | F128: Salaries - Teachers, Specialists | G128: 177143 | H128: 549614 | I128: 0 | J128: 0 | K128: 10289 | L128: 0 | M128: 737046 | N128: C222
A129: 2020 | B129: 409230 | C129: 409 | D129: C | E129: 230 | F129: Instructional Subtotal - Other Teaching Services | G129: 347910 | H129: 335476 | I129: 0 | J129: 0 | K129: 112754 | L129: 0 | M129: 796140 | N129: C230
A130: 2020 | B130: 409231 | C130: 409 | D130: C | E130: 231 | F130: Salaries - Professional | G130: 0 | H130: 0 | I130: 0 | J130: 0 | K130: 0 | L130: 0 | M130: 0 | N130: C231
A131: 2020 | B131: 409232 | C131: 409 | D131: C | E131: 232 | F131: Salaries - Non-clerical Paraprofessionals | G131: 0 | H131: 136851 | I131: 0 | J131: 0 | K131: 0 | L131: 0 | M131: 136851 | N131: C232
A132: 2020 | B132: =C132&E132 -> 409233 | C132: 409 | D132: C | E132: 233 | F132: Salaries - Clerical | G132: 322616 | H132: 0 | I132: 0 | J132: 0 | K132: 0 | L132: 0 | M132: 322616 | N132: =D132&E132 -> C233
A133: 2020 | B133: 409234 | C133: 409 | D133: C | E133: 234 | F133: Contracted Services | G133: 25294 | H133: 198625 | I133: 0 | J133: 0 | K133: 112754 | L133: 0 | M133: 336673 | N133: C234
A134: 2020 | B134: 409240 | C134: 409 | D134: C | E134: 240 | F134: Instructional Subtotal - Professional Development | G134: 137894 | H134: 0 | I134: 0 | J134: 0 | K134: 79180 | L134: 0 | M134: 217074 | N134: C240
A135: 2020 | B135: 409241 | C135: 409 | D135: C | E135: 241 | F135: Salaries - Professional | G135: 0 | H135: 0 | I135: 0 | J135: 0 | K135: 0 | L135: 0 | M135: 0 | N135: C241
A136: 2020 | B136: 409242 | C136: 409 | D136: C | E136: 242 | F136: Contracted Services | G136: 62620 | H136: 0 | I136: 0 | J136: 0 | K136: 79180 | L136: 0 | M136: 141800 | N136: C242
A137: 2020 | B137: 409243 | C137: 409 | D137: C | E137: 243 | F137: Supplies and Materials | G137: 1824 | H137: 0 | I137: 0 | J137: 0 | K137: 0 | L137: 0 | M137: 1824 | N137: C243
A138: 2020 | B138: 409244 | C138: 409 | D138: C | E138: 244 | F138: Travel and other expenses | G138: 73450 | H138: 0 | I138: 0 | J138: 0 | K138: 0 | L138: 0 | M138: 73450 | N138: C244
A139: 2020 | B139: 409250 | C139: 409 | D139: C | E139: 250 | F139: Instructional Subtotal - Guidance, Psychological & Testing | G139: 0 | H139: 235831 | I139: 0 | J139: 0 | K139: 0 | L139: 0 | M139: 235831 | N139: C250
A140: 2020 | B140: 409251 | C140: 409 | D140: C | E140: 251 | F140: Salaries - Professional | G140: 0 | H140: 179991 | I140: 0 | J140: 0 | K140: 0 | L140: 0 | M140: 179991 | N140: C251
A141: 2020 | B141: 409252 | C141: 409 | D141: C | E141: 252 | F141: Salaries - Clerical | G141: 0 | H141: 0 | I141: 0 | J141: 0 | K141: 0 | L141: 0 | M141: 0 | N141: C252
A142: 2020 | B142: 409253 | C142: 409 | D142: C | E142: 253 | F142: Contracted Services | G142: 0 | H142: 42955 | I142: 0 | J142: 0 | K142: 0 | L142: 0 | M142: 42955 | N142: C253
A143: 2020 | B143: 409254 | C143: 409 | D143: C | E143: 254 | F143: Supplies and Materials | G143: 0 | H143: 12885 | I143: 0 | J143: 0 | K143: 0 | L143: 0 | M143: 12885 | N143: C254
A144: 2020 | B144: 409260 | C144: 409 | D144: C | E144: 260 | F144: Instructional Subtotal - Materials, Equipment & Technology | G144: 255475 | H144: 0 | I144: 76498 | J144: 0 | K144: 60971 | L144: 0 | M144: 392944 | N144: C260
A145: 2020 | B145: 409261 | C145: 409 | D145: C | E145: 261 | F145: Textbooks & Related Media/Materials | G145: 10576 | H145: 0 | I145: 0 | J145: 0 | K145: 37638 | L145: 0 | M145: 48214 | N145: C261
A146: 2020 | B146: 409262 | C146: 409 | D146: C | E146: 262 | F146: Other Instructional Materials | G146: 0 | H146: 0 | I146: 76498 | J146: 0 | K146: 0 | L146: 0 | M146: 76498 | N146: C262
A147: 2020 | B147: 409263 | C147: 409 | D147: C | E147: 263 | F147: Instructional Equipment | G147: 17915 | H147: 0 | I147: 0 | J147: 0 | K147: 10388 | L147: 0 | M147: 28303 | N147: C263
A148: 2020 | B148: 409264 | C148: 409 | D148: C | E148: 264 | F148: General Supplies | G148: 149662 | H148: 0 | I148: 0 | J148: 0 | K148: 924 | L148: 0 | M148: 150586 | N148: C264
A149: 2020 | B149: 409265 | C149: 409 | D149: C | E149: 265 | F149: Other Instructional Services | G149: 23831 | H149: 0 | I149: 0 | J149: 0 | K149: 0 | L149: 0 | M149: 23831 | N149: C265
A150: 2020 | B150: 409266 | C150: 409 | D150: C | E150: 266 | F150: Classroom Instructional Technology Hardware | G150: 4147 | H150: 0 | I150: 0 | J150: 0 | K150: 8021 | L150: 0 | M150: 12168 | N150: C266
A151: 2020 | B151: 409267 | C151: 409 | D151: C | E151: 267 | F151: Other Instructional Technology Hardware | G151: 0 | H151: 0 | I151: 0 | J151: 0 | K151: 0 | L151: 0 | M151: 0 | N151: C267
A152: 2020 | B152: 409268a | C152: 409 | D152: C | E152: 268a | F152: Classroom Instructional Software | G152: 49344 | H152: 0 | I152: 0 | J152: 0 | K152: 4000 | L152: 0 | M152: 53344 | N152: C268a
A153: 2020 | B153: 409268b | C153: 409 | D153: C | E153: 268b | F153: Other Instructional Software | G153: 0 | H153: 0 | I153: 0 | J153: 0 | K153: 0 | L153: 0 | M153: 0 | N153: C268b
A154: 2020 | B154: 409269 | C154: 409 | D154: C | E154: 269 | F154: Depreciation for Furniture, Equipment & Technology | G154: 0 | H154: 0 | I154: 0 | J154: 0 | K154: 0 | L154: 0 | M154: 0 | N154: C269
A155: 2020 | B155: 409300 | C155: 409 | D155: C | E155: 300 | F155: Pupil Services | G155: 892320 | H155: 0 | I155: 310236 | J155: 4126 | K155: 428025 | L155: 0 | M155: 1634707 | N155: C300
A156: 2020 | B156: 409310 | C156: 409 | D156: C | E156: 310 | F156: Health Services | G156: 0 | H156: 0 | I156: 115872 | J156: 0 | K156: 0 | L156: 0 | M156: 115872 | N156: C310
A157: 2020 | B157: 409315 | C157: 409 | D157: C | E157: 315 | F157: Health Services - Contracted | G157: 0 | H157: 0 | I157: 600 | J157: 0 | K157: 0 | L157: 0 | M157: 600 | N157: C315
A158: 2020 | B158: 409320 | C158: 409 | D158: C | E158: 320 | F158: Athletic Services (including Transportation) | G158: 0 | H158: 0 | I158: 0 | J158: 0 | K158: 0 | L158: 0 | M158: 0 | N158: C320
A159: 2020 | B159: 409325 | C159: 409 | D159: C | E159: 325 | F159: Athletic Services (including Transportation) - Contracted | G159: 0 | H159: 0 | I159: 2000 | J159: 0 | K159: 0 | L159: 0 | M159: 2000 | N159: C325
A160: 2020 | B160: 409330 | C160: 409 | D160: C | E160: 330 | F160: Food Services | G160: 0 | H160: 0 | I160: 130001 | J160: 4126 | K160: 426474 | L160: 0 | M160: 560601 | N160: C330
A161: 2020 | B161: 409335 | C161: 409 | D161: C | E161: 335 | F161: Food Services - Contracted | G161: 0 | H161: 0 | I161: 0 | J161: 0 | K161: 0 | L161: 0 | M161: 0 | N161: C335
A162: 2020 | B162: 409340 | C162: 409 | D162: C | E162: 340 | F162: Student Transportation (to and from school) | G162: 892320 | H162: 0 | I162: 0 | J162: 0 | K162: 0 | L162: 0 | M162: 892320 | N162: C340
A163: 2020 | B163: 409345 | C163: 409 | D163: C | E163: 345 | F163: Student Transportation (to and from school) - Contracted | G163: 0 | H163: 0 | I163: 0 | J163: 0 | K163: 0 | L163: 0 | M163: 0 | N163: C345
A164: 2020 | B164: 409350 | C164: 409 | D164: C | E164: 350 | F164: Depreciation of Transportation Vehicles | G164: 0 | H164: 0 | I164: 0 | J164: 0 | K164: 0 | L164: 0 | M164: 0 | N164: C350
A165: 2020 | B165: 409360 | C165: 409 | D165: C | E165: 360 | F165: Other Student Activities | G165: 0 | H165: 0 | I165: 61763 | J165: 0 | K165: 1551 | L165: 0 | M165: 63314 | N165: C360
A166: 2020 | B166: 409400 | C166: 409 | D166: C | E166: 400 | F166: Operation & Maintenance of Plant | G166: 0 | H166: 0 | I166: 543651 | J166: 0 | K166: 0 | L166: 0 | M166: 543651 | N166: C400
A167: 2020 | B167: 409410 | C167: 409 | D167: C | E167: 410 | F167: Operation & Maintenance of Buildings and Grounds | G167: 0 | H167: 0 | I167: 370338 | J167: 0 | K167: 0 | L167: 0 | M167: 370338 | N167: C410
A168: 2020 | B168: 409420 | C168: 409 | D168: C | E168: 420 | F168: Utilities | G168: 0 | H168: 0 | I168: 129653 | J168: 0 | K168: 0 | L168: 0 | M168: 129653 | N168: C420
A169: 2020 | B169: 409430 | C169: 409 | D169: C | E169: 430 | F169: Maintenance of Equipment | G169: 0 | H169: 0 | I169: 5254 | J169: 0 | K169: 0 | L169: 0 | M169: 5254 | N169: C430
A170: 2020 | B170: 409440 | C170: 409 | D170: C | E170: 440 | F170: Networking and Telecommunications | G170: 0 | H170: 0 | I170: 38406 | J170: 0 | K170: 0 | L170: 0 | M170: 38406 | N170: C440
A171: 2020 | B171: 409500 | C171: 409 | D171: C | E171: 500 | F171: Fixed Charges | G171: 0 | H171: 0 | I171: 1938133 | J171: 0 | K171: 0 | L171: 0 | M171: 1938133 | N171: C500
A172: 2020 | B172: 409510 | C172: 409 | D172: C | E172: 510 | F172: Employee Retirement & Taxes | G172: 0 | H172: 0 | I172: 1239253 | J172: 0 | K172: 0 | L172: 0 | M172: 1239253 | N172: C510
A173: 2020 | B173: 409520 | C173: 409 | D173: C | E173: 520 | F173: Fringe Benefits | G173: 0 | H173: 0 | I173: 587588 | J173: 0 | K173: 0 | L173: 0 | M173: 587588 | N173: C520
A174: 2020 | B174: 409530 | C174: 409 | D174: C | E174: 530 | F174: Insurance (non-employee) | G174: 0 | H174: 0 | I174: 43321 | J174: 0 | K174: 0 | L174: 0 | M174: 43321 | N174: C530
A175: 2020 | B175: 409550 | C175: 409 | D175: C | E175: 550 | F175: Rental/Lease of Equipment | G175: 0 | H175: 0 | I175: 67971 | J175: 0 | K175: 0 | L175: 0 | M175: 67971 | N175: C550
A176: 2020 | B176: 409560 | C176: 409 | D176: C | E176: 560 | F176: Short-Term Interest | G176: 0 | H176: 0 | I176: 0 | J176: 0 | K176: 0 | L176: 0 | M176: 0 | N176: C560
A177: 2020 | B177: 409600 | C177: 409 | D177: C | E177: 600 | F177: Community Services | G177: 0 | H177: 0 | I177: 1380 | J177: 0 | K177: 0 | L177: 0 | M177: 1380 | N177: C600
A178: 2020 | B178: 409610 | C178: 409 | D178: C | E178: 610 | F178: Dissemination Activities | G178: 0 | H178: 0 | I178: 0 | J178: 0 | K178: 0 | L178: 0 | M178: 0 | N178: C610
A179: 2020 | B179: 409620 | C179: 409 | D179: C | E179: 620 | F179: Civic Activities | G179: 0 | H179: 0 | I179: 1380 | J179: 0 | K179: 0 | L179: 0 | M179: 1380 | N179: C620
A180: 2020 | B180: 409700 | C180: 409 | D180: C | E180: 700 | F180: Non-Operating / Capital Facilities Costs | G180: 0 | H180: 0 | I180: 1508523 | J180: 0 | K180: 0 | L180: 0 | M180: 1508523 | N180: C700
A181: 2020 | B181: 409720 | C181: 409 | D181: C | E181: 720 | F181: Long-Term Interest, facilities related | G181: 0 | H181: 0 | I181: 438900 | J181: 0 | K181: 0 | L181: 0 | M181: 438900 | N181: C720
A182: 2020 | B182: 409725 | C182: 409 | D182: C | E182: 725 | F182: Long-Term Interest, non-facilities related | G182: 0 | H182: 0 | I182: 0 | J182: 0 | K182: 0 | L182: 0 | M182: 0 | N182: C725
A183: 2020 | B183: 409730 | C183: 409 | D183: C | E183: 730 | F183: Other costs related to capital facilities acquisition | G183: 0 | H183: 0 | I183: 300000 | J183: 0 | K183: 0 | L183: 0 | M183: 300000 | N183: C730
A184: 2020 | B184: 409740 | C184: 409 | D184: C | E184: 740 | F184: Rental/Lease of Buildings & Grounds | G184: 0 | H184: 0 | I184: 705213 | J184: 0 | K184: 0 | L184: 0 | M184: 705213 | N184: C740
A185: 2020 | B185: 409750 | C185: 409 | D185: C | E185: 750 | F185: Depreciation of Equipment, Building, & Grounds | G185: 0 | H185: 0 | I185: 64410 | J185: 0 | K185: 0 | L185: 0 | M185: 64410 | N185: C750
A186: 2020 | B186: 409760 | C186: 409 | D186: C | E186: 760 | F186: Bad debt / loss on disposal of assets | G186: 0 | H186: 0 | I186: 0 | J186: 0 | K186: 0 | L186: 0 | M186: 0 | N186: C760
A187: 2020 | B187: 409800 | C187: 409 | D187: C | E187: 800 | F187: TOTALS | G187: 5016230 | H187: 1184698 | I187: 5222478 | J187: 4126 | K187: 750031 | L187: 0 | M187: 12177563 | N187: C800
A188: 2020 | B188: 409910 | C188: 409 | D188: C | E188: 910 | F188: Reference: Capitalized Expenditures | G188: 0 | H188: 0 | I188: 0 | J188: 63000 | K188: 85591 | L188: 0 | M188: 148591 | N188: C910
A189: 2020 | B189: 409920 | C189: 409 | D189: C | E189: 920 | F189: Reference: Deferrals/Carryovers | G189: 0 | H189: 0 | I189: 0 | J189: 0 | K189: 0 | L189: 0 | M189: 0 | N189: C920
A190: 2020 | B190: 409900 | C190: 409 | D190: C | E190: 900 | F190: Reference: Totals | G190: 0 | H190: 0 | I190: 5222478 | J190: 67126 | K190: 835622 | L190: 0 | M190: 12326154 | N190: C900
A191: 2020 | B191: 410100 | C191: 410 | D191: C | E191: 100 | F191: Administration | G191: 0 | H191: 0 | I191: 1785712.238 | J191: 0 | K191: 230682.3418 | L191: 1500 | M191: 2017894.58 | N191: C100
A192: 2020 | B192: 410110 | C192: 410 | D192: C | E192: 110 | F192: Subtotal - Board of Trustees | G192: 0 | H192: 0 | I192: 326 | J192: 0 | K192: 0 | L192: 0 | M192: 326 | N192: C110
A193: 2020 | B193: 410111 | C193: 410 | D193: C | E193: 111 | F193: Contracted Services | G193: 0 | H193: 0 | I193: 0 | J193: 0 | K193: 0 | L193: 0 | M193: 0 | N193: C111
A194: 2020 | B194: 410112 | C194: 410 | D194: C | E194: 112 | F194: Travel and other expenses | G194: 0 | H194: 0 | I194: 326 | J194: 0 | K194: 0 | L194: 0 | M194: 326 | N194: C112
A195: 2020 | B195: 410120 | C195: 410 | D195: C | E195: 120 | F195: Subtotal - School Leaders | G195: 0 | H195: 0 | I195: 241443.6113 | J195: 0 | K195: 0 | L195: 0 | M195: 241443.6113 | N195: C120
A196: 2020 | B196: =C196&E196 -> 410121 | C196: 410 | D196: C | E196: 121 | F196: Salaries - Professional | G196: 0 | H196: 0 | I196: 241443.6113 | J196: 0 | K196: 0 | L196: 0 | M196: 241443.6113 | N196: =D196&E196 -> C121
A197: 2020 | B197: 410122 | C197: 410 | D197: C | E197: 122 | F197: Contracted Services | G197: 0 | H197: 0 | I197: 0 | J197: 0 | K197: 0 | L197: 0 | M197: 0 | N197: C122
A198: 2020 | B198: 410120a | C198: 410 | D198: C | E198: 120a | F198: Subtotal - Non-Instructional Administration and Support Staff | G198: 0 | H198: 0 | I198: 1413003.32 | J198: 0 | K198: 230682.3418 | L198: 1500 | M198: 1645185.661 | N198: C120a
A199: 2020 | B199: 410121a | C199: 410 | D199: C | E199: 121a | F199: Salaries - Professional and Support Staff | G199: 0 | H199: 0 | I199: 790106.9996 | J199: 0 | K199: 120844.8418 | L199: 0 | M199: 910951.8414 | N199: C121a
A200: 2020 | B200: 410122a | C200: 410 | D200: C | E200: 122a | F200: Contracted Services - Professional and Support Staff | G200: 0 | H200: 0 | I200: 309103.32 | J200: 0 | K200: 19587.5 | L200: 0 | M200: 328690.82 | N200: C122a
... 4300 more rows

Sheet CSLIST (hidden)
B1: Select a Charter School | C1: LEA
A2: 2 | B2: Abby Kelley Foster Charter Public School | C2: 445
A3: 3 | B3: Academy of the Pacific Rim Charter Public School | C3: 412
A4: 4 | B4: Advanced Math and Science Academy Charter School | C4: 430
A5: 5 | B5: Alma del Mar Charter School | C5: 409
A6: 6 | B6: Argosy Collegiate Charter School | C6: 3509
A7: 7 | B7: Atlantis Charter School | C7: 491
A8: 8 | B8: Barnstable Community Horace Mann Charter Public School | C8: 427
A9: 9 | B9: Baystate Academy Charter Public School | C9: 3502
A10: 10 | B10: Benjamin Banneker Charter Public School | C10: 420
A11: 11 | B11: Benjamin Franklin Classical Charter Public School | C11: 447
A12: 12 | B12: Bentley Academy Charter School | C12: 3511
A13: 13 | B13: Berkshire Arts and Technology Charter Public School | C13: 414
A14: 14 | B14: Boston Collegiate Charter School | C14: 449
A15: 15 | B15: Boston Day and Evening Academy Charter School | C15: 424
A16: 16 | B16: Boston Green Academy Horace Mann Charter School | C16: 411
A17: 17 | B17: Boston Preparatory Charter Public School | C17: 416
A18: 18 | B18: Boston Renaissance Charter Public School | C18: 481
A19: 19 | B19: Bridge Boston Charter School | C19: 417
A20: 20 | B20: Brooke Charter School | C20: 428
A21: 21 | B21: Cape Cod Lighthouse Charter School | C21: 432
A22: 22 | B22: Christa McAuliffe Charter School | C22: 418
A23: 23 | B23: City on a Hill Charter Public School Circuit Street | C23: 437
A24: 24 | B24: City on a Hill Charter Public School Dudley Square | C24: 3504
A25: 25 | B25: City On A Hill Charter Public School New Bedford | C25: 3507
A26: 26 | B26: Codman Academy Charter Public School | C26: 438
A27: 27 | B27: Collegiate Charter School of Lowell | C27: 3503
A28: 28 | B28: Community Charter School of Cambridge | C28: 436
A29: 29 | B29: Community Day Charter Public School - Gateway | C29: 426
A30: 30 | B30: Community Day Charter Public School - Prospect | C30: 440
A31: 31 | B31: Community Day Charter Public School - R. Kingman Webster | C31: 431
A32: 32 | B32: Conservatory Lab Charter School | C32: 439
A33: 33 | B33: Dudley Street Neighborhood Charter School | C33: 407
A34: 34 | B34: Edward M. Kennedy Academy for Health Careers: A HMCPS | C34: 452
A35: 35 | B35: Excel Academy Charter School | C35: 410
A36: 36 | B36: Four Rivers Charter Public School | C36: 413
A37: 37 | B37: Foxborough Regional Charter School | C37: 446
A38: 38 | B38: Francis W. Parker Charter Essential School | C38: 478
A39: 39 | B39: Global Learning Charter Public School | C39: 496
A40: 40 | B40: Hampden Charter School of Science East | C40: 499
A41: 41 | B41: Hampden Charter School of Science-West | C41: 3516
A42: 42 | B42: Helen Y Davis Leadership Academy Charter Public School | C42: 419
A43: 43 | B43: Hill View Montessori Charter Public School | C43: 455
A44: 44 | B44: Hilltown Cooperative Charter Public School | C44: 450
A45: 45 | B45: Holyoke Community Charter School | C45: 453
A46: 46 | B46: Innovation Academy Charter School | C46: 435
A47: 47 | B47: KIPP Academy Boston Charter School | C47: 463
A48: 48 | B48: KIPP Academy Lynn Charter School | C48: 429
A49: 49 | B49: Lawrence Family Development Charter School | C49: 454
A50: 50 | B50: Libertas Academy Charter School | C50: 3514
A51: 51 | B51: Lowell Community Charter Public School | C51: 456
A52: 52 | B52: Lowell Middlesex Academy Charter School | C52: 458
A53: 53 | B53: Map Academy Charter School | C53: 3517
A54: 54 | B54: Marblehead Community Charter Public School | C54: 464
A55: 55 | B55: Martha's Vineyard Public Charter School | C55: 466
A56: 56 | B56: Martin Luther King, Jr. Charter School of Excellence | C56: 492
A57: 57 | B57: Match Charter Public School | C57: 469
A58: 58 | B58: Mystic Valley Regional Charter School | C58: 470
A59: 59 | B59: Neighborhood House Charter School | C59: 444
A60: 60 | B60: New Heights Charter School of Brockton | C60: 3513
A61: 61 | B61: Old Sturbridge Academy | C61: 3515
A62: 62 | B62: Paulo Freire Social Justice Charter School | C62: 3501
A63: 63 | B63: Phoenix Academy Charter Public High School, Chelsea | C63: 493
A64: 64 | B64: Phoenix Academy Charter Public High School, Lawrence | C64: 3518
A65: 65 | B65: Phoenix Academy Public Charter High School, Springfield | C65: 3508
A66: 66 | B66: Pioneer Charter School of Science | C66: 494
A67: 67 | B67: Pioneer Charter School of Science II | C67: 3506
A68: 68 | B68: Pioneer Valley Chinese Immersion Charter School | C68: 497
A69: 69 | B69: Pioneer Valley Performing Arts Charter Public School | C69: 479
A70: 70 | B70: Prospect Hill Academy Charter School | C70: 487
A71: 71 | B71: Rising Tide Charter Public School | C71: 483
A72: 72 | B72: River Valley Charter School | C72: 482
A73: 73 | B73: Roxbury Preparatory Charter School | C73: 484
A74: 74 | B74: Sabis International Charter School | C74: 441
A75: 75 | B75: Salem Academy Charter School | C75: 485
A76: 76 | B76: Seven Hills Charter Public School | C76: 486
A77: 77 | B77: Sizer School, A North Central Charter Essential School | C77: 474
A78: 78 | B78: South Shore Charter Public School | C78: 488
A79: 79 | B79: Springfield Preparatory Charter School | C79: 3510
A80: 80 | B80: Sturgis Charter Public School | C80: 489
A81: 81 | B81: UP Academy Charter School of Boston | C81: 480
A82: 82 | B82: UP Academy Charter School of Dorchester | C82: 3505
A83: 83 | B83: Veritas Preparatory Charter School | C83: 498
A84: 84 | B84: Commonwealth Charter Statewide Totals | C84: C
A85: 85 | B85: Horace Mann Charter Statewide Totals | C85: HM
A86: 86 | B86: All Charter Schools Statewide Totals | C86: ALL

Sheet FACTS (hidden)
A1: LEA | B1: Charter School | C1: Type | D1: Acct. Cohort | E1: Acct. Liaison | F1: Location | G1: Charter Status 7/1/2018 | H1: Charter Granted | I1: Counts Toward Numeric Cap | J1: Year Opened (Fall) | K1: FY19 Years of Operation | L1: 1st Charter Renewal | M1: 2nd Charter Renewal | N1: 3rd Charter Renewal | O1: 4th Charter Renewal Year | P1: 1st Charter Renewal | Q1: 2nd Charter Renewal | R1: 3rd Charter Renewal | S1: 4th Charter Renewal | T1: Last Charter Renewal | U1: Charter Expires | V1: Charter Expires | W1: Regional | X1: EMO | Y1: Max Grade Span | Z1: Max. Enroll # | AA1: Location Type | AB1: School Type | AC1: If Closed: School Year of Closure | AD1: Closure type
A2: 445 | B2: Abby Kelley Foster Charter Public School | C2: C | D2: 2 | F2: Worcester | G2: No Status | H2: 1998 | I2: Yes | J2: 1998 | K2: 21 | L2: 2003 | M2: 2008 | N2: 2013 | O2: 2018 | P2: 2003 | Q2: 2008 | R2: 2013 | S2: 2018 | T2: 2018 | U2: 2023 | V2: 2023 | W2: Yes | X2: Former | Y2: K-12 | Z2: 1426 | AA2: Urban | AB2: K12 | AC2: NA
A3: 412 | B3: Academy of the Pacific Rim Charter Public School | C3: C | D3: 1 | F3: Boston | G3: No Status | H3: 1995 | I3: Yes | J3: 1997 | K3: 22 | L3: 2002 | M3: 2007 | N3: 2012 | O3: 2017 | P3: 2002 | Q3: 2007 | R3: 2012 | S3: 2017 | T3: 2017 | U3: 2022 | V3: 2022 | W3: No | X3: No | Y3: 05-12 | Z3: 545 | AA3: Boston | AB3: MSHS | AC3: NA
A4: 430 | B4: Advanced Math and Science Academy Charter School | C4: C | D4: 4 | F4: Marlborough | G4: No Status | H4: 2004 | I4: Yes | J4: 2005 | K4: 14 | L4: 2010 | M4: 2015 | N4: 2020 | O4: 2025 | P4: 2010 | Q4: 2015 | R4: NA | S4: NA | T4: 2015 | U4: 2020 | V4: 2020 | W4: Yes | X4: No | Y4: 06-12 | Z4: 966 | AA4: Suburb | AB4: MSHS | AC4: NA
A5: 409 | B5: Alma del Mar Charter School | C5: C | D5: 5 | F5: New Bedford | G5: No Status | H5: 2011 | I5: Yes | J5: 2011 | K5: 8 | L5: 2016 | M5: 2021 | N5: 2026 | O5: 2031 | P5: 2016 | Q5: NA | R5: NA | S5: NA | T5: 2016 | U5: 2021 | V5: 2021 | W5: No | X5: No | Y5: K-08 | Z5: 450 | AA5: Urban | AB5: ESMS | AC5: NA
A6: 3509 | B6: Argosy Collegiate Charter School | C6: C | D6: 3 | F6: Fall River | G6: No Status | H6: 2014 | I6: No | J6: 2014 | K6: 5 | L6: 2019 | M6: 2024 | N6: 2029 | O6: 2034 | P6: NA | Q6: NA | R6: NA | S6: NA | T6: 0 | U6: 2019 | V6: 2019 | W6: No | X6: No | Y6: 06-12 | Z6: 644 | AA6: Urban | AB6: MSHS | AC6: NA
A7: 491 | B7: Atlantis Charter School | C7: C | D7: 4 | F7: Fall River | G7: No Status | H7: 1994 | I7: Yes | J7: 1995 | K7: 24 | L7: 2000 | M7: 2005 | N7: 2010 | O7: 2015 | P7: 2000 | Q7: 2005 | R7: 2010 | S7: 2015 | T7: 2015 | U7: 2020 | V7: 2020 | W7: No | X7: No | Y7: K-12 | Z7: 1378 | AA7: Urban | AB7: K12 | AC7: NA
A8: 427 | B8: Barnstable Community Horace Mann Charter Public School | C8: HM | D8: 3 | F8: Barnstable | G8: No Status | H8: 2004 | I8: Yes | J8: 2004 | K8: 15 | L8: 2009 | M8: 2014 | N8: 2019 | O8: 2024 | P8: 2009 | Q8: 2014 | R8: NA | S8: NA | T8: 2014 | U8: 2019 | V8: 2019 | W8: NA | X8: No | Y8: K-03 | Z8: 475 | AA8: Suburb | AB8: ES | AC8: NA
A9: 3502 | B9: Baystate Academy Charter Public School | C9: C | D9: 2 | F9: Springfield | G9: Conditions | H9: 2012 | I9: No | J9: 2013 | K9: 6 | L9: 2018 | M9: 2023 | N9: 2028 | O9: 2033 | P9: 2018 | Q9: NA | R9: NA | S9: NA | T9: 2018 | U9: 2023 | V9: 2023 | W9: No | X9: No | Y9: 06-12 | Z9: 560 | AA9: Urban | AB9: MSHS | AC9: NA
A10: 420 | B10: Benjamin Banneker Charter Public School | C10: C | D10: 5 | F10: Cambridge | G10: No Status | H10: 1995 | I10: Yes | J10: 1996 | K10: 23 | L10: 2001 | M10: 2006 | N10: 2011 | O10: 2016 | P10: 2001 | Q10: 2006 | R10: 2011 | S10: 2016 | T10: 2016 | U10: 2021 | V10: 2021 | W10: No | X10: No | Y10: PK-06 | Z10: 350 | AA10: Urban | AB10: ESMS | AC10: NA
A11: 447 | B11: Benjamin Franklin Classical Charter Public School | C11: C | D11: 4 | F11: Franklin | G11: No Status | H11: 1994 | I11: Yes | J11: 1995 | K11: 24 | L11: 2000 | M11: 2005 | N11: 2010 | O11: 2015 | P11: 2000 | Q11: 2005 | R11: 2010 | S11: 2015 | T11: 2015 | U11: 2020 | V11: 2020 | W11: Yes | X11: No | Y11: K-08 | Z11: 900 | AA11: Suburb | AB11: ESMS | AC11: NA
A12: 3511 | B12: Bentley Academy Charter School | C12: HM | D12: 4 | F12: Salem | G12: No Status | H12: 2015 | I12: Yes | J12: 2015 | K12: 4 | L12: 2020 | M12: 2025 | N12: 2030 | O12: 2035 | P12: NA | Q12: NA | R12: NA | S12: NA | T12: 0 | U12: 2020 | V12: 2020 | W12: No | X12: No | Y12: K-05 | Z12: 350 | AA12: Urban | AB12: ES | AC12: NA
A13: 414 | B13: Berkshire Arts and Technology Charter Public School | C13: C | D13: 3 | F13: Adams | G13: No Status | H13: 2003 | I13: Yes | J13: 2004 | K13: 15 | L13: 2009 | M13: 2014 | N13: 2019 | O13: 2024 | P13: 2009 | Q13: 2014 | R13: NA | S13: NA | T13: 2014 | U13: 2019 | V13: 2019 | W13: Yes | X13: No | Y13: 06-12 | Z13: 363 | AA13: Rural | AB13: MSHS | AC13: NA
A14: 449 | B14: Boston Collegiate Charter School | C14: C | D14: 2 | F14: Boston | G14: No Status | H14: 1998 | I14: Yes | J14: 1998 | K14: 21 | L14: 2003 | M14: 2008 | N14: 2013 | O14: 2018 | P14: 2003 | Q14: 2008 | R14: 2013 | S14: 2018 | T14: 2018 | U14: 2023 | V14: 2023 | W14: No | X14: No | Y14: 05-12 | Z14: 700 | AA14: Boston | AB14: MSHS | AC14: NA
A15: 424 | B15: Boston Day and Evening Academy Charter School | C15: HM | D15: 2 | F15: Boston | G15: No Status | H15: 1998 | I15: Yes | J15: 1998 | K15: 21 | L15: 2003 | M15: 2008 | N15: 2013 | O15: 2018 | P15: 2003 | Q15: 2008 | R15: 2013 | S15: 2018 | T15: 2018 | U15: 2023 | V15: 2023 | W15: NA | X15: No | Y15: 09-12 | Z15: 405 | AA15: Boston | AB15: HS | AC15: NA
A16: 411 | B16: Boston Green Academy Horace Mann Charter School | C16: HM | D16: 5 | F16: Boston | G16: Probation | H16: 2011 | I16: Yes | J16: 2011 | K16: 8 | L16: 2016 | M16: 2021 | N16: 2026 | O16: 2031 | P16: 2016 | Q16: NA | R16: NA | S16: NA | T16: 2016 | U16: 2021 | V16: 2021 | W16: NA | X16: No | Y16: 06-12 | Z16: 595 | AA16: Boston | AB16: MSHS | AC16: NA
A17: 416 | B17: Boston Preparatory Charter Public School | C17: C | D17: 3 | F17: Boston | G17: No Status | H17: 2003 | I17: Yes | J17: 2004 | K17: 15 | L17: 2009 | M17: 2014 | N17: 2019 | O17: 2024 | P17: 2009 | Q17: 2014 | R17: NA | S17: NA | T17: 2014 | U17: 2019 | V17: 2019 | W17: No | X17: No | Y17: 06-12 | Z17: 700 | AA17: Boston | AB17: MSHS | AC17: NA
A18: 481 | B18: Boston Renaissance Charter Public School | C18: C | D18: 4 | F18: Boston | G18: Conditions | H18: 1994 | I18: Yes | J18: 1995 | K18: 24 | L18: 2000 | M18: 2005 | N18: 2010 | O18: 2015 | P18: 2000 | Q18: 2005 | R18: 2010 | S18: 2015 | T18: 2015 | U18: 2020 | V18: 2020 | W18: No | X18: Former | Y18: PK-06 | Z18: 944 | AA18: Boston | AB18: ESMS | AC18: NA
A19: 417 | B19: Bridge Boston Charter School | C19: C | D19: 5 | F19: Boston | G19: No Status | H19: 2011 | I19: No | J19: 2011 | K19: 8 | L19: 2016 | M19: 2021 | N19: 2026 | O19: 2031 | P19: 2016 | Q19: NA | R19: NA | S19: NA | T19: 2016 | U19: 2021 | V19: 2021 | W19: No | X19: No | Y19: PK-8 | Z19: 335 | AA19: Boston | AB19: ESMS | AC19: NA
A20: 428 | B20: Brooke Charter School | C20: C | D20: 1 | F20: Boston | G20: No Status | H20: 2001 | I20: Yes | J20: 2002 | K20: 17 | L20: 2007 | M20: 2012 | N20: 2017 | O20: 2022 | P20: 2007 | Q20: 2012 | R20: 2017 | S20: NA | T20: 2017 | U20: 2022 | V20: 2022 | W20: Yes | X20: No | Y20: K-12 | Z20: 2221 | AA20: Boston | AB20: K12 | AC20: NA
A21: 432 | B21: Cape Cod Lighthouse Charter School | C21: C | D21: 4 | F21: Harwich | G21: No Status | H21: 1994 | I21: Yes | J21: 1995 | K21: 24 | L21: 2000 | M21: 2005 | N21: 2010 | O21: 2015 | P21: 2000 | Q21: 2005 | R21: 2010 | S21: 2015 | T21: 2015 | U21: 2020 | V21: 2020 | W21: Yes | X21: No | Y21: 06-08 | Z21: 260 | AA21: Suburb | AB21: MS | AC21: NA
A22: 418 | B22: Christa McAuliffe Charter School | C22: C | D22: 1 | F22: Framingham | G22: No Status | H22: 2001 | I22: Yes | J22: 2002 | K22: 17 | L22: 2007 | M22: 2012 | N22: 2017 | O22: 2022 | P22: 2007 | Q22: 2012 | R22: 2017 | S22: NA | T22: 2017 | U22: 2022 | V22: 2022 | W22: Yes | X22: Former | Y22: 06-08 | Z22: 396 | AA22: Suburb | AB22: MS | AC22: NA
A23: 437 | B23: City on a Hill Charter Public School Circuit Street | C23: C | D23: 4 | F23: Boston | G23: No Status | H23: 1994 | I23: Yes | J23: 1995 | K23: 24 | L23: 2000 | M23: 2005 | N23: 2010 | O23: 2015 | P23: 2000 | Q23: 2005 | R23: 2010 | S23: 2015 | T23: 2015 | U23: 2020 | V23: 2020 | W23: No | X23: No | Y23: 09-12 | Z23: 280 | AA23: Boston | AB23: HS | AC23: NA
A24: 3504 | B24: City on a Hill Charter Public School Dudley Square | C24: C | D24: 2 | F24: Boston | G24: No Status | H24: 2013 | I24: No | J24: 2013 | K24: 6 | L24: 2018 | M24: 2023 | N24: 2028 | O24: 2033 | P24: 2018 | Q24: NA | R24: NA | S24: NA | T24: 2018 | U24: 2023 | V24: 2023 | W24: No | X24: No | Y24: 09-12 | Z24: 280 | AA24: Boston | AB24: HS | AC24: NA
A25: 3507 | B25: City On A Hill Charter Public School New Bedford | C25: C | D25: 3 | F25: New Bedford | G25: No Status | H25: 2013 | I25: Yes | J25: 2014 | K25: 5 | L25: 2019 | M25: 2024 | N25: 2029 | O25: 2034 | P25: NA | Q25: NA | R25: NA | S25: NA | T25: 0 | U25: 2019 | V25: 2019 | W25: No | X25: No | Y25: 09-12 | Z25: 280 | AA25: Urban | AB25: HS | AC25: NA
A26: 438 | B26: Codman Academy Charter Public School | C26: C | D26: 5 | F26: Boston | G26: Conditions | H26: 2001 | I26: Yes | J26: 2001 | K26: 18 | L26: 2006 | M26: 2011 | N26: 2016 | O26: 2021 | P26: 2006 | Q26: 2011 | R26: 2016 | S26: NA | T26: 2016 | U26: 2021 | V26: 2021 | W26: No | X26: No | Y26: PK-12 | Z26: 345 | AA26: Boston | AB26: K12 | AC26: NA
A27: 3503 | B27: Collegiate Charter School of Lowell | C27: C | D27: 2 | F27: Lowell | G27: No Status | H27: 2012 | I27: No | J27: 2013 | K27: 6 | L27: 2018 | M27: 2023 | N27: 2028 | O27: 2033 | P27: 2018 | Q27: NA | R27: NA | S27: NA | T27: 2018 | U27: 2023 | V27: 2023 | W27: No | X27: Yes | Y27: K-12 | Z27: 1200 | AA27: Urban | AB27: K12 | AC27: NA
A28: 436 | B28: Community Charter School of Cambridge | C28: C | D28: 4 | F28: Cambridge | G28: No Status | H28: 2004 | I28: Yes | J28: 2005 | K28: 14 | L28: 2010 | M28: 2015 | N28: 2020 | O28: 2025 | P28: 2010 | Q28: 2015 | R28: NA | S28: NA | T28: 2015 | U28: 2020 | V28: 2020 | W28: No | X28: No | Y28: 06-12 | Z28: 420 | AA28: Urban | AB28: MSHS | AC28: NA
A29: 426 | B29: Community Day Charter Public School - Gateway | C29: C | D29: 1 | F29: Lawrence | G29: No Status | H29: 2011 | I29: No | J29: 2012 | K29: 7 | L29: 2017 | M29: 2022 | N29: 2027 | O29: 2032 | P29: 2017 | Q29: NA | R29: NA | S29: NA | T29: 2017 | U29: 2022 | V29: 2022 | W29: No | X29: Yes | Y29: PK-08 | Z29: 400 | AA29: Urban | AB29: ESMS | AC29: NA
A30: 440 | B30: Community Day Charter Public School - Prospect | C30: C | D30: 4 | F30: Lawrence | G30: No Status | H30: 1994 | I30: Yes | J30: 1995 | K30: 24 | L30: 2000 | M30: 2005 | N30: 2010 | O30: 2015 | P30: 2000 | Q30: 2005 | R30: 2010 | S30: 2015 | T30: 2015 | U30: 2020 | V30: 2020 | W30: No | X30: Yes | Y30: PK-08 | Z30: 400 | AA30: Urban | AB30: ESMS | AC30: NA
A31: 431 | B31: Community Day Charter Public School - R. Kingman Webster | C31: C | D31: 1 | F31: Lawrence | G31: No Status | H31: 2011 | I31: No | J31: 2012 | K31: 7 | L31: 2017 | M31: 2022 | N31: 2027 | O31: 2032 | P31: 2017 | Q31: NA | R31: NA | S31: NA | T31: 2017 | U31: 2022 | V31: 2022 | W31: No | X31: Yes | Y31: PK-08 | Z31: 400 | AA31: Urban | AB31: ESMS | AC31: NA
A32: 439 | B32: Conservatory Lab Charter School | C32: C | D32: 3 | F32: Boston | G32: No Status | H32: 1998 | I32: Yes | J32: 1999 | K32: 20 | L32: 2004 | M32: 2009 | N32: 2014 | O32: 2019 | P32: 2004 | Q32: 2009 | R32: 2014 | S32: NA | T32: 2014 | U32: 2019 | V32: 2019 | W32: No | X32: No | Y32: PK-08 | Z32: 444 | AA32: Boston | AB32: ESMS | AC32: NA
A33: 407 | B33: Dudley Street Neighborhood Charter School | C33: HM | D33: 1 | F33: Boston | G33: No Status | H33: 2012 | I33: Yes | J33: 2012 | K33: 7 | L33: 2017 | M33: 2022 | N33: 2027 | O33: 2032 | P33: 2017 | Q33: NA | R33: NA | S33: NA | T33: 2017 | U33: 2022 | V33: 2022 | W33: NA | X33: No | Y33: PK-5 | Z33: 325 | AA33: Boston | AB33: ES | AC33: NA
A34: 452 | B34: Edward M. Kennedy Academy for Health Careers: A Horace Mann Charter Public School | C34: HM | D34: 2 | F34: Boston | G34: No Status | H34: 1998 | I34: Yes | J34: 1998 | K34: 21 | L34: 2003 | M34: 2008 | N34: 2013 | O34: 2018 | P34: 2003 | Q34: 2008 | R34: 2013 | S34: 2018 | T34: 2018 | U34: 2023 | V34: 2023 | W34: NA | X34: No | Y34: 09-12 | Z34: 448 | AA34: Boston | AB34: HS | AC34: NA
A35: 410 | B35: Excel Academy Charter School | C35: C | D35: 2 | F35: Boston/Chelsea | G35: No Status | H35: 2003 | I35: Yes | J35: 2003 | K35: 16 | L35: 2008 | M35: 2013 | N35: 2018 | O35: 2023 | P35: 2008 | Q35: 2013 | R35: 2018 | S35: NA | T35: 2018 | U35: 2023 | V35: 2023 | W35: Yes | X35: No | Y35: 05-12 | Z35: 1344 | AA35: Boston | AB35: MSHS | AC35: NA
A36: 413 | B36: Four Rivers Charter Public School | C36: C | D36: 2 | F36: Greenfield | G36: No Status | H36: 2002 | I36: Yes | J36: 2003 | K36: 16 | L36: 2008 | M36: 2013 | N36: 2018 | O36: 2023 | P36: 2008 | Q36: 2013 | R36: 2018 | S36: NA | T36: 2018 | U36: 2023 | V36: 2023 | W36: Yes | X36: No | Y36: 07-12 | Z36: 220 | AA36: Urban | AB36: MSHS | AC36: NA
A37: 446 | B37: Foxborough Regional Charter School | C37: C | D37: 2 | F37: Foxborough | G37: No Status | H37: 1998 | I37: Yes | J37: 1998 | K37: 21 | L37: 2003 | M37: 2008 | N37: 2013 | O37: 2018 | P37: 2003 | Q37: 2008 | R37: 2013 | S37: 2018 | T37: 2018 | U37: 2023 | V37: 2023 | W37: Yes | X37: Former | Y37: K-12 | Z37: 1700 | AA37: Suburb | AB37: K12 | AC37: NA
A38: 478 | B38: Francis W. Parker Charter Essential School | C38: C | D38: 4 | F38: Devens | G38: No Status | H38: 1994 | I38: Yes | J38: 1995 | K38: 24 | L38: 2000 | M38: 2005 | N38: 2010 | O38: 2015 | P38: 2000 | Q38: 2005 | R38: 2010 | S38: 2015 | T38: 2015 | U38: 2020 | V38: 2020 | W38: Yes | X38: No | Y38: 07-12 | Z38: 400 | AA38: Suburb | AB38: MSHS | AC38: NA
A39: 496 | B39: Global Learning Charter Public School | C39: C | D39: 1 | F39: New Bedford | G39: No Status | H39: 2006 | I39: Yes | J39: 2007 | K39: 12 | L39: 2012 | M39: 2017 | N39: 2022 | O39: 2027 | P39: 2012 | Q39: 2017 | R39: NA | S39: NA | T39: 2017 | U39: 2022 | V39: 2022 | W39: No | X39: No | Y39: 05-12 | Z39: 500 | AA39: Urban | AB39: MSHS | AC39: NA
A40: 499 | B40: Hampden Charter School of Science | C40: C | D40: 3 | F40: Chicopee | G40: No Status | H40: 2008 | I40: Yes | J40: 2009 | K40: 10 | L40: 2014 | M40: 2019 | N40: 2024 | O40: 2029 | P40: 2014 | Q40: NA | R40: NA | S40: NA | T40: 2014 | U40: 2019 | V40: 2019 | W40: Yes | X40: No | Y40: 06-12 | Z40: 560 | AA40: Urban | AB40: MSHS | AC40: NA
A41: 3516 | B41: Hampden Charter School of Science West | C41: C | F41: Westfield | G41: No Status | H41: 2017 | I41: No | J41: 2018 | K41: 1 | L41: 2023 | M41: 2028 | N41: 2033 | O41: 2038 | P41: NA | Q41: NA | R41: NA | S41: NA | T41: 0 | U41: 2023 | V41: 2023 | W41: Yes | X41: No | Y41: 06-12 | Z41: 588 | AA41: Rural | AB41: MSHS | AC41: NA
A42: 419 | B42: Helen Y Davis Leadership Academy Charter Public School | C42: C | D42: 2 | F42: Boston | G42: Probation | H42: 2002 | I42: Yes | J42: 2003 | K42: 16 | L42: 2008 | M42: 2013 | N42: 2018 | O42: 2023 | P42: 2008 | Q42: 2013 | R42: 2018 | S42: NA | T42: 2018 | U42: 2023 | V42: 2023 | W42: No | X42: No | Y42: 06-08 | Z42: 216 | AA42: Boston | AB42: MS | AC42: NA
A43: 455 | B43: Hill View Montessori Charter Public School | C43: C | D43: 3 | F43: Haverhill | G43: No Status | H43: 2003 | I43: Yes | J43: 2004 | K43: 15 | L43: 2009 | M43: 2014 | N43: 2019 | O43: 2024 | P43: 2009 | Q43: 2014 | R43: NA | S43: NA | T43: 2014 | U43: 2019 | V43: 2019 | W43: No | X43: No | Y43: K-08 | Z43: 306 | AA43: Urban | AB43: ESMS | AC43: NA
A44: 450 | B44: Hilltown Cooperative Charter Public School | C44: C | D44: 4 | F44: East Hampton | G44: No Status | H44: 1994 | I44: Yes | J44: 1995 | K44: 24 | L44: 2000 | M44: 2005 | N44: 2010 | O44: 2015 | P44: 2000 | Q44: 2005 | R44: 2010 | S44: 2015 | T44: 2015 | U44: 2020 | V44: 2020 | W44: Yes | X44: No | Y44: K-08 | Z44: 218 | AA44: Rural | AB44: ESMS | AC44: NA
A45: 453 | B45: Holyoke Community Charter School | C45: C | D45: 4 | F45: Holyoke | G45: No Status | H45: 2001 | I45: Yes | J45: 2005 | K45: 14 | L45: 2010 | M45: 2015 | N45: 2020 | O45: 2025 | P45: 2010 | Q45: 2015 | R45: NA | S45: NA | T45: 2015 | U45: 2020 | V45: 2020 | W45: No | X45: Yes | Y45: K-08 | Z45: 702 | AA45: Urban | AB45: ESMS | AC45: NA
A46: 435 | B46: Innovation Academy Charter School | C46: C | D46: 5 | F46: Tyngsborough | G46: No Status | H46: 1995 | I46: Yes | J46: 1996 | K46: 23 | L46: 2001 | M46: 2006 | N46: 2011 | O46: 2016 | P46: 2001 | Q46: 2006 | R46: 2011 | S46: 2016 | T46: 2016 | U46: 2021 | V46: 2021 | W46: Yes | X46: Former | Y46: 05-12 | Z46: 800 | AA46: Suburb | AB46: MSHS | AC46: NA
A47: 463 | B47: KIPP Academy Boston Charter School | C47: C | D47: 1 | F47: Boston | G47: No Status | H47: 2011 | I47: No | J47: 2012 | K47: 7 | L47: 2017 | M47: 2022 | N47: 2027 | O47: 2032 | P47: 2017 | Q47: NA | R47: NA | S47: NA | T47: 2017 | U47: 2022 | V47: 2022 | W47: No | X47: No | Y47: K-08 | Z47: 588 | AA47: Boston | AB47: ESMS | AC47: NA
A48: 429 | B48: KIPP Academy Lynn Charter School | C48: C | D48: 3 | F48: Lynn | G48: No Status | H48: 2004 | I48: Yes | J48: 2004 | K48: 15 | L48: 2009 | M48: 2014 | N48: 2019 | O48: 2024 | P48: 2009 | Q48: 2014 | R48: NA | S48: NA | T48: 2014 | U48: 2019 | V48: 2019 | W48: No | X48: No | Y48: K-12 | Z48: 1586 | AA48: Urban | AB48: MSHS | AC48: NA
A49: 454 | B49: Lawrence Family Development Charter School | C49: C | D49: 4 | F49: Lawrence | G49: No Status | H49: 1995 | I49: Yes | J49: 1995 | K49: 24 | L49: 2000 | M49: 2005 | N49: 2010 | O49: 2015 | P49: 2000 | Q49: 2005 | R49: 2010 | S49: 2015 | T49: 2015 | U49: 2020 | V49: 2020 | W49: No | X49: No | Y49: PK-08 | Z49: 800 | AA49: Urban | AB49: ESMS | AC49: NA
A50: 3514 | B50: Libertas Academy Charter School (New school opening FY18) | C50: C | D50: Springfield | E50: No | F50: Springfield | G50: No Status | H50: 2016 | I50: No | J50: 2017 | K50: 2 | L50: 2022 | M50: 2027 | N50: 2032 | O50: 2037 | P50: NA | Q50: NA | R50: NA | S50: NA | T50: 0 | U50: 2022 | V50: 2022 | W50: No | X50: No | Y50: 06-12 | Z50: 630 | AA50: Urban | AB50: ESMS | AC50: NA
A51: 456 | B51: Lowell Community Charter Public School | C51: C | D51: 4 | F51: Lowell | G51: No Status | H51: 1999 | I51: Yes | J51: 2000 | K51: 19 | L51: 2005 | M51: 2010 | N51: 2015 | O51: 2020 | P51: 2005 | Q51: 2010 | R51: 2015 | S51: NA | T51: 2015 | U51: 2020 | V51: 2020 | W51: No | X51: Former | Y51: PK-08 | Z51: 800 | AA51: Urban | AB51: ESMS | AC51: NA
A52: 458 | B52: Lowell Middlesex Academy Charter School | C52: C | D52: 4 | F52: Lowell | G52: No Status | H52: 1994 | I52: Yes | J52: 1995 | K52: 24 | L52: 2000 | M52: 2005 | N52: 2010 | O52: 2015 | P52: 2000 | Q52: 2005 | R52: 2010 | S52: 2015 | T52: 2015 | U52: 2020 | V52: 2020 | W52: No | X52: No | Y52: 09-12 | Z52: 150 | AA52: Urban | AB52: HS | AC52: NA
A53: 3517 | B53: Map Academy Charter School | C53: C | F53: Plymouth | G53: No Status | H53: 2017 | I53: Yes | J53: 2018 | K53: 1 | L53: 2023 | M53: 2028 | N53: 2033 | O53: 2038 | P53: NA | Q53: NA | R53: NA | S53: NA | T53: 0 | U53: 2023 | V53: 2023 | W53: Yes | X53: No | Y53: 09-12 | Z53: 300 | AA53: Suburb | AB53: HS | AC53: NA
A54: 464 | B54: Marblehead Community Charter Public School | C54: C | D54: 4 | F54: Marblehead | G54: No Status | H54: 1994 | I54: Yes | J54: 1995 | K54: 24 | L54: 2000 | M54: 2005 | N54: 2010 | O54: 2015 | P54: 2000 | Q54: 2005 | R54: 2010 | S54: 2015 | T54: 2015 | U54: 2020 | V54: 2020 | W54: No | X54: No | Y54: 04-08 | Z54: 230 | AA54: Suburb | AB54: ESMS | AC54: NA
A55: 466 | B55: Martha's Vineyard Public Charter School | C55: C | D55: 5 | F55: West Tisbury | G55: No Status | H55: 1995 | I55: Yes | J55: 1996 | K55: 23 | L55: 2001 | M55: 2006 | N55: 2011 | O55: 2016 | P55: 2001 | Q55: 2006 | R55: 2011 | S55: 2016 | T55: 2016 | U55: 2021 | V55: 2021 | W55: Yes | X55: No | Y55: K-12 | Z55: 180 | AA55: Suburb | AB55: K12 | AC55: NA
A56: 492 | B56: Martin Luther King, Jr. Charter School of Excellence | C56: C | D56: 5 | F56: Springfield | G56: Conditions | H56: 2005 | I56: Yes | J56: 2006 | K56: 13 | L56: 2011 | M56: 2016 | N56: 2021 | O56: 2026 | P56: 2011 | Q56: 2016 | R56: NA | S56: NA | T56: 2016 | U56: 2021 | V56: 2021 | W56: No | X56: No | Y56: K-05 | Z56: 360 | AA56: Urban | AB56: ES | AC56: NA
A57: 469 | B57: Match Charter Public School | C57: C | D57: 4 | F57: Boston | G57: No Status | H57: 1999 | I57: Yes | J57: 2000 | K57: 19 | L57: 2005 | M57: 2010 | N57: 2015 | O57: 2020 | P57: 2005 | Q57: 2010 | R57: 2015 | S57: NA | T57: 2015 | U57: 2020 | V57: 2020 | W57: No | X57: No | Y57: PK-12 | Z57: 1250 | AA57: Boston | AB57: K12 | AC57: NA
A58: 470 | B58: Mystic Valley Regional Charter School | C58: C | D58: 2 | F58: Malden | G58: No Status | H58: 1998 | I58: Yes | J58: 1998 | K58: 21 | L58: 2003 | M58: 2008 | N58: 2013 | O58: 2018 | P58: 2003 | Q58: 2008 | R58: 2013 | S58: 2018 | T58: 2018 | U58: 2023 | V58: 2023 | W58: Yes | X58: Former | Y58: K-12 | Z58: 1900 | AA58: Urban | AB58: K12 | AC58: NA
A59: 444 | B59: Neighborhood House Charter School | C59: C | D59: 4 | F59: Boston | G59: No Status | H59: 1994 | I59: Yes | J59: 1995 | K59: 24 | L59: 2000 | M59: 2005 | N59: 2010 | O59: 2015 | P59: 2000 | Q59: 2005 | R59: 2010 | S59: 2015 | T59: 2015 | U59: 2020 | V59: 2020 | W59: No | X59: No | Y59: PK-12 | Z59: 828 | AA59: Boston | AB59: K12 | AC59: NA
A60: 3513 | B60: New Heights Charter School of Brockton | C60: C | D60: 315 | E60: 315 | F60: Brockton | G60: No Status | H60: 2016 | I60: No | J60: 2016 | K60: 3 | L60: 2021 | M60: 2026 | N60: 2031 | O60: 2036 | P60: NA | Q60: NA | R60: NA | S60: NA | T60: 0 | U60: 2021 | V60: 2021 | W60: Yes | X60: No | Y60: 06-12 | Z60: 735 | AA60: Urban | AB60: ESMS | AC60: NA
A61: 3515 | B61: Old Sturbridge Academy Charter Public School | C61: C | F61: Sturbridge | G61: No Status | H61: 2017 | I61: Yes | J61: 2017 | K61: 2 | L61: 2022 | M61: 2027 | N61: 2032 | O61: 2037 | P61: NA | Q61: NA | R61: NA | S61: NA | T61: 0 | U61: 2022 | V61: 2022 | W61: Yes | X61: Yes | Y61: K-08 | Z61: 360 | AA61: Rural | AB61: ESMS | AC61: NA
A62: 3501 | B62: Paulo Freire Social Justice Charter School | C62: C | D62: 2 | F62: Holyoke | G62: Probation | H62: 2012 | I62: No | J62: 2013 | K62: 6 | L62: 2018 | M62: 2023 | N62: 2028 | O62: 2033 | P62: 2018 | Q62: NA | R62: NA | S62: NA | T62: 2018 | U62: 2023 | V62: 2023 | W62: Yes | X62: No | Y62: 09-12 | Z62: 500 | AA62: Urban | AB62: HS | AC62: NA
A63: 493 | B63: Phoenix Academy Charter Public High School, Chelsea | C63: C | D63: 5 | F63: Chelsea | G63: No Status | H63: 2005 | I63: Yes | J63: 2006 | K63: 13 | L63: 2011 | M63: 2016 | N63: 2021 | O63: 2026 | P63: 2011 | Q63: 2016 | R63: NA | S63: NA | T63: 2016 | U63: 2021 | V63: 2021 | W63: Yes | X63: No | Y63: 09-12 | Z63: 225 | AA63: Urban | AB63: HS | AC63: NA
A64: 3518 | B64: Phoenix Academy Public Charter High School, Lawrence | C64: C | F64: Lawrence | G64: No Status | H64: 2018 | I64: No | J64: 2018 | K64: 1 | L64: 2023 | M64: 2028 | N64: 2033 | O64: 2038 | P64: NA | Q64: NA | R64: NA | S64: NA | T64: 0 | U64: 2023 | V64: 2023 | W64: Yes | X64: No | Y64: 09-12 | Z64: 250 | AA64: Urban | AB64: HS | AC64: NA
A65: 3508 | B65: Phoenix Academy Public Charter High School, Springfield | C65: C | D65: 3 | F65: Springfield | G65: No Status | H65: 2013 | I65: No | J65: 2014 | K65: 5 | L65: 2019 | M65: 2024 | N65: 2029 | O65: 2034 | P65: NA | Q65: NA | R65: NA | S65: NA | T65: 0 | U65: 2019 | V65: 2019 | W65: Yes | X65: No | Y65: 09-12 | Z65: 250 | AA65: Urban | AB65: HS | AC65: NA
A66: 494 | B66: Pioneer Charter School of Science | C66: C | D66: 1 | F66: Everett | G66: No Status | H66: 2006 | I66: Yes | J66: 2007 | K66: 12 | L66: 2012 | M66: 2017 | N66: 2022 | O66: 2027 | P66: 2012 | Q66: 2017 | R66: NA | S66: NA | T66: 2017 | U66: 2022 | V66: 2022 | W66: Yes | X66: No | Y66: K-12 | Z66: 780 | AA66: Urban | AB66: K12 | AC66: NA
A67: 3506 | B67: Pioneer Charter School of Science II | C67: C | D67: 3 | F67: Saugus | G67: No Status | H67: 2013 | I67: No | J67: 2013 | K67: 6 | L67: 2018 | M67: 2023 | N67: 2028 | O67: 2033 | P67: 2018 | Q67: NA | R67: NA | S67: NA | T67: 2018 | U67: 2023 | V67: 2023 | W67: Yes | X67: No | Y67: 07-12 | Z67: 360 | AA67: Urban | AB67: MSHS | AC67: NA
A68: 497 | B68: Pioneer Valley Chinese Immersion Charter School | C68: C | D68: 1 | F68: Hadley | G68: No Status | H68: 2007 | I68: Yes | J68: 2007 | K68: 12 | L68: 2012 | M68: 2017 | N68: 2022 | O68: 2027 | P68: 2012 | Q68: 2017 | R68: NA | S68: NA | T68: 2017 | U68: 2022 | V68: 2022 | W68: Yes | X68: No | Y68: K-12 | Z68: 584 | AA68: Suburb | AB68: K12 | AC68: NA
A69: 479 | B69: Pioneer Valley Performing Arts Charter Public School | C69: C | D69: 5 | F69: South Hadley | G69: No Status | H69: 1996 | I69: Yes | J69: 1996 | K69: 23 | L69: 2001 | M69: 2006 | N69: 2011 | O69: 2016 | P69: 2001 | Q69: 2006 | R69: 2011 | S69: 2016 | T69: 2016 | U69: 2021 | V69: 2021 | W69: Yes | X69: No | Y69: 07-12 | Z69: 400 | AA69: Suburb | AB69: MSHS | AC69: NA
A70: 487 | B70: Prospect Hill Academy Charter School | C70: C | D70: 5 | F70: Somerville (K-6); Cambridge (7-12) | G70: No Status | H70: 1996 | I70: Yes | J70: 1996 | K70: 23 | L70: 2001 | M70: 2006 | N70: 2011 | O70: 2016 | P70: 2001 | Q70: 2006 | R70: 2011 | S70: 2016 | T70: 2016 | U70: 2021 | V70: 2021 | W70: Yes | X70: Former | Y70: PK-12 | Z70: 1200 | AA70: Urban | AB70: K12 | AC70: NA
A71: 483 | B71: Rising Tide Charter Public School | C71: C | D71: 2 | F71: Plymouth | G71: No Status | H71: 1998 | I71: Yes | J71: 1998 | K71: 21 | L71: 2003 | M71: 2008 | N71: 2013 | O71: 2018 | P71: 2003 | Q71: 2008 | R71: 2013 | S71: 2018 | T71: 2018 | U71: 2023 | V71: 2023 | W71: Yes | X71: Former | Y71: 05-12 | Z71: 700 | AA71: Suburb | AB71: MSHS | AC71: NA
A72: 482 | B72: River Valley Charter School | C72: C | D72: 3 | F72: Newburyport | G72: No Status | H72: 1999 | I72: Yes | J72: 1999 | K72: 20 | L72: 2004 | M72: 2009 | N72: 2014 | O72: 2019 | P72: 2004 | Q72: 2009 | R72: 2014 | S72: NA | T72: 2014 | U72: 2019 | V72: 2019 | W72: Yes | X72: No | Y72: K-08 | Z72: 288 | AA72: Rural | AB72: ESMS | AC72: NA
A73: 484 | B73: Roxbury Preparatory Charter School | C73: C | D73: 3 | F73: Boston | G73: No Status | H73: 1998 | I73: Yes | J73: 1999 | K73: 20 | L73: 2004 | M73: 2009 | N73: 2014 | O73: 2019 | P73: 2004 | Q73: 2009 | R73: 2014 | S73: NA | T73: 2014 | U73: 2019 | V73: 2019 | W73: No | X73: Yes | Y73: 05-12 | Z73: 1800 | AA73: Boston | AB73: MSHS | AC73: NA
A74: 441 | B74: Sabis International Charter School | C74: C | D74: 4 | F74: Springfield | G74: Conditions | H74: 1995 | I74: Yes | J74: 1995 | K74: 24 | L74: 2000 | M74: 2005 | N74: 2010 | O74: 2015 | P74: 2000 | Q74: 2005 | R74: 2010 | S74: 2015 | T74: 2015 | U74: 2020 | V74: 2020 | W74: No | X74: Yes | Y74: K-12 | Z74: 1574 | AA74: Urban | AB74: K12 | AC74: NA
A75: 485 | B75: Salem Academy Charter School | C75: C | D75: 3 | F75: Salem | G75: No Status | H75: 2003 | I75: Yes | J75: 2004 | K75: 15 | L75: 2009 | M75: 2014 | N75: 2019 | O75: 2024 | P75: 2009 | Q75: 2014 | R75: NA | S75: NA | T75: 2014 | U75: 2019 | V75: 2019 | W75: No | X75: No | Y75: 06-12 | Z75: 480 | AA75: Urban | AB75: MSHS | AC75: NA
A76: 486 | B76: Seven Hills Charter Public School | C76: C | D76: 5 | F76: Worcester | G76: No Status | H76: 1994 | I76: Yes | J76: 1996 | K76: 23 | L76: 2001 | M76: 2006 | N76: 2011 | O76: 2016 | P76: 2001 | Q76: 2006 | R76: 2011 | S76: 2016 | T76: 2016 | U76: 2021 | V76: 2021 | W76: No | X76: Former | Y76: K-08 | Z76: 666 | AA76: Urban | AB76: ESMS | AC76: NA
A77: 474 | B77: Sizer School, A North Central Charter Essential School | C77: C | D77: 1 | F77: Fitchburg | G77: Conditions | H77: 2001 | I77: Yes | J77: 2002 | K77: 17 | L77: 2007 | M77: 2012 | N77: 2017 | O77: 2022 | P77: 2007 | Q77: 2012 | R77: 2017 | S77: NA | T77: 2017 | U77: 2022 | V77: 2022 | W77: Yes | X77: No | Y77: 07-12 | Z77: 400 | AA77: Urban | AB77: MSHS | AC77: NA
A78: 488 | B78: South Shore Charter Public School | C78: C | D78: 4 | F78: Norwell | G78: No Status | H78: 1994 | I78: Yes | J78: 1995 | K78: 24 | L78: 2000 | M78: 2005 | N78: 2010 | O78: 2015 | P78: 2000 | Q78: 2005 | R78: 2010 | S78: 2015 | T78: 2015 | U78: 2020 | V78: 2020 | W78: Yes | X78: No | Y78: K-12 | Z78: 1075 | AA78: Rural | AB78: K12 | AC78: NA
A79: 3510 | B79: Springfield Preparatory Charter School | C79: C | D79: 4 | F79: Springfield | G79: No Status | H79: 2014 | I79: No | J79: 2015 | K79: 4 | L79: 2020 | M79: 2025 | N79: 2030 | O79: 2035 | P79: NA | Q79: NA | R79: NA | S79: NA | T79: 0 | U79: 2020 | V79: 2020 | W79: No | X79: No | Y79: K-08 | Z79: 486 | AA79: Urban | AB79: ESMS | AC79: NA
A80: 489 | B80: Sturgis Charter Public School | C80: C | D80: 2 | F80: Hyannis | G80: No Status | H80: 1998 | I80: Yes | J80: 1998 | K80: 21 | L80: 2003 | M80: 2008 | N80: 2013 | O80: 2018 | P80: 2003 | Q80: 2008 | R80: 2013 | S80: 2018 | T80: 2018 | U80: 2023 | V80: 2023 | W80: Yes | X80: No | Y80: 09-12 | Z80: 850 | AA80: Suburb | AB80: HS | AC80: NA
A81: 480 | B81: UP Academy Charter School of Boston | C81: HM | D81: 5 | F81: Boston | G81: No Status | H81: 2011 | I81: Yes | J81: 2011 | K81: 8 | L81: 2016 | M81: 2021 | N81: 2026 | O81: 2031 | P81: 2016 | Q81: NA | R81: NA | S81: NA | T81: 2016 | U81: 2021 | V81: 2021 | W81: NA | X81: Yes | Y81: 06-08 | Z81: 540 | AA81: Boston | AB81: MS | AC81: NA
A82: 3505 | B82: UP Academy Charter School of Dorchester | C82: HM | D82: 2 | F82: Boston | G82: Conditions | H82: 2013 | I82: Yes | J82: 2013 | K82: 6 | L82: 2018 | M82: 2023 | N82: 2028 | O82: 2033 | P82: 2018 | Q82: NA | R82: NA | S82: NA | T82: 2018 | U82: 2023 | V82: 2023 | W82: NA | X82: Yes | Y82: PK-08 | Z82: 820 | AA82: Boston | AB82: ESMS | AC82: NA
A83: 498 | B83: Veritas Preparatory Charter School | C83: C | D83: 1 | F83: Springfield | G83: No Status | H83: 2011 | I83: Yes | J83: 2012 | K83: 7 | L83: 2017 | M83: 2022 | N83: 2027 | O83: 2032 | P83: 2017 | Q83: NA | R83: NA | S83: NA | T83: 2017 | U83: 2022 | V83: 2022 | W83: No | X83: No | Y83: 05-08 | Z83: 432 | AA83: Urban | AB83: MS | AC83: NA
A84: Closed Schools | O84: NA
A85: 415 | B85: Amesbury Academy Charter Public School | C85: HM | D85: 5 | F85: Amesbury | G85: NA | H85: 2001 | I85: NA | J85: 2001 | K85: NA | L85: 2006 | M85: 2011 | N85: Post-Opening Surrender | O85: NA | U85: NA | V85: NA | W85: No | X85: No | Y85: 9-12 | Z85: 50 | AA85: Rural | AB85: HS | AC85: 2015 | AD85: surrender
A86: 423 | B86: Barnstable Horace Mann Charter School | C86: HM | D86: NA | E86: NA | F86: Barnstable | G86: NA | H86: 1998 | I86: NA | J86: 1999 | K86: NA | L86: 2004 | M86: 2009 | N86: Post-Opening Surrender | O86: NA | U86: NA | V86: NA | W86: No | X86: No | Y86: 04-05 | Z86: 1000 | AA86: Suburb | AB86: MS | AC86: 2012 | AD86: surrender
A87: 425 | B87: Boston University Residential Charter School | C87: C | D87: NA | E87: NA | F87: Granby | G87: NA | H87: 1994 | I87: NA | J87: 1997 | K87: NA | L87: Post-Opening Surrender | M87: NA | N87: NA | O87: NA | U87: NA | V87: NA | W87: No | X87: No | Y87: 42594 | Z87: NA | AA87: Rural | AB87: MSHS | AC87: 2000 | AD87: surrender
A88: 457 | B88: Brooke Charter School East Boston (FY17-will merge with 0428 and 0457 as Brooke Charter School LEA, 428 K-12) | C88: C | D88: 1 | E88: VLOOKUP(A22, LIAISONS, 3, FALSE) | F88: Boston | G88: NA | H88: 2011 | I88: No | J88: 2012 | K88: NA | L88: Returned due to merger | M88: NA | N88: NA | O88: NA | U88: NA | V88: NA | W88: Yes | X88: No | Y88: K-08 | Z88: 510 | AA88: Boston | AB88: ESMS | AC88: 2016 | AD88: consolidation
A89: 443 | B89: Brooke Charter School Mattapan (FY17-will merge with 0428 and 0457 as Brooke Charter School LEA 428, K-12) | C89: C | D89: 5 | F89: Boston | G89: NA | H89: 2011 | I89: No | J89: 2011 | K89: NA | L89: Returned due to merger | M89: NA | N89: NA | O89: NA | U89: NA | V89: NA | W89: No | X89: No | Y89: K-08 | Z89: 510 | AA89: Boston | AB89: ESMS | AC89: 2016 | AD89: consolidation
A90: 434 | B90: Champion Charter Public School | C90: HM | D90: NA | E90: NA | F90: Brockton | G90: NA | H90: 1998 | I90: NA | J90: 1998 | K90: NA | L90: Post-Opening Surrender | M90: NA | N90: NA | O90: NA | U90: NA | V90: NA | W90: No | X90: No | Y90: 09-12 | Z90: 125 | AA90: Urban | AB90: HS | AC90: 2008 | AD90: surrender
A91: 433 | B91: Dorchester Prep | C91: C | D91: NA | E91: NA | F91: Boston | G91: NA | H91: 2011 | I91: NA | J91: NA | K91: NA | L91: Returned due to merger | M91: NA | N91: NA | O91: NA | U91: NA | V91: NA | W91: No | X91: Former | Y91: 05-12 | Z91: 600 | AA91: Urban | AB91: MSHS | AC91: NA | AD91: consolidation
A92: 475 | B92: Dorchester Collegiate Academy Charter School | C92: C | D92: 3 | F92: Boston | G92: NA | H92: 2008 | I92: NA | J92: 2009 | K92: NA | L92: 2014 | M92: Revocation | N92: NA | O92: NA | U92: NA | V92: NA | W92: No | X92: No | Y92: 04-08 | Z92: 238 | AA92: Boston | AB92: ESMS | AC92: 2016 | AD92: revocation
A93: 459 | B93: Excel Academy Charter School - Boston II | C93: C | D93: NA | E93: NA | F93: Boston | G93: NA | H93: 2011 | I93: NA | J93: 2012 | K93: NA | L93: Returned due to merger | M93: NA | N93: NA | O93: NA | U93: NA | V93: NA | W93: No | X93: No | Y93: 05-12 | Z93: 448 | AA93: Boston | AB93: MSHS | AC93: 2014 | AD93: consolidation
A94: 461 | B94: Excel Academy Charter School - Chelsea | C94: C | D94: NA | E94: NA | F94: Chelsea | G94: NA | H94: 2011 | I94: NA | J94: 2011 | K94: NA | L94: Returned due to merger | M94: NA | N94: NA | O94: NA | U94: NA | V94: NA | W94: No | X94: No | Y94: 05-12 | Z94: 448 | AA94: Urban | AB94: MSHS | AC94: 2014 | AD94: consolidation
A95: 495 | B95: Fall River Maritime Charter Public School | C95: C | D95: NA | E95: NA | F95: Fall River | G95: NA | H95: 2006 | I95: NA | J95: NA | K95: NA | L95: Pre-Opening Surrender | M95: NA | N95: NA | O95: NA | U95: NA | V95: NA | W95: No | X95: Former | Y95: 05-08 | Z95: 80 | AA95: Urban | AB95: MS | AC95: NA | AD95: surrender
A96: 442 | B96: Frederick Douglass Charter School | C96: C | D96: NA | E96: NA | F96: Boston | G96: NA | H96: 1999 | I96: NA | J96: 2000 | K96: NA | L96: Non-Renewal | M96: NA | N96: NA | O96: NA | U96: NA | V96: NA | W96: No | X96: No | Y96: 06-12 | Z96: 408 | AA96: Boston | AB96: MSHS | AC96: 2005 | AD96: revocation
A97: 448 | B97: Gloucester Community Arts Charter School | C97: C | D97: NA | E97: NA | F97: Gloucester | G97: NA | H97: 2009 | I97: NA | J97: 2010 | K97: NA | L97: Post-Opening Surrender | M97: NA | N97: NA | O97: NA | U97: NA | V97: NA | W97: No | X97: No | Y97: K-08 | Z97: 240 | AA97: Urban | AB97: ESMS | AC97: 2013 | AD97: surrender
A98: 462 | B98: Grove Hall Prep | C98: C | D98: NA | E98: NA | F98: Boston | G98: NA | H98: 2011 | I98: NA | J98: 2011 | K98: NA | L98: Returned due to merger | M98: NA | N98: NA | O98: NA | U98: NA | V98: NA | W98: No | X98: Former | Y98: 05-12 | Z98: 600 | AA98: Urban | AB98: MS | AC98: 2012 | AD98: consolidation
A99: 448 | B99: Horace Mann Charter School of Essential Studies | C99: HM | D99: NA | E99: NA | F99: Springfield | G99: NA | H99: 1999 | I99: NA | J99: NA | K99: NA | L99: Pre-Opening Surrender | M99: NA | N99: NA | O99: NA | U99: NA | V99: NA | W99: No | X99: No | Y99: 09-12 | Z99: 600 | AA99: Urban | AB99: ESMS | AC99: NA | AD99: surrender
A100: 460 | B100: Lynn Community Charter School | C100: C | D100: NA | E100: NA | F100: Lynn | G100: NA | H100: 1996 | I100: NA | J100: 1997 | K100: NA | L100: Non-Renewal | M100: NA | N100: NA | O100: NA | U100: NA | V100: NA | W100: No | X100: No | Y100: K-08 | Z100: 270 | AA100: Urban | AB100: ESMS | AC100: 2002 | AD100: non-renewal
A101: 465 | B101: MATCH Community Day Charter Public School | C101: C | D101: NA | E101: NA | F101: Boston | G101: NA | H101: 2011 | I101: NA | J101: 2011 | K101: NA | L101: Returned due to merger | M101: NA | N101: NA | O101: NA | U101: NA | V101: NA | W101: No | X101: No | Y101: PK-12 | Z101: 700 | AA101: Boston | AB101: K12 | AC101: 2014 | AD101: consolidation
A102: 472 | B102: New Bedford Global Learning Charter School | C102: HM | D102: NA | E102: NA | F102: New Bedford | G102: NA | H102: 2000 | I102: NA | J102: 2002 | K102: NA | L102: Post-Opening Surrender | M102: NA | N102: NA | O102: NA | U102: NA | V102: NA | W102: No | X102: No | Y102: 05-12 | Z102: 400 | AA102: Urban | AB102: MSHS | AC102: 2007 | AD102: expired
A103: 471 | B103: New Leadership Charter School | C103: HM | D103: NA | E103: NA | F103: Springfield | G103: NA | H103: 1998 | I103: NA | J103: 1998 | K103: NA | L103: 2003 | M103: 2008 | N103: Post-Opening Surrender | O103: NA | U103: NA | V103: NA | W103: No | X103: No | Y103: 06-12 | Z103: 500 | AA103: Urban | AB103: MSHS | AC103: 2013 | AD103: expired
A104: 467 | B104: New Liberty Charter School of Salem | C104: HM | D104: NA | E104: NA | F104: Salem | G104: NA | H104: 2011 | I104: NA | J104: 2011 | K104: NA | L104: Post-Opening Surrender | M104: NA | N104: NA | O104: NA | U104: NA | V104: NA | W104: NA | X104: No | Y104: 09-12 | Z104: 125 | AA104: Urban | AB104: HS | AC104: 2016 | AD104: expired
A105: 473 | B105: North Star Academy Charter School | C105: C | D105: NA | E105: NA | F105: Springfield | G105: NA | H105: 1995 | I105: NA | J105: 1996 | K105: NA | L105: Post-Opening Surrender | M105: NA | N105: NA | O105: NA | U105: NA | V105: NA | W105: No | X105: No | Y105: 09-12 | Z105: 250 | AA105: Urban | AB105: HS | AC105: 2001 | AD105: surrender
A106: 476 | B106: Northern Bristol County Charter School | C106: C | D106: NA | E106: NA | F106: Bristol County | G106: NA | H106: 2001 | I106: NA | J106: NA | K106: NA | L106: Pre-Opening Surrender | M106: NA | N106: NA | O106: NA | U106: NA | V106: NA | W106: Yes | X106: No | Y106: K-08 | Z106: 500 | AA106: Urban | AB106: ESMS | AC106: NA | AD106: surrender
A107: 451 | B107: Robert M. Hughes Academy Charter Public School | C107: C | D107: NA | E107: NA | F107: Springfield | G107: NA | H107: 1999 | I107: NA | J107: 1999 | K107: NA | L107: 2004 | M107: 2009 | N107: Revocation | O107: NA | U107: NA | V107: NA | W107: No | X107: No | Y107: K-08 | Z107: 180 | AA107: Urban | AB107: ESMS | AC107: 2010 | AD107: revocation
A108: 422 | B108: Roxbury Charter High Public School | C108: C | D108: NA | E108: NA | F108: Boston | G108: NA | H108: 2002 | I108: NA | J108: 2003 | K108: NA | L108: Revocation | M108: NA | N108: NA | O108: NA | U108: NA | V108: NA | W108: No | X108: No | Y108: 09-12 | Z108: 400 | AA108: Boston | AB108: HS | AC108: 2005 | AD108: revocation
A109: 477 | B109: Silver Hill Horace Mann Charter School | C109: HM | D109: NA | E109: NA | F109: Haverhill | G109: NA | H109: 2008 | I109: NA | J109: 2008 | K109: NA | L109: 2013 | M109: Post-Opening Surrender | V109: NA | W109: NA | X109: No | Y109: K-05 | Z109: 580 | AA109: Urban | AB109: ES | AC109: 2018 | AD109: surrender
A110: 421 | B110: South End College Preparatory Charter School | C110: C | D110: NA | E110: NA | F110: Boston | G110: NA | H110: 2002 | I110: NA | J110: NA | K110: NA | L110: Pre-Opening Surrender | M110: NA | N110: NA | O110: NA | U110: NA | V110: NA | W110: No | X110: No | Y110: K-08 | Z110: 500 | AA110: Boston | AB110: ESMS | AC110: 2003 | AD110: surrender
A111: 476 | B111: Spirit of Knowledge Charter School | C111: C | D111: NA | E111: NA | F111: Worcester | G111: NA | H111: 2010 | I111: NA | J111: 2010 | K111: NA | L111: Post-Opening Surrender | M111: NA | N111: NA | O111: NA | U111: NA | V111: NA | W111: No | X111: No | Y111: 07-12 | Z111: 275 | AA111: Urban | AB111: MSHS | AC111: 2014 | AD111: surrender
A112: 3512 | B112: UP Academy Charter School of Springfield | C112: HM | D112: NA | E112: NA | F112: Springfield | G112: NA | H112: NA | I112: NA | J112: NA | K112: NA | L112: Pre-Opening Surrender | U112: 5 | V112: NA | W112: NA | X112: Yes | Y112: 06-08 | Z112: 800 | AA112: Urban | AB112: MS | AC112: NA | AD112: surrender
A113: 490 | B113: Uphams Corner Charter School | C113: C | D113: NA | E113: NA | F113: Boston | G113: NA | H113: 2002 | I113: NA | J113: 2002 | K113: NA | L113: 2007 | M113: Revocation | N113: NA | O113: NA | U113: NA | V113: NA | W113: No | X113: No | Y113: 05-08 | Z113: 200 | AA113: Boston | AB113: MS | AC113: 2009 | AD113: revocation
A114: 498 | B114: Youth Build Boston Charter School | C114: C | D114: NA | E114: NA | F114: Boston | G114: NA | H114: 1994 | I114: NA | J114: 1995 | K114: NA | L114: Revocation | M114: NA | N114: NA | O114: NA | U114: NA | V114: NA | W114: No | X114: No | Y114: 09-12 | Z114: 300 | AA114: Boston | AB114: HS | AC114: 1997 | AD114: surrender
B115: Total Currently Operating Commonwealths: | C115: 74
B116: Total Currently Operating Horace Manns (I): | C116: 3
B117: Total Currently Operating Horace Manns (II): | C117: 0
B118: Total Currently Operating Horace Manns (III): | C118: 5
B119: Total Charters Approved but not yet open: | C119: 0
B120: Total Charters Closed or Never Opened Since 1994: | C120: 30
B121: Total Charters Granted by BOE Since 1994: | C121: 112
A122: Updated Augst 2018

Sheet TEACHEREPIMS (hidden)
Q1: Teachers only
Q2: NE = Not Existing
Q3: Closed = Closed District
A5: ORG_CODE | B5: ORG_NAME | C5: LEA | D5: FTE_20D | E5: HC_20D | F5: FTE_20A | G5: HC_20A | H5: FTE_19d | I5: HC_19d | J5: FTE_19a | K5: HC_19a | L5: FTE_18d | M5: HC_18d | N5: FTE_18a | O5: HC_18a | P5: FTE_17d | Q5: HC_17d | R5: FTE_17a | S5: HC_17a | T5: FTE_16d | U5: HC_16d | V5: FTE_16a | W5: HC_16a | X5: FTE_15d | Y5: HC_15d | Z5: FTE_15a | AA5: HC_15a | AB5: FTE_14d | AC5: HC_14d | AD5: FTE_14a | AE5: HC_14a | AF5: FTE_13d | AG5: HC_13d | AH5: FTE_13a | AI5: HC_13a | AJ5: FTE_12d | AK5: HC_12d | AL5: FTE_12a | AM5: HC_12a | AN5: FTE_11d | AO5: HC_11d | AP5: FTE_11a | AQ5: HC_11a | AR5: FTE_10a | AS5: HC_10a
A6: 04070000 | B6: Dudley Street Neighborhood Charter School (District) | C6: 407 | D6: 20 | E6: 21 | F6: 21 | G6: 21 | H6: 22 | I6: 22 | J6: 22 | K6: 22 | L6: 19.5 | M6: 20 | N6: 19 | O6: 19 | P6: 20.98 | Q6: 21 | R6: 20.98 | S6: 21 | T6: 18.21 | U6: 19 | V6: 18.25 | W6: 19 | X6: 15.94 | Y6: 16 | Z6: 14.98 | AA6: 15 | AB6: 9.999 | AC6: 10 | AD6: 12.998 | AE6: 13 | AF6: 7.994 | AG6: 8 | AH6: 7.994 | AI6: 8 | AJ6: NE | AK6: NE | AL6: NE | AM6: NE | AN6: NE | AO6: NE | AP6: NE | AQ6: NE | AR6: NE | AS6: NE
A7: 04090000 | B7: Alma del Mar Charter School (District) | C7: 409 | D7: 52 | E7: 52 | F7: 52 | G7: 52 | H7: 34.48 | I7: 35 | J7: 36.5 | K7: 37 | L7: 36.006 | M7: 36 | N7: 35.008 | O7: 35 | P7: 32.15 | Q7: 32 | R7: 33.15 | S7: 33 | T7: 23.92 | U7: 24 | V7: 28.92 | W7: 29 | X7: 17.03 | Y7: 17 | Z7: 22.38 | AA7: 23 | AB7: 18.99 | AC7: 19 | AD7: 18.99 | AE7: 19 | AF7: 15.24 | AG7: 15 | AH7: 16.28 | AI7: 16 | AJ7: 13.88 | AK7: 14 | AL7: 13.88 | AM7: 14 | AN7: NE | AO7: NE | AP7: NE | AQ7: NE | AR7: NE | AS7: NE
A8: 04100000 | B8: Excel Academy Charter (District) | C8: 410 | D8: 115.906 | E8: 144 | F8: 117.994 | G8: 139 | H8: 105.66 | I8: 126 | J8: 101.315 | K8: 118 | L8: 88.989 | M8: 108 | N8: 98.44 | O8: 112 | P8: 78.09 | Q8: 88 | R8: 85.98 | S8: 92 | T8: 70.74 | U8: 85 | V8: 53.24 | W8: 89 | X8: 51.625 | Y8: 65 | Z8: 56.596 | AA8: 68 | AB8: 19.297 | AC8: 26 | AD8: 22.369 | AE8: 26 | AF8: 19.602 | AG8: 24 | AH8: 18.97 | AI8: 22 | AJ8: 18.887 | AK8: 22 | AL8: 18.97 | AM8: 22 | AN8: 16 | AO8: 19 | AP8: 16 | AQ8: 19 | AR8: 17.8 | AS8: 18
A9: 04110000 | B9: Boston Green Academy Horace Mann Charter School (District) | C9: 411 | D9: 41.78 | E9: 44 | F9: 39 | G9: 42 | H9: 41.91 | I9: 41 | J9: 41.504 | K9: 43 | L9: 44.42 | M9: 47 | N9: 40.603 | O9: 47 | P9: 49.43 | Q9: 51 | R9: 51.57 | S9: 53 | T9: 40.59 | U9: 43 | V9: 41.02 | W9: 43 | X9: 37 | Y9: 39 | Z9: 35.01 | AA9: 38 | AB9: 27.334 | AC9: 39 | AD9: 33.084 | AE9: 44 | AF9: 27.659 | AG9: 42 | AH9: 30.85 | AI9: 40 | AJ9: 25.36 | AK9: 32 | AL9: 25.3 | AM9: 32 | AN9: NE | AO9: NE | AP9: NE | AQ9: NE | AR9: NE | AS9: NE
A10: 04120000 | B10: Academy Of the Pacific Rim Charter Public (District) | C10: 412 | D10: 48.099 | E10: 50 | F10: 46.82 | G10: 49 | H10: 48.092 | I10: 49 | J10: 49.2 | K10: 51 | L10: 43.874 | M10: 53 | N10: 48.099 | O10: 53 | P10: 44.216 | Q10: 48 | R10: 44.33 | S10: 48 | T10: 40.58 | U10: 44 | V10: 42.2 | W10: 46 | X10: 42.334 | Y10: 45 | Z10: 42.5 | AA10: 45 | AB10: 36.65 | AC10: 39 | AD10: 38.65 | AE10: 41 | AF10: 36.1 | AG10: 38 | AH10: 35.917 | AI10: 38 | AJ10: 36.8 | AK10: 38 | AL10: 36.8 | AM10: 38 | AN10: 33.997 | AO10: 36 | AP10: 34.8 | AQ10: 37 | AR10: 35.05 | AS10: 36
A11: 04130000 | B11: Four Rivers Charter Public (District) | C11: 413 | D11: 20.266 | E11: 31 | F11: 20.83 | G11: 31 | H11: 20.49 | I11: 35 | J11: 21.81 | K11: 35 | L11: 21.127 | M11: 31 | N11: 20.719 | O11: 31 | P11: 22.066 | Q11: 31 | R11: 22 | S11: 31 | T11: 21.75 | U11: 30 | V11: 22.82 | W11: 30 | X11: 21.955 | Y11: 30 | Z11: 21.11 | AA11: 29 | AB11: 21.81 | AC11: 28 | AD11: 22.36 | AE11: 30 | AF11: 21.855 | AG11: 28 | AH11: 21.268 | AI11: 28 | AJ11: 21.86 | AK11: 29 | AL11: 21.66 | AM11: 30 | AN11: 20.214 | AO11: 28 | AP11: 21.227 | AQ11: 30 | AR11: 19.064 | AS11: 23
A12: 04140000 | B12: Berkshire Arts and Technology Charter Public (District) | C12: 414 | D12: 37.328 | E12: 40 | F12: 36.816 | G12: 39 | H12: 35.628 | I12: 39 | J12: 36.05 | K12: 39 | L12: 31.771 | M12: 38 | N12: 34.01 | O12: 40 | P12: 33.097 | Q12: 40 | R12: 32.9 | S12: 40 | T12: 31.51 | U12: 37 | V12: 31.299 | W12: 37 | X12: 28.99 | Y12: 37 | Z12: 29.59 | AA12: 34 | AB12: 30.11 | AC12: 37 | AD12: 30.34 | AE12: 37 | AF12: 27.88 | AG12: 34 | AH12: 27.55 | AI12: 33 | AJ12: 24.057 | AK12: 28 | AL12: 24.866 | AM12: 29 | AN12: 23.2 | AO12: 26 | AP12: 23.416 | AQ12: 26 | AR12: 22.2 | AS12: 23
A13: 04150000 | B13: Amesbury Academy Charter Public (District) | C13: 415 | D13: Closed | E13: Closed | F13: Closed | G13: Closed | H13: Closed | I13: Closed | J13: Closed | K13: Closed | L13: Closed | M13: Closed | N13: Closed | O13: Closed | P13: Closed | Q13: Closed | R13: Closed | S13: Closed | T13: Closed | U13: Closed | V13: Closed | W13: Closed | X13: 4.37 | Y13: 6 | Z13: 5.3 | AA13: 7 | AB13: 4.777 | AC13: 8 | AD13: 6.071 | AE13: 8 | AF13: 5.658 | AG13: 7 | AH13: 7.203 | AI13: 9 | AJ13: 4.772 | AK13: 9 | AL13: 5.473 | AM13: 9 | AN13: 5.235 | AO13: 8 | AP13: 5.9 | AQ13: 8 | AR13: 5.36 | AS13: 7
A14: 04160000 | B14: Boston Preparatory Charter Public (District) | C14: 416 | D14: 55.449 | E14: 61 | F14: 55.55 | G14: 63 | H14: 51.579 | I14: 59 | J14: 52.2 | K14: 58 | L14: 44.304 | M14: 51 | N14: 44.071 | O14: 52 | P14: 35.46 | Q14: 41 | R14: 37.2 | S14: 39 | T14: 32.32 | U14: 37 | V14: 34.55 | W14: 38 | X14: 30.433 | Y14: 33 | Z14: 33.05 | AA14: 37 | AB14: 34 | AC14: 35 | AD14: 34.5 | AE14: 36 | AF14: 32.895 | AG14: 34 | AH14: 32.895 | AI14: 34 | AJ14: 35 | AK14: 35 | AL14: 35 | AM14: 35 | AN14: 33.7 | AO14: 34 | AP14: 33.7 | AQ14: 34 | AR14: 31.2 | AS14: 32
A15: 04170000 | B15: Bridge Boston Charter School (District) | C15: 417 | D15: 31.8 | E15: 33 | F15: 31 | G15: 32 | H15: 34.76 | I15: 36 | J15: 34.6 | K15: 36 | L15: 27.84 | M15: 30 | N15: 29.04 | O15: 31 | P15: 27.47 | Q15: 30 | R15: 26.1 | S15: 29 | T15: 16.15 | U15: 17 | V15: 19.4 | W15: 21 | X15: 14 | Y15: 14 | Z15: 14 | AA15: 14 | AB15: 11.625 | AC15: 12 | AD15: 11.625 | AE15: 12 | AF15: 6.488 | AG15: 7 | AH15: 7.488 | AI15: 8 | AJ15: 4.87 | AK15: 6 | AL15: 5.15 | AM15: 6 | AN15: NE | AO15: NE | AP15: NE | AQ15: NE | AR15: NE | AS15: NE
A16: 04180000 | B16: Christa McAuliffe Charter Public (District) | C16: 418 | D16: 36.947 | E16: 40 | F16: 41.25 | G16: 43 | H16: 38.75 | I16: 40 | J16: 39.74 | K16: 41 | L16: 39.5 | M16: 41 | N16: 41 | O16: 42 | P16: 34.549 | Q16: 39 | R16: 35.05 | S16: 40 | T16: 38.75 | U16: 41 | V16: 38.5 | W16: 41 | X16: 37.014 | Y16: 40 | Z16: 38.1 | AA16: 39 | AB16: 32.888 | AC16: 34 | AD16: 30.3 | AE16: 32 | AF16: 30.726 | AG16: 34 | AH16: 27.224 | AI16: 36 | AJ16: 26.293 | AK16: 32 | AL16: 26.45 | AM16: 31 | AN16: 23.444 | AO16: 25 | AP16: 23 | AQ16: 24 | AR16: 22.4 | AS16: 24
A17: 04190000 | B17: Helen Y. Davis Leadership Academy Charter Public (District) | C17: 419 | D17: 21 | E17: 21 | F17: 17 | G17: 17 | H17: 14.384 | I17: 15 | J17: 16 | K17: 16 | L17: 11.852 | M17: 12 | N17: 13.852 | O17: 14 | P17: 15.835 | Q17: 16 | R17: 17 | S17: 17 | T17: 16 | U17: 16 | V17: 16 | W17: 16 | X17: 15 | Y17: 15 | Z17: 18 | AA17: 18 | AB17: 17 | AC17: 17 | AD17: 19 | AE17: 19 | AF17: 19.72 | AG17: 20 | AH17: 20.22 | AI17: 20 | AJ17: 15.098 | AK17: 16 | AL17: 18.093 | AM17: 19 | AN17: 27.253 | AO17: 29 | AP17: 17.892 | AQ17: 19 | AR17: 15.273 | AS17: 17
A18: 04200000 | B18: Benjamin Banneker Charter Public (District) | C18: 420 | D18: 19 | E18: 19 | F18: 19 | G18: 19 | H18: 18.8 | I18: 19 | J18: 17.8 | K18: 18 | L18: 17.8 | M18: 18 | N18: 18.01 | O18: 19 | P18: 21.024 | Q18: 21 | R18: 20.02 | S18: 20 | T18: 20.02 | U18: 20 | V18: 21.024 | W18: 21 | X18: 19.97 | Y18: 20 | Z18: 19.97 | AA18: 20 | AB18: 20 | AC18: 20 | AD18: 20 | AE18: 20 | AF18: 21.973 | AG18: 22 | AH18: 22.473 | AI18: 23 | AJ18: 23.473 | AK18: 24 | AL18: 23.473 | AM18: 24 | AN18: 23.06 | AO18: 23 | AP18: 23 | AQ18: 23 | AR18: 22 | AS18: 22
A19: 04230000 | B19: Barnstable Horace Mann Charter (District) | C19: 423 | D19: Closed | E19: Closed | F19: Closed | G19: Closed | H19: Closed | I19: Closed | J19: Closed | K19: Closed | L19: Closed | M19: Closed | N19: Closed | O19: Closed | P19: Closed | Q19: Closed | R19: Closed | S19: Closed | T19: Closed | U19: Closed | V19: Closed | W19: Closed | X19: Closed | Y19: Closed | Z19: Closed | AA19: Closed | AB19: Closed | AC19: Closed | AD19: Closed | AE19: Closed | AF19: Closed | AG19: Closed | AH19: Closed | AI19: Closed | AJ19: 57.239 | AK19: 60 | AL19: 57.239 | AM19: 60 | AN19: 49.305 | AO19: 60 | AP19: 48.012 | AQ19: 59 | AR19: 57.067 | AS19: 62
A20: 04240000 | B20: Boston Day and Evening Academy Charter (District) | C20: 424 | D20: 21.253 | E20: 29 | F20: 26.4 | G20: 27 | H20: 21.845 | I20: 28 | J20: 26 | K20: 26 | L20: 20.5 | M20: 21 | N20: 23.05 | O20: 23 | P20: 20.55 | Q20: 21 | R20: 23 | S20: 24 | T20: 20.75 | U20: 21 | V20: 21.6 | W20: 22 | X20: 20.6 | Y20: 21 | Z20: 22.6 | AA20: 23 | AB20: 24.65 | AC20: 27 | AD20: 26.4 | AE20: 28 | AF20: 26.55 | AG20: 27 | AH20: 27.5 | AI20: 28 | AJ20: 23.3 | AK20: 23 | AL20: 25.55 | AM20: 27 | AN20: 20.7 | AO20: 21 | AP20: 24.6 | AQ20: 25 | AR20: 21.8 | AS20: 22
A21: 04260000 | B21: Community Day Charter Public School - Gateway (District) | C21: 426 | D21: 44 | E21: 44 | F21: 43.992 | G21: 44 | H21: 40 | I21: 40 | J21: 40 | K21: 40 | L21: 32.5 | M21: 34 | N21: 33 | O21: 35 | P21: 28.75 | Q21: 32 | R21: 27.5 | S21: 31 | T21: 23.5 | U21: 26 | V21: 24 | W21: 27 | X21: 21.6 | Y21: 26 | Z21: 22.6 | AA21: 27 | AB21: 18.09 | AC21: 20 | AD21: 18.09 | AE21: 20 | AF21: 12.836 | AG21: 14 | AH21: 12.836 | AI21: 14 | AJ21: NE | AK21: NE | AL21: NE | AM21: NE | AN21: NE | AO21: NE | AP21: NE | AQ21: NE | AR21: NE | AS21: NE
A22: 04270000 | B22: Barnstable Community Horace Mann Charter Public (District) | C22: 427 | D22: Closed | E22: Closed | F22: Closed | G22: Closed | H22: 23.4 | I22: 25 | J22: 24 | K22: 26 | L22: 23 | M22: 25 | N22: 24 | O22: 26 | P22: 24.8 | Q22: 26 | R22: 21.99 | S22: 24 | T22: 25.61 | U22: 26 | V22: 26.008 | W22: 26 | X22: 24.392 | Y22: 26 | Z22: 23.608 | AA22: 24 | AB22: 23.608 | AC22: 24 | AD22: 23.741 | AE22: 24 | AF22: 23.608 | AG22: 24 | AH22: 23.608 | AI22: 24 | AJ22: 22.992 | AK22: 23 | AL22: 22.992 | AM22: 23 | AN22: 22.3 | AO22: 23 | AP22: 22.3 | AQ22: 23 | AR22: 25.4 | AS22: 26
A23: 04280000 | B23: Brooke Charter School (District) | C23: 428 | D23: 165.265 | E23: 169 | F23: 166.701 | G23: 170 | H23: 152.99 | I23: 153 | J23: 158 | K23: 158 | L23: 140.41 | M23: 142 | N23: 139.39 | O23: 141 | P23: 109.457 | Q23: 123 | R23: 110.29 | S23: 124 | T23: 39 | U23: 39 | V23: 39 | W23: 39 | X23: 42 | Y23: 42 | Z23: 41 | AA23: 41 | AB23: 40 | AC23: 41 | AD23: 41 | AE23: 42 | AF23: 38 | AG23: 38 | AH23: 38 | AI23: 38 | AJ23: 36 | AK23: 36 | AL23: 36 | AM23: 36 | AN23: 33.373 | AO23: 33 | AP23: 34.995 | AQ23: 35 | AR23: 36 | AS23: 36
A24: 04290000 | B24: KIPP Academy Lynn Charter (District) | C24: 429 | D24: 105.055 | E24: 113 | F24: 106.85 | G24: 115 | H24: 102.347 | I24: 109 | J24: 100.5 | K24: 106 | L24: 100.503 | M24: 105 | N24: 109.634 | O24: 115 | P24: 95.666 | Q24: 100 | R24: 99.74 | S24: 106 | T24: 88.33 | U24: 93 | V24: 87.574 | W24: 94 | X24: 76.927 | Y24: 80 | Z24: 76.72 | AA24: 80 | AB24: 49.04 | AC24: 54 | AD24: 65.63 | AE24: 69 | AF24: 48.69 | AG24: 52 | AH24: 49.24 | AI24: 53 | AJ24: 31.945 | AK24: 34 | AL24: 32.945 | AM24: 35 | AN24: 25.86 | AO24: 26 | AP24: 25.86 | AQ24: 26 | AR24: 26 | AS24: 28
A25: 04300000 | B25: Advanced Math and Science Academy Charter (District) | C25: 430 | D25: 78.959 | E25: 84 | F25: 79.959 | G25: 85 | H25: 79.23 | I25: 85 | J25: 81.539 | K25: 86 | L25: 78.48 | M25: 83 | N25: 82.046 | O25: 87 | P25: 74.054 | Q25: 81 | R25: 78.36 | S25: 81 | T25: 75.71 | U25: 84 | V25: 76.361 | W25: 82 | X25: 80.781 | Y25: 85 | Z25: 81.392 | AA25: 86 | AB25: 86.35 | AC25: 89 | AD25: 86.96 | AE25: 90 | AF25: 81.544 | AG25: 86 | AH25: 80.463 | AI25: 87 | AJ25: 80.509 | AK25: 83 | AL25: 80.358 | AM25: 83 | AN25: 72.392 | AO25: 74 | AP25: 70.433 | AQ25: 72 | AR25: 61.17 | AS25: 62
A26: 04310000 | B26: Community Day Charter Public School - R. Kingman Webster (District) | C26: 431 | D26: 39.999 | E26: 40 | F26: 41 | G26: 41 | H26: 39 | I26: 39 | J26: 39 | K26: 39 | L26: 32.5 | M26: 34 | N26: 33.5 | O26: 35 | P26: 30.5 | Q26: 33 | R26: 30.5 | S26: 33 | T26: 24.52 | U26: 27 | V26: 25.02 | W26: 28 | X26: 23.6 | Y26: 28 | Z26: 22.6 | AA26: 27 | AB26: 18.08 | AC26: 20 | AD26: 18.08 | AE26: 20 | AF26: 13.83 | AG26: 15 | AH26: 13.83 | AI26: 15 | AJ26: NE | AK26: NE | AL26: NE | AM26: NE | AN26: NE | AO26: NE | AP26: NE | AQ26: NE | AR26: NE | AS26: NE
A27: 04320000 | B27: Cape Cod Lighthouse Charter (District) | C27: 432 | D27: 21.207 | E27: 29 | F27: 22.61 | G27: 33 | H27: 20.909 | I27: 29 | J27: 21.455 | K27: 33 | L27: 21.685 | M27: 32 | N27: 21.969 | O27: 29 | P27: 22.5 | Q27: 33 | R27: 21.49 | S27: 28 | T27: 20.43 | U27: 31 | V27: 21.5 | W27: 28 | X27: 21.96 | Y27: 29 | Z27: 21.78 | AA27: 27 | AB27: 18.54 | AC27: 27 | AD27: 17.99 | AE27: 24 | AF27: 18.41 | AG27: 29 | AH27: 18.12 | AI27: 26 | AJ27: 18.18 | AK27: 28 | AL27: 18.14 | AM27: 26 | AN27: 17.86 | AO27: 26 | AP27: 18.99 | AQ27: 26 | AR27: 19.45 | AS27: 26
A28: 04350000 | B28: Innovation Academy Charter (District) | C28: 435 | D28: 70.613 | E28: 83 | F28: 69.833 | G28: 80 | H28: 67.683 | I28: 76 | J28: 70.23 | K28: 78 | L28: 74.263 | M28: 82 | N28: 75.366 | O28: 81 | P28: 74.969 | Q28: 85 | R28: 73.28 | S28: 79 | T28: 78.15 | U28: 87 | V28: 72.555 | W28: 80 | X28: 70.253 | Y28: 79 | Z28: 67.131 | AA28: 73 | AB28: 58.822 | AC28: 66 | AD28: 62.313 | AE28: 67 | AF28: 58.345 | AG28: 65 | AH28: 59.636 | AI28: 65 | AJ28: 56.005 | AK28: 63 | AL28: 56.945 | AM28: 61 | AN28: 55.085 | AO28: 64 | AP28: 56.181 | AQ28: 62 | AR28: 42.58 | AS28: 45
A29: 04360000 | B29: Community Charter School of Cambridge (District) | C29: 436 | D29: 34.415 | E29: 38 | F29: 35.144 | G29: 38 | H29: 35.752 | I29: 43 | J29: 36.69 | K29: 42 | L29: 39.189 | M29: 46 | N29: 34.4 | O29: 43 | P29: 32.228 | Q29: 54 | R29: 32.37 | S29: 55 | T29: 30.51 | U29: 48 | V29: 33.46 | W29: 50 | X29: 32.18 | Y29: 41 | Z29: 30.939 | AA29: 39 | AB29: 34.386 | AC29: 42 | AD29: 38.17 | AE29: 42 | AF29: 35.39 | AG29: 38 | AH29: 34.41 | AI29: 37 | AJ29: 30.96 | AK29: 34 | AL29: 31.185 | AM29: 33 | AN29: 30.385 | AO29: 37 | AP29: 28.137 | AQ29: 37 | AR29: 24.63 | AS29: 28
A30: 04370000 | B30: City on a Hill Charter Public School Circuit Street (District) | C30: 437 | D30: 35.905 | E30: 40 | F30: 12.018 | G30: 23 | H30: 22.79 | I30: 34 | J30: 23.7 | K30: 34 | L30: 26.7 | M30: 33 | N30: 26.701 | O30: 33 | P30: 25.1 | Q30: 31 | R30: 25.1 | S30: 31 | T30: 24.52 | U30: 33 | V30: 25.4 | W30: 34 | X30: 22.447 | Y30: 29 | Z30: 26.004 | AA30: 33 | AB30: 23.8 | AC30: 31 | AD30: 23.8 | AE30: 32 | AF30: 24.77 | AG30: 32 | AH30: 24.9 | AI30: 32 | AJ30: 22 | AK30: 30 | AL30: 21.9 | AM30: 30 | AN30: 16.4 | AO30: 25 | AP30: 19 | AQ30: 27 | AR30: 20.2 | AS30: 27
A31: 04380000 | B31: Codman Academy Charter Public (District) | C31: 438 | D31: 45.75 | E31: 53 | F31: 43.824 | G31: 51 | H31: 40.398 | I31: 43 | J31: 39.58 | K31: 43 | L31: 35.393 | M31: 37 | N31: 36.966 | O31: 40 | P31: 36.05 | Q31: 37 | R31: 35.94 | S31: 36 | T31: 29.42 | U31: 33 | V31: 30.35 | W31: 33 | X31: 20.75 | Y31: 23 | Z31: 25.903 | AA31: 28 | AB31: 17.41 | AC31: 19 | AD31: 18.71 | AE31: 20 | AF31: 14.05 | AG31: 19 | AH31: 14.98 | AI31: 18 | AJ31: 14.61 | AK31: 16 | AL31: 15.26 | AM31: 16 | AN31: 14.07 | AO31: 17 | AP31: 14.2 | AQ31: 18 | AR31: 15.1 | AS31: 18
A32: 04390000 | B32: Conservatory Lab Charter (District) | C32: 439 | D32: 27.2 | E32: 28 | F32: 26 | G32: 27 | H32: 25 | I32: 26 | J32: 25 | K32: 26 | L32: 24.25 | M32: 26 | N32: 25.25 | O32: 27 | P32: 20.98 | Q32: 21 | R32: 21.97 | S32: 22 | T32: 13.99 | U32: 14 | V32: 26.505 | W32: 27 | X32: 18 | Y32: 18 | Z32: 18 | AA32: 18 | AB32: 14.25 | AC32: 15 | AD32: 14 | AE32: 14 | AF32: 8 | AG32: 8 | AH32: 8 | AI32: 8 | AJ32: 9 | AK32: 9 | AL32: 9 | AM32: 9 | AN32: 10 | AO32: 10 | AP32: 10 | AQ32: 10 | AR32: 14.4 | AS32: 16
A33: 04400000 | B33: Community Day Charter Public School - Prospect (District) | C33: 440 | D33: 38.799 | E33: 40 | F33: 38.8 | G33: 40 | H33: 42.4 | I33: 43 | J33: 43.4 | K33: 44 | L33: 45.3 | M33: 46 | N33: 45.3 | O33: 46 | P33: 44 | Q33: 44 | R33: 45 | S33: 45 | T33: 42 | U33: 42 | V33: 42 | W33: 42 | X33: 43.3 | Y33: 48 | Z33: 43.8 | AA33: 49 | AB33: 33.83 | AC33: 36 | AD33: 33.83 | AE33: 36 | AF33: 35.75 | AG33: 37 | AH33: 35.75 | AI33: 37 | AJ33: 38.125 | AK33: 39 | AL33: 38.125 | AM33: 39 | AN33: 34.462 | AO33: 37 | AP33: 34.462 | AQ33: 37 | AR33: 34.617 | AS33: 37
A34: 04410000 | B34: Sabis International Charter (District) | C34: 441 | D34: 85.611 | E34: 88 | F34: 84.4 | G34: 86 | H34: 93.51 | I34: 94 | J34: 64.16 | K34: 92 | L34: 65.4 | M34: 94 | N34: 66.01 | O34: 94 | P34: 67.81 | Q34: 96 | R34: 65.78 | S34: 94 | T34: 65.98 | U34: 96 | V34: 64.16 | W34: 94 | X34: 65.45 | Y34: 96 | Z34: 64.59 | AA34: 95 | AB34: 65.45 | AC34: 96 | AD34: 63.23 | AE34: 94 | AF34: 65.79 | AG34: 96 | AH34: 64.54 | AI34: 94 | AJ34: 66.32 | AK34: 97 | AL34: 65.3 | AM34: 96 | AN34: 63.23 | AO34: 95 | AP34: 63.93 | AQ34: 97 | AR34: 70.1 | AS34: 93
A35: 04430000 | B35: Brooke Charter School Mattapan (District) | C35: 443 | D35: Closed | E35: Closed | F35: Closed | G35: Closed | H35: Closed | I35: Closed | J35: Closed | K35: Closed | L35: Closed | M35: Closed | N35: Closed | O35: Closed | P35: Closed | Q35: Closed | R35: Closed | S35: Closed | T35: 41 | U35: 41 | V35: 41 | W35: 41 | X35: 42.963 | Y35: 43 | Z35: 41.883 | AA35: 42 | AB35: 26 | AC35: 26 | AD35: 33 | AE35: 33 | AF35: 24.25 | AG35: 26 | AH35: 24.25 | AI35: 26 | AJ35: 16 | AK35: 16 | AL35: 16 | AM35: 16 | AN35: NE | AO35: NE | AP35: NE | AQ35: NE | AR35: NE | AS35: NE
A36: 04440000 | B36: Neighborhood House Charter (District) | C36: 444 | D36: 64.551 | E36: 66 | F36: 65.358 | G36: 68 | H36: 66.747 | I36: 74 | J36: 66.246 | K36: 71 | L36: 57.85 | M36: 60 | N36: 57.848 | O36: 59 | P36: 47.91 | Q36: 50 | R36: 49.11 | S36: 52 | T36: 36.5 | U36: 38 | V36: 37.504 | W36: 39 | X36: 34.334 | Y36: 36 | Z36: 34.334 | AA36: 36 | AB36: 34.64 | AC36: 35 | AD36: 32.35 | AE36: 33 | AF36: 34.979 | AG36: 35 | AH36: 34.979 | AI36: 35 | AJ36: 38.554 | AK36: 39 | AL36: 36.69 | AM36: 37 | AN36: 42 | AO36: 42 | AP36: 41.8 | AQ36: 42 | AR36: 40.8 | AS36: 41
A37: 04450000 | B37: Abby Kelley Foster Charter Public (District) | C37: 445 | D37: 115.921 | E37: 118 | F37: 117.15 | G37: 119 | H37: 116.599 | I37: 119 | J37: 116.393 | K37: 120 | L37: 112.453 | M37: 116 | N37: 108.972 | O37: 111 | P37: 111.402 | Q37: 111 | R37: 106.62 | S37: 109 | T37: 115.26 | U37: 118 | V37: 118.053 | W37: 120 | X37: 116.544 | Y37: 118 | Z37: 117.043 | AA37: 119 | AB37: 116.588 | AC37: 118 | AD37: 111.805 | AE37: 114 | AF37: 113.555 | AG37: 116 | AH37: 116.58 | AI37: 120 | AJ37: 113.06 | AK37: 113 | AL37: 111.898 | AM37: 114 | AN37: 112.98 | AO37: 114 | AP37: 111.701 | AQ37: 115 | AR37: 101.55 | AS37: 103
A38: 04460000 | B38: Foxborough Regional Charter (District) | C38: 446 | D38: 132.977 | E38: 136 | F38: 134.475 | G38: 137 | H38: 130.379 | I38: 134 | J38: 129.8 | K38: 134 | L38: 111.694 | M38: 115 | N38: 111.699 | O38: 115 | P38: 94.644 | Q38: 101 | R38: 92.25 | S38: 101 | T38: 80.8 | U38: 90 | V38: 82.182 | W38: 93 | X38: 84.061 | Y38: 92 | Z38: 86.003 | AA38: 91 | AB38: 86.643 | AC38: 91 | AD38: 82.119 | AE38: 91 | AF38: 81.048 | AG38: 91 | AH38: 78.242 | AI38: 89 | AJ38: 85.326 | AK38: 94 | AL38: 84.8 | AM38: 94 | AN38: 79.269 | AO38: 89 | AP38: 83 | AQ38: 91 | AR38: 77.4 | AS38: 77
A39: 04470000 | B39: Benjamin Franklin Classical Charter Public (District) | C39: 447 | D39: 54 | E39: 55 | F39: 56 | G39: 56 | H39: 29.996 | I39: 30 | J39: 30 | K39: 30 | L39: 32.8 | M39: 33 | N39: 33 | O39: 33 | P39: 31.802 | Q39: 38 | R39: 28.22 | S39: 35 | T39: 29.73 | U39: 31 | V39: 27.201 | W39: 28 | X39: 23.144 | Y39: 32 | Z39: 25.109 | AA39: 34 | AB39: 33.007 | AC39: 33 | AD39: 32.994 | AE39: 33 | AF39: 31.001 | AG39: 31 | AH39: 32.994 | AI39: 33 | AJ39: 28.934 | AK39: 30 | AL39: 36.782 | AM39: 40 | AN39: 30.791 | AO39: 34 | AP39: 30.791 | AQ39: 34 | AR39: 30.74 | AS39: 33
A40: 04480000 | B40: Gloucester Community Arts Charter (District) | C40: 448 | D40: Closed | E40: Closed | F40: Closed | G40: Closed | H40: Closed | I40: Closed | J40: Closed | K40: Closed | L40: Closed | M40: Closed | N40: Closed | O40: Closed | P40: Closed | Q40: Closed | R40: Closed | S40: Closed | T40: Closed | U40: Closed | V40: Closed | W40: Closed | X40: Closed | Y40: Closed | Z40: Closed | AA40: Closed | AB40: Closed | AC40: Closed | AD40: Closed | AE40: Closed | AF40: Closed | AG40: Closed | AH40: 12.004 | AI40: 12 | AJ40: 13.207 | AK40: 15 | AL40: 14.228 | AM40: 18 | AN40: 7.8 | AO40: 8 | AP40: 8.8 | AQ40: 9 | AR40: NE | AS40: NE
A41: 04490000 | B41: Boston Collegiate Charter (District) | C41: 449 | D41: 69.365 | E41: 73 | F41: 72.752 | G41: 78 | H41: 60.781 | I41: 71 | J41: 61.404 | K41: 68 | L41: 63.508 | M41: 68 | N41: 63.504 | O41: 68 | P41: 60.767 | Q41: 65 | R41: 65.74 | S41: 70 | T41: 59.14 | U41: 62 | V41: 63.206 | W41: 64 | X41: 59.167 | Y41: 63 | Z41: 58.741 | AA41: 64 | AB41: 60.177 | AC41: 62 | AD41: 62.11 | AE41: 64 | AF41: 60.939 | AG41: 60 | AH41: 61.147 | AI41: 63 | AJ41: 54.159 | AK41: 59 | AL41: 52.584 | AM41: 58 | AN41: 44.555 | AO41: 56 | AP41: 44.405 | AQ41: 55 | AR41: 39.018 | AS41: 49
A42: 04500000 | B42: Hilltown Cooperative Charter Public (District) | C42: 450 | D42: 20.45 | E42: 24 | F42: 19.7 | G42: 23 | H42: 20.27 | I42: 24 | J42: 19.62 | K42: 24 | L42: 19.93 | M42: 23 | N42: 19.93 | O42: 23 | P42: 19.155 | Q42: 22 | R42: 19.76 | S42: 23 | T42: 20.06 | U42: 23 | V42: 20.055 | W42: 23 | X42: 15.989 | Y42: 19 | Z42: 16.989 | AA42: 20 | AB42: 14.442 | AC42: 18 | AD42: 14.692 | AE42: 19 | AF42: 14.692 | AG42: 18 | AH42: 14.692 | AI42: 18 | AJ42: 14.391 | AK42: 18 | AL42: 14.391 | AM42: 18 | AN42: 13.69 | AO42: 15 | AP42: 13.69 | AQ42: 15 | AR42: 13.69 | AS42: 15
A43: 04510000 | B43: Robert M. Hughes Academy Charter Public (District) | C43: 451 | D43: Closed | E43: Closed | F43: Closed | G43: Closed | H43: Closed | I43: Closed | J43: Closed | K43: Closed | L43: Closed | M43: Closed | N43: Closed | O43: Closed | P43: Closed | Q43: Closed | R43: Closed | S43: Closed | T43: Closed | U43: Closed | V43: Closed | W43: Closed | X43: Closed | Y43: Closed | Z43: Closed | AA43: Closed | AB43: Closed | AC43: Closed | AD43: Closed | AE43: Closed | AF43: Closed | AG43: Closed | AH43: Closed | AI43: Closed | AJ43: Closed | AK43: Closed | AL43: Closed | AM43: Closed | AN43: Closed | AO43: Closed | AP43: Closed | AQ43: Closed | AR43: 8.48 | AS43: 10
A44: 04520000 | B44: Edward M. Kennedy Academy for Health Careers (Horace Mann Charter) (District) | C44: 452 | D44: 36.151 | E44: 41 | F44: 36.792 | G44: 43 | H44: 37.496 | I44: 45 | J44: 39.703 | K44: 48 | L44: 30.296 | M44: 34 | N44: 35.295 | O44: 39 | P44: 24.98 | Q44: 28 | R44: 28.7 | S44: 32 | T44: 23.25 | U44: 26 | V44: 27.854 | W44: 30 | X44: 24.275 | Y44: 27 | Z44: 28.25 | AA44: 31 | AB44: 23.349 | AC44: 29 | AD44: 25.317 | AE44: 30 | AF44: 23.54 | AG44: 27 | AH44: 23.54 | AI44: 27 | AJ44: 20.1 | AK44: 25 | AL44: 19.7 | AM44: 25 | AN44: 20 | AO44: 24 | AP44: 20 | AQ44: 24 | AR44: 18.9 | AS44: 22
A45: 04530000 | B45: Holyoke Community Charter (District) | C45: 453 | D45: 43 | E45: 43 | F45: 43 | G45: 43 | H45: 46.2 | I45: 46 | J45: 52.09 | K45: 52 | L45: 51.92 | M45: 52 | N45: 52.13 | O45: 52 | P45: 52.5 | Q45: 53 | R45: 52.52 | S45: 53 | T45: 53.68 | U45: 54 | V45: 52.03 | W45: 52 | X45: 50.948 | Y45: 51 | Z45: 50.938 | AA45: 51 | AB45: 53.118 | AC45: 54 | AD45: 53.618 | AE45: 54 | AF45: 51.115 | AG45: 51 | AH45: 50.145 | AI45: 50 | AJ45: 47.916 | AK45: 48 | AL45: 48.906 | AM45: 49 | AN45: 48.048 | AO45: 48 | AP45: 46.059 | AQ45: 46 | AR45: 45 | AS45: 45
A46: 04540000 | B46: Lawrence Family Development Charter (District) | C46: 454 | D46: 61.176 | E46: 62 | F46: 62.976 | G46: 63 | H46: 60.5 | I46: 61 | J46: 61.5 | K46: 62 | L46: 60.499 | M46: 61 | N46: 60.87 | O46: 60 | P46: 59.543 | Q46: 60 | R46: 59.54 | S46: 60 | T46: 57.47 | U46: 58 | V46: 56.466 | W46: 57 | X46: 56 | Y46: 56 | Z46: 56 | AA46: 56 | AB46: 53 | AC46: 53 | AD46: 54 | AE46: 54 | AF46: 54 | AG46: 54 | AH46: 54 | AI46: 54 | AJ46: 52.956 | AK46: 53 | AL46: 51.956 | AM46: 52 | AN46: 49 | AO46: 49 | AP46: 50 | AQ46: 50 | AR46: 51 | AS46: 51
A47: 04550000 | B47: Hill View Montessori Charter Public (District) | C47: 455 | D47: 22 | E47: 22 | F47: 20.994 | G47: 21 | H47: 22 | I47: 22 | J47: 22 | K47: 22 | L47: 24.072 | M47: 24 | N47: 25 | O47: 25 | P47: 18.015 | Q47: 22 | R47: 20.07 | S47: 25 | T47: 17.75 | U47: 22 | V47: 19.553 | W47: 24 | X47: 21.576 | Y47: 24 | Z47: 22.676 | AA47: 23 | AB47: 20.653 | AC47: 24 | AD47: 20.153 | AE47: 22 | AF47: 22.352 | AG47: 23 | AH47: 21.477 | AI47: 23 | AJ47: 27.478 | AK47: 30 | AL47: 27.828 | AM47: 29 | AN47: 24.201 | AO47: 27 | AP47: 26.625 | AQ47: 29 | AR47: 23.725 | AS47: 25
A48: 04560000 | B48: Lowell Community Charter Public (District) | C48: 456 | D48: 65.46 | E48: 66 | F48: 66.46 | G48: 67 | H48: 65.336 | I48: 66 | J48: 64.34 | K48: 65 | L48: 64.462 | M48: 65 | N48: 63.467 | O48: 64 | P48: 62.47 | Q48: 63 | R48: 60.97 | S48: 62 | T48: 62.65 | U48: 63 | V48: 61.54 | W48: 62 | X48: 49.94 | Y48: 50 | Z48: 55.94 | AA48: 56 | AB48: 48.13 | AC48: 48 | AD48: 48.09 | AE48: 48 | AF48: 45.63 | AG48: 47 | AH48: 47.46 | AI48: 49 | AJ48: 47.69 | AK48: 48 | AL48: 45.94 | AM48: 46 | AN48: 61.293 | AO48: 62 | AP48: 57.857 | AQ48: 59 | AR48: 79 | AS48: 79
A49: 04570000 | B49: Brooke Charter School East Boston (District) | C49: 457 | D49: Closed | E49: Closed | F49: Closed | G49: Closed | H49: Closed | I49: Closed | J49: Closed | K49: Closed | L49: Closed | M49: Closed | N49: Closed | O49: Closed | P49: Closed | Q49: Closed | R49: Closed | S49: Closed | T49: 40 | U49: 40 | V49: 40 | W49: 40 | X49: 33 | Y49: 33 | Z49: 33 | AA49: 33 | AB49: 24.5 | AC49: 25 | AD49: 24.5 | AE49: 25 | AF49: 15.5 | AG49: 16 | AH49: 15.5 | AI49: 16 | AJ49: NE | AK49: NE | AL49: NE | AM49: NE | AN49: NE | AO49: NE | AP49: NE | AQ49: NE | AR49: NE | AS49: NE
A50: 04580000 | B50: Lowell Middlesex Academy Charter (District) | C50: 458 | D50: 8.5 | E50: 10 | F50: 8 | G50: 10 | H50: 9 | I50: 11 | J50: 9 | K50: 11 | L50: 10.5 | M50: 12 | N50: 10.5 | O50: 12 | P50: 11 | Q50: 13 | R50: 10.48 | S50: 12 | T50: 11 | U50: 12 | V50: 9.668 | W50: 10 | X50: 11.77 | Y50: 13 | Z50: 11.905 | AA50: 14 | AB50: 11.911 | AC50: 14 | AD50: 12.51 | AE50: 13 | AF50: 13.713 | AG50: 15 | AH50: 12.977 | AI50: 15 | AJ50: 10.4 | AK50: 14 | AL50: 11.4 | AM50: 14 | AN50: 12.8 | AO50: 15 | AP50: 12 | AQ50: 15 | AR50: 9.6 | AS50: 11
A51: 04590000 | B51: Excel Academy Charter School - Boston II | C51: 459 | D51: Closed | E51: Closed | F51: Closed | G51: Closed | H51: Closed | I51: Closed | J51: Closed | K51: Closed | L51: Closed | M51: Closed | N51: Closed | O51: Closed | P51: Closed | Q51: Closed | R51: Closed | S51: Closed | T51: Closed | U51: Closed | V51: Closed | W51: Closed | X51: Closed | Y51: Closed | Z51: Closed | AA51: Closed | AB51: 8.625 | AC51: 14 | AD51: 11.099 | AE51: 15 | AF51: 4.17 | AG51: 6 | AH51: 5.298 | AI51: 6 | AJ51: NE | AK51: NE | AL51: NE | AM51: NE | AN51: NE | AO51: NE | AP51: NE | AQ51: NE | AR51: NE | AS51: NE
A52: 04610000 | B52: Excel Academy Charter School - Chelsea | C52: 461 | D52: Closed | E52: Closed | F52: Closed | G52: Closed | H52: Closed | I52: Closed | J52: Closed | K52: Closed | L52: Closed | M52: Closed | N52: Closed | O52: Closed | P52: Closed | Q52: Closed | R52: Closed | S52: Closed | T52: Closed | U52: Closed | V52: Closed | W52: Closed | X52: Closed | Y52: Closed | Z52: Closed | AA52: Closed | AB52: 12.734 | AC52: 17 | AD52: 14.896 | AE52: 17 | AF52: 7.806 | AG52: 12 | AH52: 10.002 | AI52: 12 | AJ52: 5.104 | AK52: 6 | AL52: 5.802 | AM52: 6 | AN52: NE | AO52: NE | AP52: NE | AQ52: NE | AR52: NE | AS52: NE
A53: 04620000 | B53: Grove Hall Preparatory Charter School (District) | C53: 462 | D53: Closed | E53: Closed | F53: Closed | G53: Closed | H53: Closed | I53: Closed | J53: Closed | K53: Closed | L53: Closed | M53: Closed | N53: Closed | O53: Closed | P53: Closed | Q53: Closed | R53: Closed | S53: Closed | T53: Closed | U53: Closed | V53: Closed | W53: Closed | X53: Closed | Y53: Closed | Z53: Closed | AA53: Closed | AB53: Closed | AC53: Closed | AD53: Closed | AE53: Closed | AF53: Closed | AG53: Closed | AH53: Closed | AI53: Closed | AJ53: 7.94 | AK53: 8 | AL53: 7.99 | AM53: 8 | AN53: NE | AO53: NE | AP53: NE | AQ53: NE | AR53: NE | AS53: NE
A54: 04630000 | B54: KIPP Academy Boston Charter School (District) | C54: 463 | D54: 40.798 | E54: 42 | F54: 40.01 | G54: 41 | H54: 44.25 | I54: 45 | J54: 37.333 | K54: 39 | L54: 51.1 | M54: 52 | N54: 55 | O54: 55 | P54: 44.088 | Q54: 45 | R54: 46.99 | S54: 47 | T54: 38.5 | U54: 39 | V54: 38.25 | W54: 39 | X54: 26.979 | Y54: 27 | Z54: 28.977 | AA54: 29 | AB54: 12.988 | AC54: 13 | AD54: 14.987 | AE54: 15 | AF54: 6.5 | AG54: 8 | AH54: 8.194 | AI54: 10 | AJ54: NE | AK54: NE | AL54: NE | AM54: NE | AN54: NE | AO54: NE | AP54: NE | AQ54: NE | AR54: NE | AS54: NE
A55: 04640000 | B55: Marblehead Community Charter Public (District) | C55: 464 | D55: 23 | E55: 23 | F55: 22.1 | G55: 23 | H55: 20.9 | I55: 22 | J55: 23.5 | K55: 25 | L55: 22.3 | M55: 24 | N55: 20.5 | O55: 22 | P55: 22.9 | Q55: 24 | R55: 21.9 | S55: 23 | T55: 20.65 | U55: 22 | V55: 19.25 | W55: 21 | X55: 20.8 | Y55: 22 | Z55: 20.4 | AA55: 22 | AB55: 21.35 | AC55: 24 | AD55: 22.15 | AE55: 25 | AF55: 19.75 | AG55: 22 | AH55: 19.55 | AI55: 22 | AJ55: 20.645 | AK55: 23 | AL55: 20.645 | AM55: 23 | AN55: 21.9 | AO55: 25 | AP55: 21.65 | AQ55: 25 | AR55: 20.5 | AS55: 23
A56: 04650000 | B56: MATCH Community Day Charter Public School | C56: 465 | D56: Closed | E56: Closed | F56: Closed | G56: Closed | H56: Closed | I56: Closed | J56: Closed | K56: Closed | L56: Closed | M56: Closed | N56: Closed | O56: Closed | P56: Closed | Q56: Closed | R56: Closed | S56: Closed | T56: Closed | U56: Closed | V56: Closed | W56: Closed | X56: Closed | Y56: Closed | Z56: Closed | AA56: Closed | AB56: 20.4 | AC56: 21 | AD56: 18.4 | AE56: 19 | AF56: 12.5 | AG56: 13 | AH56: 12.5 | AI56: 13 | AJ56: 8 | AK56: 8 | AL56: 8 | AM56: 8 | AN56: NE | AO56: NE | AP56: NE | AQ56: NE | AR56: NE | AS56: NE
A57: 04660000 | B57: Martha's Vineyard Charter (District) | C57: 466 | D57: 18.64 | E57: 19 | F57: 16.52 | G57: 20 | H57: 17.33 | I57: 21 | J57: 16.71 | K57: 20 | L57: 17.63 | M57: 20 | N57: 16.62 | O57: 21 | P57: 18.76 | Q57: 24 | R57: 18.87 | S57: 23 | T57: 16.93 | U57: 22 | V57: 18.2 | W57: 22 | X57: 18.07 | Y57: 22 | Z57: 18.04 | AA57: 21 | AB57: 17.32 | AC57: 21 | AD57: 19.21 | AE57: 23 | AF57: 17.36 | AG57: 21 | AH57: 17.95 | AI57: 22 | AJ57: 19.46 | AK57: 22 | AL57: 19.46 | AM57: 22 | AN57: 19.38 | AO57: 22 | AP57: 19.748 | AQ57: 22 | AR57: 18.764 | AS57: 20
A58: 04670000 | B58: New Liberty Charter School of Salem (District) | C58: 467 | D58: Closed | E58: Closed | F58: Closed | G58: Closed | H58: Closed | I58: Closed | J58: Closed | K58: Closed | L58: Closed | M58: Closed | N58: Closed | O58: Closed | P58: Closed | Q58: Closed | R58: Closed | S58: Closed | T58: 4.66 | U58: 6 | V58: 4.49 | W58: 6 | X58: 5.6 | Y58: 7 | Z58: 5.43 | AA58: 6 | AB58: 4.6 | AC58: 6 | AD58: 4.634 | AE58: 6 | AF58: 4.3 | AG58: 6 | AH58: 4.82 | AI58: 6 | AJ58: 5.52 | AK58: 7 | AL58: 5.565 | AM58: 8 | AN58: NE | AO58: NE | AP58: NE | AQ58: NE | AR58: NE | AS58: NE
A59: 04690000 | B59: MATCH Charter Public School (District) | C59: 469 | D59: 114.711 | E59: 120 | F59: 113.926 | G59: 117 | H59: 105.838 | I59: 114 | J59: 103.35 | K59: 110 | L59: 101.464 | M59: 107 | N59: 102.9 | O59: 107 | P59: 79.712 | Q59: 89 | R59: 84.75 | S59: 88 | T59: 67.31 | U59: 74 | V59: 69.504 | W59: 76 | X59: 53.29 | Y59: 61 | Z59: 57.3 | AA59: 63 | AB59: 31.04 | AC59: 33 | AD59: 33.04 | AE59: 35 | AF59: 30.2 | AG59: 32 | AH59: 30.2 | AI59: 32 | AJ59: 27.5 | AK59: 28 | AL59: 27 | AM59: 27 | AN59: 24.5 | AO59: 25 | AP59: 24.5 | AQ59: 25 | AR59: 23.24 | AS59: 26
A60: 04700000 | B60: Mystic Valley Regional Charter (District) | C60: 470 | D60: 102.16 | E60: 105 | F60: 105.485 | G60: 108 | H60: 97.968 | I60: 98 | J60: 100.89 | K60: 103 | L60: 95.797 | M60: 101 | N60: 100.5 | O60: 102 | P60: 100.373 | Q60: 107 | R60: 103.09 | S60: 111 | T60: 106.74 | U60: 113 | V60: 102.677 | W60: 110 | X60: 104.606 | Y60: 111 | Z60: 106.903 | AA60: 113 | AB60: 103.615 | AC60: 110 | AD60: 104.815 | AE60: 112 | AF60: 103.853 | AG60: 108 | AH60: 102.387 | AI60: 108 | AJ60: 98.055 | AK60: 100 | AL60: 93.347 | AM60: 99 | AN60: 89.115 | AO60: 91 | AP60: 88.368 | AQ60: 92 | AR60: 94.99 | AS60: 95
A61: 04710000 | B61: New Leadership Charter (District) | C61: 471 | D61: Closed | E61: Closed | F61: Closed | G61: Closed | H61: Closed | I61: Closed | J61: Closed | K61: Closed | L61: Closed | M61: Closed | N61: Closed | O61: Closed | P61: Closed | Q61: Closed | R61: Closed | S61: Closed | T61: Closed | U61: Closed | V61: Closed | W61: Closed | X61: Closed | Y61: Closed | Z61: Closed | AA61: Closed | AB61: Closed | AC61: Closed | AD61: Closed | AE61: Closed | AF61: 32.416 | AG61: 46 | AH61: 31.516 | AI61: 46 | AJ61: 30.961 | AK61: 46 | AL61: 30.683 | AM61: 48 | AN61: 15.279 | AO61: 38 | AP61: 21.872 | AQ61: 51 | AR61: 42.907 | AS61: 47
A62: 04740000 | B62: Sizer School: A North Central Charter Essential (District) | C62: 474 | D62: 39.687 | E62: 42 | F62: 39.97 | G62: 44 | H62: 39.04 | I62: 42 | J62: 40.22 | K62: 44 | L62: 37.707 | M62: 46 | N62: 34.765 | O62: 42 | P62: 34.607 | Q62: 39 | R62: 35.07 | S62: 40 | T62: 37.54 | U62: 48 | V62: 35.821 | W62: 44 | X62: 36.35 | Y62: 44 | Z62: 39.029 | AA62: 47 | AB62: 34.101 | AC62: 43 | AD62: 35.389 | AE62: 43 | AF62: 34.836 | AG62: 42 | AH62: 35.142 | AI62: 40 | AJ62: 35.077 | AK62: 45 | AL62: 34.589 | AM62: 43 | AN62: 34.325 | AO62: 41 | AP62: 33.917 | AQ62: 39 | AR62: 34.125 | AS62: 37
A63: 04750000 | B63: Dorchester Collegiate Academy Charter (District) | C63: 475 | D63: Closed | E63: Closed | F63: Closed | G63: Closed | H63: Closed | I63: Closed | J63: Closed | K63: Closed | L63: Closed | M63: Closed | N63: Closed | O63: Closed | P63: Closed | Q63: Closed | R63: Closed | S63: Closed | T63: 21.68 | U63: 27 | V63: 20.82 | W63: 25 | X63: 17.2 | Y63: 17 | Z63: 16 | AA63: 16 | AB63: 17.502 | AC63: 18 | AD63: 6.89 | AE63: 17 | AF63: 13 | AG63: 13 | AH63: 13 | AI63: 13 | AJ63: 9.75 | AK63: 10 | AL63: 9.75 | AM63: 10 | AN63: 5.775 | AO63: 6 | AP63: 5.4 | AQ63: 6 | AR63: 2.2 | AS63: 3
A64: 04760000 | B64: Spirit of Knowledge Charter School (District) | C64: 476 | D64: Closed | E64: Closed | F64: Closed | G64: Closed | H64: Closed | I64: Closed | J64: Closed | K64: Closed | L64: Closed | M64: Closed | N64: Closed | O64: Closed | P64: Closed | Q64: Closed | R64: Closed | S64: Closed | T64: Closed | U64: Closed | V64: Closed | W64: Closed | X64: Closed | Y64: Closed | Z64: Closed | AA64: Closed | AB64: Closed | AC64: Closed | AD64: Closed | AE64: Closed | AF64: 14.186 | AG64: 17 | AH64: 14.713 | AI64: 17 | AJ64: 13.577 | AK64: 15 | AL64: 13.82 | AM64: 17 | AN64: 12.682 | AO64: 18 | AP64: 9.339 | AQ64: 15 | AR64: NE | AS64: NE
A65: 04770000 | B65: Silver Hill Horace Mann Charter (District) | C65: 477 | D65: Closed | E65: Closed | F65: Closed | G65: Closed | H65: Closed | I65: Closed | J65: Closed | K65: Closed | L65: 36.2 | M65: 38 | N65: 35.2 | O65: 37 | P65: 35.8 | Q65: 36 | R65: 34.8 | S65: 35 | T65: 36.44 | U65: 37 | V65: 35.938 | W65: 37 | X65: 36.943 | Y65: 37 | Z65: 36.993 | AA65: 37 | AB65: 38.513 | AC65: 38 | AD65: 38.057 | AE65: 38 | AF65: 35.735 | AG65: 36 | AH65: 35.921 | AI65: 36 | AJ65: 32.193 | AK65: 35 | AL65: 35.966 | AM65: 36 | AN65: 34.966 | AO65: 35 | AP65: 34.966 | AQ65: 35 | AR65: 38.75 | AS65: 39
A66: 04780000 | B66: Francis W. Parker Charter Essential (District) | C66: 478 | D66: 45.748 | E66: 49 | F66: 44.95 | G66: 48 | H66: 45.704 | I66: 50 | J66: 46.41 | K66: 51 | L66: 46.25 | M66: 49 | N66: 46.25 | O66: 49 | P66: 36.99 | Q66: 40 | R66: 45.69 | S66: 49 | T66: 37.56 | U66: 42 | V66: 44.81 | W66: 49 | X66: 33.95 | Y66: 38 | Z66: 45.75 | AA66: 50 | AB66: 47.411 | AC66: 51 | AD66: 47.242 | AE66: 52 | AF66: 45.197 | AG66: 50 | AH66: 45.096 | AI66: 49 | AJ66: 45.46 | AK66: 50 | AL66: 45.45 | AM66: 50 | AN66: 44.775 | AO66: 48 | AP66: 44.775 | AQ66: 48 | AR66: 45.025 | AS66: 51
A67: 04790000 | B67: Pioneer Valley Performing Arts Charter Public (District) | C67: 479 | D67: 43.694 | E67: 48 | F67: 44.868 | G67: 46 | H67: 44.753 | I67: 50 | J67: 47.3 | K67: 49 | L67: 39.826 | M67: 47 | N67: 44.1 | O67: 47 | P67: 41.89 | Q67: 48 | R67: 40.59 | S67: 46 | T67: 37.28 | U67: 43 | V67: 39.2 | W67: 45 | X67: 35.696 | Y67: 45 | Z67: 39.52 | AA67: 50 | AB67: 35.396 | AC67: 43 | AD67: 40.83 | AE67: 54 | AF67: 42.37 | AG67: 56 | AH67: 41.86 | AI67: 59 | AJ67: 43.44 | AK67: 55 | AL67: 39.829 | AM67: 54 | AN67: 39.74 | AO67: 60 | AP67: 39 | AQ67: 59 | AR67: 35.85 | AS67: 59
A68: 04800000 | B68: UP Academy Charter School of Boston (District) | C68: 480 | D68: 40.877 | E68: 41 | F68: 40.471 | G68: 41 | H68: 40.5 | I68: 41 | J68: 44.5 | K68: 45 | L68: 28.5 | M68: 29 | N68: 42.5 | O68: 43 | P68: 26.44 | Q68: 27 | R68: 38.62 | S68: 39 | T68: 38.37 | U68: 40 | V68: 41.4 | W68: 42 | X68: 42.98 | Y68: 44 | Z68: 45.5 | AA68: 47 | AB68: 27.01 | AC68: 29 | AD68: 45.1 | AE68: 46 | AF68: 45.78 | AG68: 48 | AH68: 47.37 | AI68: 48 | AJ68: 41.16 | AK68: 43 | AL68: 42.5 | AM68: 43 | AN68: NE | AO68: NE | AP68: NE | AQ68: NE | AR68: NE | AS68: NE
A69: 04810000 | B69: Boston Renaissance Charter Public (District) | C69: 481 | D69: 82.3 | E69: 83 | F69: 81.5 | G69: 82 | H69: 80.002 | I69: 80 | J69: 82 | K69: 82 | L69: 84.4 | M69: 85 | N69: 82 | O69: 82 | P69: 79 | Q69: 79 | R69: 75.57 | S69: 78 | T69: 77 | U69: 77 | V69: 74.02 | W69: 76 | X69: 77 | Y69: 77 | Z69: 76 | AA69: 76 | AB69: 73 | AC69: 73 | AD69: 72.67 | AE69: 74 | AF69: 70.05 | AG69: 70 | AH69: 70.82 | AI69: 71 | AJ69: 78.77 | AK69: 79 | AL69: 76.86 | AM69: 77 | AN69: 93.68 | AO69: 94 | AP69: 93.8 | AQ69: 94 | AR69: 95 | AS69: 96
A70: 04820000 | B70: River Valley Charter (District) | C70: 482 | D70: 21.88 | E70: 23 | F70: 21.88 | G70: 23 | H70: 20.75 | I70: 22 | J70: 20.75 | K70: 22 | L70: 20.751 | M70: 22 | N70: 20.75 | O70: 22 | P70: 18.076 | Q70: 21 | R70: 18.44 | S70: 22 | T70: 19.44 | U70: 22 | V70: 19.94 | W70: 22 | X70: 19.405 | Y70: 20 | Z70: 18.405 | AA70: 20 | AB70: 19.468 | AC70: 20 | AD70: 18.464 | AE70: 19 | AF70: 14.151 | AG70: 18 | AH70: 17.436 | AI70: 18 | AJ70: 17.492 | AK70: 18 | AL70: 16.492 | AM70: 17 | AN70: 17.124 | AO70: 19 | AP70: 17.124 | AQ70: 19 | AR70: 21 | AS70: 21
A71: 04830000 | B71: Rising Tide Charter Public (District) | C71: 483 | D71: 46.199 | E71: 48 | F71: 44.398 | G71: 46 | H71: 44.6 | I71: 46 | J71: 48.7 | K71: 51 | L71: 58.25 | M71: 59 | N71: 60.95 | O71: 62 | P71: 49.025 | Q71: 60 | R71: 52.15 | S71: 58 | T71: 41.47 | U71: 47 | V71: 56.27 | W71: 58 | X71: 49.133 | Y71: 54 | Z71: 46.718 | AA71: 53 | AB71: 39.508 | AC71: 45 | AD71: 43.485 | AE71: 47 | AF71: 31.5 | AG71: 41 | AH71: 34.539 | AI71: 41 | AJ71: 32.24 | AK71: 34 | AL71: 32.41 | AM71: 35 | AN71: 23.57 | AO71: 25 | AP71: 24.82 | AQ71: 26 | AR71: 24.36 | AS71: 26
A72: 04840000 | B72: Roxbury Preparatory Charter (District) | C72: 484 | D72: 124.483 | E72: 129 | F72: 128 | G72: 132 | H72: 120.494 | I72: 126 | J72: 122.23 | K72: 126 | L72: 114.436 | M72: 120 | N72: 117.86 | O72: 123 | P72: 106.35 | Q72: 107 | R72: 111.18 | S72: 112 | T72: 95.14 | U72: 99 | V72: 97.98 | W72: 100 | X72: 78.14 | Y72: 79 | Z72: 77.56 | AA72: 79 | AB72: 64.57 | AC72: 67 | AD72: 65.07 | AE72: 67 | AF72: 53.51 | AG72: 56 | AH72: 55.31 | AI72: 56 | AJ72: 23.05 | AK72: 27 | AL72: 23.05 | AM72: 27 | AN72: 25.83 | AO72: 32 | AP72: 27.83 | AQ72: 34 | AR72: 26.259 | AS72: 30
A73: 04850000 | B73: Salem Academy Charter (District) | C73: 485 | D73: 46.572 | E73: 50 | F73: 45.84 | G73: 50 | H73: 44.851 | I73: 49 | J73: 46.014 | K73: 51 | L73: 46.102 | M73: 50 | N73: 46.1 | O73: 50 | P73: 41.45 | Q73: 44 | R73: 43.12 | S73: 46 | T73: 42.96 | U73: 44 | V73: 43.894 | W73: 46 | X73: 37.64 | Y73: 40 | Z73: 42.8 | AA73: 43 | AB73: 38.65 | AC73: 43 | AD73: 39.03 | AE73: 43 | AF73: 34.146 | AG73: 37 | AH73: 36.04 | AI73: 37 | AJ73: 31.505 | AK73: 37 | AL73: 30.41 | AM73: 37 | AN73: 33.957 | AO73: 40 | AP73: 35.59 | AQ73: 41 | AR73: 36.7 | AS73: 41
A74: 04860000 | B74: Seven Hills Charter Public (District) | C74: 486 | D74: 35.75 | E74: 36 | F74: 35.75 | G74: 36 | H74: 33.004 | I74: 33 | J74: 34 | K74: 34 | L74: 34.75 | M74: 35 | N74: 37.44 | O74: 38 | P74: 46.613 | Q74: 49 | R74: 49.61 | S74: 52 | T74: 52.39 | U74: 53 | V74: 53.37 | W74: 54 | X74: 55.3 | Y74: 56 | Z74: 56.3 | AA74: 57 | AB74: 53.74 | AC74: 54 | AD74: 53.175 | AE74: 54 | AF74: 50.102 | AG74: 52 | AH74: 51.474 | AI74: 53 | AJ74: 49.277 | AK74: 51 | AL74: 50.176 | AM74: 52 | AN74: 48.203 | AO74: 51 | AP74: 48.665 | AQ74: 50 | AR74: 41.5 | AS74: 42
A75: 04870000 | B75: Prospect Hill Academy Charter (District) | C75: 487 | D75: 99.346 | E75: 105 | F75: 103.753 | G75: 106 | H75: 102.096 | I75: 105 | J75: 104.492 | K75: 108 | L75: 111.263 | M75: 119 | N75: 111.14 | O75: 118 | P75: 106.027 | Q75: 119 | R75: 109.31 | S75: 122 | T75: 101.36 | U75: 119 | V75: 95.302 | W75: 114 | X75: 88.08 | Y75: 110 | Z75: 87.393 | AA75: 107 | AB75: 93.022 | AC75: 108 | AD75: 93.3 | AE75: 107 | AF75: 101.852 | AG75: 103 | AH75: 106.767 | AI75: 107 | AJ75: 103.116 | AK75: 105 | AL75: 97.654 | AM75: 100 | AN75: 87.901 | AO75: 102 | AP75: 84.601 | AQ75: 101 | AR75: 80.762 | AS75: 81
A76: 04880000 | B76: South Shore Charter Public (District) | C76: 488 | D76: 93.153 | E76: 103 | F76: 91.709 | G76: 100 | H76: 88.178 | I76: 98 | J76: 88.38 | K76: 98 | L76: 76.686 | M76: 85 | N76: 76.2 | O76: 84 | P76: 60.901 | Q76: 65 | R76: 64.6 | S76: 70 | T76: 53.3 | U76: 58 | V76: 54.497 | W76: 59 | X76: 51.592 | Y76: 54 | Z76: 56.601 | AA76: 58 | AB76: 47.763 | AC76: 53 | AD76: 49.974 | AE76: 56 | AF76: 44.893 | AG76: 50 | AH76: 48.628 | AI76: 52 | AJ76: 47.027 | AK76: 52 | AL76: 45.493 | AM76: 49 | AN76: 46.264 | AO76: 52 | AP76: 45.956 | AQ76: 51 | AR76: 40.78 | AS76: 47
A77: 04890000 | B77: Sturgis Charter Public (District) | C77: 489 | D77: 89.228 | E77: 99 | F77: 89.486 | G77: 99 | H77: 86.894 | I77: 97 | J77: 87.79 | K77: 97 | L77: 85.094 | M77: 95 | N77: 86.59 | O77: 97 | P77: 86.997 | Q77: 97 | R77: 89.2 | S77: 98 | T77: 72.16 | U77: 79 | V77: 85.75 | W77: 92 | X77: 83.25 | Y77: 91 | Z77: 85.25 | AA77: 91 | AB77: 78.13 | AC77: 92 | AD77: 82.49 | AE77: 92 | AF77: 67.342 | AG77: 77 | AH77: 76.21 | AI77: 85 | AJ77: 59.792 | AK77: 69 | AL77: 59.97 | AM77: 68 | AN77: 38.72 | AO77: 45 | AP77: 38.42 | AQ77: 45 | AR77: 40.23 | AS77: 46
A78: 04910000 | B78: Atlantis Charter (District) | C78: 491 | D78: 103.72 | E78: 104 | F78: 103.588 | G78: 104 | H78: 93.594 | I78: 94 | J78: 90.772 | K78: 93 | L78: 90.052 | M78: 91 | N78: 88.6 | O78: 90 | P78: 79.51 | Q78: 83 | R78: 82.18 | S78: 85 | T78: 73.94 | U78: 75 | V78: 73.14 | W78: 74 | X78: 48.66 | Y78: 54 | Z78: 60.26 | AA78: 62 | AB78: 53.6 | AC78: 54 | AD78: 54.6 | AE78: 55 | AF78: 47.92 | AG78: 49 | AH78: 51.8 | AI78: 53 | AJ78: 52.13 | AK78: 53 | AL78: 54.14 | AM78: 55 | AN78: 56.04 | AO78: 56 | AP78: 56.03 | AQ78: 56 | AR78: 56.223 | AS78: 56
A79: 04920000 | B79: Martin Luther King Jr. Charter School of Excellence (District) | C79: 492 | D79: 35.847 | E79: 37 | F79: 34.597 | G79: 35 | H79: 36.93 | I79: 37 | J79: 35.77 | K79: 36 | L79: 35.791 | M79: 37 | N79: 34.873 | O79: 37 | P79: 34.754 | Q79: 42 | R79: 37.76 | S79: 42 | T79: 36.72 | U79: 37 | V79: 30.117 | W79: 34 | X79: 38.169 | Y79: 39 | Z79: 37.722 | AA79: 39 | AB79: 39.163 | AC79: 40 | AD79: 38.229 | AE79: 40 | AF79: 38.975 | AG79: 41 | AH79: 39.855 | AI79: 41 | AJ79: 37.808 | AK79: 39 | AL79: 36.801 | AM79: 38 | AN79: 39.26 | AO79: 40 | AP79: 39.71 | AQ79: 40 | AR79: 31.769 | AS79: 33
A80: 04930000 | B80: Phoenix Charter Academy (District) | C80: 493 | D80: 15.599 | E80: 17 | F80: 15.6 | G80: 17 | H80: 13 | I80: 13 | J80: 14.1 | K80: 15 | L80: 16.1 | M80: 17 | N80: 16 | O80: 16 | P80: 13.69 | Q80: 16 | R80: 14.19 | S80: 18 | T80: 16.16 | U80: 21 | V80: 16.71 | W80: 20 | X80: 13.8 | Y80: 30 | Z80: 17.87 | AA80: 30 | AB80: 16.48 | AC80: 33 | AD80: 17.17 | AE80: 26 | AF80: 16.05 | AG80: 27 | AH80: 16.64 | AI80: 28 | AJ80: 17.49 | AK80: 27 | AL80: 17.17 | AM80: 27 | AN80: 14.81 | AO80: 23 | AP80: 14.57 | AQ80: 23 | AR80: 21.35 | AS80: 32
A81: 04940000 | B81: Pioneer Charter School of Science (District) | C81: 494 | D81: 73.16 | E81: 77 | F81: 75.431 | G81: 78 | H81: 72.457 | I81: 75 | J81: 76.802 | K81: 79 | L81: 60.551 | M81: 69 | N81: 66.47 | O81: 72 | P81: 53.25 | Q81: 58 | R81: 50.63 | S81: 57 | T81: 33.31 | U81: 39 | V81: 32.7 | W81: 39 | X81: 32.343 | Y81: 37 | Z81: 32.05 | AA81: 36 | AB81: 30 | AC81: 38 | AD81: 32.16 | AE81: 38 | AF81: 31.15 | AG81: 38 | AH81: 29.96 | AI81: 35 | AJ81: 27.02 | AK81: 35 | AL81: 26.8 | AM81: 34 | AN81: 29.19 | AO81: 31 | AP81: 27.7 | AQ81: 31 | AR81: 21.2 | AS81: 23
A82: 04960000 | B82: Global Learning Charter Public (District) | C82: 496 | D82: 43.002 | E82: 48 | F82: 45.51 | G82: 49 | H82: 46.103 | I82: 50 | J82: 44.611 | K82: 47 | L82: 36.117 | M82: 38 | N82: 42.913 | O82: 45 | P82: 43.023 | Q82: 45 | R82: 40.77 | S82: 45 | T82: 31.18 | U82: 33 | V82: 43.7 | W82: 45 | X82: 40.669 | Y82: 44 | Z82: 42.814 | AA82: 45 | AB82: 46.716 | AC82: 45 | AD82: 40.533 | AE82: 43 | AF82: 42.905 | AG82: 45 | AH82: 41.52 | AI82: 44 | AJ82: 36.84 | AK82: 40 | AL82: 38.6 | AM82: 40 | AN82: 38.015 | AO82: 41 | AP82: 34.286 | AQ82: 41 | AR82: 28.47 | AS82: 32
A83: 04970000 | B83: Pioneer Valley Chinese Immersion Charter (District) | C83: 497 | D83: 73.124 | E83: 77 | F83: 73.145 | G83: 77 | H83: 66.906 | I83: 71 | J83: 68.229 | K83: 74 | L83: 64.053 | M83: 68 | N83: 63.55 | O83: 68 | P83: 58.83 | Q83: 65 | R83: 60.7 | S83: 65 | T83: 55.3 | U83: 61 | V83: 55.75 | W83: 60 | X83: 43.914 | Y83: 46 | Z83: 44.864 | AA83: 47 | AB83: 34.1 | AC83: 37 | AD83: 33.1 | AE83: 36 | AF83: 28.3 | AG83: 31 | AH83: 28.3 | AI83: 31 | AJ83: 24.1 | AK83: 25 | AL83: 24.6 | AM83: 25 | AN83: 20.75 | AO83: 21 | AP83: 20.75 | AQ83: 21 | AR83: 20.5 | AS83: 21
A84: 04980000 | B84: Veritas Preparatory Charter School (District) | C84: 498 | D84: 34 | E84: 34 | F84: 34.923 | G84: 35 | H84: 27.997 | I84: 28 | J84: 29 | K84: 29 | L84: 31 | M84: 31 | N84: 31 | O84: 31 | P84: 29.5 | Q84: 30 | R84: 27.5 | S84: 28 | T84: 23.3 | U84: 25 | V84: 26 | W84: 26 | X84: 19 | Y84: 19 | Z84: 19 | AA84: 19 | AB84: 14.5 | AC84: 16 | AD84: 16 | AE84: 16 | AF84: 9.949 | AG84: 10 | AH84: 7.95 | AI84: 8 | AJ84: NE | AK84: NE | AL84: NE | AM84: NE | AN84: NE | AO84: NE | AP84: NE | AQ84: NE | AR84: NE | AS84: NE
A85: 04990000 | B85: Hampden Charter School of Science East (District) | C85: 499 | D85: 42.981 | E85: 45 | F85: 43.501 | G85: 45 | H85: 43.11 | I85: 46 | J85: 41.78 | K85: 46 | L85: 42.243 | M85: 47 | N85: 45.186 | O85: 48 | P85: 38.321 | Q85: 47 | R85: 37.68 | S85: 44 | T85: 31.32 | U85: 45 | V85: 33.078 | W85: 44 | X85: 27.466 | Y85: 36 | Z85: 31.501 | AA85: 37 | AB85: 25.479 | AC85: 40 | AD85: 29.451 | AE85: 39 | AF85: 26.993 | AG85: 33 | AH85: 26.68 | AI85: 34 | AJ85: 28.857 | AK85: 31 | AL85: 28 | AM85: 30 | AN85: 19.65 | AO85: 23 | AP85: 18.65 | AQ85: 22 | AR85: 14.538 | AS85: 16
A86: 35010000 | B86: Paulo Freire Social Justice Charter School (District) | C86: 3501 | D86: 23.8 | E86: 24 | F86: 24.1 | G86: 25 | H86: 25.148 | I86: 26 | J86: 24.403 | K86: 26 | L86: 35.441 | M86: 38 | N86: 34.961 | O86: 38 | P86: 34.156 | Q86: 40 | R86: 35.51 | S86: 42 | T86: 38.28 | U86: 46 | V86: 35.313 | W86: 43 | X86: 33.067 | Y86: 38 | Z86: 29.461 | AA86: 38 | AB86: 25.003 | AC86: 26 | AD86: 19.862 | AE86: 28 | AF86: NE | AG86: NE | AH86: NE | AI86: NE | AJ86: NE | AK86: NE | AL86: NE | AM86: NE | AN86: NE | AO86: NE | AP86: NE | AQ86: NE | AR86: NE | AS86: NE
A87: 35020000 | B87: Baystate Academy Charter Public School (District) | C87: 3502 | D87: 50.928 | E87: 56 | F87: 53.784 | G87: 55 | H87: 54.862 | I87: 56 | J87: 58.32 | K87: 59 | L87: 46.67 | M87: 52 | N87: 51.21 | O87: 52 | P87: 38.652 | Q87: 40 | R87: 36.18 | S87: 38 | T87: 25.35 | U87: 27 | V87: 26.23 | W87: 29 | X87: 19.83 | Y87: 20 | Z87: 22.08 | AA87: 22 | AB87: 8.31 | AC87: 11 | AD87: 9.21 | AE87: 11 | AF87: NE | AG87: NE | AH87: NE | AI87: NE | AJ87: NE | AK87: NE | AL87: NE | AM87: NE | AN87: NE | AO87: NE | AP87: NE | AQ87: NE | AR87: NE | AS87: NE
A88: 35030000 | B88: Collegiate Charter School of Lowell (District) | C88: 3503 | D88: 47.816 | E88: 53 | F88: 48.593 | G88: 52 | H88: 40 | I88: 40 | J88: 43.56 | K88: 49 | L88: 35 | M88: 36 | N88: 40 | O88: 40 | P88: 35 | Q88: 35 | R88: 33 | S88: 33 | T88: 29.1 | U88: 30 | V88: 28.5 | W88: 29 | X88: 21 | Y88: 22 | Z88: 21.48 | AA88: 22 | AB88: 16.2 | AC88: 18 | AD88: 15.2 | AE88: 17 | AF88: NE | AG88: NE | AH88: NE | AI88: NE | AJ88: NE | AK88: NE | AL88: NE | AM88: NE | AN88: NE | AO88: NE | AP88: NE | AQ88: NE | AR88: NE | AS88: NE
A89: 35040000 | B89: City on a Hill Charter Public School Dudley Square (District) | C89: 3504 | D89: 31.122 | E89: 36 | F89: 9.56 | G89: 23 | H89: 25.026 | I89: 33 | J89: 24.43 | K89: 33 | L89: 22.95 | M89: 33 | N89: 24.7 | O89: 37 | P89: 24.8 | Q89: 33 | R89: 25.3 | S89: 33 | T89: 20.2 | U89: 27 | V89: 20.9 | W89: 28 | X89: 13.5 | Y89: 18 | Z89: 13.8 | AA89: 19 | AB89: 8.2 | AC89: 13 | AD89: 8.2 | AE89: 13 | AF89: NE | AG89: NE | AH89: NE | AI89: NE | AJ89: NE | AK89: NE | AL89: NE | AM89: NE | AN89: NE | AO89: NE | AP89: NE | AQ89: NE | AR89: NE | AS89: NE
A90: 35050000 | B90: UP Academy Charter School of Dorchester (District) | C90: 3505 | D90: 50.86 | E90: 51 | F90: 51.5 | G90: 52 | H90: 55.4 | I90: 56 | J90: 55 | K90: 55 | L90: 41.01 | M90: 41 | N90: 56.44 | O90: 57 | P90: 39.33 | Q90: 40 | R90: 62.83 | S90: 63 | T90: 52.99 | U90: 52 | V90: 52.49 | W90: 51 | X90: 41 | Y90: 41 | Z90: 58 | AA90: 58 | AB90: 44.75 | AC90: 45 | AD90: 55.87 | AE90: 56 | AF90: NE | AG90: NE | AH90: NE | AI90: NE | AJ90: NE | AK90: NE | AL90: NE | AM90: NE | AN90: NE | AO90: NE | AP90: NE | AQ90: NE | AR90: NE | AS90: NE
A91: 35060000 | B91: Pioneer Charter School of Science II (PCSS-II) (District) | C91: 3506 | D91: 35.7 | E91: 38 | F91: 33.9 | G91: 36 | H91: 35.101 | I91: 37 | J91: 35.434 | K91: 38 | L91: 33.4 | M91: 35 | N91: 30.66 | O91: 35 | P91: 31.76 | Q91: 38 | R91: 32.2 | S91: 38 | T91: 28.44 | U91: 33 | V91: 25.24 | W91: 32 | X91: 22.292 | Y91: 25 | Z91: 21.446 | AA91: 24 | AB91: 16.7 | AC91: 20 | AD91: 16.9 | AE91: 20 | AF91: NE | AG91: NE | AH91: NE | AI91: NE | AJ91: NE | AK91: NE | AL91: NE | AM91: NE | AN91: NE | AO91: NE | AP91: NE | AQ91: NE | AR91: NE | AS91: NE
A92: 35070000 | B92: City on a Hill Charter Public School New Bedford (District) | C92: 3507 | D92: 8.871 | E92: 14 | F92: 10.643 | G92: 14 | H92: 17.721 | I92: 27 | J92: 20 | K92: 27 | L92: 17.3 | M92: 22 | N92: 16 | O92: 20 | P92: 12.916 | Q92: 20 | R92: 13.32 | S92: 20 | T92: 11 | U92: 15 | V92: 11.3 | W92: 15 | X92: 8.5 | Y92: 13 | Z92: 8.1 | AA92: 12 | AB92: NE | AC92: NE | AD92: NE | AE92: NE | AF92: NE | AG92: NE | AH92: NE | AI92: NE | AJ92: NE | AK92: NE | AL92: NE | AM92: NE | AN92: NE | AO92: NE | AP92: NE | AQ92: NE | AR92: NE | AS92: NE
A93: 35080000 | B93: Phoenix Academy Public Charter High School Springfield (District) | C93: 3508 | D93: 11.996 | E93: 12 | F93: 12.5 | G93: 13 | H93: 13.4 | I93: 17 | J93: 12.3 | K93: 15 | L93: 13.421 | M93: 16 | N93: 13.3 | O93: 16 | P93: 10.525 | Q93: 16 | R93: 11.9 | S93: 16 | T93: 11.4 | U93: 13 | V93: 11.75 | W93: 15 | X93: 7.4 | Y93: 11 | Z93: 8.5 | AA93: 15 | AB93: NE | AC93: NE | AD93: NE | AE93: NE | AF93: NE | AG93: NE | AH93: NE | AI93: NE | AJ93: NE | AK93: NE | AL93: NE | AM93: NE | AN93: NE | AO93: NE | AP93: NE | AQ93: NE | AR93: NE | AS93: NE
A94: 35090000 | B94: Argosy Collegiate Charter School (District) | C94: 3509 | D94: 40.12 | E94: 45 | F94: 39.32 | G94: 44 | H94: 38.696 | I94: 38 | J94: 38.95 | K94: 39 | L94: 31.301 | M94: 33 | N94: 37.2 | O94: 38 | P94: 24.999 | Q94: 25 | R94: 26 | S94: 26 | T94: 16.5 | U94: 17 | V94: 15.6 | W94: 17 | X94: 8.1 | Y94: 11 | Z94: 7.6 | AA94: 10 | AB94: NE | AC94: NE | AD94: NE | AE94: NE | AF94: NE | AG94: NE | AH94: NE | AI94: NE | AJ94: NE | AK94: NE | AL94: NE | AM94: NE | AN94: NE | AO94: NE | AP94: NE | AQ94: NE | AR94: NE | AS94: NE
A95: 35100000 | B95: Springfield Preparatory Charter School (District) | C95: 3510 | D95: 26.1 | E95: 27 | F95: 27.365 | G95: 28 | H95: 23.6 | I95: 24 | J95: 23.6 | K95: 24 | L95: 19.3 | M95: 20 | N95: 19.3 | O95: 20 | P95: 14.8 | Q95: 15 | R95: 13 | S95: 13 | T95: 6.66 | U95: 8 | V95: 6.664 | W95: 8 | X95: NE | Y95: NE | Z95: NE | AA95: NE | AB95: NE | AC95: NE | AD95: NE | AE95: NE | AF95: NE | AG95: NE | AH95: NE | AI95: NE | AJ95: NE | AK95: NE | AL95: NE | AM95: NE | AN95: NE | AO95: NE | AP95: NE | AQ95: NE | AR95: NE | AS95: NE
A96: 35110000 | B96: Bentley Academy Charter School (District) | C96: 3511 | D96: 29.088 | E96: 33 | F96: 24.65 | G96: 30 | H96: 28.386 | I96: 33 | J96: 29.39 | K96: 34 | L96: 25.39 | M96: 30 | N96: 24.39 | O96: 29 | P96: 31.008 | Q96: 31 | R96: 32.28 | S96: 32 | T96: 25.48 | U96: 30 | V96: 25.48 | W96: 30 | X96: NE | Y96: NE | Z96: NE | AA96: NE | AB96: NE | AC96: NE | AD96: NE | AE96: NE | AF96: NE | AG96: NE | AH96: NE | AI96: NE | AJ96: NE | AK96: NE | AL96: NE | AM96: NE | AN96: NE | AO96: NE | AP96: NE | AQ96: NE | AR96: NE | AS96: NE
A97: 35130000 | B97: New Heights Charter School of Brockton (District) | C97: 3513 | D97: 36.695 | E97: 41 | F97: 41.792 | G97: 43 | H97: 36.481 | I97: 40 | J97: 33.7 | K97: 36 | L97: 26.201 | M97: 28 | N97: 30.5 | O97: 31 | P97: 21.296 | Q97: 24 | R97: 22.09 | S97: 23 | T97: NE | U97: NE | V97: NE | W97: NE | X97: NE | Y97: NE | Z97: NE | AA97: NE | AB97: NE | AC97: NE | AD97: NE | AE97: NE | AF97: NE | AG97: NE | AH97: NE | AI97: NE | AJ97: NE | AK97: NE | AL97: NE | AM97: NE | AN97: NE | AO97: NE | AP97: NE | AQ97: NE | AR97: NE | AS97: NE
A98: 35140000 | B98: Libertas Academy Charter School (District) | C98: 3514 | D98: 21.796 | E98: 25 | F98: 24.95 | G98: 26 | H98: 14.199 | I98: 16 | J98: 14.4 | K98: 18 | L98: 7.52 | M98: 9 | N98: 7.2 | O98: 8 | P98: NE | Q98: NE | R98: NE | S98: NE | T98: NE | U98: NE | V98: NE | W98: NE | X98: NE | Y98: NE | Z98: NE | AA98: NE | AB98: NE | AC98: NE | AD98: NE | AE98: NE | AF98: NE | AG98: NE | AH98: NE | AI98: NE | AJ98: NE | AK98: NE | AL98: NE | AM98: NE | AN98: NE | AO98: NE | AP98: NE | AQ98: NE | AR98: NE | AS98: NE
A99: 35150000 | B99: Old Sturbridge Academy Charter Public School (District) | C99: 3515 | D99: 16.08 | E99: 18 | F99: 16.08 | G99: 18 | H99: 15.58 | I99: 17 | J99: 13.58 | K99: 15 | L99: 13.25 | M99: 14 | N99: 14 | O99: 15 | P99: NE | Q99: NE | R99: NE | S99: NE | T99: NE | U99: NE | V99: NE | W99: NE | X99: NE | Y99: NE | Z99: NE | AA99: NE | AB99: NE | AC99: NE | AD99: NE | AE99: NE | AF99: NE | AG99: NE | AH99: NE | AI99: NE | AJ99: NE | AK99: NE | AL99: NE | AM99: NE | AN99: NE | AO99: NE | AP99: NE | AQ99: NE | AR99: NE | AS99: NE
A100: 35160000 | B100: Hampden Charter School of Science West (District) | C100: 3516 | D100: 25.7 | E100: 27 | F100: 26.2 | G100: 27 | H100: 21.4 | I100: 23 | J100: 19.982 | K100: 21 | L100: NE | M100: NE | N100: NE | O100: NE | P100: NE | Q100: NE | R100: NE | S100: NE | T100: NE | U100: NE | V100: NE | W100: NE | X100: NE | Y100: NE | Z100: NE | AA100: NE | AB100: NE | AC100: NE | AD100: NE | AE100: NE | AF100: NE | AG100: NE | AH100: NE | AI100: NE | AJ100: NE | AK100: NE | AL100: NE | AM100: NE | AN100: NE | AO100: NE | AP100: NE | AQ100: NE | AR100: NE | AS100: NE
A101: 35170000 | B101: Map Academy Charter School (District) | C101: 3517 | D101: 9.5 | E101: 10 | F101: 8.5 | G101: 10 | H101: 8.6 | I101: 11 | J101: 9.2 | K101: 12 | L101: NE | M101: NE | N101: NE | O101: NE | P101: NE | Q101: NE | R101: NE | S101: NE | T101: NE | U101: NE | V101: NE | W101: NE | X101: NE | Y101: NE | Z101: NE | AA101: NE | AB101: NE | AC101: NE | AD101: NE | AE101: NE | AF101: NE | AG101: NE | AH101: NE | AI101: NE | AJ101: NE | AK101: NE | AL101: NE | AM101: NE | AN101: NE | AO101: NE | AP101: NE | AQ101: NE | AR101: NE | AS101: NE
A102: 35180000 | B102: Phoenix Academy Public Charter High School Lawrence (District) | C102: 3518 | D102: 13.193 | E102: 15 | F102: 15.1 | G102: 16 | H102: 13.3 | I102: 16 | J102: 13.3 | K102: 16 | L102: NE | M102: NE | N102: NE | O102: NE | P102: NE | Q102: NE | R102: NE | S102: NE | T102: NE | U102: NE | V102: NE | W102: NE | X102: NE | Y102: NE | Z102: NE | AA102: NE | AB102: NE | AC102: NE | AD102: NE | AE102: NE | AF102: NE | AG102: NE | AH102: NE | AI102: NE | AJ102: NE | AK102: NE | AL102: NE | AM102: NE | AN102: NE | AO102: NE | AP102: NE | AQ102: NE | AR102: NE | AS102: NE

Sheet FTE (hidden)
A1: LEA | B1: FTE | C1: Type | D1: Source
A2: 409 | B2: 639.87 | C2: C | D2: Final FY2020 Charter School Tuition and Enrollment
A3: 410 | B3: 1355.16 | C3: C | D3: Final FY2020 Charter School Tuition and Enrollment
A4: 412 | B4: 536.1 | C4: C | D4: Final FY2020 Charter School Tuition and Enrollment
A5: 413 | B5: 215.96 | C5: C | D5: Final FY2020 Charter School Tuition and Enrollment
A6: 414 | B6: 364.37 | C6: C | D6: Final FY2020 Charter School Tuition and Enrollment
A7: 416 | B7: 575.74 | C7: C | D7: Final FY2020 Charter School Tuition and Enrollment
A8: 417 | B8: 335.49 | C8: C | D8: Final FY2020 Charter School Tuition and Enrollment
A9: 418 | B9: 396.27 | C9: C | D9: Final FY2020 Charter School Tuition and Enrollment
A10: 419 | B10: 201.53 | C10: C | D10: Final FY2020 Charter School Tuition and Enrollment
A11: 420 | B11: 335.76 | C11: C | D11: Final FY2020 Charter School Tuition and Enrollment
A12: 426 | B12: 400.22 | C12: C | D12: Final FY2020 Charter School Tuition and Enrollment
A13: 428 | B13: 1970.67 | C13: C | D13: Final FY2020 Charter School Tuition and Enrollment
A14: 429 | B14: 1594.98 | C14: C | D14: Final FY2020 Charter School Tuition and Enrollment
A15: 430 | B15: 964.81 | C15: C | D15: Final FY2020 Charter School Tuition and Enrollment
A16: 431 | B16: 399.97 | C16: C | D16: Final FY2020 Charter School Tuition and Enrollment
A17: 432 | B17: 242.78 | C17: C | D17: Final FY2020 Charter School Tuition and Enrollment
A18: 435 | B18: 794.9 | C18: C | D18: Final FY2020 Charter School Tuition and Enrollment
A19: 436 | B19: 318.94 | C19: C | D19: Final FY2020 Charter School Tuition and Enrollment
A20: 437 | B20: 216.34 | C20: C | D20: Final FY2020 Charter School Tuition and Enrollment
A21: 438 | B21: 339.91 | C21: C | D21: Final FY2020 Charter School Tuition and Enrollment
A22: 439 | B22: 452.81 | C22: C | D22: Final FY2020 Charter School Tuition and Enrollment
A23: 440 | B23: 399.8 | C23: C | D23: Final FY2020 Charter School Tuition and Enrollment
A24: 441 | B24: 1571.04 | C24: C | D24: Final FY2020 Charter School Tuition and Enrollment
A25: 444 | B25: 709.07 | C25: C | D25: Final FY2020 Charter School Tuition and Enrollment
A26: 445 | B26: 1421.44 | C26: C | D26: Final FY2020 Charter School Tuition and Enrollment
A27: 446 | B27: 1642.7 | C27: C | D27: Final FY2020 Charter School Tuition and Enrollment
A28: 447 | B28: 708.63 | C28: C | D28: Final FY2020 Charter School Tuition and Enrollment
A29: 449 | B29: 700 | C29: C | D29: Final FY2020 Charter School Tuition and Enrollment
A30: 450 | B30: 217.86 | C30: C | D30: Final FY2020 Charter School Tuition and Enrollment
A31: 453 | B31: 701.22 | C31: C | D31: Final FY2020 Charter School Tuition and Enrollment
A32: 454 | B32: 777.96 | C32: C | D32: Final FY2020 Charter School Tuition and Enrollment
A33: 455 | B33: 312.5 | C33: C | D33: Final FY2020 Charter School Tuition and Enrollment
A34: 456 | B34: 813.81 | C34: C | D34: Final FY2020 Charter School Tuition and Enrollment
A35: 458 | B35: 97.11 | C35: C | D35: Final FY2020 Charter School Tuition and Enrollment
A36: 463 | B36: 595.21 | C36: C | D36: Final FY2020 Charter School Tuition and Enrollment
A37: 464 | B37: 206.16 | C37: C | D37: Final FY2020 Charter School Tuition and Enrollment
A38: 466 | B38: 173.02 | C38: C | D38: Final FY2020 Charter School Tuition and Enrollment
A39: 469 | B39: 1216.25 | C39: C | D39: Final FY2020 Charter School Tuition and Enrollment
A40: 470 | B40: 1588.34 | C40: C | D40: Final FY2020 Charter School Tuition and Enrollment
A41: 474 | B41: 358.85 | C41: C | D41: Final FY2020 Charter School Tuition and Enrollment
A42: 478 | B42: 396.48 | C42: C | D42: Final FY2020 Charter School Tuition and Enrollment
A43: 479 | B43: 396.93 | C43: C | D43: Final FY2020 Charter School Tuition and Enrollment
A44: 481 | B44: 941.13 | C44: C | D44: Final FY2020 Charter School Tuition and Enrollment
A45: 482 | B45: 306.91 | C45: C | D45: Final FY2020 Charter School Tuition and Enrollment
A46: 483 | B46: 647.28 | C46: C | D46: Final FY2020 Charter School Tuition and Enrollment
A47: 484 | B47: 1536.84 | C47: C | D47: Final FY2020 Charter School Tuition and Enrollment
A48: 485 | B48: 492.15 | C48: C | D48: Final FY2020 Charter School Tuition and Enrollment
A49: 486 | B49: 667.13 | C49: C | D49: Final FY2020 Charter School Tuition and Enrollment
A50: 487 | B50: 1098.44 | C50: C | D50: Final FY2020 Charter School Tuition and Enrollment
A51: 488 | B51: 1002.66 | C51: C | D51: Final FY2020 Charter School Tuition and Enrollment
A52: 489 | B52: 841.61 | C52: C | D52: Final FY2020 Charter School Tuition and Enrollment
A53: 491 | B53: 1301.61 | C53: C | D53: Final FY2020 Charter School Tuition and Enrollment
A54: 492 | B54: 363.61 | C54: C | D54: Final FY2020 Charter School Tuition and Enrollment
A55: 493 | B55: 199.26 | C55: C | D55: Final FY2020 Charter School Tuition and Enrollment
A56: 494 | B56: 790.11 | C56: C | D56: Final FY2020 Charter School Tuition and Enrollment
A57: 496 | B57: 502.42 | C57: C | D57: Final FY2020 Charter School Tuition and Enrollment
A58: 497 | B58: 535.57 | C58: C | D58: Final FY2020 Charter School Tuition and Enrollment
A59: 498 | B59: 370.25 | C59: C | D59: Final FY2020 Charter School Tuition and Enrollment
A60: 499 | B60: 525.06 | C60: C | D60: Final FY2020 Charter School Tuition and Enrollment
A61: 3501 | B61: 279.62 | C61: C | D61: Final FY2020 Charter School Tuition and Enrollment
A62: 3502 | B62: 473.71 | C62: C | D62: Final FY2020 Charter School Tuition and Enrollment
A63: 3503 | B63: 929.94 | C63: C | D63: Final FY2020 Charter School Tuition and Enrollment
A64: 3504 | B64: 188.13 | C64: C | D64: Final FY2020 Charter School Tuition and Enrollment
A65: 3506 | B65: 357.45 | C65: C | D65: Final FY2020 Charter School Tuition and Enrollment
A66: 3507 | B66: 102.62 | C66: C | D66: Final FY2020 Charter School Tuition and Enrollment
A67: 3508 | B67: 183.28 | C67: C | D67: Final FY2020 Charter School Tuition and Enrollment
A68: 3509 | B68: 508.07 | C68: C | D68: Final FY2020 Charter School Tuition and Enrollment
A69: 3510 | B69: 324.55 | C69: C | D69: Final FY2020 Charter School Tuition and Enrollment
A70: 3513 | B70: 623.34 | C70: C | D70: Final FY2020 Charter School Tuition and Enrollment
A71: 3514 | B71: 259.71 | C71: C | D71: Final FY2020 Charter School Tuition and Enrollment
A72: 3515 | B72: 239.75 | C72: C | D72: Final FY2020 Charter School Tuition and Enrollment
A73: 3516 | B73: 258.57 | C73: C | D73: Final FY2020 Charter School Tuition and Enrollment
A74: 3517 | B74: 162.5 | C74: C | D74: Final FY2020 Charter School Tuition and Enrollment
A75: 3518 | B75: 150.01 | C75: C | D75: Final FY2020 Charter School Tuition and Enrollment
A78: 407 | B78: 265.5388889 | C78: HM | D78: Days of Membership Report
A79: 411 | B79: 487.9493671 | C79: HM | D79: Days of Membership Report
A80: 424 | B80: 397.8831169 | C80: HM | D80: Days of Membership Report
A81: 452 | B81: 377.8101266 | C81: HM | D81: Days of Membership Report
A82: 480 | B82: 408.1234568 | C82: HM | D82: Days of Membership Report
A83: 3505 | B83: 697.8159509 | C83: HM | D83: Days of Membership Report
A84: 3511 | B84: 323.4550265 | C84: HM | D84: Days of Membership Report
